Workbook

Sheet Title
O3: Institute of Agriculture and Natural Resources
O4: EC872
O5: (Revised October 2023)
C42: The following individuals contributed to these budgets in their specialty area:
D43: Cody Creech | G43: Extension Dryland Cropping Systems
D44: Robert Harveson | G44: Extension Plant Pathologist - Specialty Crops
D45: Tamra Jackson-Ziems | G45: Extension Plant Pathologist - Corn and Sorghum
D46: Paul Jasa | G46: Extension Biological Systems Engineer
D47: Nevin Lawrence | G47: Extension Weed Management
D48: Dylan Mangel | G48: Extension Plant Pathologist - Soybeans
D49: Jay Parsons | G49: Extension Biosystems Economist
D50: Chris Proctor | G50: Extension Educator - Weed Management
D51: Stephen Wegulo | G51: Extension Plant Pathologist - Wheat and Ornamental
D52: Robert Wright | G52: Extension Entomologist

Sheet General Variables
A1: Farm Wide Inputs
P2: Region
A3: Year | B3: 2024 | E3: Real Estate Values
A4: Wage Rate | B4: 25 | C4: / Hr | E4: Description | F4: Value | P4: Eastern Nebraska
A5: Diesel Price | B5: 3.45 | C5: / gal | E5: Dryland (State) | F5: 4395
A6: Lube Factor | B6: 1.15 | E6: Dryland (Panhandle) | F6: 685
A7: Diesel & Lube | B7: =B5*B6 -> 3.9675 | C7: / gal | E7: Gravity (State) | F7: 7905
A8: Elect. Price | B8: 0.11 | C8: / kWh | E8: Gravity (Panhandle) | F8: 3545 | P8: Tillage System
A9: Taxes, Ins., Housing Factor | B9: 0.02 | E9: Pivot (State) | F9: 8760
A10: Investment Interest Rate | B10: 0.03 | E10: Pivot (Panhandle) | F10: 3915 | P10: Conventional Tillage
A11: Operations Borrowing Rate | B11: 0.07 | E11: Dryland (Southwest) | F11: 1720 | P11: No Till
A12: Operations Borrowing Time | B12: 6 | C12: months | E12: Fall Establishment | F12: 0 | P12: Ridge Till
A13: Real Estate Tax Rate | B13: 0.0125 | E13: Pivot (Marginal Land) | F13: 6070 | P13: Strip Till
A14: Overhead Cost per Acre -irrigated | B14: 33 | E14: Dryland (Eastern) | F14: 8365 | P14: Stubble Mulch Fallow
A15: Overhead Cost per Acre - dryland | B15: 25
A16: Overhead Cost per Acre- small grains | B16: 16 | P16: Clean Till Fallow
P17: Ecofallow
P18: Reduced Till
B19: See crop insurance tab for multi-peril insurance premiums per crop. | P19: Tilled Seed Bed
P20: No Till Drilled 7.5-inch Rows
P22: Continuous
P23: Following Corn
P24: Following Beans
P25: Ecofallow Follows Wheat (2 crops in 3 years)
P26: Ecofallow Before Corn (2 crops in 3 years)
P27: 1 crop in 2 years
P28: Fall Establishment
P30: Water Source
P31: Pivot Irrigated Diesel
P32: Pivot Irrigated Electric
P33: Gravity Irrigated Diesel, fed by a well
P34: Pivot Irrigated, fed by canal
P35: Gravity Irrigated, fed by canal
P36: Dryland

Sheet 1-Alfalfa
B2: Region | F2: Detail | J2: Water Source | K2: Dryland
B3: Tillage System | C3: Conventional Tillage | G3: Yield | J3: acre/inches
B4: Cropping System | C4: Fall Establishment | G4: =IFERROR(VALUE(LEFT($H$3,FIND(" ",$H$3))),"") ->  | H4: =IFERROR(RIGHT(H3,LEN(H3)-LEN(G4)-1),"") ->  | J4: Follows Legume? | K4: No
B5: Crop Insurance | C5: =MID(CELL("filename",C5),FIND("]",CELL("filename",C5))+1,255) -> 1-Alfalfa | E5: =VLOOKUP($C$5,CropInsurance,5,FALSE) ->  | F5: =VLOOKUP($C$5,CropInsurance,6,FALSE) -> 
A6: =REPLACE(CELL("filename",$A$1),1,FIND("]",CELL("filename",$A$1)),"") & IF($G$2="","", ", " & $G$2 ) & IF($C$2="","",", "&$C$2&"") & IF($C$3="","",", "&$C$3) & IF($C$4="","",", "&$C$4) & IF($H$3="","",", "&$H$3 & " Yield") & IF(K2="","",", " &K2) -> 1-Alfalfa, Conventional Tillage, Fall Establishment, Dryland
B7: ='General Variables'!$B$3 & " Budget " & REPLACE(CELL("filename",$A$1),1,FIND("]",CELL("filename",$A$1)),"") & IF($G$2="","", ", " & $G$2 ) & IF($C$2="","",", "&$C$2) & IF($C$3="","",", "&$C$3) & IF($C$4="","",", "&$C$4) & IF($H$3="","",", "&$H$3 & " Yield") -> 2024 Budget 1-Alfalfa, Conventional Tillage, Fall Establishment
B8: =IF(K2="","",K2)&IF(LEFT(K2,5)="Pivot",", 800 GPM 35 PSI","") & IF(K2="Gravity Irrigated, fed by a well",", 1,000 GPM 10 PSI","") & IF(K3="","",", "& K3&" "&J3) -> Dryland
B10: Field Operations | C10: Times or Qty | E10: ="Labor @ $" &TEXT('General Variables'!B4,"#.00")& " /Hr" -> Labor @ $25.00 /Hr | F10: ="Fuel @ $" & TEXT('General Variables'!B5,"#.00") & " and Lube" -> Fuel @ $3.45 and Lube | G10: Repairs | I10: Ownership | K10: Total | L10: Your Estimate
D11: Unit | G11: Power | H11: Imp. | I11: Power | J11: Imp.
A12: 1 | B12: Spread Fertilizer | C12: 1 | E12: =IF(B12=0,"",IF(C12>9999,"",ROUND('General Variables'!$B$4*VLOOKUP(B12,Operations!$A$2:$U$79,10,FALSE)/VLOOKUP(B12,Operations!$A$2:$U$79,9,FALSE)*C12,2))) -> 1.97 | F12: =IF(B12=0,0,IF(C12>9999,"",ROUND(IF(VLOOKUP(B12,Operations!$A$2:$U$79,12,FALSE)=0,VLOOKUP(B12,Operations!$A$2:$U$79,13,FALSE)*'General Variables'!$B$8,VLOOKUP(B12,Operations!$A$2:$U$79,12,FALSE)*'General Variables'!$B$7)/VLOOKUP(B12,Operations!$A$2:$U$79,9,FALSE)*C12,2))) -> 1.21 | G12: =IF(B12=0,0,IF(C12>9999,"",ROUND(VLOOKUP(VLOOKUP(B12,Operations!$A$2:$U$79,11,FALSE),PowerUnits[],10,FALSE)/VLOOKUP(B12,Operations!$A$2:$U$79,9,FALSE)*C12,2))) -> 0.05 | H12: =IF(B12=0,"",IF(C12>9999,"",ROUND(VLOOKUP($B12,Operations!$A$2:$U$79,15,FALSE)*C12,2))) -> 0 | I12: =IF(B12=0,0,IF(C12>9999,"",ROUND(VLOOKUP(VLOOKUP(B12,Operations!$A$2:$U$79,11,FALSE),PowerUnits[],16,FALSE)/VLOOKUP(B12,Operations!$A$2:$U$79,9,FALSE)*C12,2))) -> 4.13 | J12: =IF(B12=0,"",IF(C12>9999,"",ROUND(VLOOKUP($B12,Operations!$A$2:$U$79,21,FALSE)*$C12,2))) -> 2.64 | K12: =IF(C12>9999,"",SUM(E12:J12)) -> 10
A13: 2 | B13: Disk | C13: 1 | E13: =IF(B13=0,"",IF(C13>9999,"",ROUND('General Variables'!$B$4*VLOOKUP(B13,Operations!$A$2:$U$79,10,FALSE)/VLOOKUP(B13,Operations!$A$2:$U$79,9,FALSE)*C13,2))) -> 2.52 | F13: =IF(B13=0,0,IF(C13>9999,"",ROUND(IF(VLOOKUP(B13,Operations!$A$2:$U$79,12,FALSE)=0,VLOOKUP(B13,Operations!$A$2:$U$79,13,FALSE)*'General Variables'!$B$8,VLOOKUP(B13,Operations!$A$2:$U$79,12,FALSE)*'General Variables'!$B$7)/VLOOKUP(B13,Operations!$A$2:$U$79,9,FALSE)*C13,2))) -> 3.02 | G13: =IF(B13=0,0,IF(C13>9999,"",ROUND(VLOOKUP(VLOOKUP(B13,Operations!$A$2:$U$79,11,FALSE),PowerUnits[],10,FALSE)/VLOOKUP(B13,Operations!$A$2:$U$79,9,FALSE)*C13,2))) -> 0.29 | H13: =IF(B13=0,"",IF(C13>9999,"",ROUND(VLOOKUP($B13,Operations!$A$2:$U$79,15,FALSE)*C13,2))) -> 1.27 | I13: =IF(B13=0,0,IF(C13>9999,"",ROUND(VLOOKUP(VLOOKUP(B13,Operations!$A$2:$U$79,11,FALSE),PowerUnits[],16,FALSE)/VLOOKUP(B13,Operations!$A$2:$U$79,9,FALSE)*C13,2))) -> 12.45 | J13: =IF(B13=0,"",IF(C13>9999,"",ROUND(VLOOKUP($B13,Operations!$A$2:$U$79,21,FALSE)*$C13,2))) -> 3.69 | K13: =IF(C13>9999,"",SUM(E13:J13)) -> 23.24
A14: 3 | B14: Harrow | C14: 1 | E14: =IF(B14=0,"",IF(C14>9999,"",ROUND('General Variables'!$B$4*VLOOKUP(B14,Operations!$A$2:$U$79,10,FALSE)/VLOOKUP(B14,Operations!$A$2:$U$79,9,FALSE)*C14,2))) -> 1.15 | F14: =IF(B14=0,0,IF(C14>9999,"",ROUND(IF(VLOOKUP(B14,Operations!$A$2:$U$79,12,FALSE)=0,VLOOKUP(B14,Operations!$A$2:$U$79,13,FALSE)*'General Variables'!$B$8,VLOOKUP(B14,Operations!$A$2:$U$79,12,FALSE)*'General Variables'!$B$7)/VLOOKUP(B14,Operations!$A$2:$U$79,9,FALSE)*C14,2))) -> 0.34 | G14: =IF(B14=0,0,IF(C14>9999,"",ROUND(VLOOKUP(VLOOKUP(B14,Operations!$A$2:$U$79,11,FALSE),PowerUnits[],10,FALSE)/VLOOKUP(B14,Operations!$A$2:$U$79,9,FALSE)*C14,2))) -> 0.03 | H14: =IF(B14=0,"",IF(C14>9999,"",ROUND(VLOOKUP($B14,Operations!$A$2:$U$79,15,FALSE)*C14,2))) -> 0.64 | I14: =IF(B14=0,0,IF(C14>9999,"",ROUND(VLOOKUP(VLOOKUP(B14,Operations!$A$2:$U$79,11,FALSE),PowerUnits[],16,FALSE)/VLOOKUP(B14,Operations!$A$2:$U$79,9,FALSE)*C14,2))) -> 2.18 | J14: =IF(B14=0,"",IF(C14>9999,"",ROUND(VLOOKUP($B14,Operations!$A$2:$U$79,21,FALSE)*$C14,2))) -> 3.69 | K14: 8.03
A15: 4 | B15: Harrow | C15: 1 | E15: =IF(B15=0,"",IF(C15>9999,"",ROUND('General Variables'!$B$4*VLOOKUP(B15,Operations!$A$2:$U$79,10,FALSE)/VLOOKUP(B15,Operations!$A$2:$U$79,9,FALSE)*C15,2))) -> 1.15 | F15: =IF(B15=0,0,IF(C15>9999,"",ROUND(IF(VLOOKUP(B15,Operations!$A$2:$U$79,12,FALSE)=0,VLOOKUP(B15,Operations!$A$2:$U$79,13,FALSE)*'General Variables'!$B$8,VLOOKUP(B15,Operations!$A$2:$U$79,12,FALSE)*'General Variables'!$B$7)/VLOOKUP(B15,Operations!$A$2:$U$79,9,FALSE)*C15,2))) -> 0.34 | G15: =IF(B15=0,0,IF(C15>9999,"",ROUND(VLOOKUP(VLOOKUP(B15,Operations!$A$2:$U$79,11,FALSE),PowerUnits[],10,FALSE)/VLOOKUP(B15,Operations!$A$2:$U$79,9,FALSE)*C15,2))) -> 0.03 | H15: =IF(B15=0,"",IF(C15>9999,"",ROUND(VLOOKUP($B15,Operations!$A$2:$U$79,15,FALSE)*C15,2))) -> 0.64 | I15: =IF(B15=0,0,IF(C15>9999,"",ROUND(VLOOKUP(VLOOKUP(B15,Operations!$A$2:$U$79,11,FALSE),PowerUnits[],16,FALSE)/VLOOKUP(B15,Operations!$A$2:$U$79,9,FALSE)*C15,2))) -> 2.18 | J15: =IF(B15=0,"",IF(C15>9999,"",ROUND(VLOOKUP($B15,Operations!$A$2:$U$79,21,FALSE)*$C15,2))) -> 3.69 | K15: 8.03
A16: 5 | B16: Drill | C16: 1 | E16: =IF(B16=0,"",IF(C16>9999,"",ROUND('General Variables'!$B$4*VLOOKUP(B16,Operations!$A$2:$U$79,10,FALSE)/VLOOKUP(B16,Operations!$A$2:$U$79,9,FALSE)*C16,2))) -> 2.2 | F16: =IF(B16=0,0,IF(C16>9999,"",ROUND(IF(VLOOKUP(B16,Operations!$A$2:$U$79,12,FALSE)=0,VLOOKUP(B16,Operations!$A$2:$U$79,13,FALSE)*'General Variables'!$B$8,VLOOKUP(B16,Operations!$A$2:$U$79,12,FALSE)*'General Variables'!$B$7)/VLOOKUP(B16,Operations!$A$2:$U$79,9,FALSE)*C16,2))) -> 1.58 | G16: =IF(B16=0,0,IF(C16>9999,"",ROUND(VLOOKUP(VLOOKUP(B16,Operations!$A$2:$U$79,11,FALSE),PowerUnits[],10,FALSE)/VLOOKUP(B16,Operations!$A$2:$U$79,9,FALSE)*C16,2))) -> 0.05 | H16: =IF(B16=0,"",IF(C16>9999,"",ROUND(VLOOKUP($B16,Operations!$A$2:$U$79,15,FALSE)*C16,2))) -> 7.18 | I16: =IF(B16=0,0,IF(C16>9999,"",ROUND(VLOOKUP(VLOOKUP(B16,Operations!$A$2:$U$79,11,FALSE),PowerUnits[],16,FALSE)/VLOOKUP(B16,Operations!$A$2:$U$79,9,FALSE)*C16,2))) -> 4.19 | J16: =IF(B16=0,"",IF(C16>9999,"",ROUND(VLOOKUP($B16,Operations!$A$2:$U$79,21,FALSE)*$C16,2))) -> 2.45 | K16: 17.65
A17: 6 | B17: Roll | C17: 1 | E17: =IF(B17=0,"",IF(C17>9999,"",ROUND('General Variables'!$B$4*VLOOKUP(B17,Operations!$A$2:$U$79,10,FALSE)/VLOOKUP(B17,Operations!$A$2:$U$79,9,FALSE)*C17,2))) -> 2.08 | F17: =IF(B17=0,0,IF(C17>9999,"",ROUND(IF(VLOOKUP(B17,Operations!$A$2:$U$79,12,FALSE)=0,VLOOKUP(B17,Operations!$A$2:$U$79,13,FALSE)*'General Variables'!$B$8,VLOOKUP(B17,Operations!$A$2:$U$79,12,FALSE)*'General Variables'!$B$7)/VLOOKUP(B17,Operations!$A$2:$U$79,9,FALSE)*C17,2))) -> 1.8 | G17: =IF(B17=0,0,IF(C17>9999,"",ROUND(VLOOKUP(VLOOKUP(B17,Operations!$A$2:$U$79,11,FALSE),PowerUnits[],10,FALSE)/VLOOKUP(B17,Operations!$A$2:$U$79,9,FALSE)*C17,2))) -> 0.05 | H17: =IF(B17=0,"",IF(C17>9999,"",ROUND(VLOOKUP($B17,Operations!$A$2:$U$79,15,FALSE)*C17,2))) -> 0.37 | I17: =IF(B17=0,0,IF(C17>9999,"",ROUND(VLOOKUP(VLOOKUP(B17,Operations!$A$2:$U$79,11,FALSE),PowerUnits[],16,FALSE)/VLOOKUP(B17,Operations!$A$2:$U$79,9,FALSE)*C17,2))) -> 4.37 | J17: =IF(B17=0,"",IF(C17>9999,"",ROUND(VLOOKUP($B17,Operations!$A$2:$U$79,21,FALSE)*$C17,2))) -> 3.34 | K17: =IF(C17>9999,"",SUM(E17:J17)) -> 12.01
A18: 7 | B18: Spray Herbicide | C18: 1 | E18: =IF(B18=0,"",IF(C18>9999,"",ROUND('General Variables'!$B$4*VLOOKUP(B18,Operations!$A$2:$U$79,10,FALSE)/VLOOKUP(B18,Operations!$A$2:$U$79,9,FALSE)*C18,2))) -> 0.95 | F18: =IF(B18=0,0,IF(C18>9999,"",ROUND(IF(VLOOKUP(B18,Operations!$A$2:$U$79,12,FALSE)=0,VLOOKUP(B18,Operations!$A$2:$U$79,13,FALSE)*'General Variables'!$B$8,VLOOKUP(B18,Operations!$A$2:$U$79,12,FALSE)*'General Variables'!$B$7)/VLOOKUP(B18,Operations!$A$2:$U$79,9,FALSE)*C18,2))) -> 0.32 | G18: =IF(B18=0,0,IF(C18>9999,"",ROUND(VLOOKUP(VLOOKUP(B18,Operations!$A$2:$U$79,11,FALSE),PowerUnits[],10,FALSE)/VLOOKUP(B18,Operations!$A$2:$U$79,9,FALSE)*C18,2))) -> 0.02 | H18: =IF(B18=0,"",IF(C18>9999,"",ROUND(VLOOKUP($B18,Operations!$A$2:$U$79,15,FALSE)*C18,2))) -> 1.11 | I18: =IF(B18=0,0,IF(C18>9999,"",ROUND(VLOOKUP(VLOOKUP(B18,Operations!$A$2:$U$79,11,FALSE),PowerUnits[],16,FALSE)/VLOOKUP(B18,Operations!$A$2:$U$79,9,FALSE)*C18,2))) -> 1.59 | J18: =IF(B18=0,"",IF(C18>9999,"",ROUND(VLOOKUP($B18,Operations!$A$2:$U$79,21,FALSE)*$C18,2))) -> 2.02 | K18: =IF(C18>9999,"",SUM(E18:J18)) -> 6.01
A19: 8 | B19: Spray Insecticide | C19: 0.2 | E19: =IF(B19=0,"",IF(C19>9999,"",ROUND('General Variables'!$B$4*VLOOKUP(B19,Operations!$A$2:$U$79,10,FALSE)/VLOOKUP(B19,Operations!$A$2:$U$79,9,FALSE)*C19,2))) -> 0.19 | F19: =IF(B19=0,0,IF(C19>9999,"",ROUND(IF(VLOOKUP(B19,Operations!$A$2:$U$79,12,FALSE)=0,VLOOKUP(B19,Operations!$A$2:$U$79,13,FALSE)*'General Variables'!$B$8,VLOOKUP(B19,Operations!$A$2:$U$79,12,FALSE)*'General Variables'!$B$7)/VLOOKUP(B19,Operations!$A$2:$U$79,9,FALSE)*C19,2))) -> 0.06 | G19: =IF(B19=0,0,IF(C19>9999,"",ROUND(VLOOKUP(VLOOKUP(B19,Operations!$A$2:$U$79,11,FALSE),PowerUnits[],10,FALSE)/VLOOKUP(B19,Operations!$A$2:$U$79,9,FALSE)*C19,2))) -> 0 | H19: =IF(B19=0,"",IF(C19>9999,"",ROUND(VLOOKUP($B19,Operations!$A$2:$U$79,15,FALSE)*C19,2))) -> 0.22 | I19: =IF(B19=0,0,IF(C19>9999,"",ROUND(VLOOKUP(VLOOKUP(B19,Operations!$A$2:$U$79,11,FALSE),PowerUnits[],16,FALSE)/VLOOKUP(B19,Operations!$A$2:$U$79,9,FALSE)*C19,2))) -> 0.32 | J19: =IF(B19=0,"",IF(C19>9999,"",ROUND(VLOOKUP($B19,Operations!$A$2:$U$79,21,FALSE)*$C19,2))) -> 0.4 | K19: 1.19
A20: 9 | E20: =IF(B20=0,"",IF(C20>9999,"",ROUND('General Variables'!$B$4*VLOOKUP(B20,Operations!$A$2:$U$79,10,FALSE)/VLOOKUP(B20,Operations!$A$2:$U$79,9,FALSE)*C20,2))) ->  | F20: =IF(B20=0,0,IF(C20>9999,"",ROUND(IF(VLOOKUP(B20,Operations!$A$2:$U$79,12,FALSE)=0,VLOOKUP(B20,Operations!$A$2:$U$79,13,FALSE)*'General Variables'!$B$8,VLOOKUP(B20,Operations!$A$2:$U$79,12,FALSE)*'General Variables'!$B$7)/VLOOKUP(B20,Operations!$A$2:$U$79,9,FALSE)*C20,2))) -> 0 | G20: =IF(B20=0,0,IF(C20>9999,"",ROUND(VLOOKUP(VLOOKUP(B20,Operations!$A$2:$U$79,11,FALSE),PowerUnits[],10,FALSE)/VLOOKUP(B20,Operations!$A$2:$U$79,9,FALSE)*C20,2))) -> 0 | H20: =IF(B20=0,"",IF(C20>9999,"",ROUND(VLOOKUP($B20,Operations!$A$2:$U$79,15,FALSE)*C20,2))) ->  | I20: =IF(B20=0,0,IF(C20>9999,"",ROUND(VLOOKUP(VLOOKUP(B20,Operations!$A$2:$U$79,11,FALSE),PowerUnits[],16,FALSE)/VLOOKUP(B20,Operations!$A$2:$U$79,9,FALSE)*C20,2))) -> 0 | J20: =IF(B20=0,"",IF(C20>9999,"",ROUND(VLOOKUP($B20,Operations!$A$2:$U$79,21,FALSE)*$C20,2))) ->  | K20: 0
A21: 10 | E21: =IF(B21=0,"",IF(C21>9999,"",ROUND('General Variables'!$B$4*VLOOKUP(B21,Operations!$A$2:$U$79,10,FALSE)/VLOOKUP(B21,Operations!$A$2:$U$79,9,FALSE)*C21,2))) ->  | F21: =IF(B21=0,0,IF(C21>9999,"",ROUND(IF(VLOOKUP(B21,Operations!$A$2:$U$79,12,FALSE)=0,VLOOKUP(B21,Operations!$A$2:$U$79,13,FALSE)*'General Variables'!$B$8,VLOOKUP(B21,Operations!$A$2:$U$79,12,FALSE)*'General Variables'!$B$7)/VLOOKUP(B21,Operations!$A$2:$U$79,9,FALSE)*C21,2))) -> 0 | G21: =IF(B21=0,0,IF(C21>9999,"",ROUND(VLOOKUP(VLOOKUP(B21,Operations!$A$2:$U$79,11,FALSE),PowerUnits[],10,FALSE)/VLOOKUP(B21,Operations!$A$2:$U$79,9,FALSE)*C21,2))) -> 0 | H21: =IF(B21=0,"",IF(C21>9999,"",ROUND(VLOOKUP($B21,Operations!$A$2:$U$79,15,FALSE)*C21,2))) ->  | I21: =IF(B21=0,0,IF(C21>9999,"",ROUND(VLOOKUP(VLOOKUP(B21,Operations!$A$2:$U$79,11,FALSE),PowerUnits[],16,FALSE)/VLOOKUP(B21,Operations!$A$2:$U$79,9,FALSE)*C21,2))) -> 0 | J21: =IF(B21=0,"",IF(C21>9999,"",ROUND(VLOOKUP($B21,Operations!$A$2:$U$79,21,FALSE)*$C21,2))) ->  | K21: 0
A22: 11 | E22: =IF(B22=0,"",IF(C22>9999,"",ROUND('General Variables'!$B$4*VLOOKUP(B22,Operations!$A$2:$U$79,10,FALSE)/VLOOKUP(B22,Operations!$A$2:$U$79,9,FALSE)*C22,2))) ->  | F22: =IF(B22=0,0,IF(C22>9999,"",ROUND(IF(VLOOKUP(B22,Operations!$A$2:$U$79,12,FALSE)=0,VLOOKUP(B22,Operations!$A$2:$U$79,13,FALSE)*'General Variables'!$B$8,VLOOKUP(B22,Operations!$A$2:$U$79,12,FALSE)*'General Variables'!$B$7)/VLOOKUP(B22,Operations!$A$2:$U$79,9,FALSE)*C22,2))) -> 0 | G22: =IF(B22=0,0,IF(C22>9999,"",ROUND(VLOOKUP(VLOOKUP(B22,Operations!$A$2:$U$79,11,FALSE),PowerUnits[],10,FALSE)/VLOOKUP(B22,Operations!$A$2:$U$79,9,FALSE)*C22,2))) -> 0 | H22: =IF(B22=0,"",IF(C22>9999,"",ROUND(VLOOKUP($B22,Operations!$A$2:$U$79,15,FALSE)*C22,2))) ->  | I22: =IF(B22=0,0,IF(C22>9999,"",ROUND(VLOOKUP(VLOOKUP(B22,Operations!$A$2:$U$79,11,FALSE),PowerUnits[],16,FALSE)/VLOOKUP(B22,Operations!$A$2:$U$79,9,FALSE)*C22,2))) -> 0 | J22: =IF(B22=0,"",IF(C22>9999,"",ROUND(VLOOKUP($B22,Operations!$A$2:$U$79,21,FALSE)*$C22,2))) ->  | K22: 0
A23: 12 | E23: =IF(B23=0,"",IF(C23>9999,"",ROUND('General Variables'!$B$4*VLOOKUP(B23,Operations!$A$2:$U$79,10,FALSE)/VLOOKUP(B23,Operations!$A$2:$U$79,9,FALSE)*C23,2))) ->  | F23: =IF(B23=0,0,IF(C23>9999,"",ROUND(IF(VLOOKUP(B23,Operations!$A$2:$U$79,12,FALSE)=0,VLOOKUP(B23,Operations!$A$2:$U$79,13,FALSE)*'General Variables'!$B$8,VLOOKUP(B23,Operations!$A$2:$U$79,12,FALSE)*'General Variables'!$B$7)/VLOOKUP(B23,Operations!$A$2:$U$79,9,FALSE)*C23,2))) -> 0 | G23: =IF(B23=0,0,IF(C23>9999,"",ROUND(VLOOKUP(VLOOKUP(B23,Operations!$A$2:$U$79,11,FALSE),PowerUnits[],10,FALSE)/VLOOKUP(B23,Operations!$A$2:$U$79,9,FALSE)*C23,2))) -> 0 | H23: =IF(B23=0,"",IF(C23>9999,"",ROUND(VLOOKUP($B23,Operations!$A$2:$U$79,15,FALSE)*C23,2))) ->  | I23: =IF(B23=0,0,IF(C23>9999,"",ROUND(VLOOKUP(VLOOKUP(B23,Operations!$A$2:$U$79,11,FALSE),PowerUnits[],16,FALSE)/VLOOKUP(B23,Operations!$A$2:$U$79,9,FALSE)*C23,2))) -> 0 | J23: =IF(B23=0,"",IF(C23>9999,"",ROUND(VLOOKUP($B23,Operations!$A$2:$U$79,21,FALSE)*$C23,2))) ->  | K23: 0
A24: 13 | E24: =IF(B24=0,"",IF(C24>9999,"",ROUND('General Variables'!$B$4*VLOOKUP(B24,Operations!$A$2:$U$79,10,FALSE)/VLOOKUP(B24,Operations!$A$2:$U$79,9,FALSE)*C24,2))) ->  | F24: =IF(B24=0,0,IF(C24>9999,"",ROUND(IF(VLOOKUP(B24,Operations!$A$2:$U$79,12,FALSE)=0,VLOOKUP(B24,Operations!$A$2:$U$79,13,FALSE)*'General Variables'!$B$8,VLOOKUP(B24,Operations!$A$2:$U$79,12,FALSE)*'General Variables'!$B$7)/VLOOKUP(B24,Operations!$A$2:$U$79,9,FALSE)*C24,2))) -> 0 | G24: =IF(B24=0,0,IF(C24>9999,"",ROUND(VLOOKUP(VLOOKUP(B24,Operations!$A$2:$U$79,11,FALSE),PowerUnits[],10,FALSE)/VLOOKUP(B24,Operations!$A$2:$U$79,9,FALSE)*C24,2))) -> 0 | H24: =IF(B24=0,"",IF(C24>9999,"",ROUND(VLOOKUP($B24,Operations!$A$2:$U$79,15,FALSE)*C24,2))) ->  | I24: =IF(B24=0,0,IF(C24>9999,"",ROUND(VLOOKUP(VLOOKUP(B24,Operations!$A$2:$U$79,11,FALSE),PowerUnits[],16,FALSE)/VLOOKUP(B24,Operations!$A$2:$U$79,9,FALSE)*C24,2))) -> 0 | J24: =IF(B24=0,"",IF(C24>9999,"",ROUND(VLOOKUP($B24,Operations!$A$2:$U$79,21,FALSE)*$C24,2))) ->  | K24: 0
A25: 14 | E25: =IF(B25=0,"",IF(C25>9999,"",ROUND('General Variables'!$B$4*VLOOKUP(B25,Operations!$A$2:$U$79,10,FALSE)/VLOOKUP(B25,Operations!$A$2:$U$79,9,FALSE)*C25,2))) ->  | F25: =IF(B25=0,0,IF(C25>9999,"",ROUND(IF(VLOOKUP(B25,Operations!$A$2:$U$79,12,FALSE)=0,VLOOKUP(B25,Operations!$A$2:$U$79,13,FALSE)*'General Variables'!$B$8,VLOOKUP(B25,Operations!$A$2:$U$79,12,FALSE)*'General Variables'!$B$7)/VLOOKUP(B25,Operations!$A$2:$U$79,9,FALSE)*C25,2))) -> 0 | G25: =IF(B25=0,0,IF(C25>9999,"",ROUND(VLOOKUP(VLOOKUP(B25,Operations!$A$2:$U$79,11,FALSE),PowerUnits[],10,FALSE)/VLOOKUP(B25,Operations!$A$2:$U$79,9,FALSE)*C25,2))) -> 0 | H25: =IF(B25=0,"",IF(C25>9999,"",ROUND(VLOOKUP($B25,Operations!$A$2:$U$79,15,FALSE)*C25,2))) ->  | I25: =IF(B25=0,0,IF(C25>9999,"",ROUND(VLOOKUP(VLOOKUP(B25,Operations!$A$2:$U$79,11,FALSE),PowerUnits[],16,FALSE)/VLOOKUP(B25,Operations!$A$2:$U$79,9,FALSE)*C25,2))) -> 0 | J25: =IF(B25=0,"",IF(C25>9999,"",ROUND(VLOOKUP($B25,Operations!$A$2:$U$79,21,FALSE)*$C25,2))) ->  | K25: 0
A26: 15 | E26: =IF(B26=0,"",IF(C26>9999,"",ROUND('General Variables'!$B$4*VLOOKUP(B26,Operations!$A$2:$U$79,10,FALSE)/VLOOKUP(B26,Operations!$A$2:$U$79,9,FALSE)*C26,2))) ->  | F26: =IF(B26=0,0,IF(C26>9999,"",ROUND(IF(VLOOKUP(B26,Operations!$A$2:$U$79,12,FALSE)=0,VLOOKUP(B26,Operations!$A$2:$U$79,13,FALSE)*'General Variables'!$B$8,VLOOKUP(B26,Operations!$A$2:$U$79,12,FALSE)*'General Variables'!$B$7)/VLOOKUP(B26,Operations!$A$2:$U$79,9,FALSE)*C26,2))) -> 0 | G26: =IF(B26=0,0,IF(C26>9999,"",ROUND(VLOOKUP(VLOOKUP(B26,Operations!$A$2:$U$79,11,FALSE),PowerUnits[],10,FALSE)/VLOOKUP(B26,Operations!$A$2:$U$79,9,FALSE)*C26,2))) -> 0 | H26: =IF(B26=0,"",IF(C26>9999,"",ROUND(VLOOKUP($B26,Operations!$A$2:$U$79,15,FALSE)*C26,2))) ->  | I26: =IF(B26=0,0,IF(C26>9999,"",ROUND(VLOOKUP(VLOOKUP(B26,Operations!$A$2:$U$79,11,FALSE),PowerUnits[],16,FALSE)/VLOOKUP(B26,Operations!$A$2:$U$79,9,FALSE)*C26,2))) -> 0 | J26: =IF(B26=0,"",IF(C26>9999,"",ROUND(VLOOKUP($B26,Operations!$A$2:$U$79,21,FALSE)*$C26,2))) ->  | K26: 0
A27: 16 | E27: =IF(B27=0,"",IF(C27>9999,"",ROUND('General Variables'!$B$4*VLOOKUP(B27,Operations!$A$2:$U$79,10,FALSE)/VLOOKUP(B27,Operations!$A$2:$U$79,9,FALSE)*C27,2))) ->  | F27: =IF(B27=0,0,IF(C27>9999,"",ROUND(IF(VLOOKUP(B27,Operations!$A$2:$U$79,12,FALSE)=0,VLOOKUP(B27,Operations!$A$2:$U$79,13,FALSE)*'General Variables'!$B$8,VLOOKUP(B27,Operations!$A$2:$U$79,12,FALSE)*'General Variables'!$B$7)/VLOOKUP(B27,Operations!$A$2:$U$79,9,FALSE)*C27,2))) -> 0 | G27: =IF(B27=0,0,IF(C27>9999,"",ROUND(VLOOKUP(VLOOKUP(B27,Operations!$A$2:$U$79,11,FALSE),PowerUnits[],10,FALSE)/VLOOKUP(B27,Operations!$A$2:$U$79,9,FALSE)*C27,2))) -> 0 | H27: =IF(B27=0,"",IF(C27>9999,"",ROUND(VLOOKUP($B27,Operations!$A$2:$U$79,15,FALSE)*C27,2))) ->  | I27: =IF(B27=0,0,IF(C27>9999,"",ROUND(VLOOKUP(VLOOKUP(B27,Operations!$A$2:$U$79,11,FALSE),PowerUnits[],16,FALSE)/VLOOKUP(B27,Operations!$A$2:$U$79,9,FALSE)*C27,2))) -> 0 | J27: =IF(B27=0,"",IF(C27>9999,"",ROUND(VLOOKUP($B27,Operations!$A$2:$U$79,21,FALSE)*$C27,2))) ->  | K27: 0
A28: 17 | E28: =IF(B28=0,"",IF(C28>9999,"",ROUND('General Variables'!$B$4*VLOOKUP(B28,Operations!$A$2:$U$79,10,FALSE)/VLOOKUP(B28,Operations!$A$2:$U$79,9,FALSE)*C28,2))) ->  | F28: =IF(B28=0,0,IF(C28>9999,"",ROUND(IF(VLOOKUP(B28,Operations!$A$2:$U$79,12,FALSE)=0,VLOOKUP(B28,Operations!$A$2:$U$79,13,FALSE)*'General Variables'!$B$8,VLOOKUP(B28,Operations!$A$2:$U$79,12,FALSE)*'General Variables'!$B$7)/VLOOKUP(B28,Operations!$A$2:$U$79,9,FALSE)*C28,2))) -> 0 | G28: =IF(B28=0,0,IF(C28>9999,"",ROUND(VLOOKUP(VLOOKUP(B28,Operations!$A$2:$U$79,11,FALSE),PowerUnits[],10,FALSE)/VLOOKUP(B28,Operations!$A$2:$U$79,9,FALSE)*C28,2))) -> 0 | H28: =IF(B28=0,"",IF(C28>9999,"",ROUND(VLOOKUP($B28,Operations!$A$2:$U$79,15,FALSE)*C28,2))) ->  | I28: =IF(B28=0,0,IF(C28>9999,"",ROUND(VLOOKUP(VLOOKUP(B28,Operations!$A$2:$U$79,11,FALSE),PowerUnits[],16,FALSE)/VLOOKUP(B28,Operations!$A$2:$U$79,9,FALSE)*C28,2))) -> 0 | J28: =IF(B28=0,"",IF(C28>9999,"",ROUND(VLOOKUP($B28,Operations!$A$2:$U$79,21,FALSE)*$C28,2))) ->  | K28: 0
A29: 18 | E29: =IF(B29=0,"",IF(C29>9999,"",ROUND('General Variables'!$B$4*VLOOKUP(B29,Operations!$A$2:$U$79,10,FALSE)/VLOOKUP(B29,Operations!$A$2:$U$79,9,FALSE)*C29,2))) ->  | F29: =IF(B29=0,0,IF(C29>9999,"",ROUND(IF(VLOOKUP(B29,Operations!$A$2:$U$79,12,FALSE)=0,VLOOKUP(B29,Operations!$A$2:$U$79,13,FALSE)*'General Variables'!$B$8,VLOOKUP(B29,Operations!$A$2:$U$79,12,FALSE)*'General Variables'!$B$7)/VLOOKUP(B29,Operations!$A$2:$U$79,9,FALSE)*C29,2))) -> 0 | G29: =IF(B29=0,0,IF(C29>9999,"",ROUND(VLOOKUP(VLOOKUP(B29,Operations!$A$2:$U$79,11,FALSE),PowerUnits[],10,FALSE)/VLOOKUP(B29,Operations!$A$2:$U$79,9,FALSE)*C29,2))) -> 0 | H29: =IF(B29=0,"",IF(C29>9999,"",ROUND(VLOOKUP($B29,Operations!$A$2:$U$79,15,FALSE)*C29,2))) ->  | I29: =IF(B29=0,0,IF(C29>9999,"",ROUND(VLOOKUP(VLOOKUP(B29,Operations!$A$2:$U$79,11,FALSE),PowerUnits[],16,FALSE)/VLOOKUP(B29,Operations!$A$2:$U$79,9,FALSE)*C29,2))) -> 0 | J29: =IF(B29=0,"",IF(C29>9999,"",ROUND(VLOOKUP($B29,Operations!$A$2:$U$79,21,FALSE)*$C29,2))) ->  | K29: 0
A30: 19 | E30: =IF(B30=0,"",IF(C30>9999,"",ROUND('General Variables'!$B$4*VLOOKUP(B30,Operations!$A$2:$U$79,10,FALSE)/VLOOKUP(B30,Operations!$A$2:$U$79,9,FALSE)*C30,2))) ->  | F30: =IF(B30=0,0,IF(C30>9999,"",ROUND(IF(VLOOKUP(B30,Operations!$A$2:$U$79,12,FALSE)=0,VLOOKUP(B30,Operations!$A$2:$U$79,13,FALSE)*'General Variables'!$B$8,VLOOKUP(B30,Operations!$A$2:$U$79,12,FALSE)*'General Variables'!$B$7)/VLOOKUP(B30,Operations!$A$2:$U$79,9,FALSE)*C30,2))) -> 0 | G30: =IF(B30=0,0,IF(C30>9999,"",ROUND(VLOOKUP(VLOOKUP(B30,Operations!$A$2:$U$79,11,FALSE),PowerUnits[],10,FALSE)/VLOOKUP(B30,Operations!$A$2:$U$79,9,FALSE)*C30,2))) -> 0 | H30: =IF(B30=0,"",IF(C30>9999,"",ROUND(VLOOKUP($B30,Operations!$A$2:$U$79,15,FALSE)*C30,2))) ->  | I30: =IF(B30=0,0,IF(C30>9999,"",ROUND(VLOOKUP(VLOOKUP(B30,Operations!$A$2:$U$79,11,FALSE),PowerUnits[],16,FALSE)/VLOOKUP(B30,Operations!$A$2:$U$79,9,FALSE)*C30,2))) -> 0 | J30: =IF(B30=0,"",IF(C30>9999,"",ROUND(VLOOKUP($B30,Operations!$A$2:$U$79,21,FALSE)*$C30,2))) ->  | K30: 0
A31: 20 | E31: =IF(B31=0,"",IF(C31>9999,"",ROUND('General Variables'!$B$4*VLOOKUP(B31,Operations!$A$2:$U$79,10,FALSE)/VLOOKUP(B31,Operations!$A$2:$U$79,9,FALSE)*C31,2))) ->  | F31: =IF(B31=0,0,IF(C31>9999,"",ROUND(IF(VLOOKUP(B31,Operations!$A$2:$U$79,12,FALSE)=0,VLOOKUP(B31,Operations!$A$2:$U$79,13,FALSE)*'General Variables'!$B$8,VLOOKUP(B31,Operations!$A$2:$U$79,12,FALSE)*'General Variables'!$B$7)/VLOOKUP(B31,Operations!$A$2:$U$79,9,FALSE)*C31,2))) -> 0 | G31: =IF(B31=0,0,IF(C31>9999,"",ROUND(VLOOKUP(VLOOKUP(B31,Operations!$A$2:$U$79,11,FALSE),PowerUnits[],10,FALSE)/VLOOKUP(B31,Operations!$A$2:$U$79,9,FALSE)*C31,2))) -> 0 | H31: =IF(B31=0,"",IF(C31>9999,"",ROUND(VLOOKUP($B31,Operations!$A$2:$U$79,15,FALSE)*C31,2))) ->  | I31: =IF(B31=0,0,IF(C31>9999,"",ROUND(VLOOKUP(VLOOKUP(B31,Operations!$A$2:$U$79,11,FALSE),PowerUnits[],16,FALSE)/VLOOKUP(B31,Operations!$A$2:$U$79,9,FALSE)*C31,2))) -> 0 | J31: =IF(B31=0,"",IF(C31>9999,"",ROUND(VLOOKUP($B31,Operations!$A$2:$U$79,21,FALSE)*$C31,2))) ->  | K31: 0
C33: Total for Field Operations | E33: =SUM(E12:E31) -> 12.21 | F33: =SUM(F12:F31) -> 8.67 | G33: 0.52 | H33: 11.43 | I33: 31.41 | J33: 21.92 | K33: 86.16
F35: Operation Index | G35: Percent Acres Applied | H35: Application | J35: Applied Price | L35: Your Estimate
B36: Materials & Services | H36: Rate | I36: Unit | K36: Total
B37: 11-52-0 | C37: =IF(B37=0,"",VLOOKUP($B37,Table2[],2,FALSE)) -> Fertilizer | F37: 1 | G37: 1 | H37: 100 | I37: =IF($B37=0,"",VLOOKUP($B37,Table2[],5,FALSE)) -> pound | J37: =IF($B37=0,"",VLOOKUP($B37,Table2[],7,FALSE)) -> 0.4 | K37: =IF(B37=0,0,ROUND(G37*H37*J37,2)) -> 40
B38: Alfalfa w/Inoculant | C38: =IF(B38=0,"",VLOOKUP($B38,Table2[],2,FALSE)) -> Seed | F38: 5 | G38: 1 | H38: 12 | I38: =IF($B38=0,"",VLOOKUP($B38,Table2[],5,FALSE)) -> pound | J38: =IF($B38=0,"",VLOOKUP($B38,Table2[],7,FALSE)) -> 6.25 | K38: =IF(B38=0,0,ROUND(G38*H38*J38,2)) -> 75
B39: Brox 2EC | C39: =IF(B39=0,"",VLOOKUP($B39,Table2[],2,FALSE)) -> Herbicide | F39: 7 | G39: 1 | H39: 1 | I39: pint | J39: =IF($B39=0,"",VLOOKUP($B39,Table2[],7,FALSE)) -> 6.625 | K39: =IF(B39=0,0,ROUND(G39*H39*J39,2)) -> 6.63
B40: Pursuit | C40: =IF(B40=0,"",VLOOKUP($B40,Table2[],2,FALSE)) -> Herbicide | F40: 7 | G40: 1 | H40: 3 | I40: =IF($B40=0,"",VLOOKUP($B40,Table2[],5,FALSE)) -> ounce | J40: =IF($B40=0,"",VLOOKUP($B40,Table2[],7,FALSE)) -> 3.90625 | K40: =IF(B40=0,0,ROUND(G40*H40*J40,2)) -> 11.72
B41: Crop Oil Concentrate | C41: =IF(B41=0,"",VLOOKUP($B41,Table2[],2,FALSE)) -> Additive | F41: 7 | G41: 1 | H41: 1.6 | I41: =IF($B41=0,"",VLOOKUP($B41,Table2[],5,FALSE)) -> pint | J41: =IF($B41=0,"",VLOOKUP($B41,Table2[],7,FALSE)) -> 1.625 | K41: =IF(B41=0,0,ROUND(G41*H41*J41,2)) -> 2.6
B42: UAN | C42: =IF(B42=0,"",VLOOKUP($B42,Table2[],2,FALSE)) -> Additive | F42: 7 | G42: 1 | H42: 2 | I42: =IF($B42=0,"",VLOOKUP($B42,Table2[],5,FALSE)) -> pint | J42: =IF($B42=0,"",VLOOKUP($B42,Table2[],7,FALSE)) -> 0.25 | K42: 0.5
B43: Mustang Maxx | C43: =IF(B43=0,"",VLOOKUP($B43,Table2[],2,FALSE)) -> Insecticide | F43: 8 | G43: 0.2 | H43: 3 | I43: =IF($B43=0,"",VLOOKUP($B43,Table2[],5,FALSE)) -> ounce | J43: =IF($B43=0,"",VLOOKUP($B43,Table2[],7,FALSE)) -> 1.875 | K43: 1.13
C44: =IF(B44=0,"",VLOOKUP($B44,Table2[],2,FALSE)) ->  | I44: =IF($B44=0,"",VLOOKUP($B44,Table2[],5,FALSE)) ->  | J44: =IF($B44=0,"",VLOOKUP($B44,Table2[],7,FALSE)) ->  | K44: 0
C45: =IF(B45=0,"",VLOOKUP($B45,Table2[],2,FALSE)) ->  | I45: =IF($B45=0,"",VLOOKUP($B45,Table2[],5,FALSE)) ->  | J45: =IF($B45=0,"",VLOOKUP($B45,Table2[],7,FALSE)) ->  | K45: 0
C46: =IF(B46=0,"",VLOOKUP($B46,Table2[],2,FALSE)) ->  | I46: =IF($B46=0,"",VLOOKUP($B46,Table2[],5,FALSE)) ->  | J46: =IF($B46=0,"",VLOOKUP($B46,Table2[],7,FALSE)) ->  | K46: 0
C47: =IF(B47=0,"",VLOOKUP($B47,Table2[],2,FALSE)) ->  | I47: =IF($B47=0,"",VLOOKUP($B47,Table2[],5,FALSE)) ->  | J47: =IF($B47=0,"",VLOOKUP($B47,Table2[],7,FALSE)) ->  | K47: 0
C48: =IF(B48=0,"",VLOOKUP($B48,Table2[],2,FALSE)) ->  | I48: =IF($B48=0,"",VLOOKUP($B48,Table2[],5,FALSE)) ->  | J48: =IF($B48=0,"",VLOOKUP($B48,Table2[],7,FALSE)) ->  | K48: 0
C49: =IF(B49=0,"",VLOOKUP($B49,Table2[],2,FALSE)) ->  | I49: =IF($B49=0,"",VLOOKUP($B49,Table2[],5,FALSE)) ->  | J49: =IF($B49=0,"",VLOOKUP($B49,Table2[],7,FALSE)) ->  | K49: 0
C50: =IF(B50=0,"",VLOOKUP($B50,Table2[],2,FALSE)) ->  | I50: =IF($B50=0,"",VLOOKUP($B50,Table2[],5,FALSE)) ->  | J50: =IF($B50=0,"",VLOOKUP($B50,Table2[],7,FALSE)) ->  | K50: 0
C51: =IF(B51=0,"",VLOOKUP($B51,Table2[],2,FALSE)) ->  | I51: =IF($B51=0,"",VLOOKUP($B51,Table2[],5,FALSE)) ->  | J51: =IF($B51=0,"",VLOOKUP($B51,Table2[],7,FALSE)) ->  | K51: 0
C52: =IF(B52=0,"",VLOOKUP($B52,Table2[],2,FALSE)) ->  | I52: =IF($B52=0,"",VLOOKUP($B52,Table2[],5,FALSE)) ->  | J52: =IF($B52=0,"",VLOOKUP($B52,Table2[],7,FALSE)) ->  | K52: 0
C53: =IF(B53=0,"",VLOOKUP($B53,Table2[],2,FALSE)) ->  | G53: 0.1 | I53: =IF($B53=0,"",VLOOKUP($B53,Table2[],5,FALSE)) ->  | J53: =IF($B53=0,"",VLOOKUP($B53,Table2[],7,FALSE)) ->  | K53: 0
C54: =IF(B54=0,"",VLOOKUP($B54,Table2[],2,FALSE)) ->  | G54: 0.2 | I54: =IF($B54=0,"",VLOOKUP($B54,Table2[],5,FALSE)) ->  | J54: =IF($B54=0,"",VLOOKUP($B54,Table2[],7,FALSE)) ->  | K54: 0
C55: =IF(B55=0,"",VLOOKUP($B55,Table2[],2,FALSE)) ->  | G55: 0.3 | I55: =IF($B55=0,"",VLOOKUP($B55,Table2[],5,FALSE)) ->  | J55: =IF($B55=0,"",VLOOKUP($B55,Table2[],7,FALSE)) ->  | K55: 0
C56: =IF(B56=0,"",VLOOKUP($B56,Table2[],2,FALSE)) ->  | I56: =IF($B56=0,"",VLOOKUP($B56,Table2[],5,FALSE)) ->  | J56: =IF($B56=0,"",VLOOKUP($B56,Table2[],7,FALSE)) ->  | K56: 0
C57: =IF(B57=0,"",VLOOKUP($B57,Table2[],2,FALSE)) ->  | I57: =IF($B57=0,"",VLOOKUP($B57,Table2[],5,FALSE)) ->  | J57: =IF($B57=0,"",VLOOKUP($B57,Table2[],7,FALSE)) ->  | K57: =IF(B57=0,0,ROUND(G57*H57*J57,2)) -> 0
C58: =IF(B58=0,"",VLOOKUP($B58,Table2[],2,FALSE)) ->  | I58: =IF($B58=0,"",VLOOKUP($B58,Table2[],5,FALSE)) ->  | J58: =IF($B58=0,"",VLOOKUP($B58,Table2[],7,FALSE)) ->  | K58: =IF(B58=0,0,ROUND(G58*H58*J58,2)) -> 0
C59: =IF(B59=0,"",VLOOKUP($B59,Table2[],2,FALSE)) ->  | I59: =IF($B59=0,"",VLOOKUP($B59,Table2[],5,FALSE)) ->  | J59: =IF($B59=0,"",VLOOKUP($B59,Table2[],7,FALSE)) ->  | K59: =IF(B59=0,0,ROUND(G59*H59*J59,2)) -> 0
C60: =IF(B60=0,"",VLOOKUP($B60,Table2[],2,FALSE)) ->  | I60: =IF($B60=0,"",VLOOKUP($B60,Table2[],5,FALSE)) ->  | J60: =IF($B60=0,"",VLOOKUP($B60,Table2[],7,FALSE)) ->  | K60: =IF(B60=0,0,ROUND(G60*H60*J60,2)) -> 0
C61: =IF(B61=0,"",VLOOKUP($B61,Table2[],2,FALSE)) ->  | I61: =IF($B61=0,"",VLOOKUP($B61,Table2[],5,FALSE)) ->  | J61: =IF($B61=0,"",VLOOKUP($B61,Table2[],7,FALSE)) ->  | K61: =IF(B61=0,0,ROUND(G61*H61*J61,2)) -> 0
C62: Crop Insurance | J62: =IF(F5=0,E5,F5) ->  | K62: 0
C64: Total Materials & Services | K64: =SUM(K37:K62) -> 137.58
B66: Total listed costs for Field Operations and Materials and Services | K66: =K33+K64 -> 223.74
D67: Interest on Operations Capital | E67: =ROUND(SUM($E$33:$H$33)+$K$64,2) -> 170.41 | F67: cash expense @ | H67: ='General Variables'!$B$11 -> 0.07 | I67: =CONCATENATE("for ",TEXT('General Variables'!$B$12,"0.0")," mo.") -> for 6.0 mo. | K67: =E67*H67*'General Variables'!$B$12/12 -> 5.96435
B68: Total Operating and Use Related Ownership Costs | K68: =SUM(K66:K67) -> 229.70435
B70: Overhead (accounting, liability insurance, vehicle cost, office expense, soil tests) | K70: ='General Variables'!B17 -> 0
B71: Real Estate Opportunity | C71: Fall Establishment | F71: =IF(C71=0,0,VLOOKUP(C71,RETable,2,FALSE)) -> 0 | G71: per acre @ | I71: ='General Variables'!$B$10 -> 0.03 | K71: =ROUND(F71*I71,2) -> 0
B72: Real Estate Taxes | F72: =IF(C71=0,0,VLOOKUP(C71,RETable,2,FALSE)) -> 0 | G72: per acre @ | I72: ='General Variables'!$B$13 -> 0.0125 | K72: =ROUND(F72*I72,2) -> 0
B73: Total Cost per Acre Including Overhead | K73: =SUM(K68:K72) -> 229.70435
D75: Use the UNL Ag Budget Calculator program to customize crop budgets at: | K75: agbudget.unl.edu
B76: =IF(G4="","","Cost of production per "&H4) ->  | K76: =IF(G4="","",K73/G4) -> 
K113: Yes
K114: No
B242: =IF(Operations!A96="","",Operations!A96) ->  | C242: =IF(Materials!B139="","",Materials!B139) -> Alfalfa w/Inoculant
B243: =IF(Operations!A97="","",Operations!A97) ->  | C243: =IF(Materials!B140="","",Materials!B140) -> Corn
B244: =IF(Operations!A98="","",Operations!A98) ->  | C244: =IF(Materials!B141="","",Materials!B141) -> Corn Bt, ECB, & RIB
B245: =IF(Operations!A99="","",Operations!A99) ->  | C245: =IF(Materials!B142="","",Materials!B142) -> Corn Bt, ECB, RR2, LL, & RIB
B246: =IF(Operations!A100="","",Operations!A100) ->  | C246: =IF(Materials!B143="","",Materials!B143) -> Corn Bt, ECB, RW, & RIB

Sheet Materials
A1: Index | B1: Material | C1: Category | D1: Purchase Price | E1: Purchase Unit | F1: Applied Unit | G1: Applied Units / Purchased Units | H1: Applied Price
A2: 1 | B2: 21-0-0-24S | C2: Additive | D2: 0.4 | E2: pound | F2: pound | G2: 1 | H2: =IF(G2=0,0,D2/G2) -> 0.4
A3: =A2+1 -> 2 | B3: AMS | C3: Additive | D3: 0.4 | E3: pound | F3: ounce | G3: 16 | H3: 0.025
A4: =A3+1 -> 3 | B4: Approved adjuvant | C4: Additive | D4: 2.25 | E4: acre | F4: acre | G4: 1 | H4: 2.25
A5: 4 | B5: Crop Oil Concentrate | C5: Additive | D5: 13 | E5: gallon | F5: pint | G5: 8 | H5: 1.625
A6: 5 | B6: MSO | C6: Additive | D6: 30 | E6: gallon | F6: ounce | G6: 128 | H6: 0.234375
A7: 6 | B7: NIS | C7: Additive | D7: 26 | E7: gallon | F7: ounce | G7: 128 | H7: 0.203125
A8: 7 | B8: UAN | C8: Additive | D8: 2 | E8: gallon | F8: pint | G8: 8 | H8: 0.25
A9: 8 | B9: Aerial Spray | C9: Custom | D9: 11 | E9: acre | F9: acre | G9: 1 | H9: 11
A10: 9 | B10: Bale Lg Sq 1360 lb | C10: Custom | D10: 19 | E10: bale | F10: ton | G10: =1360/2000 -> 0.68 | H10: =IF(G10=0,0,D10/G10) -> 27.94117647
A11: 10 | B11: Broadcast Seed | C11: Custom | D11: 15 | E11: acre | F11: acre | G11: 1 | H11: 15
A12: 11 | B12: Chop, Haul, Pack | C12: Custom | D12: 20 | E12: ton | F12: ton | G12: 1 | H12: 20
A13: 12 | B13: Dry 2 Points Removed | C13: Custom | D13: 0.1 | E13: bushel | F13: bushel | G13: 1 | H13: 0.1
A14: 13 | B14: Haul & Apply Manure | C14: Custom | D14: 8 | E14: ton | F14: ton | G14: 1 | H14: 8
A15: 14 | B15: Haul Beets | C15: Custom | D15: 6 | E15: ton | F15: ton | G15: 1 | H15: 6
A16: 15 | B16: Haul Grain (Dry Beans) | C16: Custom | D16: 0.32 | E16: cwt | F16: cwt | G16: 1 | H16: 0.32
A17: 16 | B17: Haul Grain (Millet) | C17: Custom | D17: 0.28 | E17: cwt | F17: cwt | G17: 1 | H17: 0.28
A18: 17 | B18: Haul Grain (Sunflower) | C18: Custom | D18: 0.3 | E18: cwt | F18: cwt | G18: 1 | H18: 0.3
A19: 18 | B19: Haul Grain Bushels | C19: Custom | D19: 0.15 | E19: bushel | F19: bushel | G19: 1 | H19: 0.15
A20: 19 | B20: Load Large Square Bales | C20: Custom | D20: 2.5 | E20: bale | F20: ton | G20: =1362/2000 -> 0.681 | H20: 3.671071953
A21: 20 | B21: Spray | C21: Custom | D21: 9 | E21: acre | F21: acre | G21: 1 | H21: 9
A22: 21 | B22: 10-34-0 | C22: Fertilizer | D22: 3.3 | E22: gallon | F22: gallon | G22: 1 | H22: 3.3
A23: 22 | B23: 10-34-0-1Zn | C23: Fertilizer | D23: 3.4 | E23: gallon | F23: gallon | G23: 1 | H23: 3.4
A24: 23 | B24: 11-52-0 | C24: Fertilizer | D24: 0.4 | E24: pound | F24: pound | G24: 1 | H24: 0.4
A25: 24 | B25: 28-0-0 | C25: Fertilizer | D25: 1.8 | E25: gallon | F25: lbs N | G25: 3 | H25: 0.6
A26: 25 | B26: 32-0-0 | C26: Fertilizer | D26: 0.6 | E26: lbs N | F26: lbs N | G26: 1 | H26: 0.6
A27: 26 | B27: 32-0-0 (Applied by Pivot) | C27: Fertilizer | D27: 0.6 | E27: lbs N | F27: lbs N | G27: 1 | H27: 0.6
A28: 27 | B28: 32-0-0 (Applied by R2) | C28: Fertilizer | D28: 0.6 | E28: lbs N | F28: lbs N | G28: 1 | H28: 0.6
A29: 28 | B29: 46-0-0 | C29: Fertilizer | D29: 0.6 | E29: lbs N | F29: lbs N | G29: 1 | H29: 0.6
A30: 29 | B30: 82-0-0 | C30: Fertilizer | D30: 0.35 | E30: lbs N | F30: lbs N | G30: 1 | H30: 0.35
A31: 30 | B31: Uncomposted manure | C31: Fertilizer | D31: 5 | E31: ton | F31: ton | G31: 1 | H31: 5
A32: 31 | B32: Composted manure | C32: Fertilizer | D32: 30 | E32: ton | F32: ton | G32: 1 | H32: =IF(G32=0,0,D32/G32) -> 30
A33: 32 | B33: Aproach Prima | C33: Fungicide | D33: 300 | E33: gallon | F33: ounce | G33: 128 | H33: 2.34375
A34: =A33+1 -> 33 | B34: Copper | C34: Fungicide | D34: 8 | E34: pint | F34: pint | G34: 1 | H34: 8
A35: 34 | B35: Delaro Complete | C35: Fungicide | D35: 530 | E35: gallon | F35: ounce | G35: 128 | H35: 4.140625
A36: 35 | B36: Headline AMP | C36: Fungicide | D36: 230 | E36: gallon | F36: ounce | G36: 128 | H36: 1.796875
A37: 36 | B37: Lucento | C37: Fungicide | D37: 650 | E37: gallon | F37: ounce | G37: 128 | H37: 5.078125
A38: 37 | B38: Miravis Neo | C38: Fungicide | D38: 260 | E38: gallon | F38: ounce | G38: 128 | H38: 2.03125
A39: 38 | B39: Miravis Top | C39: Fungicide | D39: 210 | E39: gallon | F39: ounce | G39: 128 | H39: 1.640625
A40: 39 | B40: Priaxor | C40: Fungicide | D40: 560 | E40: gallon | F40: ounce | G40: 128 | H40: 4.375
A41: 40 | B41: Proline 480 SC | C41: Fungicide | D41: 770 | E41: gallon | F41: ounce | G41: 128 | H41: 6.015625
A42: 41 | B42: Prosaro 421 SC | C42: Fungicide | D42: 400 | E42: gallon | F42: ounce | G42: 128 | H42: 3.125
A43: 42 | B43: Quadris | C43: Fungicide | D43: 250 | E43: gallon | F43: ounce | G43: 128 | H43: 1.953125
A44: 43 | B44: Quilt Xcel | C44: Fungicide | D44: 240 | E44: gallon | F44: ounce | G44: 128 | H44: 1.875
A45: 44 | B45: Revytek | C45: Fungicide | D45: 470 | E45: gallon | F45: ounce | G45: 128 | H45: =IF(G45=0,0,D45/G45) -> 3.671875
A46: 45 | B46: Stratego YLD | C46: Fungicide | D46: 700 | E46: gallon | F46: ounce | G46: 128 | H46: 5.46875
A47: 46 | B47: Tilt | C47: Fungicide | D47: 110 | E47: gallon | F47: ounce | G47: 128 | H47: 0.859375
A48: 47 | B48: Trivapro | C48: Fungicide | D48: 225 | E48: gallon | F48: ounce | G48: 128 | H48: 1.7578125
A49: 48 | B49: 2,4-D Amine | C49: Herbicide | D49: 27 | E49: gallon | F49: pint | G49: 8 | H49: 3.375
A50: 49 | B50: 2,4-D Ester LV4 | C50: Herbicide | D50: 36 | E50: gallon | F50: pint | G50: 8 | H50: 4.5
A51: 50 | B51: AAtrex 4L | C51: Herbicide | D51: 24 | E51: gallon | F51: quart | G51: 4 | H51: 6
A52: 51 | B52: Acuron | C52: Herbicide | D52: 85 | E52: gallon | F52: quart | G52: 4 | H52: 21.25
A53: 52 | B53: Aim 2EC | C53: Herbicide | D53: 240 | E53: quart | F53: ounce | G53: 32 | H53: 7.5
A54: 53 | B54: Ally Extra SGW/TOTSOL | C54: Herbicide | D54: 11 | E54: ounce | F54: ounce | G54: 1 | H54: 11
A55: 54 | B55: Armezon | C55: Herbicide | D55: 24 | E55: ounce | F55: ounce | G55: 1 | H55: 24
A56: 55 | B56: Armezon Pro | C56: Herbicide | D56: 190 | E56: gallon | F56: ounce | G56: 128 | H56: 1.484375
A57: 56 | B57: Atrazine 4L | C57: Herbicide | D57: 25 | E57: gallon | F57: quart | G57: 4 | H57: 6.25
A58: 57 | B58: Atrazine 90 DF | C58: Herbicide | D58: 6.5 | E58: pound | F58: pound | G58: 1 | H58: 6.5
A59: 58 | B59: Authority First DF | C59: Herbicide | D59: 100 | E59: pound | F59: ounce | G59: 16 | H59: 6.25
A60: 59 | B60: Authority DF | C60: Herbicide | D60: 40 | E60: pound | F60: ounce | G60: 16 | H60: 2.5
A61: 60 | B61: Authority Supreme | C61: Herbicide | D61: 630 | E61: gallon | F61: ounce | G61: 128 | H61: 4.921875
A62: 61 | B62: Balance Flexx | C62: Herbicide | D62: 6 | E62: ounce | F62: ounce | G62: 1 | H62: 6
A63: 62 | B63: Basagran 5L | C63: Herbicide | D63: 95 | E63: gallon | F63: pint | G63: 8 | H63: 11.875
A64: 63 | B64: Beyond | C64: Herbicide | D64: 540 | E64: gallon | F64: ounce | G64: 128 | H64: 4.21875
A65: 64 | B65: Bicep II Magnum | C65: Herbicide | D65: 70 | E65: gallon | F65: quart | G65: 4 | H65: 17.5
A66: 65 | B66: Brox 2EC | C66: Herbicide | D66: 53 | E66: gallon | F66: pint | G66: 8 | H66: =IF(G66=0,0,D66/G66) -> 6.625
A67: 66 | B67: Callisto 4SC | C67: Herbicide | D67: 380 | E67: gallon | F67: ounce | G67: 128 | H67: 2.96875
A68: 67 | B68: Chateau SW | C68: Herbicide | D68: 80 | E68: pound | F68: ounce | G68: 16 | H68: 5
A69: 68 | B69: Dicamba | C69: Herbicide | D69: 50 | E69: gallon | F69: ounce | G69: 128 | H69: 0.390625
A70: 69 | B70: DiFlexx | C70: Herbicide | D70: 270 | E70: gallon | F70: ounce | G70: 128 | H70: 2.109375
A71: 70 | B71: DiFlexx DUO | C71: Herbicide | D71: 120 | E71: gallon | F71: ounce | G71: 128 | H71: 0.9375
A72: 71 | B72: Distinct | C72: Herbicide | D72: 46 | E72: gallon | F72: ounce | G72: 128 | H72: 0.359375
A73: =A72+1 -> 72 | B73: Dual Magnum | C73: Herbicide | D73: 80 | E73: gallon | F73: pint | G73: 8 | H73: 10
A74: 73 | B74: Engenia | C74: Herbicide | D74: 160 | E74: gallon | F74: ounce | G74: 128 | H74: 1.25
A75: 74 | B75: Enlist DUO | C75: Herbicide | D75: 55 | E75: gallon | F75: ounce | G75: 128 | H75: 0.4296875
A76: 75 | B76: Enlist One | C76: Herbicide | D76: 70 | E76: gallon | F76: pint | G76: 8 | H76: 8.75
A77: 76 | B77: Eptam 7E | C77: Herbicide | D77: 70 | E77: gallon | F77: pint | G77: 8 | H77: 8.75
A78: 77 | B78: Fierce | C78: Herbicide | D78: 120 | E78: pound | F78: ounce | G78: 16 | H78: 7.5
A79: 78 | B79: Fierce MTZ | C79: Herbicide | D79: 290 | E79: gallon | F79: pint | G79: 8 | H79: =IF(G79=0,0,D79/G79) -> 36.25
A80: 79 | B80: FlexStar GT | C80: Herbicide | D80: 55 | E80: gallon | F80: pint | G80: 8 | H80: 6.875
A81: 80 | B81: Glyphosate 5# w/Surfactant | C81: Herbicide | D81: 17 | E81: gallon | F81: ounce | G81: 128 | H81: 0.1328125
A82: 81 | B82: Gramoxone SL 3.0 | C82: Herbicide | D82: 43 | E82: gallon | F82: pint | G82: 8 | H82: 5.375
A83: 82 | B83: Huskie | C83: Herbicide | D83: 135 | E83: gallon | F83: ounce | G83: 128 | H83: 1.0546875
A84: 83 | B84: Landmaster BW | C84: Herbicide | D84: 25 | E84: gallon | F84: ounce | G84: 128 | H84: 0.1953125
A85: 84 | B85: Laudis | C85: Herbicide | D85: 725 | E85: gallon | F85: ounce | G85: 128 | H85: 5.6640625
A86: 85 | B86: Liberty 280 | C86: Herbicide | D86: 80 | E86: gallon | F86: ounce | G86: 128 | H86: 0.625
A87: 86 | B87: Lumax EZ | C87: Herbicide | D87: 75 | E87: gallon | F87: quart | G87: 4 | H87: 18.75
A88: 87 | B88: Nortron SC | C88: Herbicide | D88: 130 | E88: gallon | F88: ounce | G88: 128 | H88: 1.015625
A89: 88 | B89: Outlook | C89: Herbicide | D89: 185 | E89: gallon | F89: ounce | G89: 128 | H89: 1.4453125
A90: 89 | B90: Peak | C90: Herbicide | D90: 19 | E90: ounce | F90: ounce | G90: 1 | H90: 19
A91: 90 | B91: Prowl H2O | C91: Herbicide | D91: 60 | E91: gallon | F91: pint | G91: 8 | H91: 7.5
A92: 91 | B92: Pursuit | C92: Herbicide | D92: 500 | E92: gallon | F92: ounce | G92: 128 | H92: 3.90625
A93: 92 | B93: Raptor | C93: Herbicide | D93: 600 | E93: gallon | F93: ounce | G93: 128 | H93: 4.6875
A94: 93 | B94: Roundup PowerMax 3 | C94: Herbicide | D94: 25 | E94: gallon | F94: ounce | G94: 128 | H94: 0.1953125
A95: 94 | B95: Roundup WeatherMax | C95: Herbicide | D95: 35 | E95: gallon | F95: ounce | G95: 128 | H95: 0.2734375
A96: 95 | B96: Rugged | C96: Herbicide | D96: 44 | E96: gallon | F96: quart | G96: 4 | H96: 11
A97: 96 | B97: Scorch | C97: Herbicide | D97: 70 | E97: gallon | F97: pint | G97: 8 | H97: 8.75
A98: 97 | B98: Select Max | C98: Herbicide | D98: 130 | E98: gallon | F98: ounce | G98: 128 | H98: 1.015625
A99: 98 | B99: Sharpen | C99: Herbicide | D99: 1030 | E99: gallon | F99: ounce | G99: 128 | H99: 8.046875
A100: 99 | B100: Sonalan HFP | C100: Herbicide | D100: 70 | E100: gallon | F100: pint | G100: 8 | H100: 8.75
A101: 100 | B101: Spartan 4F | C101: Herbicide | D101: 280 | E101: gallon | F101: ounce | G101: 128 | H101: 2.1875
A102: 101 | B102: Status | C102: Herbicide | D102: 5.5 | E102: ounce | F102: ounce | G102: 1 | H102: 5.5
A103: 102 | B103: Ultra Blazer | C103: Herbicide | D103: 50 | E103: gallon | F103: ounce | G103: 128 | H103: 0.390625
A104: 103 | B104: Valor XLT | C104: Herbicide | D104: 62 | E104: pound | F104: ounce | G104: 16 | H104: 3.875
A105: 104 | B105: Velpar L | C105: Herbicide | D105: 115 | E105: gallon | F105: pint | G105: 8 | H105: 14.375
A106: 105 | B106: Vida | C106: Herbicide | D106: 560 | E106: gallon | F106: ounce | G106: 128 | H106: 4.375
A107: 106 | B107: Warrant | C107: Herbicide | D107: 46 | E107: gallon | F107: pint | G107: 16 | H107: =IF(G107=0,0,D107/G107) -> 2.875
A108: 107 | B108: Warrant Ultra | C108: Herbicide | D108: 64 | E108: gallon | F108: ounce | G108: 128 | H108: 0.5
A109: 108 | B109: XtendiMax | C109: Herbicide | D109: 75 | E109: gallon | F109: ounce | G109: 128 | H109: 0.5859375
A110: 109 | B110: Zidua Pro | C110: Herbicide | D110: 640 | E110: gallon | F110: ounce | G110: 128 | H110: 5
A111: 110 | B111: Zidua SC | C111: Herbicide | D111: 930 | E111: gallon | F111: ounce | G111: 128 | H111: 7.265625
A112: 111 | B112: Asana XL | C112: Insecticide | D112: 85 | E112: gallon | F112: ounce | G112: 128 | H112: 0.6640625
A113: 112 | B113: Brigade 2EC | C113: Insecticide | D113: 190 | E113: gallon | F113: ounce | G113: 128 | H113: 1.484375
A114: 113 | B114: Capture LFR | C114: Insecticide | D114: 400 | E114: gallon | F114: ounce | G114: 128 | H114: 3.125
A115: 114 | B115: Mustang Maxx | C115: Insecticide | D115: 240 | E115: gallon | F115: ounce | G115: 128 | H115: =IF(G115=0,0,D115/G115) -> 1.875
A116: 115 | B116: Regent 4 SC | C116: Insecticide | D116: 12.5 | E116: ounce | F116: ounce | G116: 1 | H116: 12.5
A117: 116 | B117: Warrior II/Zeon | C117: Insecticide | D117: 410 | E117: gallon | F117: ounce | G117: 128 | H117: 3.203125
A118: 117 | B118: Electricity Fixed | C118: Other | D118: 45 | E118: acre | F118: acre | G118: 1 | H118: 45
A119: 118 | B119: Electricity Usage | C119: Other | D119: 0.11 | E119: kw | F119: kw | G119: 1 | H119: 0.11
A120: 119 | B120: Fence/Water Repairs | C120: Other | D120: 300 | E120: circle | F120: acre | G120: 130 | H120: 2.307692308
A121: 120 | B121: Irrigation District O&M Charge | C121: Other | D121: 40 | E121: acre | F121: acre | G121: 1 | H121: 40
A122: 121 | B122: Move Cattle | C122: Other | D122: 30 | E122: hour | F122: hour | G122: 1 | H122: 30
A123: 122 | B123: Twine Large Round | C123: Other | D123: 1.5 | E123: bale | F123: ton | G123: =1539/2000 -> 0.7695 | H123: 1.949317739
A124: 123 | B124: Twine Large Square | C124: Other | D124: 1.25 | E124: bale | F124: ton | G124: =1362/2000 -> 0.681 | H124: 1.835535977
A125: 124 | B125: Twine Small Square | C125: Other | D125: 0.5 | E125: bale | F125: ton | G125: 0.03 | H125: 15
A126: 125 | B126: Pasture, Range, & Forage Insurance | C126: Other | D126: 1 | E126: acre | F126: acre | G126: 1 | H126: 1
A127: 126 | B127: Grass Drill | C127: Rental | D127: 25 | E127: acre | F127: acre | G127: 1 | H127: 25
A128: 127 | B128: Seeder/Packer | C128: Rental | D128: 20 | E128: acre | F128: acre | G128: 1 | H128: 20
A129: 128 | B129: Scouting Dry Beans | C129: Scouting | D129: 13 | E129: acre | F129: acre | G129: 1 | H129: 13
A130: 129 | B130: Scouting Dryland Corn | C130: Scouting | D130: 10 | E130: acre | F130: acre | G130: 1 | H130: 10
A131: 130 | B131: Scouting Dryland Soybeans | C131: Scouting | D131: 10 | E131: acre | F131: acre | G131: 1 | H131: 10
A132: 131 | B132: Scouting Dryland Wheat | C132: Scouting | D132: 10 | E132: acre | F132: acre | G132: 1 | H132: 10
A133: 132 | B133: Scouting Grain Sorghum | C133: Scouting | D133: 10 | E133: acre | F133: acre | G133: 1 | H133: 10
A134: 133 | B134: Scouting Irrigated Corn | C134: Scouting | D134: 13 | E134: acre | F134: acre | G134: 1 | H134: 13
A135: 134 | B135: Scouting Irrigated Soybeans | C135: Scouting | D135: 13 | E135: acre | F135: acre | G135: 1 | H135: 13
A136: 135 | B136: Scouting Irrigated Wheat | C136: Scouting | D136: 10 | E136: acre | F136: acre | G136: 1 | H136: 10
A137: =A136+1 -> 136 | B137: Scouting Sugar Beets | C137: Scouting | D137: 19 | E137: acre | F137: acre | G137: 1 | H137: 19
A138: 137 | B138: Alfalfa RR w/Inoculant | C138: Seed | D138: 9.25 | E138: pound | F138: pound | G138: 1 | H138: 9.25
A139: 138 | B139: Alfalfa w/Inoculant | C139: Seed | D139: 6.25 | E139: pound | F139: pound | G139: 1 | H139: 6.25
A140: 139 | B140: Corn | C140: Seed | D140: 270 | E140: bag | F140: k seed | G140: 80 | H140: 3.375
A141: 140 | B141: Corn Bt, ECB, & RIB | C141: Seed | D141: 300 | E141: bag | F141: k seed | G141: 80 | H141: 3.75
A142: 141 | B142: Corn Bt, ECB, RR2, LL, & RIB | C142: Seed | D142: 300 | E142: bag | F142: k seed | G142: 80 | H142: 3.75
A143: 142 | B143: Corn Bt, ECB, RW, & RIB | C143: Seed | D143: 330 | E143: bag | F143: k seed | G143: 80 | H143: 4.125
A144: 143 | B144: Corn Bt, ECB, RW, RR2, LL, & RIB | C144: Seed | D144: 330 | E144: bag | F144: k seed | G144: 80 | H144: 4.125
A145: 144 | B145: Corn Enlist, Bt, ECB, & RIB | C145: Seed | D145: 290 | E145: bag | F145: k seed | G145: 80 | H145: 3.625
A146: 145 | B146: Corn RR2, LL | C146: Seed | D146: 290 | E146: bag | F146: k seed | G146: 80 | H146: =IF(G146=0,0,D146/G146) -> 3.625
A147: 146 | B147: Corn SmartStax RIB Complete | C147: Seed | D147: 340 | E147: bag | F147: k seed | G147: 80 | H147: 4.25
A148: 147 | B148: Cover Crop | C148: Seed | D148: 22 | E148: acre | F148: acre | G148: 1 | H148: 22
A149: 148 | B149: Cover Crop Grazing Mix | C149: Seed | D149: 33 | E149: acre | F149: acre | G149: 1 | H149: 33
A150: 149 | B150: Edible Beans | C150: Seed | D150: 100 | E150: cwt | F150: cwt | G150: 1 | H150: 100
A151: 150 | B151: Grass Seed | C151: Seed | D151: 80 | E151: acre | F151: acre | G151: 1 | H151: 80
A152: 151 | B152: Millet (Proso) | C152: Seed | D152: 0.65 | E152: pound | F152: pound | G152: 1 | H152: 0.65
A153: 152 | B153: Oats | C153: Seed | D153: 11 | E153: bushel | F153: bushel | G153: 1 | H153: 11
A154: 153 | B154: Peas with inoculant | C154: Seed | D154: 28 | E154: bag | F154: bushel | G154: 1 | H154: 28
A155: 154 | B155: RR2 Soybeans | C155: Seed | D155: 65 | E155: bag | F155: bag | G155: 1 | H155: 65
A156: 155 | B156: RR2 Soybeans Treated | C156: Seed | D156: 78 | E156: bag | F156: bag | G156: 1 | H156: 78
A157: 156 | B157: RR2 Soybeans Xtend | C157: Seed | D157: 67 | E157: bag | F157: bag | G157: 1 | H157: 67
A158: 157 | B158: RR2 Soybeans Xtend Treated | C158: Seed | D158: 80 | E158: bag | F158: bag | G158: 1 | H158: 80
A159: =A158+1 -> 158 | B159: Soybeans Enlist E3 | C159: Seed | D159: 65 | E159: bag | F159: k seed | G159: 1 | H159: =IF(G159=0,0,D159/G159) -> 65
A160: 159 | B160: Soybeans Enlist E3 Treated | C160: Seed | D160: 78 | E160: bag | F160: k seed | G160: 1 | H160: =IF(G160=0,0,D160/G160) -> 78
A161: 160 | B161: Soybeans - LiberyLink Treated | C161: Seed | D161: 78 | E161: bag | F161: k seed | G161: 1 | H161: =IF(G161=0,0,D161/G161) -> 78
A162: 161 | B162: Soybean Seed Inoculant | C162: Inoculant | D162: 7 | E162: acre | F162: acre | G162: 1 | H162: =IF(G162=0,0,D162/G162) -> 7
A163: 162 | B163: Sorghum Safened/Insect | C163: Seed | D163: 3.5 | E163: pound | F163: pound | G163: 1 | H163: 3.5
A164: 163 | B164: Sorghum Sudan | C164: Seed | D164: 0.9 | E164: pound | F164: pound | G164: 1 | H164: 0.9
A165: 164 | B165: Sorghum Sudan (Treated) | C165: Seed | D165: 1.2 | E165: pound | F165: pound | G165: 1 | H165: 1.2
A166: 165 | B166: Sorghum Sudan Brown (Treated) | C166: Seed | D166: 1.6 | E166: pound | F166: pound | G166: 1 | H166: 1.6
A167: 166 | B167: Sorghum Sudan Brown Midrib | C167: Seed | D167: 1.3 | E167: pound | F167: pound | G167: 1 | H167: 1.3
A168: 167 | B168: Sugar Beets RR Poncho | C168: Seed | D168: 200 | E168: acre | F168: acre | G168: 1 | H168: 200
A169: 168 | B169: Sunflower Clearfield | C169: Seed | D169: 410 | E169: bag | F169: k seed | G169: 250 | H169: 1.64
A170: 169 | B170: Wheat (Certified and Treated) | C170: Seed | D170: 0.47 | E170: pound | F170: pound | G170: 1 | H170: 0.47
A171: 170 | B171: Rye Cover Crop | C171: Seed | D171: 0.35 | E171: pound | F171: pound | G171: 1 | H171: 0.35
A172: 171 | B172: Wheat Cover Crop | C172: Seed | D172: 0.38 | E172: pound | F172: pound | G172: 1 | H172: 0.38

Sheet Operations
A1: Operation Name | B1: Unit | C1: Repair Category | D1: Depreciation Category | E1: List Price | F1: Begin Yr. Value | G1: Age | H1: Annual Use | I1: Units per Hour | J1: Labor Factor | K1: Power Source | L1: Diesel Use per Hour | M1: Kw Use per Hour | N1: Calc List Price | O1: Repairs per Unit | P1: Calc Beg Yr. Value | Q1: Calc End Yr. Value | R1: Depreciation per Unit | S1: TIH per Unit | T1: Opportunity Cost per Unit | U1: Ownership Cost per Unit | W1: Machine | X1: Catogory | Y1: RF1 | Z1: RF2 | AA1: Estimated Life | AD1: Equipment type | AE1: Machine | AF1: C1 | AG1: C2 | AH1: C3 | AK1: Table 5-5. Average Annual Maintenance Costs for Sprinkler Irrigation Systems | AO1: Power Unit
A2: Aerial Spray | B2: Custom | N2: =IF(Operations!$E2>1,Operations!$E2,IF(Operations!$D2=0,0,Operations!$F2/(VLOOKUP(Operations!$D2,ImpDepLookup,2,FALSE)-VLOOKUP(Operations!$D2,ImpDepLookup,3,FALSE)*Operations!$G2^0.5-VLOOKUP(Operations!$D2,ImpDepLookup,4,FALSE)*(Operations!$G2*(Operations!$G2*Operations!$H2/Operations!$I2)^0.5))^2)) -> 0 | O2: =IF(Operations!$C2="",0,(((Operations!$G2+1)*Operations!$H2/Operations!$I2/1000)^VLOOKUP(Operations!$C2,ImpRepairFac[],4,FALSE)-(Operations!$G2*Operations!$H2/Operations!$I2/1000)^VLOOKUP(Operations!$C2,ImpRepairFac[],4,FALSE))*Operations!$N2*VLOOKUP(Operations!$C2,ImpRepairFac[],3,FALSE)/Operations!$H2) -> 0 | P2: =IF(Operations!$N2=0,0,Operations!$N2*(VLOOKUP(Operations!$D2,ImpDepLookup,2,FALSE)-VLOOKUP(Operations!$D2,ImpDepLookup,3,FALSE)*Operations!$G2^0.5-VLOOKUP(Operations!$D2,ImpDepLookup,4,FALSE)*(Operations!$G2*Operations!$H2/Operations!$I2)^0.5)^2) -> 0 | Q2: =IF(Operations!$N2=0,0,Operations!$N2*(VLOOKUP(Operations!$D2,ImpDepLookup,2,FALSE)-VLOOKUP(Operations!$D2,ImpDepLookup,3,FALSE)*(Operations!$G2+1)^0.5-VLOOKUP(Operations!$D2,ImpDepLookup,4,FALSE)*(Operations!$G2*Operations!$H2/Operations!$I2)^0.5)^2) -> 0 | R2: =IF(Operations!$N2=0,0,IF(Operations!$I2*Operations!$H2=0,0,(Operations!$P2-Operations!$Q2)/(Operations!$H2))) -> 0 | S2: =IF(Operations!$H2=0,0,Operations!$P2*'General Variables'!$B$9/Operations!$H2) -> 0 | T2: =IF(Operations!$H2=0,0,Operations!$P2*'General Variables'!$B$10/Operations!$H2) -> 0 | U2: =SUM(Table3[[#This Row],[Depreciation per Unit]:[Opportunity Cost per Unit]]) -> 0 | W2: Baler - Large rectangular | X2: HARVESTING | Y2: 0.10 | Z2: 1.8 | AA2: 3000 | AD2: Harvest equipment | AE2: Combines | AF2: 1.132 | AG2: 0.165 | AH2: 0 | AO2: =IF(PowerUnits[[#This Row],[Name]]=0,"",PowerUnits[[#This Row],[Name]]) -> Large Tractor
A3: Anhydrous Application | B3: acre | C3: Chisel plow (Coulter) | D3: Manure spreaders and all other miscellaneous equipment | F3: 30000 | G3: 5 | H3: 1000 | I3: 15 | J3: 1.1 | K3: Large Tractor | L3: 3.3 | N3: 81719 | O3: =IF(Operations!$C3="",0,(((Operations!$G3+1)*Operations!$H3/Operations!$I3/1000)^VLOOKUP(Operations!$C3,ImpRepairFac[],4,FALSE)-(Operations!$G3*Operations!$H3/Operations!$I3/1000)^VLOOKUP(Operations!$C3,ImpRepairFac[],4,FALSE))*Operations!$N3*VLOOKUP(Operations!$C3,ImpRepairFac[],3,FALSE)/Operations!$H3) -> 1.429165697 | P3: =IF(Operations!$N3=0,0,Operations!$N3*(VLOOKUP(Operations!$D3,ImpDepLookup,2,FALSE)-VLOOKUP(Operations!$D3,ImpDepLookup,3,FALSE)*Operations!$G3^0.5-VLOOKUP(Operations!$D3,ImpDepLookup,4,FALSE)*(Operations!$G3*Operations!$H3/Operations!$I3)^0.5)^2) -> 39449.20275 | Q3: =IF(Operations!$N3=0,0,Operations!$N3*(VLOOKUP(Operations!$D3,ImpDepLookup,2,FALSE)-VLOOKUP(Operations!$D3,ImpDepLookup,3,FALSE)*(Operations!$G3+1)^0.5-VLOOKUP(Operations!$D3,ImpDepLookup,4,FALSE)*(Operations!$G3*Operations!$H3/Operations!$I3)^0.5)^2) -> 36804.93993 | R3: =IF(Operations!$N3=0,0,IF(Operations!$I3*Operations!$H3=0,0,(Operations!$P3-Operations!$Q3)/(Operations!$H3))) -> 2.64426282 | S3: =IF(Operations!$H3=0,0,Operations!$P3*'General Variables'!$B$9/Operations!$H3) -> 0.7889840549 | T3: =IF(Operations!$H3=0,0,Operations!$P3*'General Variables'!$B$10/Operations!$H3) -> 1.183476082 | U3: =SUM(Table3[[#This Row],[Depreciation per Unit]:[Opportunity Cost per Unit]]) -> 4.616722957 | W3: Baler - Large round | X3: HARVESTING | Y3: 0.43 | Z3: 1.8 | AA3: 1500 | AD3: Harvest equipment | AE3: Mowers | AF3: 0.756 | AG3: 0.067 | AK3: System Type | AL3: Life-yrs | AM3: Maintenance, % of capital cost | AO3: =IF(PowerUnits[[#This Row],[Name]]=0,"",PowerUnits[[#This Row],[Name]]) -> Medium Tractor
A4: Bale Large Round | B4: ton | C4: Baler - Large round | D4: Balers | E4: 82216 | G4: 5 | H4: 1000 | I4: 12 | J4: 1.1 | K4: Medium Tractor | L4: 2.876146789 | N4: =IF(Operations!$E4>1,Operations!$E4,IF(Operations!$D4=0,0,Operations!$F4/(VLOOKUP(Operations!$D4,ImpDepLookup,2,FALSE)-VLOOKUP(Operations!$D4,ImpDepLookup,3,FALSE)*Operations!$G4^0.5-VLOOKUP(Operations!$D4,ImpDepLookup,4,FALSE)*(Operations!$G4*(Operations!$G4*Operations!$H4/Operations!$I4)^0.5))^2)) -> 82216 | O4: =IF(Operations!$C4="",0,(((Operations!$G4+1)*Operations!$H4/Operations!$I4/1000)^VLOOKUP(Operations!$C4,ImpRepairFac[],4,FALSE)-(Operations!$G4*Operations!$H4/Operations!$I4/1000)^VLOOKUP(Operations!$C4,ImpRepairFac[],4,FALSE))*Operations!$N4*VLOOKUP(Operations!$C4,ImpRepairFac[],3,FALSE)/Operations!$H4) -> 2.840307662 | P4: =IF(Operations!$N4=0,0,Operations!$N4*(VLOOKUP(Operations!$D4,ImpDepLookup,2,FALSE)-VLOOKUP(Operations!$D4,ImpDepLookup,3,FALSE)*Operations!$G4^0.5-VLOOKUP(Operations!$D4,ImpDepLookup,4,FALSE)*(Operations!$G4*Operations!$H4/Operations!$I4)^0.5)^2) -> 32234.65377 | Q4: =IF(Operations!$N4=0,0,Operations!$N4*(VLOOKUP(Operations!$D4,ImpDepLookup,2,FALSE)-VLOOKUP(Operations!$D4,ImpDepLookup,3,FALSE)*(Operations!$G4+1)^0.5-VLOOKUP(Operations!$D4,ImpDepLookup,4,FALSE)*(Operations!$G4*Operations!$H4/Operations!$I4)^0.5)^2) -> 30053.48471 | R4: =IF(Operations!$N4=0,0,IF(Operations!$I4*Operations!$H4=0,0,(Operations!$P4-Operations!$Q4)/(Operations!$H4))) -> 2.181169062 | S4: =IF(Operations!$H4=0,0,Operations!$P4*'General Variables'!$B$9/Operations!$H4) -> 0.6446930755 | T4: =IF(Operations!$H4=0,0,Operations!$P4*'General Variables'!$B$10/Operations!$H4) -> 0.9670396132 | U4: =SUM(Table3[[#This Row],[Depreciation per Unit]:[Opportunity Cost per Unit]]) -> 3.792901751 | W4: Baler - Rectangular | X4: HARVESTING | Y4: 0.23 | Z4: 1.8 | AA4: 2000 | AD4: Harvest equipment | AE4: Balers | AF4: 0.852 | AG4: 0.101 | AK4: Hand move lateral | AL4: 15 | AM4: 2 | AO4: =IF(PowerUnits[[#This Row],[Name]]=0,"",PowerUnits[[#This Row],[Name]]) -> Combine
A5: Bale Large Square | B5: ton | C5: Baler - Large rectangular | D5: Balers | E5: 169535 | G5: 5 | H5: 1000 | I5: 17 | J5: 1.1 | K5: Large Tractor | L5: 6.18597786 | N5: =IF(Operations!$E5>1,Operations!$E5,IF(Operations!$D5=0,0,Operations!$F5/(VLOOKUP(Operations!$D5,ImpDepLookup,2,FALSE)-VLOOKUP(Operations!$D5,ImpDepLookup,3,FALSE)*Operations!$G5^0.5-VLOOKUP(Operations!$D5,ImpDepLookup,4,FALSE)*(Operations!$G5*(Operations!$G5*Operations!$H5/Operations!$I5)^0.5))^2)) -> 169535 | O5: =IF(Operations!$C5="",0,(((Operations!$G5+1)*Operations!$H5/Operations!$I5/1000)^VLOOKUP(Operations!$C5,ImpRepairFac[],4,FALSE)-(Operations!$G5*Operations!$H5/Operations!$I5/1000)^VLOOKUP(Operations!$C5,ImpRepairFac[],4,FALSE))*Operations!$N5*VLOOKUP(Operations!$C5,ImpRepairFac[],3,FALSE)/Operations!$H5) -> 0.7276426407 | P5: =IF(Operations!$N5=0,0,Operations!$N5*(VLOOKUP(Operations!$D5,ImpDepLookup,2,FALSE)-VLOOKUP(Operations!$D5,ImpDepLookup,3,FALSE)*Operations!$G5^0.5-VLOOKUP(Operations!$D5,ImpDepLookup,4,FALSE)*(Operations!$G5*Operations!$H5/Operations!$I5)^0.5)^2) -> 66470.05482 | Q5: =IF(Operations!$N5=0,0,Operations!$N5*(VLOOKUP(Operations!$D5,ImpDepLookup,2,FALSE)-VLOOKUP(Operations!$D5,ImpDepLookup,3,FALSE)*(Operations!$G5+1)^0.5-VLOOKUP(Operations!$D5,ImpDepLookup,4,FALSE)*(Operations!$G5*Operations!$H5/Operations!$I5)^0.5)^2) -> 61972.33544 | R5: =IF(Operations!$N5=0,0,IF(Operations!$I5*Operations!$H5=0,0,(Operations!$P5-Operations!$Q5)/(Operations!$H5))) -> 4.497719385 | S5: =IF(Operations!$H5=0,0,Operations!$P5*'General Variables'!$B$9/Operations!$H5) -> 1.329401096 | T5: =IF(Operations!$H5=0,0,Operations!$P5*'General Variables'!$B$10/Operations!$H5) -> 1.994101645 | U5: =SUM(Table3[[#This Row],[Depreciation per Unit]:[Opportunity Cost per Unit]]) -> 7.821222126 | W5: Bean puller-windrower | X5: MISCELLANEOUS | Y5: 0.20 | Z5: 1.6 | AA5: 2000 | AD5: Harvest equipment | AE5: Swathers and all other harvest equipment | AF5: 0.791 | AG5: 0.091 | AK5: End tow lateral | AL5: 10 | AM5: 3 | AO5: =IF(PowerUnits[[#This Row],[Name]]=0,"",PowerUnits[[#This Row],[Name]]) -> Diesel Pump
A6: Bale Small Square | B6: Ton | C6: Baler - Rectangular | D6: Balers | E6: 48581 | G6: 5 | H6: 1250 | I6: 4 | J6: 1.1 | K6: Medium Tractor | L6: 3.5 | N6: =IF(Operations!$E6>1,Operations!$E6,IF(Operations!$D6=0,0,Operations!$F6/(VLOOKUP(Operations!$D6,ImpDepLookup,2,FALSE)-VLOOKUP(Operations!$D6,ImpDepLookup,3,FALSE)*Operations!$G6^0.5-VLOOKUP(Operations!$D6,ImpDepLookup,4,FALSE)*(Operations!$G6*(Operations!$G6*Operations!$H6/Operations!$I6)^0.5))^2)) -> 48581 | O6: =IF(Operations!$C6="",0,(((Operations!$G6+1)*Operations!$H6/Operations!$I6/1000)^VLOOKUP(Operations!$C6,ImpRepairFac[],4,FALSE)-(Operations!$G6*Operations!$H6/Operations!$I6/1000)^VLOOKUP(Operations!$C6,ImpRepairFac[],4,FALSE))*Operations!$N6*VLOOKUP(Operations!$C6,ImpRepairFac[],3,FALSE)/Operations!$H6) -> 7.753202754 | P6: =IF(Operations!$N6=0,0,Operations!$N6*(VLOOKUP(Operations!$D6,ImpDepLookup,2,FALSE)-VLOOKUP(Operations!$D6,ImpDepLookup,3,FALSE)*Operations!$G6^0.5-VLOOKUP(Operations!$D6,ImpDepLookup,4,FALSE)*(Operations!$G6*Operations!$H6/Operations!$I6)^0.5)^2) -> 19047.2866 | Q6: =IF(Operations!$N6=0,0,Operations!$N6*(VLOOKUP(Operations!$D6,ImpDepLookup,2,FALSE)-VLOOKUP(Operations!$D6,ImpDepLookup,3,FALSE)*(Operations!$G6+1)^0.5-VLOOKUP(Operations!$D6,ImpDepLookup,4,FALSE)*(Operations!$G6*Operations!$H6/Operations!$I6)^0.5)^2) -> 17758.44532 | R6: =IF(Operations!$N6=0,0,IF(Operations!$I6*Operations!$H6=0,0,(Operations!$P6-Operations!$Q6)/(Operations!$H6))) -> 1.031073019 | S6: =IF(Operations!$H6=0,0,Operations!$P6*'General Variables'!$B$9/Operations!$H6) -> 0.3047565856 | T6: =IF(Operations!$H6=0,0,Operations!$P6*'General Variables'!$B$10/Operations!$H6) -> 0.4571348784 | U6: =SUM(Table3[[#This Row],[Depreciation per Unit]:[Opportunity Cost per Unit]]) -> 1.792964483 | W6: Beet topper | X6: MISCELLANEOUS | Y6: 0.28 | Z6: 1.4 | AA6: 1200 | AD6: Tillage equipment | AE6: Plows | AF6: 0.738 | AG6: 0.051 | AK6: Side roll lateral | AL6: 15 | AM6: 2 | AO6: =IF(PowerUnits[[#This Row],[Name]]=0,"",PowerUnits[[#This Row],[Name]]) -> Electric Pump
A7: Cart | B7: bushel | C7: Wagon - Forage | D7: Manure spreaders and all other miscellaneous equipment | E7: 84580 | G7: 5 | H7: =2000*220 -> 440000 | I7: 3300 | J7: 1.1 | K7: Medium Tractor | L7: 3 | N7: =IF(Operations!$E7>1,Operations!$E7,IF(Operations!$D7=0,0,Operations!$F7/(VLOOKUP(Operations!$D7,ImpDepLookup,2,FALSE)-VLOOKUP(Operations!$D7,ImpDepLookup,3,FALSE)*Operations!$G7^0.5-VLOOKUP(Operations!$D7,ImpDepLookup,4,FALSE)*(Operations!$G7*(Operations!$G7*Operations!$H7/Operations!$I7)^0.5))^2)) -> 84580 | O7: =IF(Operations!$C7="",0,(((Operations!$G7+1)*Operations!$H7/Operations!$I7/1000)^VLOOKUP(Operations!$C7,ImpRepairFac[],4,FALSE)-(Operations!$G7*Operations!$H7/Operations!$I7/1000)^VLOOKUP(Operations!$C7,ImpRepairFac[],4,FALSE))*Operations!$N7*VLOOKUP(Operations!$C7,ImpRepairFac[],3,FALSE)/Operations!$H7) -> 0.005445412322 | P7: =IF(Operations!$N7=0,0,Operations!$N7*(VLOOKUP(Operations!$D7,ImpDepLookup,2,FALSE)-VLOOKUP(Operations!$D7,ImpDepLookup,3,FALSE)*Operations!$G7^0.5-VLOOKUP(Operations!$D7,ImpDepLookup,4,FALSE)*(Operations!$G7*Operations!$H7/Operations!$I7)^0.5)^2) -> 40830.32793 | Q7: =IF(Operations!$N7=0,0,Operations!$N7*(VLOOKUP(Operations!$D7,ImpDepLookup,2,FALSE)-VLOOKUP(Operations!$D7,ImpDepLookup,3,FALSE)*(Operations!$G7+1)^0.5-VLOOKUP(Operations!$D7,ImpDepLookup,4,FALSE)*(Operations!$G7*Operations!$H7/Operations!$I7)^0.5)^2) -> 38093.4889 | R7: =IF(Operations!$N7=0,0,IF(Operations!$I7*Operations!$H7=0,0,(Operations!$P7-Operations!$Q7)/(Operations!$H7))) -> 0.006220088721 | S7: =IF(Operations!$H7=0,0,Operations!$P7*'General Variables'!$B$9/Operations!$H7) -> 0.001855923997 | T7: =IF(Operations!$H7=0,0,Operations!$P7*'General Variables'!$B$10/Operations!$H7) -> 0.002783885995 | U7: =SUM(Table3[[#This Row],[Depreciation per Unit]:[Opportunity Cost per Unit]]) -> 0.01085989871 | W7: Chisel plow (Coulter) | X7: TILLAGE&PLANTING | Y7: 0.28 | Z7: 1.4 | AA7: 2000 | AD7: Tillage equipment | AE7: Disks and all other tillage equipment | AF7: 0.891 | AG7: 0.110 | AK7: Lateral | AL7: 10 | AM7: 6 | AO7: =IF(PowerUnits[[#This Row],[Name]]=0,"",PowerUnits[[#This Row],[Name]]) -> Diesel Pump for Pipe
A8: Chisel | B8: acre | C8: Chisel plow (Coulter) | D8: Disks and all other tillage equipment | E8: 81719 | G8: 5 | H8: 2000 | I8: 11.09243697 | J8: 1.1 | K8: Large Tractor | L8: 8.263865546 | N8: =IF(Operations!$E8>1,Operations!$E8,IF(Operations!$D8=0,0,Operations!$F8/(VLOOKUP(Operations!$D8,ImpDepLookup,2,FALSE)-VLOOKUP(Operations!$D8,ImpDepLookup,3,FALSE)*Operations!$G8^0.5-VLOOKUP(Operations!$D8,ImpDepLookup,4,FALSE)*(Operations!$G8*(Operations!$G8*Operations!$H8/Operations!$I8)^0.5))^2)) -> 81719 | O8: =IF(Operations!$C8="",0,(((Operations!$G8+1)*Operations!$H8/Operations!$I8/1000)^VLOOKUP(Operations!$C8,ImpRepairFac[],4,FALSE)-(Operations!$G8*Operations!$H8/Operations!$I8/1000)^VLOOKUP(Operations!$C8,ImpRepairFac[],4,FALSE))*Operations!$N8*VLOOKUP(Operations!$C8,ImpRepairFac[],3,FALSE)/Operations!$H8) -> 2.877296298 | P8: =IF(Operations!$N8=0,0,Operations!$N8*(VLOOKUP(Operations!$D8,ImpDepLookup,2,FALSE)-VLOOKUP(Operations!$D8,ImpDepLookup,3,FALSE)*Operations!$G8^0.5-VLOOKUP(Operations!$D8,ImpDepLookup,4,FALSE)*(Operations!$G8*Operations!$H8/Operations!$I8)^0.5)^2) -> 34000.5755 | Q8: =IF(Operations!$N8=0,0,Operations!$N8*(VLOOKUP(Operations!$D8,ImpDepLookup,2,FALSE)-VLOOKUP(Operations!$D8,ImpDepLookup,3,FALSE)*(Operations!$G8+1)^0.5-VLOOKUP(Operations!$D8,ImpDepLookup,4,FALSE)*(Operations!$G8*Operations!$H8/Operations!$I8)^0.5)^2) -> 31570.66639 | R8: =IF(Operations!$N8=0,0,IF(Operations!$I8*Operations!$H8=0,0,(Operations!$P8-Operations!$Q8)/(Operations!$H8))) -> 1.214954553 | S8: =IF(Operations!$H8=0,0,Operations!$P8*'General Variables'!$B$9/Operations!$H8) -> 0.340005755 | T8: =IF(Operations!$H8=0,0,Operations!$P8*'General Variables'!$B$10/Operations!$H8) -> 0.5100086325 | U8: =SUM(Table3[[#This Row],[Depreciation per Unit]:[Opportunity Cost per Unit]]) -> 2.064968941 | W8: Combine | X8: HARVESTING | Y8: 0.12 | Z8: 2.3 | AA8: 2000 | AD8: Miscellaneousequipment | AE8: Skid-steerloaders and all other vehicles | AF8: 0.786 | AG8: 0.063 | AH8: 0 | AK8: Traveling gun | AL8: 15 | AM8: 6 | AO8: =IF(PowerUnits[[#This Row],[Name]]=0,"",PowerUnits[[#This Row],[Name]]) -> Windrower
A9: Chop Silage | B9: Custom | N9: =IF(Operations!$E9>1,Operations!$E9,IF(Operations!$D9=0,0,Operations!$F9/(VLOOKUP(Operations!$D9,ImpDepLookup,2,FALSE)-VLOOKUP(Operations!$D9,ImpDepLookup,3,FALSE)*Operations!$G9^0.5-VLOOKUP(Operations!$D9,ImpDepLookup,4,FALSE)*(Operations!$G9*(Operations!$G9*Operations!$H9/Operations!$I9)^0.5))^2)) -> 0 | O9: =IF(Operations!$C9="",0,(((Operations!$G9+1)*Operations!$H9/Operations!$I9/1000)^VLOOKUP(Operations!$C9,ImpRepairFac[],4,FALSE)-(Operations!$G9*Operations!$H9/Operations!$I9/1000)^VLOOKUP(Operations!$C9,ImpRepairFac[],4,FALSE))*Operations!$N9*VLOOKUP(Operations!$C9,ImpRepairFac[],3,FALSE)/Operations!$H9) -> 0 | P9: =IF(Operations!$N9=0,0,Operations!$N9*(VLOOKUP(Operations!$D9,ImpDepLookup,2,FALSE)-VLOOKUP(Operations!$D9,ImpDepLookup,3,FALSE)*Operations!$G9^0.5-VLOOKUP(Operations!$D9,ImpDepLookup,4,FALSE)*(Operations!$G9*Operations!$H9/Operations!$I9)^0.5)^2) -> 0 | Q9: =IF(Operations!$N9=0,0,Operations!$N9*(VLOOKUP(Operations!$D9,ImpDepLookup,2,FALSE)-VLOOKUP(Operations!$D9,ImpDepLookup,3,FALSE)*(Operations!$G9+1)^0.5-VLOOKUP(Operations!$D9,ImpDepLookup,4,FALSE)*(Operations!$G9*Operations!$H9/Operations!$I9)^0.5)^2) -> 0 | R9: =IF(Operations!$N9=0,0,IF(Operations!$I9*Operations!$H9=0,0,(Operations!$P9-Operations!$Q9)/(Operations!$H9))) -> 0 | S9: =IF(Operations!$H9=0,0,Operations!$P9*'General Variables'!$B$9/Operations!$H9) -> 0 | T9: =IF(Operations!$H9=0,0,Operations!$P9*'General Variables'!$B$10/Operations!$H9) -> 0 | U9: =SUM(Table3[[#This Row],[Depreciation per Unit]:[Opportunity Cost per Unit]]) -> 0 | W9: Corn picker-sheller | X9: HARVESTING | Y9: 0.14 | Z9: 2.3 | AA9: 2000 | AD9: Miscellaneousequipment | AE9: Planters | AF9: 0.883 | AG9: 0.078 | AK9: Center Pivot | AL9: 15 | AM9: 6 | AO9: =IF(PowerUnits[[#This Row],[Name]]=0,"",PowerUnits[[#This Row],[Name]]) -> Self-propelled sprayer
A10: Chop Stalks | B10: acre | C10: Stalk chopper | D10: Swathers and all other harvest equipment | E10: 38267 | G10: 5 | H10: 500 | I10: 12.3364486 | J10: 1.1 | K10: Medium Tractor | L10: 5.736448598 | N10: =IF(Operations!$E10>1,Operations!$E10,IF(Operations!$D10=0,0,Operations!$F10/(VLOOKUP(Operations!$D10,ImpDepLookup,2,FALSE)-VLOOKUP(Operations!$D10,ImpDepLookup,3,FALSE)*Operations!$G10^0.5-VLOOKUP(Operations!$D10,ImpDepLookup,4,FALSE)*(Operations!$G10*(Operations!$G10*Operations!$H10/Operations!$I10)^0.5))^2)) -> 38267 | O10: =IF(Operations!$C10="",0,(((Operations!$G10+1)*Operations!$H10/Operations!$I10/1000)^VLOOKUP(Operations!$C10,ImpRepairFac[],4,FALSE)-(Operations!$G10*Operations!$H10/Operations!$I10/1000)^VLOOKUP(Operations!$C10,ImpRepairFac[],4,FALSE))*Operations!$N10*VLOOKUP(Operations!$C10,ImpRepairFac[],3,FALSE)/Operations!$H10) -> 0.6668582159 | P10: =IF(Operations!$N10=0,0,Operations!$N10*(VLOOKUP(Operations!$D10,ImpDepLookup,2,FALSE)-VLOOKUP(Operations!$D10,ImpDepLookup,3,FALSE)*Operations!$G10^0.5-VLOOKUP(Operations!$D10,ImpDepLookup,4,FALSE)*(Operations!$G10*Operations!$H10/Operations!$I10)^0.5)^2) -> 13208.89522 | Q10: =IF(Operations!$N10=0,0,Operations!$N10*(VLOOKUP(Operations!$D10,ImpDepLookup,2,FALSE)-VLOOKUP(Operations!$D10,ImpDepLookup,3,FALSE)*(Operations!$G10+1)^0.5-VLOOKUP(Operations!$D10,ImpDepLookup,4,FALSE)*(Operations!$G10*Operations!$H10/Operations!$I10)^0.5)^2) -> 12350.04505 | R10: =IF(Operations!$N10=0,0,IF(Operations!$I10*Operations!$H10=0,0,(Operations!$P10-Operations!$Q10)/(Operations!$H10))) -> 1.717700333 | S10: =IF(Operations!$H10=0,0,Operations!$P10*'General Variables'!$B$9/Operations!$H10) -> 0.5283558087 | T10: =IF(Operations!$H10=0,0,Operations!$P10*'General Variables'!$B$10/Operations!$H10) -> 0.792533713 | U10: =SUM(Table3[[#This Row],[Depreciation per Unit]:[Opportunity Cost per Unit]]) -> 3.038589854 | W10: Cultivator - Field | X10: TILLAGE&PLANTING | Y10: 0.27 | Z10: 1.4 | AA10: 2000 | AD10: Miscellaneous equipment | AE10: Manure spreaders and all other miscellaneous equipment | AF10: 0.943 | AG10: 0.111 | AK10: Center Pivot w/corner | AL10: 15 | AM10: 6 | AO10: =IF(PowerUnits[[#This Row],[Name]]=0,"",PowerUnits[[#This Row],[Name]]) -> Medium Tractor
A11: Combine Dryland Corn (corn head) | B11: acre | C11: Combine | D11: Combines | E11: 70061 | G11: 5 | H11: 900 | I11: 13 | J11: 1.1 | K11: Combine | L11: 10.5 | N11: =IF(Operations!$E11>1,Operations!$E11,IF(Operations!$D11=0,0,Operations!$F11/(VLOOKUP(Operations!$D11,ImpDepLookup,2,FALSE)-VLOOKUP(Operations!$D11,ImpDepLookup,3,FALSE)*Operations!$G11^0.5-VLOOKUP(Operations!$D11,ImpDepLookup,4,FALSE)*(Operations!$G11*(Operations!$G11*Operations!$H11/Operations!$I11)^0.5))^2)) -> 70061 | O11: =IF(Operations!$C11="",0,(((Operations!$G11+1)*Operations!$H11/Operations!$I11/1000)^VLOOKUP(Operations!$C11,ImpRepairFac[],4,FALSE)-(Operations!$G11*Operations!$H11/Operations!$I11/1000)^VLOOKUP(Operations!$C11,ImpRepairFac[],4,FALSE))*Operations!$N11*VLOOKUP(Operations!$C11,ImpRepairFac[],3,FALSE)/Operations!$H11) -> 0.4241659604 | P11: =IF(Operations!$N11=0,0,Operations!$N11*(VLOOKUP(Operations!$D11,ImpDepLookup,2,FALSE)-VLOOKUP(Operations!$D11,ImpDepLookup,3,FALSE)*Operations!$G11^0.5-VLOOKUP(Operations!$D11,ImpDepLookup,4,FALSE)*(Operations!$G11*Operations!$H11/Operations!$I11)^0.5)^2) -> 40792.55809 | Q11: =IF(Operations!$N11=0,0,Operations!$N11*(VLOOKUP(Operations!$D11,ImpDepLookup,2,FALSE)-VLOOKUP(Operations!$D11,ImpDepLookup,3,FALSE)*(Operations!$G11+1)^0.5-VLOOKUP(Operations!$D11,ImpDepLookup,4,FALSE)*(Operations!$G11*Operations!$H11/Operations!$I11)^0.5)^2) -> 37114.29712 | R11: =IF(Operations!$N11=0,0,IF(Operations!$I11*Operations!$H11=0,0,(Operations!$P11-Operations!$Q11)/(Operations!$H11))) -> 4.08695664 | S11: =IF(Operations!$H11=0,0,Operations!$P11*'General Variables'!$B$9/Operations!$H11) -> 0.906501291 | T11: =IF(Operations!$H11=0,0,Operations!$P11*'General Variables'!$B$10/Operations!$H11) -> 1.359751936 | U11: =SUM(Table3[[#This Row],[Depreciation per Unit]:[Opportunity Cost per Unit]]) -> 6.353209867 | W11: Cultivator - Row crop | X11: TILLAGE&PLANTING | Y11: 0.17 | Z11: 2.2 | AA11: 2000 | AD11: Center Pivot | AE11: Pivots | AF11: 0.891 | AG11: 0.110 | AK11: Linear move with ditch | AL11: 15 | AM11: 6 | AO11: =IF(PowerUnits[[#This Row],[Name]]=0,"",PowerUnits[[#This Row],[Name]]) -> 
A12: Combine Dryland SB - (flex head) | B12: acre | C12: Combine | D12: Combines | E12: 60061 | G12: 5 | H12: 1000 | I12: 13 | J12: 1.1 | K12: Combine | L12: 10.5 | N12: =IF(Operations!$E12>1,Operations!$E12,IF(Operations!$D12=0,0,Operations!$F12/(VLOOKUP(Operations!$D12,ImpDepLookup,2,FALSE)-VLOOKUP(Operations!$D12,ImpDepLookup,3,FALSE)*Operations!$G12^0.5-VLOOKUP(Operations!$D12,ImpDepLookup,4,FALSE)*(Operations!$G12*(Operations!$G12*Operations!$H12/Operations!$I12)^0.5))^2)) -> 60061 | O12: =IF(Operations!$C12="",0,(((Operations!$G12+1)*Operations!$H12/Operations!$I12/1000)^VLOOKUP(Operations!$C12,ImpRepairFac[],4,FALSE)-(Operations!$G12*Operations!$H12/Operations!$I12/1000)^VLOOKUP(Operations!$C12,ImpRepairFac[],4,FALSE))*Operations!$N12*VLOOKUP(Operations!$C12,ImpRepairFac[],3,FALSE)/Operations!$H12) -> 0.4170006941 | P12: =IF(Operations!$N12=0,0,Operations!$N12*(VLOOKUP(Operations!$D12,ImpDepLookup,2,FALSE)-VLOOKUP(Operations!$D12,ImpDepLookup,3,FALSE)*Operations!$G12^0.5-VLOOKUP(Operations!$D12,ImpDepLookup,4,FALSE)*(Operations!$G12*Operations!$H12/Operations!$I12)^0.5)^2) -> 34970.12363 | Q12: =IF(Operations!$N12=0,0,Operations!$N12*(VLOOKUP(Operations!$D12,ImpDepLookup,2,FALSE)-VLOOKUP(Operations!$D12,ImpDepLookup,3,FALSE)*(Operations!$G12+1)^0.5-VLOOKUP(Operations!$D12,ImpDepLookup,4,FALSE)*(Operations!$G12*Operations!$H12/Operations!$I12)^0.5)^2) -> 31816.871 | R12: =IF(Operations!$N12=0,0,IF(Operations!$I12*Operations!$H12=0,0,(Operations!$P12-Operations!$Q12)/(Operations!$H12))) -> 3.153252629 | S12: =IF(Operations!$H12=0,0,Operations!$P12*'General Variables'!$B$9/Operations!$H12) -> 0.6994024726 | T12: =IF(Operations!$H12=0,0,Operations!$P12*'General Variables'!$B$10/Operations!$H12) -> 1.049103709 | U12: =SUM(Table3[[#This Row],[Depreciation per Unit]:[Opportunity Cost per Unit]]) -> 4.901758811 | W12: Disk - Heavy-duty | X12: TILLAGE&PLANTING | Y12: 0.18 | Z12: 1.7 | AA12: 2000 | AK12: Linear move with pipe | AL12: 15 | AM12: 6
A13: Combine Dryland SG (grain head) | B13: acre | C13: Combine | D13: Combines | E13: 40300 | G13: 5 | H13: 1000 | I13: 13 | J13: 1.1 | K13: Combine | L13: 10.5 | N13: =IF(Operations!$E13>1,Operations!$E13,IF(Operations!$D13=0,0,Operations!$F13/(VLOOKUP(Operations!$D13,ImpDepLookup,2,FALSE)-VLOOKUP(Operations!$D13,ImpDepLookup,3,FALSE)*Operations!$G13^0.5-VLOOKUP(Operations!$D13,ImpDepLookup,4,FALSE)*(Operations!$G13*(Operations!$G13*Operations!$H13/Operations!$I13)^0.5))^2)) -> 40300 | O13: =IF(Operations!$C13="",0,(((Operations!$G13+1)*Operations!$H13/Operations!$I13/1000)^VLOOKUP(Operations!$C13,ImpRepairFac[],4,FALSE)-(Operations!$G13*Operations!$H13/Operations!$I13/1000)^VLOOKUP(Operations!$C13,ImpRepairFac[],4,FALSE))*Operations!$N13*VLOOKUP(Operations!$C13,ImpRepairFac[],3,FALSE)/Operations!$H13) -> 0.2798010018 | P13: =IF(Operations!$N13=0,0,Operations!$N13*(VLOOKUP(Operations!$D13,ImpDepLookup,2,FALSE)-VLOOKUP(Operations!$D13,ImpDepLookup,3,FALSE)*Operations!$G13^0.5-VLOOKUP(Operations!$D13,ImpDepLookup,4,FALSE)*(Operations!$G13*Operations!$H13/Operations!$I13)^0.5)^2) -> 23464.41089 | Q13: =IF(Operations!$N13=0,0,Operations!$N13*(VLOOKUP(Operations!$D13,ImpDepLookup,2,FALSE)-VLOOKUP(Operations!$D13,ImpDepLookup,3,FALSE)*(Operations!$G13+1)^0.5-VLOOKUP(Operations!$D13,ImpDepLookup,4,FALSE)*(Operations!$G13*Operations!$H13/Operations!$I13)^0.5)^2) -> 21348.62725 | R13: =IF(Operations!$N13=0,0,IF(Operations!$I13*Operations!$H13=0,0,(Operations!$P13-Operations!$Q13)/(Operations!$H13))) -> 2.115783636 | S13: =IF(Operations!$H13=0,0,Operations!$P13*'General Variables'!$B$9/Operations!$H13) -> 0.4692882177 | T13: =IF(Operations!$H13=0,0,Operations!$P13*'General Variables'!$B$10/Operations!$H13) -> 0.7039323266 | U13: =SUM(Table3[[#This Row],[Depreciation per Unit]:[Opportunity Cost per Unit]]) -> 3.28900418 | W13: Diskharrow - Tandem | X13: TILLAGE&PLANTING | Y13: 0.18 | Z13: 1.7 | AA13: 2000 | AK13: Portable solid set | AL13: 15 | AM13: 2
A14: Combine Irr Corn (corn head) | B14: acre | C14: Combine | D14: Combines | E14: 81941 | G14: 5 | H14: 1200 | I14: 12.4 | J14: 1.1 | K14: Combine | L14: 10.5 | N14: =IF(Operations!$E14>1,Operations!$E14,IF(Operations!$D14=0,0,Operations!$F14/(VLOOKUP(Operations!$D14,ImpDepLookup,2,FALSE)-VLOOKUP(Operations!$D14,ImpDepLookup,3,FALSE)*Operations!$G14^0.5-VLOOKUP(Operations!$D14,ImpDepLookup,4,FALSE)*(Operations!$G14*(Operations!$G14*Operations!$H14/Operations!$I14)^0.5))^2)) -> 81941 | O14: =IF(Operations!$C14="",0,(((Operations!$G14+1)*Operations!$H14/Operations!$I14/1000)^VLOOKUP(Operations!$C14,ImpRepairFac[],4,FALSE)-(Operations!$G14*Operations!$H14/Operations!$I14/1000)^VLOOKUP(Operations!$C14,ImpRepairFac[],4,FALSE))*Operations!$N14*VLOOKUP(Operations!$C14,ImpRepairFac[],3,FALSE)/Operations!$H14) -> 0.803860952 | P14: =IF(Operations!$N14=0,0,Operations!$N14*(VLOOKUP(Operations!$D14,ImpDepLookup,2,FALSE)-VLOOKUP(Operations!$D14,ImpDepLookup,3,FALSE)*Operations!$G14^0.5-VLOOKUP(Operations!$D14,ImpDepLookup,4,FALSE)*(Operations!$G14*Operations!$H14/Operations!$I14)^0.5)^2) -> 47709.61024 | Q14: =IF(Operations!$N14=0,0,Operations!$N14*(VLOOKUP(Operations!$D14,ImpDepLookup,2,FALSE)-VLOOKUP(Operations!$D14,ImpDepLookup,3,FALSE)*(Operations!$G14+1)^0.5-VLOOKUP(Operations!$D14,ImpDepLookup,4,FALSE)*(Operations!$G14*Operations!$H14/Operations!$I14)^0.5)^2) -> 43407.63934 | R14: =IF(Operations!$N14=0,0,IF(Operations!$I14*Operations!$H14=0,0,(Operations!$P14-Operations!$Q14)/(Operations!$H14))) -> 3.584975743 | S14: =IF(Operations!$H14=0,0,Operations!$P14*'General Variables'!$B$9/Operations!$H14) -> 0.7951601706 | T14: =IF(Operations!$H14=0,0,Operations!$P14*'General Variables'!$B$10/Operations!$H14) -> 1.192740256 | U14: =SUM(Table3[[#This Row],[Depreciation per Unit]:[Opportunity Cost per Unit]]) -> 5.572876169 | W14: Drill - Grain | X14: TILLAGE&PLANTING | Y14: 0.32 | Z14: 2.1 | AA14: 1500 | AK14: Permanent solid set | AL14: 20 | AM14: 1
A15: Combine Irr Dry Beans (flex head) | B15: acre | C15: Combine | D15: Combines | E15: 60061 | G15: 5 | H15: 1200 | I15: 13 | J15: 1.1 | K15: Combine | L15: 10.5 | N15: =IF(Operations!$E15>1,Operations!$E15,IF(Operations!$D15=0,0,Operations!$F15/(VLOOKUP(Operations!$D15,ImpDepLookup,2,FALSE)-VLOOKUP(Operations!$D15,ImpDepLookup,3,FALSE)*Operations!$G15^0.5-VLOOKUP(Operations!$D15,ImpDepLookup,4,FALSE)*(Operations!$G15*(Operations!$G15*Operations!$H15/Operations!$I15)^0.5))^2)) -> 60061 | O15: =IF(Operations!$C15="",0,(((Operations!$G15+1)*Operations!$H15/Operations!$I15/1000)^VLOOKUP(Operations!$C15,ImpRepairFac[],4,FALSE)-(Operations!$G15*Operations!$H15/Operations!$I15/1000)^VLOOKUP(Operations!$C15,ImpRepairFac[],4,FALSE))*Operations!$N15*VLOOKUP(Operations!$C15,ImpRepairFac[],3,FALSE)/Operations!$H15) -> 0.5285333519 | P15: =IF(Operations!$N15=0,0,Operations!$N15*(VLOOKUP(Operations!$D15,ImpDepLookup,2,FALSE)-VLOOKUP(Operations!$D15,ImpDepLookup,3,FALSE)*Operations!$G15^0.5-VLOOKUP(Operations!$D15,ImpDepLookup,4,FALSE)*(Operations!$G15*Operations!$H15/Operations!$I15)^0.5)^2) -> 34970.12363 | Q15: =IF(Operations!$N15=0,0,Operations!$N15*(VLOOKUP(Operations!$D15,ImpDepLookup,2,FALSE)-VLOOKUP(Operations!$D15,ImpDepLookup,3,FALSE)*(Operations!$G15+1)^0.5-VLOOKUP(Operations!$D15,ImpDepLookup,4,FALSE)*(Operations!$G15*Operations!$H15/Operations!$I15)^0.5)^2) -> 31816.871 | R15: =IF(Operations!$N15=0,0,IF(Operations!$I15*Operations!$H15=0,0,(Operations!$P15-Operations!$Q15)/(Operations!$H15))) -> 2.627710524 | S15: =IF(Operations!$H15=0,0,Operations!$P15*'General Variables'!$B$9/Operations!$H15) -> 0.5828353938 | T15: =IF(Operations!$H15=0,0,Operations!$P15*'General Variables'!$B$10/Operations!$H15) -> 0.8742530907 | U15: =SUM(Table3[[#This Row],[Depreciation per Unit]:[Opportunity Cost per Unit]]) -> 4.084799009 | W15: Fertilizer spreader | X15: MISCELLANEOUS | Y15: 0.63 | Z15: 1.3 | AA15: 1200 | AK15: Orchard hose-pull | AL15: 15 | AM15: 3
A16: Combine Irr SB (flex head) | B16: acre | C16: Combine | D16: Combines | E16: 60061 | G16: 5 | H16: 1000 | I16: 13 | J16: 1.1 | K16: Combine | L16: 10.5 | N16: =IF(Operations!$E16>1,Operations!$E16,IF(Operations!$D16=0,0,Operations!$F16/(VLOOKUP(Operations!$D16,ImpDepLookup,2,FALSE)-VLOOKUP(Operations!$D16,ImpDepLookup,3,FALSE)*Operations!$G16^0.5-VLOOKUP(Operations!$D16,ImpDepLookup,4,FALSE)*(Operations!$G16*(Operations!$G16*Operations!$H16/Operations!$I16)^0.5))^2)) -> 60061 | O16: =IF(Operations!$C16="",0,(((Operations!$G16+1)*Operations!$H16/Operations!$I16/1000)^VLOOKUP(Operations!$C16,ImpRepairFac[],4,FALSE)-(Operations!$G16*Operations!$H16/Operations!$I16/1000)^VLOOKUP(Operations!$C16,ImpRepairFac[],4,FALSE))*Operations!$N16*VLOOKUP(Operations!$C16,ImpRepairFac[],3,FALSE)/Operations!$H16) -> 0.4170006941 | P16: =IF(Operations!$N16=0,0,Operations!$N16*(VLOOKUP(Operations!$D16,ImpDepLookup,2,FALSE)-VLOOKUP(Operations!$D16,ImpDepLookup,3,FALSE)*Operations!$G16^0.5-VLOOKUP(Operations!$D16,ImpDepLookup,4,FALSE)*(Operations!$G16*Operations!$H16/Operations!$I16)^0.5)^2) -> 34970.12363 | Q16: =IF(Operations!$N16=0,0,Operations!$N16*(VLOOKUP(Operations!$D16,ImpDepLookup,2,FALSE)-VLOOKUP(Operations!$D16,ImpDepLookup,3,FALSE)*(Operations!$G16+1)^0.5-VLOOKUP(Operations!$D16,ImpDepLookup,4,FALSE)*(Operations!$G16*Operations!$H16/Operations!$I16)^0.5)^2) -> 31816.871 | R16: =IF(Operations!$N16=0,0,IF(Operations!$I16*Operations!$H16=0,0,(Operations!$P16-Operations!$Q16)/(Operations!$H16))) -> 3.153252629 | S16: =IF(Operations!$H16=0,0,Operations!$P16*'General Variables'!$B$9/Operations!$H16) -> 0.6994024726 | T16: =IF(Operations!$H16=0,0,Operations!$P16*'General Variables'!$B$10/Operations!$H16) -> 1.049103709 | U16: =SUM(Table3[[#This Row],[Depreciation per Unit]:[Opportunity Cost per Unit]]) -> 4.901758811 | W16: Forage blower | X16: MISCELLANEOUS | Y16: 0.22 | Z16: 1.8 | AA16: 1500 | AK16: From "Selection of Irrigation Methods for Agriculture" by C.M. Burt, A.J. Clemmens, R.Bliesner, J.L. Merriam, and L. Hardy. ©2000 by American Society of Civil Engineers, 1801 Alexander Bell Drive, Reston, Virginia, 20191-4400. page 112
A17: Combine Irr SG (grain head) | B17: acre | C17: Combine | D17: Combines | E17: 40300 | G17: 7 | H17: 1000 | I17: 12 | J17: 1.1 | K17: Combine | L17: 10.5 | N17: =IF(Operations!$E17>1,Operations!$E17,IF(Operations!$D17=0,0,Operations!$F17/(VLOOKUP(Operations!$D17,ImpDepLookup,2,FALSE)-VLOOKUP(Operations!$D17,ImpDepLookup,3,FALSE)*Operations!$G17^0.5-VLOOKUP(Operations!$D17,ImpDepLookup,4,FALSE)*(Operations!$G17*(Operations!$G17*Operations!$H17/Operations!$I17)^0.5))^2)) -> 40300 | O17: =IF(Operations!$C17="",0,(((Operations!$G17+1)*Operations!$H17/Operations!$I17/1000)^VLOOKUP(Operations!$C17,ImpRepairFac[],4,FALSE)-(Operations!$G17*Operations!$H17/Operations!$I17/1000)^VLOOKUP(Operations!$C17,ImpRepairFac[],4,FALSE))*Operations!$N17*VLOOKUP(Operations!$C17,ImpRepairFac[],3,FALSE)/Operations!$H17) -> 0.5032715526 | P17: =IF(Operations!$N17=0,0,Operations!$N17*(VLOOKUP(Operations!$D17,ImpDepLookup,2,FALSE)-VLOOKUP(Operations!$D17,ImpDepLookup,3,FALSE)*Operations!$G17^0.5-VLOOKUP(Operations!$D17,ImpDepLookup,4,FALSE)*(Operations!$G17*Operations!$H17/Operations!$I17)^0.5)^2) -> 19491.18125 | Q17: =IF(Operations!$N17=0,0,Operations!$N17*(VLOOKUP(Operations!$D17,ImpDepLookup,2,FALSE)-VLOOKUP(Operations!$D17,ImpDepLookup,3,FALSE)*(Operations!$G17+1)^0.5-VLOOKUP(Operations!$D17,ImpDepLookup,4,FALSE)*(Operations!$G17*Operations!$H17/Operations!$I17)^0.5)^2) -> 17838.26156 | R17: =IF(Operations!$N17=0,0,IF(Operations!$I17*Operations!$H17=0,0,(Operations!$P17-Operations!$Q17)/(Operations!$H17))) -> 1.652919691 | S17: =IF(Operations!$H17=0,0,Operations!$P17*'General Variables'!$B$9/Operations!$H17) -> 0.389823625 | T17: =IF(Operations!$H17=0,0,Operations!$P17*'General Variables'!$B$10/Operations!$H17) -> 0.5847354375 | U17: =SUM(Table3[[#This Row],[Depreciation per Unit]:[Opportunity Cost per Unit]]) -> 2.627478754 | W17: Forage harvester | X17: HARVESTING | Y17: 0.15 | Z17: 1.6 | AA17: 2500
B18: acre | C18: Combine | D18: Combines | G18: 5 | H18: 1200 | I18: 13 | J18: 1.1 | K18: Combine | L18: 10.5 | N18: =IF(Operations!$E18>1,Operations!$E18,IF(Operations!$D18=0,0,Operations!$F18/(VLOOKUP(Operations!$D18,ImpDepLookup,2,FALSE)-VLOOKUP(Operations!$D18,ImpDepLookup,3,FALSE)*Operations!$G18^0.5-VLOOKUP(Operations!$D18,ImpDepLookup,4,FALSE)*(Operations!$G18*(Operations!$G18*Operations!$H18/Operations!$I18)^0.5))^2)) -> 0 | O18: =IF(Operations!$C18="",0,(((Operations!$G18+1)*Operations!$H18/Operations!$I18/1000)^VLOOKUP(Operations!$C18,ImpRepairFac[],4,FALSE)-(Operations!$G18*Operations!$H18/Operations!$I18/1000)^VLOOKUP(Operations!$C18,ImpRepairFac[],4,FALSE))*Operations!$N18*VLOOKUP(Operations!$C18,ImpRepairFac[],3,FALSE)/Operations!$H18) -> 0 | P18: =IF(Operations!$N18=0,0,Operations!$N18*(VLOOKUP(Operations!$D18,ImpDepLookup,2,FALSE)-VLOOKUP(Operations!$D18,ImpDepLookup,3,FALSE)*Operations!$G18^0.5-VLOOKUP(Operations!$D18,ImpDepLookup,4,FALSE)*(Operations!$G18*Operations!$H18/Operations!$I18)^0.5)^2) -> 0 | Q18: =IF(Operations!$N18=0,0,Operations!$N18*(VLOOKUP(Operations!$D18,ImpDepLookup,2,FALSE)-VLOOKUP(Operations!$D18,ImpDepLookup,3,FALSE)*(Operations!$G18+1)^0.5-VLOOKUP(Operations!$D18,ImpDepLookup,4,FALSE)*(Operations!$G18*Operations!$H18/Operations!$I18)^0.5)^2) -> 0 | R18: =IF(Operations!$N18=0,0,IF(Operations!$I18*Operations!$H18=0,0,(Operations!$P18-Operations!$Q18)/(Operations!$H18))) -> 0 | S18: =IF(Operations!$H18=0,0,Operations!$P18*'General Variables'!$B$9/Operations!$H18) -> 0 | T18: =IF(Operations!$H18=0,0,Operations!$P18*'General Variables'!$B$10/Operations!$H18) -> 0 | U18: =SUM(Table3[[#This Row],[Depreciation per Unit]:[Opportunity Cost per Unit]]) -> 0 | W18: Harrow - Spring tooth | X18: TILLAGE&PLANTING | Y18: 0.27 | Z18: 1.4 | AA18: 2000
A19: Combine Small Grain (grain head) | B19: acre | C19: Combine | D19: Combines | E19: 40300 | G19: 5 | H19: 1200 | I19: 13 | J19: 1.1 | K19: Combine | L19: 10.46803279 | N19: =IF(Operations!$E19>1,Operations!$E19,IF(Operations!$D19=0,0,Operations!$F19/(VLOOKUP(Operations!$D19,ImpDepLookup,2,FALSE)-VLOOKUP(Operations!$D19,ImpDepLookup,3,FALSE)*Operations!$G19^0.5-VLOOKUP(Operations!$D19,ImpDepLookup,4,FALSE)*(Operations!$G19*(Operations!$G19*Operations!$H19/Operations!$I19)^0.5))^2)) -> 40300 | O19: =IF(Operations!$C19="",0,(((Operations!$G19+1)*Operations!$H19/Operations!$I19/1000)^VLOOKUP(Operations!$C19,ImpRepairFac[],4,FALSE)-(Operations!$G19*Operations!$H19/Operations!$I19/1000)^VLOOKUP(Operations!$C19,ImpRepairFac[],4,FALSE))*Operations!$N19*VLOOKUP(Operations!$C19,ImpRepairFac[],3,FALSE)/Operations!$H19) -> 0.3546376864 | P19: =IF(Operations!$N19=0,0,Operations!$N19*(VLOOKUP(Operations!$D19,ImpDepLookup,2,FALSE)-VLOOKUP(Operations!$D19,ImpDepLookup,3,FALSE)*Operations!$G19^0.5-VLOOKUP(Operations!$D19,ImpDepLookup,4,FALSE)*(Operations!$G19*Operations!$H19/Operations!$I19)^0.5)^2) -> 23464.41089 | Q19: =IF(Operations!$N19=0,0,Operations!$N19*(VLOOKUP(Operations!$D19,ImpDepLookup,2,FALSE)-VLOOKUP(Operations!$D19,ImpDepLookup,3,FALSE)*(Operations!$G19+1)^0.5-VLOOKUP(Operations!$D19,ImpDepLookup,4,FALSE)*(Operations!$G19*Operations!$H19/Operations!$I19)^0.5)^2) -> 21348.62725 | R19: =IF(Operations!$N19=0,0,IF(Operations!$I19*Operations!$H19=0,0,(Operations!$P19-Operations!$Q19)/(Operations!$H19))) -> 1.76315303 | S19: =IF(Operations!$H19=0,0,Operations!$P19*'General Variables'!$B$9/Operations!$H19) -> 0.3910735148 | T19: =IF(Operations!$H19=0,0,Operations!$P19*'General Variables'!$B$10/Operations!$H19) -> 0.5866102722 | U19: =SUM(Table3[[#This Row],[Depreciation per Unit]:[Opportunity Cost per Unit]]) -> 2.740836817 | W19: Mower | X19: HARVESTING | Y19: 0.46 | Z19: 1.7 | AA19: 2000
A20: Combine - Sunflower head | B20: acre | C20: Combine | D20: Combines | E20: 50300 | G20: 5 | H20: 1000 | I20: 13 | J20: 1.1 | K20: Combine | L20: 10.5 | N20: =IF(Operations!$E20>1,Operations!$E20,IF(Operations!$D20=0,0,Operations!$F20/(VLOOKUP(Operations!$D20,ImpDepLookup,2,FALSE)-VLOOKUP(Operations!$D20,ImpDepLookup,3,FALSE)*Operations!$G20^0.5-VLOOKUP(Operations!$D20,ImpDepLookup,4,FALSE)*(Operations!$G20*(Operations!$G20*Operations!$H20/Operations!$I20)^0.5))^2)) -> 50300 | O20: =IF(Operations!$C20="",0,(((Operations!$G20+1)*Operations!$H20/Operations!$I20/1000)^VLOOKUP(Operations!$C20,ImpRepairFac[],4,FALSE)-(Operations!$G20*Operations!$H20/Operations!$I20/1000)^VLOOKUP(Operations!$C20,ImpRepairFac[],4,FALSE))*Operations!$N20*VLOOKUP(Operations!$C20,ImpRepairFac[],3,FALSE)/Operations!$H20) -> 0.3492305308 | P20: =IF(Operations!$N20=0,0,Operations!$N20*(VLOOKUP(Operations!$D20,ImpDepLookup,2,FALSE)-VLOOKUP(Operations!$D20,ImpDepLookup,3,FALSE)*Operations!$G20^0.5-VLOOKUP(Operations!$D20,ImpDepLookup,4,FALSE)*(Operations!$G20*Operations!$H20/Operations!$I20)^0.5)^2) -> 29286.84535 | Q20: =IF(Operations!$N20=0,0,Operations!$N20*(VLOOKUP(Operations!$D20,ImpDepLookup,2,FALSE)-VLOOKUP(Operations!$D20,ImpDepLookup,3,FALSE)*(Operations!$G20+1)^0.5-VLOOKUP(Operations!$D20,ImpDepLookup,4,FALSE)*(Operations!$G20*Operations!$H20/Operations!$I20)^0.5)^2) -> 26646.05337 | R20: =IF(Operations!$N20=0,0,IF(Operations!$I20*Operations!$H20=0,0,(Operations!$P20-Operations!$Q20)/(Operations!$H20))) -> 2.640791982 | S20: =IF(Operations!$H20=0,0,Operations!$P20*'General Variables'!$B$9/Operations!$H20) -> 0.585736907 | T20: =IF(Operations!$H20=0,0,Operations!$P20*'General Variables'!$B$10/Operations!$H20) -> 0.8786053605 | U20: =SUM(Table3[[#This Row],[Depreciation per Unit]:[Opportunity Cost per Unit]]) -> 4.10513425 | W20: Mower(rotary) | X20: HARVESTING | Y20: 0.44 | Z20: 2.0 | AA20: 2000
A21: Corrugate | B21: acre | C21: Cultivator - Field | D21: Disks and all other tillage equipment | E21: 72916 | G21: 5 | H21: 300 | I21: 7.021276596 | J21: 1.1 | K21: Large Tractor | L21: 4.388297872 | N21: =IF(Operations!$E21>1,Operations!$E21,IF(Operations!$D21=0,0,Operations!$F21/(VLOOKUP(Operations!$D21,ImpDepLookup,2,FALSE)-VLOOKUP(Operations!$D21,ImpDepLookup,3,FALSE)*Operations!$G21^0.5-VLOOKUP(Operations!$D21,ImpDepLookup,4,FALSE)*(Operations!$G21*(Operations!$G21*Operations!$H21/Operations!$I21)^0.5))^2)) -> 72916 | O21: =IF(Operations!$C21="",0,(((Operations!$G21+1)*Operations!$H21/Operations!$I21/1000)^VLOOKUP(Operations!$C21,ImpRepairFac[],4,FALSE)-(Operations!$G21*Operations!$H21/Operations!$I21/1000)^VLOOKUP(Operations!$C21,ImpRepairFac[],4,FALSE))*Operations!$N21*VLOOKUP(Operations!$C21,ImpRepairFac[],3,FALSE)/Operations!$H21) -> 2.198780411 | P21: =IF(Operations!$N21=0,0,Operations!$N21*(VLOOKUP(Operations!$D21,ImpDepLookup,2,FALSE)-VLOOKUP(Operations!$D21,ImpDepLookup,3,FALSE)*Operations!$G21^0.5-VLOOKUP(Operations!$D21,ImpDepLookup,4,FALSE)*(Operations!$G21*Operations!$H21/Operations!$I21)^0.5)^2) -> 30337.93809 | Q21: =IF(Operations!$N21=0,0,Operations!$N21*(VLOOKUP(Operations!$D21,ImpDepLookup,2,FALSE)-VLOOKUP(Operations!$D21,ImpDepLookup,3,FALSE)*(Operations!$G21+1)^0.5-VLOOKUP(Operations!$D21,ImpDepLookup,4,FALSE)*(Operations!$G21*Operations!$H21/Operations!$I21)^0.5)^2) -> 28169.78562 | R21: =IF(Operations!$N21=0,0,IF(Operations!$I21*Operations!$H21=0,0,(Operations!$P21-Operations!$Q21)/(Operations!$H21))) -> 7.22717493 | S21: =IF(Operations!$H21=0,0,Operations!$P21*'General Variables'!$B$9/Operations!$H21) -> 2.022529206 | T21: =IF(Operations!$H21=0,0,Operations!$P21*'General Variables'!$B$10/Operations!$H21) -> 3.033793809 | U21: =SUM(Table3[[#This Row],[Depreciation per Unit]:[Opportunity Cost per Unit]]) -> 12.28349795 | W21: Mower-conditioner | X21: HARVESTING | Y21: 0.18 | Z21: 1.6 | AA21: 2500
A22: Disk | B22: acre | C22: Disk - Heavy-duty | D22: Disks and all other tillage equipment | E22: 72916 | G22: 5 | H22: 1000 | I22: 10.90909091 | J22: 1.1 | K22: Large Tractor | L22: 8.290909091 | N22: =IF(Operations!$E22>1,Operations!$E22,IF(Operations!$D22=0,0,Operations!$F22/(VLOOKUP(Operations!$D22,ImpDepLookup,2,FALSE)-VLOOKUP(Operations!$D22,ImpDepLookup,3,FALSE)*Operations!$G22^0.5-VLOOKUP(Operations!$D22,ImpDepLookup,4,FALSE)*(Operations!$G22*(Operations!$G22*Operations!$H22/Operations!$I22)^0.5))^2)) -> 72916 | O22: =IF(Operations!$C22="",0,(((Operations!$G22+1)*Operations!$H22/Operations!$I22/1000)^VLOOKUP(Operations!$C22,ImpRepairFac[],4,FALSE)-(Operations!$G22*Operations!$H22/Operations!$I22/1000)^VLOOKUP(Operations!$C22,ImpRepairFac[],4,FALSE))*Operations!$N22*VLOOKUP(Operations!$C22,ImpRepairFac[],3,FALSE)/Operations!$H22) -> 1.265994432 | P22: =IF(Operations!$N22=0,0,Operations!$N22*(VLOOKUP(Operations!$D22,ImpDepLookup,2,FALSE)-VLOOKUP(Operations!$D22,ImpDepLookup,3,FALSE)*Operations!$G22^0.5-VLOOKUP(Operations!$D22,ImpDepLookup,4,FALSE)*(Operations!$G22*Operations!$H22/Operations!$I22)^0.5)^2) -> 30337.93809 | Q22: =IF(Operations!$N22=0,0,Operations!$N22*(VLOOKUP(Operations!$D22,ImpDepLookup,2,FALSE)-VLOOKUP(Operations!$D22,ImpDepLookup,3,FALSE)*(Operations!$G22+1)^0.5-VLOOKUP(Operations!$D22,ImpDepLookup,4,FALSE)*(Operations!$G22*Operations!$H22/Operations!$I22)^0.5)^2) -> 28169.78562 | R22: =IF(Operations!$N22=0,0,IF(Operations!$I22*Operations!$H22=0,0,(Operations!$P22-Operations!$Q22)/(Operations!$H22))) -> 2.168152479 | S22: =IF(Operations!$H22=0,0,Operations!$P22*'General Variables'!$B$9/Operations!$H22) -> 0.6067587619 | T22: =IF(Operations!$H22=0,0,Operations!$P22*'General Variables'!$B$10/Operations!$H22) -> 0.9101381428 | U22: =SUM(Table3[[#This Row],[Depreciation per Unit]:[Opportunity Cost per Unit]]) -> 3.685049384 | W22: Mower-conditioner(rotary) | X22: HARVESTING | Y22: 0.16 | Z22: 2.0 | AA22: 2500
A23: Ditch Irrigation | B23: acre-inch | G23: 5 | H23: 1000 | I23: 1.8 | J23: 0.1 | K23: Diesel Pump for Pipe | L23: 0 | N23: =IF(Operations!$E23>1,Operations!$E23,IF(Operations!$D23=0,0,Operations!$F23/(VLOOKUP(Operations!$D23,ImpDepLookup,2,FALSE)-VLOOKUP(Operations!$D23,ImpDepLookup,3,FALSE)*Operations!$G23^0.5-VLOOKUP(Operations!$D23,ImpDepLookup,4,FALSE)*(Operations!$G23*(Operations!$G23*Operations!$H23/Operations!$I23)^0.5))^2)) -> 0 | O23: =IF(Operations!$C23="",0,(((Operations!$G23+1)*Operations!$H23/Operations!$I23/1000)^VLOOKUP(Operations!$C23,ImpRepairFac[],4,FALSE)-(Operations!$G23*Operations!$H23/Operations!$I23/1000)^VLOOKUP(Operations!$C23,ImpRepairFac[],4,FALSE))*Operations!$N23*VLOOKUP(Operations!$C23,ImpRepairFac[],3,FALSE)/Operations!$H23) -> 0 | P23: =IF(Operations!$N23=0,0,Operations!$N23*(VLOOKUP(Operations!$D23,ImpDepLookup,2,FALSE)-VLOOKUP(Operations!$D23,ImpDepLookup,3,FALSE)*Operations!$G23^0.5-VLOOKUP(Operations!$D23,ImpDepLookup,4,FALSE)*(Operations!$G23*Operations!$H23/Operations!$I23)^0.5)^2) -> 0 | Q23: =IF(Operations!$N23=0,0,Operations!$N23*(VLOOKUP(Operations!$D23,ImpDepLookup,2,FALSE)-VLOOKUP(Operations!$D23,ImpDepLookup,3,FALSE)*(Operations!$G23+1)^0.5-VLOOKUP(Operations!$D23,ImpDepLookup,4,FALSE)*(Operations!$G23*Operations!$H23/Operations!$I23)^0.5)^2) -> 0 | R23: =IF(Operations!$N23=0,0,IF(Operations!$I23*Operations!$H23=0,0,(Operations!$P23-Operations!$Q23)/(Operations!$H23))) -> 0 | S23: =IF(Operations!$H23=0,0,Operations!$P23*'General Variables'!$B$9/Operations!$H23) -> 0 | T23: =IF(Operations!$H23=0,0,Operations!$P23*'General Variables'!$B$10/Operations!$H23) -> 0 | U23: =SUM(Table3[[#This Row],[Depreciation per Unit]:[Opportunity Cost per Unit]]) -> 0 | W23: Mulcher-packer | X23: TILLAGE&PLANTING | Y23: 0.16 | Z23: 1.3 | AA23: 2000
A24: Double Windrows | B24: acre | C24: Rake - Side delivery | D24: Swathers and all other harvest equipment | E24: 54000 | G24: 20 | H24: 300 | I24: 20 | J24: 1.1 | K24: Medium Tractor | L24: 2.107042254 | N24: =IF(Operations!$E24>1,Operations!$E24,IF(Operations!$D24=0,0,Operations!$F24/(VLOOKUP(Operations!$D24,ImpDepLookup,2,FALSE)-VLOOKUP(Operations!$D24,ImpDepLookup,3,FALSE)*Operations!$G24^0.5-VLOOKUP(Operations!$D24,ImpDepLookup,4,FALSE)*(Operations!$G24*(Operations!$G24*Operations!$H24/Operations!$I24)^0.5))^2)) -> 54000 | O24: =IF(Operations!$C24="",0,(((Operations!$G24+1)*Operations!$H24/Operations!$I24/1000)^VLOOKUP(Operations!$C24,ImpRepairFac[],4,FALSE)-(Operations!$G24*Operations!$H24/Operations!$I24/1000)^VLOOKUP(Operations!$C24,ImpRepairFac[],4,FALSE))*Operations!$N24*VLOOKUP(Operations!$C24,ImpRepairFac[],3,FALSE)/Operations!$H24) -> 0.4009298889 | P24: =IF(Operations!$N24=0,0,Operations!$N24*(VLOOKUP(Operations!$D24,ImpDepLookup,2,FALSE)-VLOOKUP(Operations!$D24,ImpDepLookup,3,FALSE)*Operations!$G24^0.5-VLOOKUP(Operations!$D24,ImpDepLookup,4,FALSE)*(Operations!$G24*Operations!$H24/Operations!$I24)^0.5)^2) -> 7964.101637 | Q24: =IF(Operations!$N24=0,0,Operations!$N24*(VLOOKUP(Operations!$D24,ImpDepLookup,2,FALSE)-VLOOKUP(Operations!$D24,ImpDepLookup,3,FALSE)*(Operations!$G24+1)^0.5-VLOOKUP(Operations!$D24,ImpDepLookup,4,FALSE)*(Operations!$G24*Operations!$H24/Operations!$I24)^0.5)^2) -> 7552.722841 | R24: =IF(Operations!$N24=0,0,IF(Operations!$I24*Operations!$H24=0,0,(Operations!$P24-Operations!$Q24)/(Operations!$H24))) -> 1.371262652 | S24: =IF(Operations!$H24=0,0,Operations!$P24*'General Variables'!$B$9/Operations!$H24) -> 0.5309401091 | T24: =IF(Operations!$H24=0,0,Operations!$P24*'General Variables'!$B$10/Operations!$H24) -> 0.7964101637 | U24: =SUM(Table3[[#This Row],[Depreciation per Unit]:[Opportunity Cost per Unit]]) -> 2.698612925 | W24: Planter - Row crop | X24: TILLAGE&PLANTING | Y24: 0.32 | Z24: 2.1 | AA24: 1500
A25: Drill | B25: acre | C25: Drill - Grain | D25: Planters | E25: 103565 | G25: 10 | H25: 1500 | I25: 12.5 | J25: 1.1 | K25: Medium Tractor | L25: 4.986666667 | N25: =IF(Operations!$E25>1,Operations!$E25,IF(Operations!$D25=0,0,Operations!$F25/(VLOOKUP(Operations!$D25,ImpDepLookup,2,FALSE)-VLOOKUP(Operations!$D25,ImpDepLookup,3,FALSE)*Operations!$G25^0.5-VLOOKUP(Operations!$D25,ImpDepLookup,4,FALSE)*(Operations!$G25*(Operations!$G25*Operations!$H25/Operations!$I25)^0.5))^2)) -> 103565 | O25: =IF(Operations!$C25="",0,(((Operations!$G25+1)*Operations!$H25/Operations!$I25/1000)^VLOOKUP(Operations!$C25,ImpRepairFac[],4,FALSE)-(Operations!$G25*Operations!$H25/Operations!$I25/1000)^VLOOKUP(Operations!$C25,ImpRepairFac[],4,FALSE))*Operations!$N25*VLOOKUP(Operations!$C25,ImpRepairFac[],3,FALSE)/Operations!$H25) -> 7.179561614 | P25: =IF(Operations!$N25=0,0,Operations!$N25*(VLOOKUP(Operations!$D25,ImpDepLookup,2,FALSE)-VLOOKUP(Operations!$D25,ImpDepLookup,3,FALSE)*Operations!$G25^0.5-VLOOKUP(Operations!$D25,ImpDepLookup,4,FALSE)*(Operations!$G25*Operations!$H25/Operations!$I25)^0.5)^2) -> 41936.73876 | Q25: =IF(Operations!$N25=0,0,Operations!$N25*(VLOOKUP(Operations!$D25,ImpDepLookup,2,FALSE)-VLOOKUP(Operations!$D25,ImpDepLookup,3,FALSE)*(Operations!$G25+1)^0.5-VLOOKUP(Operations!$D25,ImpDepLookup,4,FALSE)*(Operations!$G25*Operations!$H25/Operations!$I25)^0.5)^2) -> 40364.93187 | R25: =IF(Operations!$N25=0,0,IF(Operations!$I25*Operations!$H25=0,0,(Operations!$P25-Operations!$Q25)/(Operations!$H25))) -> 1.047871256 | S25: =IF(Operations!$H25=0,0,Operations!$P25*'General Variables'!$B$9/Operations!$H25) -> 0.5591565168 | T25: =IF(Operations!$H25=0,0,Operations!$P25*'General Variables'!$B$10/Operations!$H25) -> 0.8387347752 | U25: =SUM(Table3[[#This Row],[Depreciation per Unit]:[Opportunity Cost per Unit]]) -> 2.445762548 | W25: Plow - Moldboard | X25: TILLAGE&PLANTING | Y25: 0.29 | Z25: 1.8 | AA25: 2000
A26: Drill w/ Fertilizer | B26: acre | C26: Drill - Grain | D26: Planters | E26: 124778 | G26: 7 | H26: 1000 | I26: 11 | J26: 1.2 | K26: Medium Tractor | L26: 5 | N26: =IF(Operations!$E26>1,Operations!$E26,IF(Operations!$D26=0,0,Operations!$F26/(VLOOKUP(Operations!$D26,ImpDepLookup,2,FALSE)-VLOOKUP(Operations!$D26,ImpDepLookup,3,FALSE)*Operations!$G26^0.5-VLOOKUP(Operations!$D26,ImpDepLookup,4,FALSE)*(Operations!$G26*(Operations!$G26*Operations!$H26/Operations!$I26)^0.5))^2)) -> 124778 | O26: =IF(Operations!$C26="",0,(((Operations!$G26+1)*Operations!$H26/Operations!$I26/1000)^VLOOKUP(Operations!$C26,ImpRepairFac[],4,FALSE)-(Operations!$G26*Operations!$H26/Operations!$I26/1000)^VLOOKUP(Operations!$C26,ImpRepairFac[],4,FALSE))*Operations!$N26*VLOOKUP(Operations!$C26,ImpRepairFac[],3,FALSE)/Operations!$H26) -> 5.002480947 | P26: =IF(Operations!$N26=0,0,Operations!$N26*(VLOOKUP(Operations!$D26,ImpDepLookup,2,FALSE)-VLOOKUP(Operations!$D26,ImpDepLookup,3,FALSE)*Operations!$G26^0.5-VLOOKUP(Operations!$D26,ImpDepLookup,4,FALSE)*(Operations!$G26*Operations!$H26/Operations!$I26)^0.5)^2) -> 57127.11778 | Q26: =IF(Operations!$N26=0,0,Operations!$N26*(VLOOKUP(Operations!$D26,ImpDepLookup,2,FALSE)-VLOOKUP(Operations!$D26,ImpDepLookup,3,FALSE)*(Operations!$G26+1)^0.5-VLOOKUP(Operations!$D26,ImpDepLookup,4,FALSE)*(Operations!$G26*Operations!$H26/Operations!$I26)^0.5)^2) -> 54746.44987 | R26: =IF(Operations!$N26=0,0,IF(Operations!$I26*Operations!$H26=0,0,(Operations!$P26-Operations!$Q26)/(Operations!$H26))) -> 2.380667909 | S26: =IF(Operations!$H26=0,0,Operations!$P26*'General Variables'!$B$9/Operations!$H26) -> 1.142542356 | T26: =IF(Operations!$H26=0,0,Operations!$P26*'General Variables'!$B$10/Operations!$H26) -> 1.713813533 | U26: =SUM(Table3[[#This Row],[Depreciation per Unit]:[Opportunity Cost per Unit]]) -> 5.237023798 | W26: Potato harvester | X26: HARVESTING | Y26: 0.19 | Z26: 1.4 | AA26: 2500
A27: Dry Grain | B27: bushel | N27: =IF(Operations!$E27>1,Operations!$E27,IF(Operations!$D27=0,0,Operations!$F27/(VLOOKUP(Operations!$D27,ImpDepLookup,2,FALSE)-VLOOKUP(Operations!$D27,ImpDepLookup,3,FALSE)*Operations!$G27^0.5-VLOOKUP(Operations!$D27,ImpDepLookup,4,FALSE)*(Operations!$G27*(Operations!$G27*Operations!$H27/Operations!$I27)^0.5))^2)) -> 0 | O27: =IF(Operations!$C27="",0,(((Operations!$G27+1)*Operations!$H27/Operations!$I27/1000)^VLOOKUP(Operations!$C27,ImpRepairFac[],4,FALSE)-(Operations!$G27*Operations!$H27/Operations!$I27/1000)^VLOOKUP(Operations!$C27,ImpRepairFac[],4,FALSE))*Operations!$N27*VLOOKUP(Operations!$C27,ImpRepairFac[],3,FALSE)/Operations!$H27) -> 0 | P27: =IF(Operations!$N27=0,0,Operations!$N27*(VLOOKUP(Operations!$D27,ImpDepLookup,2,FALSE)-VLOOKUP(Operations!$D27,ImpDepLookup,3,FALSE)*Operations!$G27^0.5-VLOOKUP(Operations!$D27,ImpDepLookup,4,FALSE)*(Operations!$G27*Operations!$H27/Operations!$I27)^0.5)^2) -> 0 | Q27: =IF(Operations!$N27=0,0,Operations!$N27*(VLOOKUP(Operations!$D27,ImpDepLookup,2,FALSE)-VLOOKUP(Operations!$D27,ImpDepLookup,3,FALSE)*(Operations!$G27+1)^0.5-VLOOKUP(Operations!$D27,ImpDepLookup,4,FALSE)*(Operations!$G27*Operations!$H27/Operations!$I27)^0.5)^2) -> 0 | R27: =IF(Operations!$N27=0,0,IF(Operations!$I27*Operations!$H27=0,0,(Operations!$P27-Operations!$Q27)/(Operations!$H27))) -> 0 | S27: =IF(Operations!$H27=0,0,Operations!$P27*'General Variables'!$B$9/Operations!$H27) -> 0 | T27: =IF(Operations!$H27=0,0,Operations!$P27*'General Variables'!$B$10/Operations!$H27) -> 0 | U27: =SUM(Table3[[#This Row],[Depreciation per Unit]:[Opportunity Cost per Unit]]) -> 0 | W27: Rake - Side delivery | X27: HARVESTING | Y27: 0.17 | Z27: 1.4 | AA27: 2500
A28: Field Cultivation | B28: acre | C28: Cultivator - Field | D28: Disks and all other tillage equipment | E28: 109997 | G28: 5 | H28: 2000 | I28: 15 | J28: 1.1 | K28: Large Tractor | L28: 8.196774194 | N28: =IF(Operations!$E28>1,Operations!$E28,IF(Operations!$D28=0,0,Operations!$F28/(VLOOKUP(Operations!$D28,ImpDepLookup,2,FALSE)-VLOOKUP(Operations!$D28,ImpDepLookup,3,FALSE)*Operations!$G28^0.5-VLOOKUP(Operations!$D28,ImpDepLookup,4,FALSE)*(Operations!$G28*(Operations!$G28*Operations!$H28/Operations!$I28)^0.5))^2)) -> 109997 | O28: =IF(Operations!$C28="",0,(((Operations!$G28+1)*Operations!$H28/Operations!$I28/1000)^VLOOKUP(Operations!$C28,ImpRepairFac[],4,FALSE)-(Operations!$G28*Operations!$H28/Operations!$I28/1000)^VLOOKUP(Operations!$C28,ImpRepairFac[],4,FALSE))*Operations!$N28*VLOOKUP(Operations!$C28,ImpRepairFac[],3,FALSE)/Operations!$H28) -> 2.447699572 | P28: =IF(Operations!$N28=0,0,Operations!$N28*(VLOOKUP(Operations!$D28,ImpDepLookup,2,FALSE)-VLOOKUP(Operations!$D28,ImpDepLookup,3,FALSE)*Operations!$G28^0.5-VLOOKUP(Operations!$D28,ImpDepLookup,4,FALSE)*(Operations!$G28*Operations!$H28/Operations!$I28)^0.5)^2) -> 45766.11685 | Q28: =IF(Operations!$N28=0,0,Operations!$N28*(VLOOKUP(Operations!$D28,ImpDepLookup,2,FALSE)-VLOOKUP(Operations!$D28,ImpDepLookup,3,FALSE)*(Operations!$G28+1)^0.5-VLOOKUP(Operations!$D28,ImpDepLookup,4,FALSE)*(Operations!$G28*Operations!$H28/Operations!$I28)^0.5)^2) -> 42495.36327 | R28: =IF(Operations!$N28=0,0,IF(Operations!$I28*Operations!$H28=0,0,(Operations!$P28-Operations!$Q28)/(Operations!$H28))) -> 1.635376791 | S28: =IF(Operations!$H28=0,0,Operations!$P28*'General Variables'!$B$9/Operations!$H28) -> 0.4576611685 | T28: =IF(Operations!$H28=0,0,Operations!$P28*'General Variables'!$B$10/Operations!$H28) -> 0.6864917528 | U28: =SUM(Table3[[#This Row],[Depreciation per Unit]:[Opportunity Cost per Unit]]) -> 2.779529713 | W28: Roller-packer | X28: TILLAGE&PLANTING | Y28: 0.16 | Z28: 1.3 | AA28: 2000
A29: Grass Drill | B29: acre | C29: Drill - Grain | D29: Planters | E29: 75005 | G29: 5 | H29: 1000 | I29: 9 | J29: 1.1 | K29: Medium Tractor | L29: 4.293680297 | N29: =IF(Operations!$E29>1,Operations!$E29,IF(Operations!$D29=0,0,Operations!$F29/(VLOOKUP(Operations!$D29,ImpDepLookup,2,FALSE)-VLOOKUP(Operations!$D29,ImpDepLookup,3,FALSE)*Operations!$G29^0.5-VLOOKUP(Operations!$D29,ImpDepLookup,4,FALSE)*(Operations!$G29*(Operations!$G29*Operations!$H29/Operations!$I29)^0.5))^2)) -> 75005 | O29: =IF(Operations!$C29="",0,(((Operations!$G29+1)*Operations!$H29/Operations!$I29/1000)^VLOOKUP(Operations!$C29,ImpRepairFac[],4,FALSE)-(Operations!$G29*Operations!$H29/Operations!$I29/1000)^VLOOKUP(Operations!$C29,ImpRepairFac[],4,FALSE))*Operations!$N29*VLOOKUP(Operations!$C29,ImpRepairFac[],3,FALSE)/Operations!$H29) -> 3.258479709 | P29: =IF(Operations!$N29=0,0,Operations!$N29*(VLOOKUP(Operations!$D29,ImpDepLookup,2,FALSE)-VLOOKUP(Operations!$D29,ImpDepLookup,3,FALSE)*Operations!$G29^0.5-VLOOKUP(Operations!$D29,ImpDepLookup,4,FALSE)*(Operations!$G29*Operations!$H29/Operations!$I29)^0.5)^2) -> 37659.64359 | Q29: =IF(Operations!$N29=0,0,Operations!$N29*(VLOOKUP(Operations!$D29,ImpDepLookup,2,FALSE)-VLOOKUP(Operations!$D29,ImpDepLookup,3,FALSE)*(Operations!$G29+1)^0.5-VLOOKUP(Operations!$D29,ImpDepLookup,4,FALSE)*(Operations!$G29*Operations!$H29/Operations!$I29)^0.5)^2) -> 35910.94542 | R29: =IF(Operations!$N29=0,0,IF(Operations!$I29*Operations!$H29=0,0,(Operations!$P29-Operations!$Q29)/(Operations!$H29))) -> 1.748698171 | S29: =IF(Operations!$H29=0,0,Operations!$P29*'General Variables'!$B$9/Operations!$H29) -> 0.7531928719 | T29: =IF(Operations!$H29=0,0,Operations!$P29*'General Variables'!$B$10/Operations!$H29) -> 1.129789308 | U29: =SUM(Table3[[#This Row],[Depreciation per Unit]:[Opportunity Cost per Unit]]) -> 3.631680351 | W29: Rotary hoe | X29: TILLAGE&PLANTING | Y29: 0.23 | Z29: 1.4 | AA29: 2000
A30: Harrow | B30: acre | C30: Harrow - Spring tooth | D30: Disks and all other tillage equipment | E30: 72916 | G30: 5 | H30: 1000 | I30: 24 | J30: 1.1 | K30: Medium Tractor | L30: 2.045070423 | N30: =IF(Operations!$E30>1,Operations!$E30,IF(Operations!$D30=0,0,Operations!$F30/(VLOOKUP(Operations!$D30,ImpDepLookup,2,FALSE)-VLOOKUP(Operations!$D30,ImpDepLookup,3,FALSE)*Operations!$G30^0.5-VLOOKUP(Operations!$D30,ImpDepLookup,4,FALSE)*(Operations!$G30*(Operations!$G30*Operations!$H30/Operations!$I30)^0.5))^2)) -> 72916 | O30: =IF(Operations!$C30="",0,(((Operations!$G30+1)*Operations!$H30/Operations!$I30/1000)^VLOOKUP(Operations!$C30,ImpRepairFac[],4,FALSE)-(Operations!$G30*Operations!$H30/Operations!$I30/1000)^VLOOKUP(Operations!$C30,ImpRepairFac[],4,FALSE))*Operations!$N30*VLOOKUP(Operations!$C30,ImpRepairFac[],3,FALSE)/Operations!$H30) -> 0.6368250431 | P30: =IF(Operations!$N30=0,0,Operations!$N30*(VLOOKUP(Operations!$D30,ImpDepLookup,2,FALSE)-VLOOKUP(Operations!$D30,ImpDepLookup,3,FALSE)*Operations!$G30^0.5-VLOOKUP(Operations!$D30,ImpDepLookup,4,FALSE)*(Operations!$G30*Operations!$H30/Operations!$I30)^0.5)^2) -> 30337.93809 | Q30: =IF(Operations!$N30=0,0,Operations!$N30*(VLOOKUP(Operations!$D30,ImpDepLookup,2,FALSE)-VLOOKUP(Operations!$D30,ImpDepLookup,3,FALSE)*(Operations!$G30+1)^0.5-VLOOKUP(Operations!$D30,ImpDepLookup,4,FALSE)*(Operations!$G30*Operations!$H30/Operations!$I30)^0.5)^2) -> 28169.78562 | R30: =IF(Operations!$N30=0,0,IF(Operations!$I30*Operations!$H30=0,0,(Operations!$P30-Operations!$Q30)/(Operations!$H30))) -> 2.168152479 | S30: =IF(Operations!$H30=0,0,Operations!$P30*'General Variables'!$B$9/Operations!$H30) -> 0.6067587619 | T30: =IF(Operations!$H30=0,0,Operations!$P30*'General Variables'!$B$10/Operations!$H30) -> 0.9101381428 | U30: =SUM(Table3[[#This Row],[Depreciation per Unit]:[Opportunity Cost per Unit]]) -> 3.685049384 | W30: Rotary tiller | X30: TILLAGE&PLANTING | Y30: 0.36 | Z30: 2.0 | AA30: 1500
A31: Lift Beets | B31: acre | C31: Sugar beet harvester | D31: Balers | E31: 246585 | G31: 5 | H31: 1200 | I31: 6 | J31: 1.1 | K31: Large Tractor | L31: 6.190697674 | N31: =IF(Operations!$E31>1,Operations!$E31,IF(Operations!$D31=0,0,Operations!$F31/(VLOOKUP(Operations!$D31,ImpDepLookup,2,FALSE)-VLOOKUP(Operations!$D31,ImpDepLookup,3,FALSE)*Operations!$G31^0.5-VLOOKUP(Operations!$D31,ImpDepLookup,4,FALSE)*(Operations!$G31*(Operations!$G31*Operations!$H31/Operations!$I31)^0.5))^2)) -> 246585 | O31: =IF(Operations!$C31="",0,(((Operations!$G31+1)*Operations!$H31/Operations!$I31/1000)^VLOOKUP(Operations!$C31,ImpRepairFac[],4,FALSE)-(Operations!$G31*Operations!$H31/Operations!$I31/1000)^VLOOKUP(Operations!$C31,ImpRepairFac[],4,FALSE))*Operations!$N31*VLOOKUP(Operations!$C31,ImpRepairFac[],3,FALSE)/Operations!$H31) -> 32.42669554 | P31: 150000 | Q31: 143000 | R31: =IF(Operations!$N31=0,0,IF(Operations!$I31*Operations!$H31=0,0,(Operations!$P31-Operations!$Q31)/(Operations!$H31))) -> 5.833333333 | S31: =IF(Operations!$H31=0,0,Operations!$P31*'General Variables'!$B$9/Operations!$H31) -> 2.5 | T31: =IF(Operations!$H31=0,0,Operations!$P31*'General Variables'!$B$10/Operations!$H31) -> 3.75 | U31: =SUM(Table3[[#This Row],[Depreciation per Unit]:[Opportunity Cost per Unit]]) -> 12.08333333 | W31: Sprayer - Air-carrier | X31: MISCELLANEOUS | Y31: 0.20 | Z31: 1.6 | AA31: 2000
A32: Load Large Square | B32: ton | C32: Wagon - Forage | D32: Swathers and all other harvest equipment | E32: 12788 | G32: 5 | H32: 3000 | I32: 20 | J32: 1.1 | K32: Medium Tractor | L32: 4 | N32: =IF(Operations!$E32>1,Operations!$E32,IF(Operations!$D32=0,0,Operations!$F32/(VLOOKUP(Operations!$D32,ImpDepLookup,2,FALSE)-VLOOKUP(Operations!$D32,ImpDepLookup,3,FALSE)*Operations!$G32^0.5-VLOOKUP(Operations!$D32,ImpDepLookup,4,FALSE)*(Operations!$G32*(Operations!$G32*Operations!$H32/Operations!$I32)^0.5))^2)) -> 12788 | O32: =IF(Operations!$C32="",0,(((Operations!$G32+1)*Operations!$H32/Operations!$I32/1000)^VLOOKUP(Operations!$C32,ImpRepairFac[],4,FALSE)-(Operations!$G32*Operations!$H32/Operations!$I32/1000)^VLOOKUP(Operations!$C32,ImpRepairFac[],4,FALSE))*Operations!$N32*VLOOKUP(Operations!$C32,ImpRepairFac[],3,FALSE)/Operations!$H32) -> 0.1457945112 | P32: =IF(Operations!$N32=0,0,Operations!$N32*(VLOOKUP(Operations!$D32,ImpDepLookup,2,FALSE)-VLOOKUP(Operations!$D32,ImpDepLookup,3,FALSE)*Operations!$G32^0.5-VLOOKUP(Operations!$D32,ImpDepLookup,4,FALSE)*(Operations!$G32*Operations!$H32/Operations!$I32)^0.5)^2) -> 4414.125801 | Q32: =IF(Operations!$N32=0,0,Operations!$N32*(VLOOKUP(Operations!$D32,ImpDepLookup,2,FALSE)-VLOOKUP(Operations!$D32,ImpDepLookup,3,FALSE)*(Operations!$G32+1)^0.5-VLOOKUP(Operations!$D32,ImpDepLookup,4,FALSE)*(Operations!$G32*Operations!$H32/Operations!$I32)^0.5)^2) -> 4127.116735 | R32: =IF(Operations!$N32=0,0,IF(Operations!$I32*Operations!$H32=0,0,(Operations!$P32-Operations!$Q32)/(Operations!$H32))) -> 0.09566968864 | S32: =IF(Operations!$H32=0,0,Operations!$P32*'General Variables'!$B$9/Operations!$H32) -> 0.02942750534 | T32: =IF(Operations!$H32=0,0,Operations!$P32*'General Variables'!$B$10/Operations!$H32) -> 0.04414125801 | U32: =SUM(Table3[[#This Row],[Depreciation per Unit]:[Opportunity Cost per Unit]]) -> 0.169238452 | W32: Sprayer - Boom-type | X32: MISCELLANEOUS | Y32: 0.41 | Z32: 1.3 | AA32: 2500
A33: Load Small Square | B33: ton | C33: Wagon | D33: Swathers and all other harvest equipment | E33: 12788 | G33: 5 | H33: 1250 | I33: 10 | J33: 1 | K33: Medium Tractor | L33: 2 | N33: =IF(Operations!$E33>1,Operations!$E33,IF(Operations!$D33=0,0,Operations!$F33/(VLOOKUP(Operations!$D33,ImpDepLookup,2,FALSE)-VLOOKUP(Operations!$D33,ImpDepLookup,3,FALSE)*Operations!$G33^0.5-VLOOKUP(Operations!$D33,ImpDepLookup,4,FALSE)*(Operations!$G33*(Operations!$G33*Operations!$H33/Operations!$I33)^0.5))^2)) -> 12788 | O33: =IF(Operations!$C33="",0,(((Operations!$G33+1)*Operations!$H33/Operations!$I33/1000)^VLOOKUP(Operations!$C33,ImpRepairFac[],4,FALSE)-(Operations!$G33*Operations!$H33/Operations!$I33/1000)^VLOOKUP(Operations!$C33,ImpRepairFac[],4,FALSE))*Operations!$N33*VLOOKUP(Operations!$C33,ImpRepairFac[],3,FALSE)/Operations!$H33) -> 0.2821990269 | P33: =IF(Operations!$N33=0,0,Operations!$N33*(VLOOKUP(Operations!$D33,ImpDepLookup,2,FALSE)-VLOOKUP(Operations!$D33,ImpDepLookup,3,FALSE)*Operations!$G33^0.5-VLOOKUP(Operations!$D33,ImpDepLookup,4,FALSE)*(Operations!$G33*Operations!$H33/Operations!$I33)^0.5)^2) -> 4414.125801 | Q33: =IF(Operations!$N33=0,0,Operations!$N33*(VLOOKUP(Operations!$D33,ImpDepLookup,2,FALSE)-VLOOKUP(Operations!$D33,ImpDepLookup,3,FALSE)*(Operations!$G33+1)^0.5-VLOOKUP(Operations!$D33,ImpDepLookup,4,FALSE)*(Operations!$G33*Operations!$H33/Operations!$I33)^0.5)^2) -> 4127.116735 | R33: =IF(Operations!$N33=0,0,IF(Operations!$I33*Operations!$H33=0,0,(Operations!$P33-Operations!$Q33)/(Operations!$H33))) -> 0.2296072527 | S33: =IF(Operations!$H33=0,0,Operations!$P33*'General Variables'!$B$9/Operations!$H33) -> 0.07062601282 | T33: =IF(Operations!$H33=0,0,Operations!$P33*'General Variables'!$B$10/Operations!$H33) -> 0.1059390192 | U33: =SUM(Table3[[#This Row],[Depreciation per Unit]:[Opportunity Cost per Unit]]) -> 0.4061722848 | W33: Stalk chopper | X33: MISCELLANEOUS | Y33: 0.28 | Z33: 1.4 | AA33: 1200
A34: Move Large Round | B34: ton | D34: Swathers and all other harvest equipment | E34: 12788 | G34: 5 | H34: 3000 | I34: 21 | J34: 1.1 | K34: Medium Tractor | L34: 4 | N34: =IF(Operations!$E34>1,Operations!$E34,IF(Operations!$D34=0,0,Operations!$F34/(VLOOKUP(Operations!$D34,ImpDepLookup,2,FALSE)-VLOOKUP(Operations!$D34,ImpDepLookup,3,FALSE)*Operations!$G34^0.5-VLOOKUP(Operations!$D34,ImpDepLookup,4,FALSE)*(Operations!$G34*(Operations!$G34*Operations!$H34/Operations!$I34)^0.5))^2)) -> 12788 | O34: =IF(Operations!$C34="",0,(((Operations!$G34+1)*Operations!$H34/Operations!$I34/1000)^VLOOKUP(Operations!$C34,ImpRepairFac[],4,FALSE)-(Operations!$G34*Operations!$H34/Operations!$I34/1000)^VLOOKUP(Operations!$C34,ImpRepairFac[],4,FALSE))*Operations!$N34*VLOOKUP(Operations!$C34,ImpRepairFac[],3,FALSE)/Operations!$H34) -> 0 | P34: =IF(Operations!$N34=0,0,Operations!$N34*(VLOOKUP(Operations!$D34,ImpDepLookup,2,FALSE)-VLOOKUP(Operations!$D34,ImpDepLookup,3,FALSE)*Operations!$G34^0.5-VLOOKUP(Operations!$D34,ImpDepLookup,4,FALSE)*(Operations!$G34*Operations!$H34/Operations!$I34)^0.5)^2) -> 4414.125801 | Q34: =IF(Operations!$N34=0,0,Operations!$N34*(VLOOKUP(Operations!$D34,ImpDepLookup,2,FALSE)-VLOOKUP(Operations!$D34,ImpDepLookup,3,FALSE)*(Operations!$G34+1)^0.5-VLOOKUP(Operations!$D34,ImpDepLookup,4,FALSE)*(Operations!$G34*Operations!$H34/Operations!$I34)^0.5)^2) -> 4127.116735 | R34: =IF(Operations!$N34=0,0,IF(Operations!$I34*Operations!$H34=0,0,(Operations!$P34-Operations!$Q34)/(Operations!$H34))) -> 0.09566968864 | S34: =IF(Operations!$H34=0,0,Operations!$P34*'General Variables'!$B$9/Operations!$H34) -> 0.02942750534 | T34: =IF(Operations!$H34=0,0,Operations!$P34*'General Variables'!$B$10/Operations!$H34) -> 0.04414125801 | U34: =SUM(Table3[[#This Row],[Depreciation per Unit]:[Opportunity Cost per Unit]]) -> 0.169238452 | W34: Sugar beet harvester | X34: HARVESTING | Y34: 0.59 | Z34: 1.3 | AA34: 1500
A35: Grass Drill | B35: acre | C35: Drill - Grain | D35: Planters | E35: 75005 | G35: 5 | H35: 1000 | I35: 12 | J35: 1.1 | K35: Medium Tractor | L35: 6.069948187 | N35: =IF(Operations!$E35>1,Operations!$E35,IF(Operations!$D35=0,0,Operations!$F35/(VLOOKUP(Operations!$D35,ImpDepLookup,2,FALSE)-VLOOKUP(Operations!$D35,ImpDepLookup,3,FALSE)*Operations!$G35^0.5-VLOOKUP(Operations!$D35,ImpDepLookup,4,FALSE)*(Operations!$G35*(Operations!$G35*Operations!$H35/Operations!$I35)^0.5))^2)) -> 75005 | O35: =IF(Operations!$C35="",0,(((Operations!$G35+1)*Operations!$H35/Operations!$I35/1000)^VLOOKUP(Operations!$C35,ImpRepairFac[],4,FALSE)-(Operations!$G35*Operations!$H35/Operations!$I35/1000)^VLOOKUP(Operations!$C35,ImpRepairFac[],4,FALSE))*Operations!$N35*VLOOKUP(Operations!$C35,ImpRepairFac[],3,FALSE)/Operations!$H35) -> 1.780916977 | P35: =IF(Operations!$N35=0,0,Operations!$N35*(VLOOKUP(Operations!$D35,ImpDepLookup,2,FALSE)-VLOOKUP(Operations!$D35,ImpDepLookup,3,FALSE)*Operations!$G35^0.5-VLOOKUP(Operations!$D35,ImpDepLookup,4,FALSE)*(Operations!$G35*Operations!$H35/Operations!$I35)^0.5)^2) -> 37659.64359 | Q35: =IF(Operations!$N35=0,0,Operations!$N35*(VLOOKUP(Operations!$D35,ImpDepLookup,2,FALSE)-VLOOKUP(Operations!$D35,ImpDepLookup,3,FALSE)*(Operations!$G35+1)^0.5-VLOOKUP(Operations!$D35,ImpDepLookup,4,FALSE)*(Operations!$G35*Operations!$H35/Operations!$I35)^0.5)^2) -> 35910.94542 | R35: =IF(Operations!$N35=0,0,IF(Operations!$I35*Operations!$H35=0,0,(Operations!$P35-Operations!$Q35)/(Operations!$H35))) -> 1.748698171 | S35: =IF(Operations!$H35=0,0,Operations!$P35*'General Variables'!$B$9/Operations!$H35) -> 0.7531928719 | T35: =IF(Operations!$H35=0,0,Operations!$P35*'General Variables'!$B$10/Operations!$H35) -> 1.129789308 | U35: =SUM(Table3[[#This Row],[Depreciation per Unit]:[Opportunity Cost per Unit]]) -> 3.631680351 | W35: Wagon | X35: MISCELLANEOUS | Y35: 0.19 | Z35: 1.3 | AA35: 3000
A36: Pickett Windrowers | B36: acre | C36: Bean puller-windrower | D36: Swathers and all other harvest equipment | E36: 54000 | G36: 5 | H36: 1000 | I36: 10 | J36: 1.1 | K36: Medium Tractor | L36: 6.073404255 | N36: =IF(Operations!$E36>1,Operations!$E36,IF(Operations!$D36=0,0,Operations!$F36/(VLOOKUP(Operations!$D36,ImpDepLookup,2,FALSE)-VLOOKUP(Operations!$D36,ImpDepLookup,3,FALSE)*Operations!$G36^0.5-VLOOKUP(Operations!$D36,ImpDepLookup,4,FALSE)*(Operations!$G36*(Operations!$G36*Operations!$H36/Operations!$I36)^0.5))^2)) -> 54000 | O36: =IF(Operations!$C36="",0,(((Operations!$G36+1)*Operations!$H36/Operations!$I36/1000)^VLOOKUP(Operations!$C36,ImpRepairFac[],4,FALSE)-(Operations!$G36*Operations!$H36/Operations!$I36/1000)^VLOOKUP(Operations!$C36,ImpRepairFac[],4,FALSE))*Operations!$N36*VLOOKUP(Operations!$C36,ImpRepairFac[],3,FALSE)/Operations!$H36) -> 1.206750701 | P36: =IF(Operations!$N36=0,0,Operations!$N36*(VLOOKUP(Operations!$D36,ImpDepLookup,2,FALSE)-VLOOKUP(Operations!$D36,ImpDepLookup,3,FALSE)*Operations!$G36^0.5-VLOOKUP(Operations!$D36,ImpDepLookup,4,FALSE)*(Operations!$G36*Operations!$H36/Operations!$I36)^0.5)^2) -> 18639.56782 | Q36: =IF(Operations!$N36=0,0,Operations!$N36*(VLOOKUP(Operations!$D36,ImpDepLookup,2,FALSE)-VLOOKUP(Operations!$D36,ImpDepLookup,3,FALSE)*(Operations!$G36+1)^0.5-VLOOKUP(Operations!$D36,ImpDepLookup,4,FALSE)*(Operations!$G36*Operations!$H36/Operations!$I36)^0.5)^2) -> 17427.61211 | R36: =IF(Operations!$N36=0,0,IF(Operations!$I36*Operations!$H36=0,0,(Operations!$P36-Operations!$Q36)/(Operations!$H36))) -> 1.211955705 | S36: =IF(Operations!$H36=0,0,Operations!$P36*'General Variables'!$B$9/Operations!$H36) -> 0.3727913564 | T36: =IF(Operations!$H36=0,0,Operations!$P36*'General Variables'!$B$10/Operations!$H36) -> 0.5591870346 | U36: =SUM(Table3[[#This Row],[Depreciation per Unit]:[Opportunity Cost per Unit]]) -> 2.143934096 | W36: Wagon - Forage | X36: MISCELLANEOUS | Y36: 0.16 | Z36: 1.6 | AA36: 2000
A37: Pipe D 125' Lift | B37: acre-inch | C37: Hand move lateral | D37: Manure spreaders and all other miscellaneous equipment | E37: 15750 | F37: 15750 | G37: 10 | H37: 2600 | I37: 2.25 | J37: =5/24 -> 0.2083333333 | K37: Diesel Pump for Pipe | L37: 3.03 | N37: =IF(Operations!$E37>1,Operations!$E37,IF(Operations!$D37=0,0,Operations!$F37/(VLOOKUP(Operations!$D37,ImpDepLookup,2,FALSE)-VLOOKUP(Operations!$D37,ImpDepLookup,3,FALSE)*Operations!$G37^0.5-VLOOKUP(Operations!$D37,ImpDepLookup,4,FALSE)*(Operations!$G37*(Operations!$G37*Operations!$H37/Operations!$I37)^0.5))^2)) -> 15750 | O37: =IF(Operations!$C37="",0,(((Operations!$G37+1)*Operations!$H37/Operations!$I37/1000)^VLOOKUP(Operations!$C37,ImpRepairFac[],4,FALSE)-(Operations!$G37*Operations!$H37/Operations!$I37/1000)^VLOOKUP(Operations!$C37,ImpRepairFac[],4,FALSE))*Operations!$N37*VLOOKUP(Operations!$C37,ImpRepairFac[],3,FALSE)/Operations!$H37) -> 0.14 | P37: =IF(Operations!$N37=0,0,Operations!$N37*(VLOOKUP(Operations!$D37,ImpDepLookup,2,FALSE)-VLOOKUP(Operations!$D37,ImpDepLookup,3,FALSE)*Operations!$G37^0.5-VLOOKUP(Operations!$D37,ImpDepLookup,4,FALSE)*(Operations!$G37*Operations!$H37/Operations!$I37)^0.5)^2) -> 5519.56893 | Q37: =IF(Operations!$N37=0,0,Operations!$N37*(VLOOKUP(Operations!$D37,ImpDepLookup,2,FALSE)-VLOOKUP(Operations!$D37,ImpDepLookup,3,FALSE)*(Operations!$G37+1)^0.5-VLOOKUP(Operations!$D37,ImpDepLookup,4,FALSE)*(Operations!$G37*Operations!$H37/Operations!$I37)^0.5)^2) -> 5204.7114 | R37: =IF(Operations!$N37=0,0,IF(Operations!$I37*Operations!$H37=0,0,(Operations!$P37-Operations!$Q37)/(Operations!$H37))) -> 0.1210990502 | S37: =IF(Operations!$H37=0,0,Operations!$P37*'General Variables'!$B$9/Operations!$H37) -> 0.04245822254 | T37: =IF(Operations!$H37=0,0,Operations!$P37*'General Variables'!$B$10/Operations!$H37) -> 0.06368733381 | U37: =SUM(Table3[[#This Row],[Depreciation per Unit]:[Opportunity Cost per Unit]]) -> 0.2272446065 | W37: Hand move lateral | X37: See Table 5-5* | Y37: 0.02 | Z37: 1
A38: Pivot D 125' Lift | B38: acre-inch | C38: Center Pivot | D38: Pivots | E38: 115000 | G38: 10 | H38: =130*20 -> 2600 | I38: 1.8 | J38: =1.5/24 -> 0.0625 | K38: Diesel Pump | L38: 3.34 | N38: =IF(Operations!$E38>1,Operations!$E38,IF(Operations!$D38=0,0,Operations!$F38/(VLOOKUP(Operations!$D38,ImpDepLookup,2,FALSE)-VLOOKUP(Operations!$D38,ImpDepLookup,3,FALSE)*Operations!$G38^0.5-VLOOKUP(Operations!$D38,ImpDepLookup,4,FALSE)*(Operations!$G38*(Operations!$G38*Operations!$H38/Operations!$I38)^0.5))^2)) -> 115000 | O38: =IF(Operations!$C38="",0,(((Operations!$G38+1)*Operations!$H38/Operations!$I38/1000)^VLOOKUP(Operations!$C38,ImpRepairFac[],4,FALSE)-(Operations!$G38*Operations!$H38/Operations!$I38/1000)^VLOOKUP(Operations!$C38,ImpRepairFac[],4,FALSE))*Operations!$N38*VLOOKUP(Operations!$C38,ImpRepairFac[],3,FALSE)/Operations!$H38) -> 2.651388889 | P38: =IF(Operations!$N38=0,0,Operations!$N38*(VLOOKUP(Operations!$D38,ImpDepLookup,2,FALSE)-VLOOKUP(Operations!$D38,ImpDepLookup,3,FALSE)*Operations!$G38^0.5-VLOOKUP(Operations!$D38,ImpDepLookup,4,FALSE)*(Operations!$G38*Operations!$H38/Operations!$I38)^0.5)^2) -> 33926.3033 | Q38: =IF(Operations!$N38=0,0,Operations!$N38*(VLOOKUP(Operations!$D38,ImpDepLookup,2,FALSE)-VLOOKUP(Operations!$D38,ImpDepLookup,3,FALSE)*(Operations!$G38+1)^0.5-VLOOKUP(Operations!$D38,ImpDepLookup,4,FALSE)*(Operations!$G38*Operations!$H38/Operations!$I38)^0.5)^2) -> 31838.46399 | R38: =IF(Operations!$N38=0,0,IF(Operations!$I38*Operations!$H38=0,0,(Operations!$P38-Operations!$Q38)/(Operations!$H38))) -> 0.8030151203 | S38: =IF(Operations!$H38=0,0,Operations!$P38*'General Variables'!$B$9/Operations!$H38) -> 0.2609715639 | T38: =IF(Operations!$H38=0,0,Operations!$P38*'General Variables'!$B$10/Operations!$H38) -> 0.3914573458 | U38: =SUM(Table3[[#This Row],[Depreciation per Unit]:[Opportunity Cost per Unit]]) -> 1.45544403 | W38: End tow lateral | X38: See Table 5-5* | Y38: 0.03 | Z38: 1
A39: Pivot D 125' Lift w/fertigation | B39: acre-inch | C39: Center Pivot | D39: Pivots | E39: 125000 | G39: 10 | H39: =130*20 -> 2600 | I39: 1.8 | J39: =2/24 -> 0.08333333333 | K39: Diesel Pump | L39: 3.34 | N39: =IF(Operations!$E39>1,Operations!$E39,IF(Operations!$D39=0,0,Operations!$F39/(VLOOKUP(Operations!$D39,ImpDepLookup,2,FALSE)-VLOOKUP(Operations!$D39,ImpDepLookup,3,FALSE)*Operations!$G39^0.5-VLOOKUP(Operations!$D39,ImpDepLookup,4,FALSE)*(Operations!$G39*(Operations!$G39*Operations!$H39/Operations!$I39)^0.5))^2)) -> 125000 | O39: =IF(Operations!$C39="",0,(((Operations!$G39+1)*Operations!$H39/Operations!$I39/1000)^VLOOKUP(Operations!$C39,ImpRepairFac[],4,FALSE)-(Operations!$G39*Operations!$H39/Operations!$I39/1000)^VLOOKUP(Operations!$C39,ImpRepairFac[],4,FALSE))*Operations!$N39*VLOOKUP(Operations!$C39,ImpRepairFac[],3,FALSE)/Operations!$H39) -> 2.881944444 | P39: =IF(Operations!$N39=0,0,Operations!$N39*(VLOOKUP(Operations!$D39,ImpDepLookup,2,FALSE)-VLOOKUP(Operations!$D39,ImpDepLookup,3,FALSE)*Operations!$G39^0.5-VLOOKUP(Operations!$D39,ImpDepLookup,4,FALSE)*(Operations!$G39*Operations!$H39/Operations!$I39)^0.5)^2) -> 36876.41663 | Q39: =IF(Operations!$N39=0,0,Operations!$N39*(VLOOKUP(Operations!$D39,ImpDepLookup,2,FALSE)-VLOOKUP(Operations!$D39,ImpDepLookup,3,FALSE)*(Operations!$G39+1)^0.5-VLOOKUP(Operations!$D39,ImpDepLookup,4,FALSE)*(Operations!$G39*Operations!$H39/Operations!$I39)^0.5)^2) -> 34607.02607 | R39: =IF(Operations!$N39=0,0,IF(Operations!$I39*Operations!$H39=0,0,(Operations!$P39-Operations!$Q39)/(Operations!$H39))) -> 0.8728425221 | S39: =IF(Operations!$H39=0,0,Operations!$P39*'General Variables'!$B$9/Operations!$H39) -> 0.2836647433 | T39: =IF(Operations!$H39=0,0,Operations!$P39*'General Variables'!$B$10/Operations!$H39) -> 0.425497115 | U39: =SUM(Table3[[#This Row],[Depreciation per Unit]:[Opportunity Cost per Unit]]) -> 1.58200438 | W39: Side roll lateral | X39: See Table 5-5* | Y39: 0.02 | Z39: 1
A40: Pivot E 125' Lift | B40: acre-inch | C40: Center Pivot | D40: Pivots | E40: 115000 | G40: 10 | H40: =130*20 -> 2600 | I40: 1.8 | J40: =1.5/24 -> 0.0625 | K40: Electric Pump | M40: 47.78 | N40: =IF(Operations!$E40>1,Operations!$E40,IF(Operations!$D40=0,0,Operations!$F40/(VLOOKUP(Operations!$D40,ImpDepLookup,2,FALSE)-VLOOKUP(Operations!$D40,ImpDepLookup,3,FALSE)*Operations!$G40^0.5-VLOOKUP(Operations!$D40,ImpDepLookup,4,FALSE)*(Operations!$G40*(Operations!$G40*Operations!$H40/Operations!$I40)^0.5))^2)) -> 115000 | O40: =IF(Operations!$C40="",0,(((Operations!$G40+1)*Operations!$H40/Operations!$I40/1000)^VLOOKUP(Operations!$C40,ImpRepairFac[],4,FALSE)-(Operations!$G40*Operations!$H40/Operations!$I40/1000)^VLOOKUP(Operations!$C40,ImpRepairFac[],4,FALSE))*Operations!$N40*VLOOKUP(Operations!$C40,ImpRepairFac[],3,FALSE)/Operations!$H40) -> 2.651388889 | P40: =IF(Operations!$N40=0,0,Operations!$N40*(VLOOKUP(Operations!$D40,ImpDepLookup,2,FALSE)-VLOOKUP(Operations!$D40,ImpDepLookup,3,FALSE)*Operations!$G40^0.5-VLOOKUP(Operations!$D40,ImpDepLookup,4,FALSE)*(Operations!$G40*Operations!$H40/Operations!$I40)^0.5)^2) -> 33926.3033 | Q40: =IF(Operations!$N40=0,0,Operations!$N40*(VLOOKUP(Operations!$D40,ImpDepLookup,2,FALSE)-VLOOKUP(Operations!$D40,ImpDepLookup,3,FALSE)*(Operations!$G40+1)^0.5-VLOOKUP(Operations!$D40,ImpDepLookup,4,FALSE)*(Operations!$G40*Operations!$H40/Operations!$I40)^0.5)^2) -> 31838.46399 | R40: =IF(Operations!$N40=0,0,IF(Operations!$I40*Operations!$H40=0,0,(Operations!$P40-Operations!$Q40)/(Operations!$H40))) -> 0.8030151203 | S40: =IF(Operations!$H40=0,0,Operations!$P40*'General Variables'!$B$9/Operations!$H40) -> 0.2609715639 | T40: =IF(Operations!$H40=0,0,Operations!$P40*'General Variables'!$B$10/Operations!$H40) -> 0.3914573458 | U40: =SUM(Table3[[#This Row],[Depreciation per Unit]:[Opportunity Cost per Unit]]) -> 1.45544403 | W40: Lateral | X40: See Table 5-5* | Y40: 0.06 | Z40: 1
A41: Pivot E 125' Lift w/fertigation | B41: acre-inch | C41: Center Pivot | D41: Pivots | E41: 125000 | G41: 10 | H41: =130*20 -> 2600 | I41: 1.8 | J41: =2/24 -> 0.08333333333 | K41: Electric Pump | M41: 47.78 | N41: =IF(Operations!$E41>1,Operations!$E41,IF(Operations!$D41=0,0,Operations!$F41/(VLOOKUP(Operations!$D41,ImpDepLookup,2,FALSE)-VLOOKUP(Operations!$D41,ImpDepLookup,3,FALSE)*Operations!$G41^0.5-VLOOKUP(Operations!$D41,ImpDepLookup,4,FALSE)*(Operations!$G41*(Operations!$G41*Operations!$H41/Operations!$I41)^0.5))^2)) -> 125000 | O41: =IF(Operations!$C41="",0,(((Operations!$G41+1)*Operations!$H41/Operations!$I41/1000)^VLOOKUP(Operations!$C41,ImpRepairFac[],4,FALSE)-(Operations!$G41*Operations!$H41/Operations!$I41/1000)^VLOOKUP(Operations!$C41,ImpRepairFac[],4,FALSE))*Operations!$N41*VLOOKUP(Operations!$C41,ImpRepairFac[],3,FALSE)/Operations!$H41) -> 2.881944444 | P41: =IF(Operations!$N41=0,0,Operations!$N41*(VLOOKUP(Operations!$D41,ImpDepLookup,2,FALSE)-VLOOKUP(Operations!$D41,ImpDepLookup,3,FALSE)*Operations!$G41^0.5-VLOOKUP(Operations!$D41,ImpDepLookup,4,FALSE)*(Operations!$G41*Operations!$H41/Operations!$I41)^0.5)^2) -> 36876.41663 | Q41: =IF(Operations!$N41=0,0,Operations!$N41*(VLOOKUP(Operations!$D41,ImpDepLookup,2,FALSE)-VLOOKUP(Operations!$D41,ImpDepLookup,3,FALSE)*(Operations!$G41+1)^0.5-VLOOKUP(Operations!$D41,ImpDepLookup,4,FALSE)*(Operations!$G41*Operations!$H41/Operations!$I41)^0.5)^2) -> 34607.02607 | R41: =IF(Operations!$N41=0,0,IF(Operations!$I41*Operations!$H41=0,0,(Operations!$P41-Operations!$Q41)/(Operations!$H41))) -> 0.8728425221 | S41: =IF(Operations!$H41=0,0,Operations!$P41*'General Variables'!$B$9/Operations!$H41) -> 0.2836647433 | T41: =IF(Operations!$H41=0,0,Operations!$P41*'General Variables'!$B$10/Operations!$H41) -> 0.425497115 | U41: =SUM(Table3[[#This Row],[Depreciation per Unit]:[Opportunity Cost per Unit]]) -> 1.58200438 | W41: Traveling gun | X41: See Table 5-5* | Y41: 0.06 | Z41: 1
A42: Plant | B42: acre | C42: Planter - Row crop | D42: Planters | E42: 188388 | G42: 5 | H42: 1000 | I42: 10 | J42: 1.2 | K42: Medium Tractor | L42: 2.73 | N42: =IF(Operations!$E42>1,Operations!$E42,IF(Operations!$D42=0,0,Operations!$F42/(VLOOKUP(Operations!$D42,ImpDepLookup,2,FALSE)-VLOOKUP(Operations!$D42,ImpDepLookup,3,FALSE)*Operations!$G42^0.5-VLOOKUP(Operations!$D42,ImpDepLookup,4,FALSE)*(Operations!$G42*(Operations!$G42*Operations!$H42/Operations!$I42)^0.5))^2)) -> 188388 | O42: =IF(Operations!$C42="",0,(((Operations!$G42+1)*Operations!$H42/Operations!$I42/1000)^VLOOKUP(Operations!$C42,ImpRepairFac[],4,FALSE)-(Operations!$G42*Operations!$H42/Operations!$I42/1000)^VLOOKUP(Operations!$C42,ImpRepairFac[],4,FALSE))*Operations!$N42*VLOOKUP(Operations!$C42,ImpRepairFac[],3,FALSE)/Operations!$H42) -> 6.559750341 | P42: =IF(Operations!$N42=0,0,Operations!$N42*(VLOOKUP(Operations!$D42,ImpDepLookup,2,FALSE)-VLOOKUP(Operations!$D42,ImpDepLookup,3,FALSE)*Operations!$G42^0.5-VLOOKUP(Operations!$D42,ImpDepLookup,4,FALSE)*(Operations!$G42*Operations!$H42/Operations!$I42)^0.5)^2) -> 94588.69325 | Q42: =IF(Operations!$N42=0,0,Operations!$N42*(VLOOKUP(Operations!$D42,ImpDepLookup,2,FALSE)-VLOOKUP(Operations!$D42,ImpDepLookup,3,FALSE)*(Operations!$G42+1)^0.5-VLOOKUP(Operations!$D42,ImpDepLookup,4,FALSE)*(Operations!$G42*Operations!$H42/Operations!$I42)^0.5)^2) -> 90196.53605 | R42: =IF(Operations!$N42=0,0,IF(Operations!$I42*Operations!$H42=0,0,(Operations!$P42-Operations!$Q42)/(Operations!$H42))) -> 4.392157204 | S42: =IF(Operations!$H42=0,0,Operations!$P42*'General Variables'!$B$9/Operations!$H42) -> 1.891773865 | T42: =IF(Operations!$H42=0,0,Operations!$P42*'General Variables'!$B$10/Operations!$H42) -> 2.837660798 | U42: =SUM(Table3[[#This Row],[Depreciation per Unit]:[Opportunity Cost per Unit]]) -> 9.121591867 | W42: Center Pivot | X42: See Table 5-5* | Y42: 0.0415 | Z42: 1
A43: Plant Narrow Row | B43: acre | C43: Planter - Row crop | D43: Planters | E43: 188388 | G43: 5 | H43: 1500 | I43: 10 | J43: 1.2 | K43: Medium Tractor | L43: 2.580373832 | N43: =IF(Operations!$E43>1,Operations!$E43,IF(Operations!$D43=0,0,Operations!$F43/(VLOOKUP(Operations!$D43,ImpDepLookup,2,FALSE)-VLOOKUP(Operations!$D43,ImpDepLookup,3,FALSE)*Operations!$G43^0.5-VLOOKUP(Operations!$D43,ImpDepLookup,4,FALSE)*(Operations!$G43*(Operations!$G43*Operations!$H43/Operations!$I43)^0.5))^2)) -> 188388 | O43: =IF(Operations!$C43="",0,(((Operations!$G43+1)*Operations!$H43/Operations!$I43/1000)^VLOOKUP(Operations!$C43,ImpRepairFac[],4,FALSE)-(Operations!$G43*Operations!$H43/Operations!$I43/1000)^VLOOKUP(Operations!$C43,ImpRepairFac[],4,FALSE))*Operations!$N43*VLOOKUP(Operations!$C43,ImpRepairFac[],3,FALSE)/Operations!$H43) -> 10.2467867 | P43: =IF(Operations!$N43=0,0,Operations!$N43*(VLOOKUP(Operations!$D43,ImpDepLookup,2,FALSE)-VLOOKUP(Operations!$D43,ImpDepLookup,3,FALSE)*Operations!$G43^0.5-VLOOKUP(Operations!$D43,ImpDepLookup,4,FALSE)*(Operations!$G43*Operations!$H43/Operations!$I43)^0.5)^2) -> 94588.69325 | Q43: =IF(Operations!$N43=0,0,Operations!$N43*(VLOOKUP(Operations!$D43,ImpDepLookup,2,FALSE)-VLOOKUP(Operations!$D43,ImpDepLookup,3,FALSE)*(Operations!$G43+1)^0.5-VLOOKUP(Operations!$D43,ImpDepLookup,4,FALSE)*(Operations!$G43*Operations!$H43/Operations!$I43)^0.5)^2) -> 90196.53605 | R43: =IF(Operations!$N43=0,0,IF(Operations!$I43*Operations!$H43=0,0,(Operations!$P43-Operations!$Q43)/(Operations!$H43))) -> 2.928104803 | S43: =IF(Operations!$H43=0,0,Operations!$P43*'General Variables'!$B$9/Operations!$H43) -> 1.261182577 | T43: =IF(Operations!$H43=0,0,Operations!$P43*'General Variables'!$B$10/Operations!$H43) -> 1.891773865 | U43: =SUM(Table3[[#This Row],[Depreciation per Unit]:[Opportunity Cost per Unit]]) -> 6.081061245 | W43: Center Pivot w/corner | X43: See Table 5-5* | Y43: 0.06 | Z43: 1
A44: Plant No-Till | B44: acre | C44: Planter - Row crop | D44: Planters | E44: 188388 | G44: 5 | H44: 1000 | I44: 10 | J44: 1.2 | K44: Medium Tractor | L44: 3.38 | N44: =IF(Operations!$E44>1,Operations!$E44,IF(Operations!$D44=0,0,Operations!$F44/(VLOOKUP(Operations!$D44,ImpDepLookup,2,FALSE)-VLOOKUP(Operations!$D44,ImpDepLookup,3,FALSE)*Operations!$G44^0.5-VLOOKUP(Operations!$D44,ImpDepLookup,4,FALSE)*(Operations!$G44*(Operations!$G44*Operations!$H44/Operations!$I44)^0.5))^2)) -> 188388 | O44: =IF(Operations!$C44="",0,(((Operations!$G44+1)*Operations!$H44/Operations!$I44/1000)^VLOOKUP(Operations!$C44,ImpRepairFac[],4,FALSE)-(Operations!$G44*Operations!$H44/Operations!$I44/1000)^VLOOKUP(Operations!$C44,ImpRepairFac[],4,FALSE))*Operations!$N44*VLOOKUP(Operations!$C44,ImpRepairFac[],3,FALSE)/Operations!$H44) -> 6.559750341 | P44: =IF(Operations!$N44=0,0,Operations!$N44*(VLOOKUP(Operations!$D44,ImpDepLookup,2,FALSE)-VLOOKUP(Operations!$D44,ImpDepLookup,3,FALSE)*Operations!$G44^0.5-VLOOKUP(Operations!$D44,ImpDepLookup,4,FALSE)*(Operations!$G44*Operations!$H44/Operations!$I44)^0.5)^2) -> 94588.69325 | Q44: =IF(Operations!$N44=0,0,Operations!$N44*(VLOOKUP(Operations!$D44,ImpDepLookup,2,FALSE)-VLOOKUP(Operations!$D44,ImpDepLookup,3,FALSE)*(Operations!$G44+1)^0.5-VLOOKUP(Operations!$D44,ImpDepLookup,4,FALSE)*(Operations!$G44*Operations!$H44/Operations!$I44)^0.5)^2) -> 90196.53605 | R44: =IF(Operations!$N44=0,0,IF(Operations!$I44*Operations!$H44=0,0,(Operations!$P44-Operations!$Q44)/(Operations!$H44))) -> 4.392157204 | S44: =IF(Operations!$H44=0,0,Operations!$P44*'General Variables'!$B$9/Operations!$H44) -> 1.891773865 | T44: =IF(Operations!$H44=0,0,Operations!$P44*'General Variables'!$B$10/Operations!$H44) -> 2.837660798 | U44: =SUM(Table3[[#This Row],[Depreciation per Unit]:[Opportunity Cost per Unit]]) -> 9.121591867 | W44: Linear move with ditch | X44: See Table 5-5* | Y44: 0.06 | Z44: 1
A45: Plow | B45: acre | C45: Plow - Moldboard | D45: Plows | E45: 34500 | G45: 5 | H45: 1000 | I45: 6.4 | J45: 1.1 | K45: Large Tractor | L45: 6 | N45: =IF(Operations!$E45>1,Operations!$E45,IF(Operations!$D45=0,0,Operations!$F45/(VLOOKUP(Operations!$D45,ImpDepLookup,2,FALSE)-VLOOKUP(Operations!$D45,ImpDepLookup,3,FALSE)*Operations!$G45^0.5-VLOOKUP(Operations!$D45,ImpDepLookup,4,FALSE)*(Operations!$G45*(Operations!$G45*Operations!$H45/Operations!$I45)^0.5))^2)) -> 34500 | O45: =IF(Operations!$C45="",0,(((Operations!$G45+1)*Operations!$H45/Operations!$I45/1000)^VLOOKUP(Operations!$C45,ImpRepairFac[],4,FALSE)-(Operations!$G45*Operations!$H45/Operations!$I45/1000)^VLOOKUP(Operations!$C45,ImpRepairFac[],4,FALSE))*Operations!$N45*VLOOKUP(Operations!$C45,ImpRepairFac[],3,FALSE)/Operations!$H45) -> 2.492068461 | P45: =IF(Operations!$N45=0,0,Operations!$N45*(VLOOKUP(Operations!$D45,ImpDepLookup,2,FALSE)-VLOOKUP(Operations!$D45,ImpDepLookup,3,FALSE)*Operations!$G45^0.5-VLOOKUP(Operations!$D45,ImpDepLookup,4,FALSE)*(Operations!$G45*Operations!$H45/Operations!$I45)^0.5)^2) -> 13431.77277 | Q45: =IF(Operations!$N45=0,0,Operations!$N45*(VLOOKUP(Operations!$D45,ImpDepLookup,2,FALSE)-VLOOKUP(Operations!$D45,ImpDepLookup,3,FALSE)*(Operations!$G45+1)^0.5-VLOOKUP(Operations!$D45,ImpDepLookup,4,FALSE)*(Operations!$G45*Operations!$H45/Operations!$I45)^0.5)^2) -> 12967.24625 | R45: =IF(Operations!$N45=0,0,IF(Operations!$I45*Operations!$H45=0,0,(Operations!$P45-Operations!$Q45)/(Operations!$H45))) -> 0.4645265197 | S45: =IF(Operations!$H45=0,0,Operations!$P45*'General Variables'!$B$9/Operations!$H45) -> 0.2686354554 | T45: =IF(Operations!$H45=0,0,Operations!$P45*'General Variables'!$B$10/Operations!$H45) -> 0.4029531831 | U45: =SUM(Table3[[#This Row],[Depreciation per Unit]:[Opportunity Cost per Unit]]) -> 1.136115158 | W45: Linear move with pipe | X45: See Table 5-5* | Y45: 0.06 | Z45: 1
A46: Ridge Cultivate/Ditch | B46: acre | C46: Cultivator - Row crop | D46: Disks and all other tillage equipment | E46: 102441 | G46: 5 | H46: 1000 | I46: 10 | J46: 1.1 | K46: Large Tractor | L46: 5.332019704 | N46: =IF(Operations!$E46>1,Operations!$E46,IF(Operations!$D46=0,0,Operations!$F46/(VLOOKUP(Operations!$D46,ImpDepLookup,2,FALSE)-VLOOKUP(Operations!$D46,ImpDepLookup,3,FALSE)*Operations!$G46^0.5-VLOOKUP(Operations!$D46,ImpDepLookup,4,FALSE)*(Operations!$G46*(Operations!$G46*Operations!$H46/Operations!$I46)^0.5))^2)) -> 102441 | O46: =IF(Operations!$C46="",0,(((Operations!$G46+1)*Operations!$H46/Operations!$I46/1000)^VLOOKUP(Operations!$C46,ImpRepairFac[],4,FALSE)-(Operations!$G46*Operations!$H46/Operations!$I46/1000)^VLOOKUP(Operations!$C46,ImpRepairFac[],4,FALSE))*Operations!$N46*VLOOKUP(Operations!$C46,ImpRepairFac[],3,FALSE)/Operations!$H46) -> 1.870355965 | P46: =IF(Operations!$N46=0,0,Operations!$N46*(VLOOKUP(Operations!$D46,ImpDepLookup,2,FALSE)-VLOOKUP(Operations!$D46,ImpDepLookup,3,FALSE)*Operations!$G46^0.5-VLOOKUP(Operations!$D46,ImpDepLookup,4,FALSE)*(Operations!$G46*Operations!$H46/Operations!$I46)^0.5)^2) -> 42622.31494 | Q46: =IF(Operations!$N46=0,0,Operations!$N46*(VLOOKUP(Operations!$D46,ImpDepLookup,2,FALSE)-VLOOKUP(Operations!$D46,ImpDepLookup,3,FALSE)*(Operations!$G46+1)^0.5-VLOOKUP(Operations!$D46,ImpDepLookup,4,FALSE)*(Operations!$G46*Operations!$H46/Operations!$I46)^0.5)^2) -> 39576.23852 | R46: =IF(Operations!$N46=0,0,IF(Operations!$I46*Operations!$H46=0,0,(Operations!$P46-Operations!$Q46)/(Operations!$H46))) -> 3.046076418 | S46: =IF(Operations!$H46=0,0,Operations!$P46*'General Variables'!$B$9/Operations!$H46) -> 0.8524462988 | T46: =IF(Operations!$H46=0,0,Operations!$P46*'General Variables'!$B$10/Operations!$H46) -> 1.278669448 | U46: =SUM(Table3[[#This Row],[Depreciation per Unit]:[Opportunity Cost per Unit]]) -> 5.177192165 | W46: Portable solid set | X46: See Table 5-5* | Y46: 0.02 | Z46: 1
A47: Ridge Cultivation | B47: acre | C47: Cultivator - Row crop | D47: Disks and all other tillage equipment | E47: 102441 | G47: 5 | H47: 1000 | I47: 10 | J47: 1 | K47: Large Tractor | L47: 5.332019704 | N47: =IF(Operations!$E47>1,Operations!$E47,IF(Operations!$D47=0,0,Operations!$F47/(VLOOKUP(Operations!$D47,ImpDepLookup,2,FALSE)-VLOOKUP(Operations!$D47,ImpDepLookup,3,FALSE)*Operations!$G47^0.5-VLOOKUP(Operations!$D47,ImpDepLookup,4,FALSE)*(Operations!$G47*(Operations!$G47*Operations!$H47/Operations!$I47)^0.5))^2)) -> 102441 | O47: =IF(Operations!$C47="",0,(((Operations!$G47+1)*Operations!$H47/Operations!$I47/1000)^VLOOKUP(Operations!$C47,ImpRepairFac[],4,FALSE)-(Operations!$G47*Operations!$H47/Operations!$I47/1000)^VLOOKUP(Operations!$C47,ImpRepairFac[],4,FALSE))*Operations!$N47*VLOOKUP(Operations!$C47,ImpRepairFac[],3,FALSE)/Operations!$H47) -> 1.870355965 | P47: =IF(Operations!$N47=0,0,Operations!$N47*(VLOOKUP(Operations!$D47,ImpDepLookup,2,FALSE)-VLOOKUP(Operations!$D47,ImpDepLookup,3,FALSE)*Operations!$G47^0.5-VLOOKUP(Operations!$D47,ImpDepLookup,4,FALSE)*(Operations!$G47*Operations!$H47/Operations!$I47)^0.5)^2) -> 42622.31494 | Q47: =IF(Operations!$N47=0,0,Operations!$N47*(VLOOKUP(Operations!$D47,ImpDepLookup,2,FALSE)-VLOOKUP(Operations!$D47,ImpDepLookup,3,FALSE)*(Operations!$G47+1)^0.5-VLOOKUP(Operations!$D47,ImpDepLookup,4,FALSE)*(Operations!$G47*Operations!$H47/Operations!$I47)^0.5)^2) -> 39576.23852 | R47: =IF(Operations!$N47=0,0,IF(Operations!$I47*Operations!$H47=0,0,(Operations!$P47-Operations!$Q47)/(Operations!$H47))) -> 3.046076418 | S47: =IF(Operations!$H47=0,0,Operations!$P47*'General Variables'!$B$9/Operations!$H47) -> 0.8524462988 | T47: =IF(Operations!$H47=0,0,Operations!$P47*'General Variables'!$B$10/Operations!$H47) -> 1.278669448 | U47: =SUM(Table3[[#This Row],[Depreciation per Unit]:[Opportunity Cost per Unit]]) -> 5.177192165 | W47: Permanent solid set | X47: See Table 5-5* | Y47: 0.01 | Z47: 1
A48: Ridge Plant and Band Herbicide | B48: acre | C48: Planter - Row crop | D48: Disks and all other tillage equipment | E48: 126282 | G48: 5 | H48: 1500 | I48: 10 | J48: 1.2 | K48: Large Tractor | L48: 3.41 | N48: =IF(Operations!$E48>1,Operations!$E48,IF(Operations!$D48=0,0,Operations!$F48/(VLOOKUP(Operations!$D48,ImpDepLookup,2,FALSE)-VLOOKUP(Operations!$D48,ImpDepLookup,3,FALSE)*Operations!$G48^0.5-VLOOKUP(Operations!$D48,ImpDepLookup,4,FALSE)*(Operations!$G48*(Operations!$G48*Operations!$H48/Operations!$I48)^0.5))^2)) -> 126282 | O48: =IF(Operations!$C48="",0,(((Operations!$G48+1)*Operations!$H48/Operations!$I48/1000)^VLOOKUP(Operations!$C48,ImpRepairFac[],4,FALSE)-(Operations!$G48*Operations!$H48/Operations!$I48/1000)^VLOOKUP(Operations!$C48,ImpRepairFac[],4,FALSE))*Operations!$N48*VLOOKUP(Operations!$C48,ImpRepairFac[],3,FALSE)/Operations!$H48) -> 6.868721562 | P48: =IF(Operations!$N48=0,0,Operations!$N48*(VLOOKUP(Operations!$D48,ImpDepLookup,2,FALSE)-VLOOKUP(Operations!$D48,ImpDepLookup,3,FALSE)*Operations!$G48^0.5-VLOOKUP(Operations!$D48,ImpDepLookup,4,FALSE)*(Operations!$G48*Operations!$H48/Operations!$I48)^0.5)^2) -> 52541.76722 | Q48: =IF(Operations!$N48=0,0,Operations!$N48*(VLOOKUP(Operations!$D48,ImpDepLookup,2,FALSE)-VLOOKUP(Operations!$D48,ImpDepLookup,3,FALSE)*(Operations!$G48+1)^0.5-VLOOKUP(Operations!$D48,ImpDepLookup,4,FALSE)*(Operations!$G48*Operations!$H48/Operations!$I48)^0.5)^2) -> 48786.78023 | R48: =IF(Operations!$N48=0,0,IF(Operations!$I48*Operations!$H48=0,0,(Operations!$P48-Operations!$Q48)/(Operations!$H48))) -> 2.50332466 | S48: =IF(Operations!$H48=0,0,Operations!$P48*'General Variables'!$B$9/Operations!$H48) -> 0.7005568962 | T48: =IF(Operations!$H48=0,0,Operations!$P48*'General Variables'!$B$10/Operations!$H48) -> 1.050835344 | U48: =SUM(Table3[[#This Row],[Depreciation per Unit]:[Opportunity Cost per Unit]]) -> 4.2547169 | W48: Orchard hose-pull | X48: See Table 5-5* | Y48: 0.03 | Z48: 1
A49: Rod Weeder | B49: acre | C49: Diskharrow - Tandem | D49: Disks and all other tillage equipment | E49: 72916 | G49: 5 | H49: 1000 | I49: 13.2 | J49: 1 | K49: Large Tractor | L49: 5.346 | N49: =IF(Operations!$E49>1,Operations!$E49,IF(Operations!$D49=0,0,Operations!$F49/(VLOOKUP(Operations!$D49,ImpDepLookup,2,FALSE)-VLOOKUP(Operations!$D49,ImpDepLookup,3,FALSE)*Operations!$G49^0.5-VLOOKUP(Operations!$D49,ImpDepLookup,4,FALSE)*(Operations!$G49*(Operations!$G49*Operations!$H49/Operations!$I49)^0.5))^2)) -> 72916 | O49: =IF(Operations!$C49="",0,(((Operations!$G49+1)*Operations!$H49/Operations!$I49/1000)^VLOOKUP(Operations!$C49,ImpRepairFac[],4,FALSE)-(Operations!$G49*Operations!$H49/Operations!$I49/1000)^VLOOKUP(Operations!$C49,ImpRepairFac[],4,FALSE))*Operations!$N49*VLOOKUP(Operations!$C49,ImpRepairFac[],3,FALSE)/Operations!$H49) -> 0.9155807774 | P49: =IF(Operations!$N49=0,0,Operations!$N49*(VLOOKUP(Operations!$D49,ImpDepLookup,2,FALSE)-VLOOKUP(Operations!$D49,ImpDepLookup,3,FALSE)*Operations!$G49^0.5-VLOOKUP(Operations!$D49,ImpDepLookup,4,FALSE)*(Operations!$G49*Operations!$H49/Operations!$I49)^0.5)^2) -> 30337.93809 | Q49: =IF(Operations!$N49=0,0,Operations!$N49*(VLOOKUP(Operations!$D49,ImpDepLookup,2,FALSE)-VLOOKUP(Operations!$D49,ImpDepLookup,3,FALSE)*(Operations!$G49+1)^0.5-VLOOKUP(Operations!$D49,ImpDepLookup,4,FALSE)*(Operations!$G49*Operations!$H49/Operations!$I49)^0.5)^2) -> 28169.78562 | R49: =IF(Operations!$N49=0,0,IF(Operations!$I49*Operations!$H49=0,0,(Operations!$P49-Operations!$Q49)/(Operations!$H49))) -> 2.168152479 | S49: =IF(Operations!$H49=0,0,Operations!$P49*'General Variables'!$B$9/Operations!$H49) -> 0.6067587619 | T49: =IF(Operations!$H49=0,0,Operations!$P49*'General Variables'!$B$10/Operations!$H49) -> 0.9101381428 | U49: =SUM(Table3[[#This Row],[Depreciation per Unit]:[Opportunity Cost per Unit]]) -> 3.685049384
A50: Rod Weeder & Fertilizer | B50: acre | C50: Diskharrow - Tandem | D50: Disks and all other tillage equipment | E50: 75000 | G50: 5 | H50: 1000 | I50: 13.2 | J50: 1.2 | K50: Large Tractor | L50: 5.346 | N50: =IF(Operations!$E50>1,Operations!$E50,IF(Operations!$D50=0,0,Operations!$F50/(VLOOKUP(Operations!$D50,ImpDepLookup,2,FALSE)-VLOOKUP(Operations!$D50,ImpDepLookup,3,FALSE)*Operations!$G50^0.5-VLOOKUP(Operations!$D50,ImpDepLookup,4,FALSE)*(Operations!$G50*(Operations!$G50*Operations!$H50/Operations!$I50)^0.5))^2)) -> 75000 | O50: =IF(Operations!$C50="",0,(((Operations!$G50+1)*Operations!$H50/Operations!$I50/1000)^VLOOKUP(Operations!$C50,ImpRepairFac[],4,FALSE)-(Operations!$G50*Operations!$H50/Operations!$I50/1000)^VLOOKUP(Operations!$C50,ImpRepairFac[],4,FALSE))*Operations!$N50*VLOOKUP(Operations!$C50,ImpRepairFac[],3,FALSE)/Operations!$H50) -> 0.9417488385 | P50: =IF(Operations!$N50=0,0,Operations!$N50*(VLOOKUP(Operations!$D50,ImpDepLookup,2,FALSE)-VLOOKUP(Operations!$D50,ImpDepLookup,3,FALSE)*Operations!$G50^0.5-VLOOKUP(Operations!$D50,ImpDepLookup,4,FALSE)*(Operations!$G50*Operations!$H50/Operations!$I50)^0.5)^2) -> 31205.02163 | Q50: =IF(Operations!$N50=0,0,Operations!$N50*(VLOOKUP(Operations!$D50,ImpDepLookup,2,FALSE)-VLOOKUP(Operations!$D50,ImpDepLookup,3,FALSE)*(Operations!$G50+1)^0.5-VLOOKUP(Operations!$D50,ImpDepLookup,4,FALSE)*(Operations!$G50*Operations!$H50/Operations!$I50)^0.5)^2) -> 28974.90155 | R50: =IF(Operations!$N50=0,0,IF(Operations!$I50*Operations!$H50=0,0,(Operations!$P50-Operations!$Q50)/(Operations!$H50))) -> 2.230120082 | S50: =IF(Operations!$H50=0,0,Operations!$P50*'General Variables'!$B$9/Operations!$H50) -> 0.6241004326 | T50: =IF(Operations!$H50=0,0,Operations!$P50*'General Variables'!$B$10/Operations!$H50) -> 0.9361506489 | U50: =SUM(Table3[[#This Row],[Depreciation per Unit]:[Opportunity Cost per Unit]]) -> 3.790371164
A51: Roll | B51: acre | C51: Mulcher-packer | D51: Disks and all other tillage equipment | E51: 33000 | G51: 5 | H51: 500 | I51: 12 | J51: 1 | K51: Medium Tractor | L51: 5.458646617 | N51: =IF(Operations!$E51>1,Operations!$E51,IF(Operations!$D51=0,0,Operations!$F51/(VLOOKUP(Operations!$D51,ImpDepLookup,2,FALSE)-VLOOKUP(Operations!$D51,ImpDepLookup,3,FALSE)*Operations!$G51^0.5-VLOOKUP(Operations!$D51,ImpDepLookup,4,FALSE)*(Operations!$G51*(Operations!$G51*Operations!$H51/Operations!$I51)^0.5))^2)) -> 33000 | O51: =IF(Operations!$C51="",0,(((Operations!$G51+1)*Operations!$H51/Operations!$I51/1000)^VLOOKUP(Operations!$C51,ImpRepairFac[],4,FALSE)-(Operations!$G51*Operations!$H51/Operations!$I51/1000)^VLOOKUP(Operations!$C51,ImpRepairFac[],4,FALSE))*Operations!$N51*VLOOKUP(Operations!$C51,ImpRepairFac[],3,FALSE)/Operations!$H51) -> 0.367549286 | P51: =IF(Operations!$N51=0,0,Operations!$N51*(VLOOKUP(Operations!$D51,ImpDepLookup,2,FALSE)-VLOOKUP(Operations!$D51,ImpDepLookup,3,FALSE)*Operations!$G51^0.5-VLOOKUP(Operations!$D51,ImpDepLookup,4,FALSE)*(Operations!$G51*Operations!$H51/Operations!$I51)^0.5)^2) -> 13730.20952 | Q51: =IF(Operations!$N51=0,0,Operations!$N51*(VLOOKUP(Operations!$D51,ImpDepLookup,2,FALSE)-VLOOKUP(Operations!$D51,ImpDepLookup,3,FALSE)*(Operations!$G51+1)^0.5-VLOOKUP(Operations!$D51,ImpDepLookup,4,FALSE)*(Operations!$G51*Operations!$H51/Operations!$I51)^0.5)^2) -> 12748.95668 | R51: =IF(Operations!$N51=0,0,IF(Operations!$I51*Operations!$H51=0,0,(Operations!$P51-Operations!$Q51)/(Operations!$H51))) -> 1.962505672 | S51: =IF(Operations!$H51=0,0,Operations!$P51*'General Variables'!$B$9/Operations!$H51) -> 0.5492083807 | T51: =IF(Operations!$H51=0,0,Operations!$P51*'General Variables'!$B$10/Operations!$H51) -> 0.823812571 | U51: =SUM(Table3[[#This Row],[Depreciation per Unit]:[Opportunity Cost per Unit]]) -> 3.335526624
A52: Roller Harrow | B52: acre | C52: Mulcher-packer | D52: Disks and all other tillage equipment | E52: 66530 | G52: 5 | H52: 1000 | I52: 10 | J52: 1 | K52: Medium Tractor | L52: 5 | N52: =IF(Operations!$E52>1,Operations!$E52,IF(Operations!$D52=0,0,Operations!$F52/(VLOOKUP(Operations!$D52,ImpDepLookup,2,FALSE)-VLOOKUP(Operations!$D52,ImpDepLookup,3,FALSE)*Operations!$G52^0.5-VLOOKUP(Operations!$D52,ImpDepLookup,4,FALSE)*(Operations!$G52*(Operations!$G52*Operations!$H52/Operations!$I52)^0.5))^2)) -> 66530 | O52: =IF(Operations!$C52="",0,(((Operations!$G52+1)*Operations!$H52/Operations!$I52/1000)^VLOOKUP(Operations!$C52,ImpRepairFac[],4,FALSE)-(Operations!$G52*Operations!$H52/Operations!$I52/1000)^VLOOKUP(Operations!$C52,ImpRepairFac[],4,FALSE))*Operations!$N52*VLOOKUP(Operations!$C52,ImpRepairFac[],3,FALSE)/Operations!$H52) -> 1.156282055 | P52: =IF(Operations!$N52=0,0,Operations!$N52*(VLOOKUP(Operations!$D52,ImpDepLookup,2,FALSE)-VLOOKUP(Operations!$D52,ImpDepLookup,3,FALSE)*Operations!$G52^0.5-VLOOKUP(Operations!$D52,ImpDepLookup,4,FALSE)*(Operations!$G52*Operations!$H52/Operations!$I52)^0.5)^2) -> 27680.93452 | Q52: =IF(Operations!$N52=0,0,Operations!$N52*(VLOOKUP(Operations!$D52,ImpDepLookup,2,FALSE)-VLOOKUP(Operations!$D52,ImpDepLookup,3,FALSE)*(Operations!$G52+1)^0.5-VLOOKUP(Operations!$D52,ImpDepLookup,4,FALSE)*(Operations!$G52*Operations!$H52/Operations!$I52)^0.5)^2) -> 25702.66933 | R52: =IF(Operations!$N52=0,0,IF(Operations!$I52*Operations!$H52=0,0,(Operations!$P52-Operations!$Q52)/(Operations!$H52))) -> 1.978265188 | S52: =IF(Operations!$H52=0,0,Operations!$P52*'General Variables'!$B$9/Operations!$H52) -> 0.5536186904 | T52: =IF(Operations!$H52=0,0,Operations!$P52*'General Variables'!$B$10/Operations!$H52) -> 0.8304280356 | U52: =SUM(Table3[[#This Row],[Depreciation per Unit]:[Opportunity Cost per Unit]]) -> 3.362311914
A53: Rotary Hoe | B53: acre | C53: Rotary hoe | D53: Disks and all other tillage equipment | E53: 28500 | G53: 5 | H53: 1000 | I53: 14.66666667 | J53: 1.1 | K53: Medium Tractor | L53: 3.666666667 | N53: =IF(Operations!$E53>1,Operations!$E53,IF(Operations!$D53=0,0,Operations!$F53/(VLOOKUP(Operations!$D53,ImpDepLookup,2,FALSE)-VLOOKUP(Operations!$D53,ImpDepLookup,3,FALSE)*Operations!$G53^0.5-VLOOKUP(Operations!$D53,ImpDepLookup,4,FALSE)*(Operations!$G53*(Operations!$G53*Operations!$H53/Operations!$I53)^0.5))^2)) -> 28500 | O53: =IF(Operations!$C53="",0,(((Operations!$G53+1)*Operations!$H53/Operations!$I53/1000)^VLOOKUP(Operations!$C53,ImpRepairFac[],4,FALSE)-(Operations!$G53*Operations!$H53/Operations!$I53/1000)^VLOOKUP(Operations!$C53,ImpRepairFac[],4,FALSE))*Operations!$N53*VLOOKUP(Operations!$C53,ImpRepairFac[],3,FALSE)/Operations!$H53) -> 0.4225109581 | P53: =IF(Operations!$N53=0,0,Operations!$N53*(VLOOKUP(Operations!$D53,ImpDepLookup,2,FALSE)-VLOOKUP(Operations!$D53,ImpDepLookup,3,FALSE)*Operations!$G53^0.5-VLOOKUP(Operations!$D53,ImpDepLookup,4,FALSE)*(Operations!$G53*Operations!$H53/Operations!$I53)^0.5)^2) -> 11857.90822 | Q53: =IF(Operations!$N53=0,0,Operations!$N53*(VLOOKUP(Operations!$D53,ImpDepLookup,2,FALSE)-VLOOKUP(Operations!$D53,ImpDepLookup,3,FALSE)*(Operations!$G53+1)^0.5-VLOOKUP(Operations!$D53,ImpDepLookup,4,FALSE)*(Operations!$G53*Operations!$H53/Operations!$I53)^0.5)^2) -> 11010.46259 | R53: =IF(Operations!$N53=0,0,IF(Operations!$I53*Operations!$H53=0,0,(Operations!$P53-Operations!$Q53)/(Operations!$H53))) -> 0.8474456313 | S53: =IF(Operations!$H53=0,0,Operations!$P53*'General Variables'!$B$9/Operations!$H53) -> 0.2371581644 | T53: =IF(Operations!$H53=0,0,Operations!$P53*'General Variables'!$B$10/Operations!$H53) -> 0.3557372466 | U53: =SUM(Table3[[#This Row],[Depreciation per Unit]:[Opportunity Cost per Unit]]) -> 1.440341042
A54: Row Crop Cultivation | B54: acre | C54: Cultivator - Row crop | D54: Disks and all other tillage equipment | E54: 75925 | G54: 5 | H54: 1000 | I54: 11 | J54: 1.1 | K54: Medium Tractor | L54: 3.5 | N54: =IF(Operations!$E54>1,Operations!$E54,IF(Operations!$D54=0,0,Operations!$F54/(VLOOKUP(Operations!$D54,ImpDepLookup,2,FALSE)-VLOOKUP(Operations!$D54,ImpDepLookup,3,FALSE)*Operations!$G54^0.5-VLOOKUP(Operations!$D54,ImpDepLookup,4,FALSE)*(Operations!$G54*(Operations!$G54*Operations!$H54/Operations!$I54)^0.5))^2)) -> 75925 | O54: =IF(Operations!$C54="",0,(((Operations!$G54+1)*Operations!$H54/Operations!$I54/1000)^VLOOKUP(Operations!$C54,ImpRepairFac[],4,FALSE)-(Operations!$G54*Operations!$H54/Operations!$I54/1000)^VLOOKUP(Operations!$C54,ImpRepairFac[],4,FALSE))*Operations!$N54*VLOOKUP(Operations!$C54,ImpRepairFac[],3,FALSE)/Operations!$H54) -> 1.124013049 | P54: =IF(Operations!$N54=0,0,Operations!$N54*(VLOOKUP(Operations!$D54,ImpDepLookup,2,FALSE)-VLOOKUP(Operations!$D54,ImpDepLookup,3,FALSE)*Operations!$G54^0.5-VLOOKUP(Operations!$D54,ImpDepLookup,4,FALSE)*(Operations!$G54*Operations!$H54/Operations!$I54)^0.5)^2) -> 31589.88356 | Q54: =IF(Operations!$N54=0,0,Operations!$N54*(VLOOKUP(Operations!$D54,ImpDepLookup,2,FALSE)-VLOOKUP(Operations!$D54,ImpDepLookup,3,FALSE)*(Operations!$G54+1)^0.5-VLOOKUP(Operations!$D54,ImpDepLookup,4,FALSE)*(Operations!$G54*Operations!$H54/Operations!$I54)^0.5)^2) -> 29332.25867 | R54: =IF(Operations!$N54=0,0,IF(Operations!$I54*Operations!$H54=0,0,(Operations!$P54-Operations!$Q54)/(Operations!$H54))) -> 2.257624897 | S54: =IF(Operations!$H54=0,0,Operations!$P54*'General Variables'!$B$9/Operations!$H54) -> 0.6317976712 | T54: =IF(Operations!$H54=0,0,Operations!$P54*'General Variables'!$B$10/Operations!$H54) -> 0.9476965069 | U54: =SUM(Table3[[#This Row],[Depreciation per Unit]:[Opportunity Cost per Unit]]) -> 3.837119075
A55: Seeder/Packer | B55: acre | C55: Drill - Grain | D55: Planters | E55: 75005 | G55: 5 | H55: 1000 | I55: 8 | J55: 1.2 | K55: Medium Tractor | L55: 4.293680297 | N55: =IF(Operations!$E55>1,Operations!$E55,IF(Operations!$D55=0,0,Operations!$F55/(VLOOKUP(Operations!$D55,ImpDepLookup,2,FALSE)-VLOOKUP(Operations!$D55,ImpDepLookup,3,FALSE)*Operations!$G55^0.5-VLOOKUP(Operations!$D55,ImpDepLookup,4,FALSE)*(Operations!$G55*(Operations!$G55*Operations!$H55/Operations!$I55)^0.5))^2)) -> 75005 | O55: =IF(Operations!$C55="",0,(((Operations!$G55+1)*Operations!$H55/Operations!$I55/1000)^VLOOKUP(Operations!$C55,ImpRepairFac[],4,FALSE)-(Operations!$G55*Operations!$H55/Operations!$I55/1000)^VLOOKUP(Operations!$C55,ImpRepairFac[],4,FALSE))*Operations!$N55*VLOOKUP(Operations!$C55,ImpRepairFac[],3,FALSE)/Operations!$H55) -> 4.172874448 | P55: =IF(Operations!$N55=0,0,Operations!$N55*(VLOOKUP(Operations!$D55,ImpDepLookup,2,FALSE)-VLOOKUP(Operations!$D55,ImpDepLookup,3,FALSE)*Operations!$G55^0.5-VLOOKUP(Operations!$D55,ImpDepLookup,4,FALSE)*(Operations!$G55*Operations!$H55/Operations!$I55)^0.5)^2) -> 37659.64359 | Q55: =IF(Operations!$N55=0,0,Operations!$N55*(VLOOKUP(Operations!$D55,ImpDepLookup,2,FALSE)-VLOOKUP(Operations!$D55,ImpDepLookup,3,FALSE)*(Operations!$G55+1)^0.5-VLOOKUP(Operations!$D55,ImpDepLookup,4,FALSE)*(Operations!$G55*Operations!$H55/Operations!$I55)^0.5)^2) -> 35910.94542 | R55: =IF(Operations!$N55=0,0,IF(Operations!$I55*Operations!$H55=0,0,(Operations!$P55-Operations!$Q55)/(Operations!$H55))) -> 1.748698171 | S55: =IF(Operations!$H55=0,0,Operations!$P55*'General Variables'!$B$9/Operations!$H55) -> 0.7531928719 | T55: =IF(Operations!$H55=0,0,Operations!$P55*'General Variables'!$B$10/Operations!$H55) -> 1.129789308 | U55: =SUM(Table3[[#This Row],[Depreciation per Unit]:[Opportunity Cost per Unit]]) -> 3.631680351
A56: Spray (Prior Year Stubble) | B56: acre | C56: Sprayer - Boom-type | D56: Manure spreaders and all other miscellaneous equipment | E56: 89220 | G56: 5 | H56: 2500 | I56: 33 | J56: 1.25 | K56: Medium Tractor | L56: 2.64 | N56: =IF(Operations!$E56>1,Operations!$E56,IF(Operations!$D56=0,0,Operations!$F56/(VLOOKUP(Operations!$D56,ImpDepLookup,2,FALSE)-VLOOKUP(Operations!$D56,ImpDepLookup,3,FALSE)*Operations!$G56^0.5-VLOOKUP(Operations!$D56,ImpDepLookup,4,FALSE)*(Operations!$G56*(Operations!$G56*Operations!$H56/Operations!$I56)^0.5))^2)) -> 89220 | O56: =IF(Operations!$C56="",0,(((Operations!$G56+1)*Operations!$H56/Operations!$I56/1000)^VLOOKUP(Operations!$C56,ImpRepairFac[],4,FALSE)-(Operations!$G56*Operations!$H56/Operations!$I56/1000)^VLOOKUP(Operations!$C56,ImpRepairFac[],4,FALSE))*Operations!$N56*VLOOKUP(Operations!$C56,ImpRepairFac[],3,FALSE)/Operations!$H56) -> 1.107863453 | P56: =IF(Operations!$N56=0,0,Operations!$N56*(VLOOKUP(Operations!$D56,ImpDepLookup,2,FALSE)-VLOOKUP(Operations!$D56,ImpDepLookup,3,FALSE)*Operations!$G56^0.5-VLOOKUP(Operations!$D56,ImpDepLookup,4,FALSE)*(Operations!$G56*Operations!$H56/Operations!$I56)^0.5)^2) -> 43070.25134 | Q56: =IF(Operations!$N56=0,0,Operations!$N56*(VLOOKUP(Operations!$D56,ImpDepLookup,2,FALSE)-VLOOKUP(Operations!$D56,ImpDepLookup,3,FALSE)*(Operations!$G56+1)^0.5-VLOOKUP(Operations!$D56,ImpDepLookup,4,FALSE)*(Operations!$G56*Operations!$H56/Operations!$I56)^0.5)^2) -> 40183.27121 | R56: =IF(Operations!$N56=0,0,IF(Operations!$I56*Operations!$H56=0,0,(Operations!$P56-Operations!$Q56)/(Operations!$H56))) -> 1.15479205 | S56: =IF(Operations!$H56=0,0,Operations!$P56*'General Variables'!$B$9/Operations!$H56) -> 0.3445620107 | T56: =IF(Operations!$H56=0,0,Operations!$P56*'General Variables'!$B$10/Operations!$H56) -> 0.5168430161 | U56: =SUM(Table3[[#This Row],[Depreciation per Unit]:[Opportunity Cost per Unit]]) -> 2.016197076
A57: Spray Fertilizer | B57: acre | C57: Sprayer - Air-carrier | D57: Manure spreaders and all other miscellaneous equipment | E57: 89220 | G57: 5 | H57: 1000 | I57: 33 | J57: 1.25 | K57: Medium Tractor | L57: 2.64 | N57: =IF(Operations!$E57>1,Operations!$E57,IF(Operations!$D57=0,0,Operations!$F57/(VLOOKUP(Operations!$D57,ImpDepLookup,2,FALSE)-VLOOKUP(Operations!$D57,ImpDepLookup,3,FALSE)*Operations!$G57^0.5-VLOOKUP(Operations!$D57,ImpDepLookup,4,FALSE)*(Operations!$G57*(Operations!$G57*Operations!$H57/Operations!$I57)^0.5))^2)) -> 89220 | O57: =IF(Operations!$C57="",0,(((Operations!$G57+1)*Operations!$H57/Operations!$I57/1000)^VLOOKUP(Operations!$C57,ImpRepairFac[],4,FALSE)-(Operations!$G57*Operations!$H57/Operations!$I57/1000)^VLOOKUP(Operations!$C57,ImpRepairFac[],4,FALSE))*Operations!$N57*VLOOKUP(Operations!$C57,ImpRepairFac[],3,FALSE)/Operations!$H57) -> 0.2951642228 | P57: =IF(Operations!$N57=0,0,Operations!$N57*(VLOOKUP(Operations!$D57,ImpDepLookup,2,FALSE)-VLOOKUP(Operations!$D57,ImpDepLookup,3,FALSE)*Operations!$G57^0.5-VLOOKUP(Operations!$D57,ImpDepLookup,4,FALSE)*(Operations!$G57*Operations!$H57/Operations!$I57)^0.5)^2) -> 43070.25134 | Q57: =IF(Operations!$N57=0,0,Operations!$N57*(VLOOKUP(Operations!$D57,ImpDepLookup,2,FALSE)-VLOOKUP(Operations!$D57,ImpDepLookup,3,FALSE)*(Operations!$G57+1)^0.5-VLOOKUP(Operations!$D57,ImpDepLookup,4,FALSE)*(Operations!$G57*Operations!$H57/Operations!$I57)^0.5)^2) -> 40183.27121 | R57: =IF(Operations!$N57=0,0,IF(Operations!$I57*Operations!$H57=0,0,(Operations!$P57-Operations!$Q57)/(Operations!$H57))) -> 2.886980124 | S57: =IF(Operations!$H57=0,0,Operations!$P57*'General Variables'!$B$9/Operations!$H57) -> 0.8614050268 | T57: =IF(Operations!$H57=0,0,Operations!$P57*'General Variables'!$B$10/Operations!$H57) -> 1.29210754 | U57: =SUM(Table3[[#This Row],[Depreciation per Unit]:[Opportunity Cost per Unit]]) -> 5.040492691
A58: Spray Fertilizer and Herbicide | B58: acre | C58: Sprayer - Air-carrier | D58: Manure spreaders and all other miscellaneous equipment | E58: 89220 | G58: 5 | H58: 1000 | I58: 33 | J58: 1.25 | K58: Medium Tractor | L58: 2.64 | N58: =IF(Operations!$E58>1,Operations!$E58,IF(Operations!$D58=0,0,Operations!$F58/(VLOOKUP(Operations!$D58,ImpDepLookup,2,FALSE)-VLOOKUP(Operations!$D58,ImpDepLookup,3,FALSE)*Operations!$G58^0.5-VLOOKUP(Operations!$D58,ImpDepLookup,4,FALSE)*(Operations!$G58*(Operations!$G58*Operations!$H58/Operations!$I58)^0.5))^2)) -> 89220 | O58: =IF(Operations!$C58="",0,(((Operations!$G58+1)*Operations!$H58/Operations!$I58/1000)^VLOOKUP(Operations!$C58,ImpRepairFac[],4,FALSE)-(Operations!$G58*Operations!$H58/Operations!$I58/1000)^VLOOKUP(Operations!$C58,ImpRepairFac[],4,FALSE))*Operations!$N58*VLOOKUP(Operations!$C58,ImpRepairFac[],3,FALSE)/Operations!$H58) -> 0.2951642228 | P58: =IF(Operations!$N58=0,0,Operations!$N58*(VLOOKUP(Operations!$D58,ImpDepLookup,2,FALSE)-VLOOKUP(Operations!$D58,ImpDepLookup,3,FALSE)*Operations!$G58^0.5-VLOOKUP(Operations!$D58,ImpDepLookup,4,FALSE)*(Operations!$G58*Operations!$H58/Operations!$I58)^0.5)^2) -> 43070.25134 | Q58: =IF(Operations!$N58=0,0,Operations!$N58*(VLOOKUP(Operations!$D58,ImpDepLookup,2,FALSE)-VLOOKUP(Operations!$D58,ImpDepLookup,3,FALSE)*(Operations!$G58+1)^0.5-VLOOKUP(Operations!$D58,ImpDepLookup,4,FALSE)*(Operations!$G58*Operations!$H58/Operations!$I58)^0.5)^2) -> 40183.27121 | R58: =IF(Operations!$N58=0,0,IF(Operations!$I58*Operations!$H58=0,0,(Operations!$P58-Operations!$Q58)/(Operations!$H58))) -> 2.886980124 | S58: =IF(Operations!$H58=0,0,Operations!$P58*'General Variables'!$B$9/Operations!$H58) -> 0.8614050268 | T58: =IF(Operations!$H58=0,0,Operations!$P58*'General Variables'!$B$10/Operations!$H58) -> 1.29210754 | U58: =SUM(Table3[[#This Row],[Depreciation per Unit]:[Opportunity Cost per Unit]]) -> 5.040492691
A59: Spray Herbicide | B59: acre | C59: Sprayer - Boom-type | D59: Manure spreaders and all other miscellaneous equipment | E59: 89220 | G59: 5 | H59: 2500 | I59: 33 | J59: 1.25 | K59: Medium Tractor | L59: 2.64 | N59: =IF(Operations!$E59>1,Operations!$E59,IF(Operations!$D59=0,0,Operations!$F59/(VLOOKUP(Operations!$D59,ImpDepLookup,2,FALSE)-VLOOKUP(Operations!$D59,ImpDepLookup,3,FALSE)*Operations!$G59^0.5-VLOOKUP(Operations!$D59,ImpDepLookup,4,FALSE)*(Operations!$G59*(Operations!$G59*Operations!$H59/Operations!$I59)^0.5))^2)) -> 89220 | O59: =IF(Operations!$C59="",0,(((Operations!$G59+1)*Operations!$H59/Operations!$I59/1000)^VLOOKUP(Operations!$C59,ImpRepairFac[],4,FALSE)-(Operations!$G59*Operations!$H59/Operations!$I59/1000)^VLOOKUP(Operations!$C59,ImpRepairFac[],4,FALSE))*Operations!$N59*VLOOKUP(Operations!$C59,ImpRepairFac[],3,FALSE)/Operations!$H59) -> 1.107863453 | P59: =IF(Operations!$N59=0,0,Operations!$N59*(VLOOKUP(Operations!$D59,ImpDepLookup,2,FALSE)-VLOOKUP(Operations!$D59,ImpDepLookup,3,FALSE)*Operations!$G59^0.5-VLOOKUP(Operations!$D59,ImpDepLookup,4,FALSE)*(Operations!$G59*Operations!$H59/Operations!$I59)^0.5)^2) -> 43070.25134 | Q59: =IF(Operations!$N59=0,0,Operations!$N59*(VLOOKUP(Operations!$D59,ImpDepLookup,2,FALSE)-VLOOKUP(Operations!$D59,ImpDepLookup,3,FALSE)*(Operations!$G59+1)^0.5-VLOOKUP(Operations!$D59,ImpDepLookup,4,FALSE)*(Operations!$G59*Operations!$H59/Operations!$I59)^0.5)^2) -> 40183.27121 | R59: =IF(Operations!$N59=0,0,IF(Operations!$I59*Operations!$H59=0,0,(Operations!$P59-Operations!$Q59)/(Operations!$H59))) -> 1.15479205 | S59: =IF(Operations!$H59=0,0,Operations!$P59*'General Variables'!$B$9/Operations!$H59) -> 0.3445620107 | T59: =IF(Operations!$H59=0,0,Operations!$P59*'General Variables'!$B$10/Operations!$H59) -> 0.5168430161 | U59: =SUM(Table3[[#This Row],[Depreciation per Unit]:[Opportunity Cost per Unit]]) -> 2.016197076
A60: Spray Insecticide | B60: acre | C60: Sprayer - Boom-type | D60: Manure spreaders and all other miscellaneous equipment | E60: 89220 | G60: 5 | H60: 2500 | I60: 33 | J60: 1.25 | K60: Medium Tractor | L60: 2.64 | N60: =IF(Operations!$E60>1,Operations!$E60,IF(Operations!$D60=0,0,Operations!$F60/(VLOOKUP(Operations!$D60,ImpDepLookup,2,FALSE)-VLOOKUP(Operations!$D60,ImpDepLookup,3,FALSE)*Operations!$G60^0.5-VLOOKUP(Operations!$D60,ImpDepLookup,4,FALSE)*(Operations!$G60*(Operations!$G60*Operations!$H60/Operations!$I60)^0.5))^2)) -> 89220 | O60: =IF(Operations!$C60="",0,(((Operations!$G60+1)*Operations!$H60/Operations!$I60/1000)^VLOOKUP(Operations!$C60,ImpRepairFac[],4,FALSE)-(Operations!$G60*Operations!$H60/Operations!$I60/1000)^VLOOKUP(Operations!$C60,ImpRepairFac[],4,FALSE))*Operations!$N60*VLOOKUP(Operations!$C60,ImpRepairFac[],3,FALSE)/Operations!$H60) -> 1.107863453 | P60: =IF(Operations!$N60=0,0,Operations!$N60*(VLOOKUP(Operations!$D60,ImpDepLookup,2,FALSE)-VLOOKUP(Operations!$D60,ImpDepLookup,3,FALSE)*Operations!$G60^0.5-VLOOKUP(Operations!$D60,ImpDepLookup,4,FALSE)*(Operations!$G60*Operations!$H60/Operations!$I60)^0.5)^2) -> 43070.25134 | Q60: =IF(Operations!$N60=0,0,Operations!$N60*(VLOOKUP(Operations!$D60,ImpDepLookup,2,FALSE)-VLOOKUP(Operations!$D60,ImpDepLookup,3,FALSE)*(Operations!$G60+1)^0.5-VLOOKUP(Operations!$D60,ImpDepLookup,4,FALSE)*(Operations!$G60*Operations!$H60/Operations!$I60)^0.5)^2) -> 40183.27121 | R60: =IF(Operations!$N60=0,0,IF(Operations!$I60*Operations!$H60=0,0,(Operations!$P60-Operations!$Q60)/(Operations!$H60))) -> 1.15479205 | S60: =IF(Operations!$H60=0,0,Operations!$P60*'General Variables'!$B$9/Operations!$H60) -> 0.3445620107 | T60: =IF(Operations!$H60=0,0,Operations!$P60*'General Variables'!$B$10/Operations!$H60) -> 0.5168430161 | U60: =SUM(Table3[[#This Row],[Depreciation per Unit]:[Opportunity Cost per Unit]]) -> 2.016197076
A61: Spray Burndown Herbicide | B61: acre | C61: Sprayer - Boom-type | D61: Manure spreaders and all other miscellaneous equipment | E61: 89220 | G61: 5 | H61: 2500 | I61: 33 | J61: 1.25 | K61: Medium Tractor | L61: 2.64 | N61: =IF(Operations!$E61>1,Operations!$E61,IF(Operations!$D61=0,0,Operations!$F61/(VLOOKUP(Operations!$D61,ImpDepLookup,2,FALSE)-VLOOKUP(Operations!$D61,ImpDepLookup,3,FALSE)*Operations!$G61^0.5-VLOOKUP(Operations!$D61,ImpDepLookup,4,FALSE)*(Operations!$G61*(Operations!$G61*Operations!$H61/Operations!$I61)^0.5))^2)) -> 89220 | O61: =IF(Operations!$C61="",0,(((Operations!$G61+1)*Operations!$H61/Operations!$I61/1000)^VLOOKUP(Operations!$C61,ImpRepairFac[],4,FALSE)-(Operations!$G61*Operations!$H61/Operations!$I61/1000)^VLOOKUP(Operations!$C61,ImpRepairFac[],4,FALSE))*Operations!$N61*VLOOKUP(Operations!$C61,ImpRepairFac[],3,FALSE)/Operations!$H61) -> 1.107863453 | P61: =IF(Operations!$N61=0,0,Operations!$N61*(VLOOKUP(Operations!$D61,ImpDepLookup,2,FALSE)-VLOOKUP(Operations!$D61,ImpDepLookup,3,FALSE)*Operations!$G61^0.5-VLOOKUP(Operations!$D61,ImpDepLookup,4,FALSE)*(Operations!$G61*Operations!$H61/Operations!$I61)^0.5)^2) -> 43070.25134 | Q61: =IF(Operations!$N61=0,0,Operations!$N61*(VLOOKUP(Operations!$D61,ImpDepLookup,2,FALSE)-VLOOKUP(Operations!$D61,ImpDepLookup,3,FALSE)*(Operations!$G61+1)^0.5-VLOOKUP(Operations!$D61,ImpDepLookup,4,FALSE)*(Operations!$G61*Operations!$H61/Operations!$I61)^0.5)^2) -> 40183.27121 | R61: =IF(Operations!$N61=0,0,IF(Operations!$I61*Operations!$H61=0,0,(Operations!$P61-Operations!$Q61)/(Operations!$H61))) -> 1.15479205 | S61: =IF(Operations!$H61=0,0,Operations!$P61*'General Variables'!$B$9/Operations!$H61) -> 0.3445620107 | T61: =IF(Operations!$H61=0,0,Operations!$P61*'General Variables'!$B$10/Operations!$H61) -> 0.5168430161 | U61: =SUM(Table3[[#This Row],[Depreciation per Unit]:[Opportunity Cost per Unit]]) -> 2.016197076
A62: Spray Post Harvest Burndown Herbicide | B62: acre | C62: Sprayer - Boom-type | D62: Manure spreaders and all other miscellaneous equipment | E62: 89220 | G62: 5 | H62: 2500 | I62: 33 | J62: 1.25 | K62: Medium Tractor | L62: 2.64 | N62: =IF(Operations!$E62>1,Operations!$E62,IF(Operations!$D62=0,0,Operations!$F62/(VLOOKUP(Operations!$D62,ImpDepLookup,2,FALSE)-VLOOKUP(Operations!$D62,ImpDepLookup,3,FALSE)*Operations!$G62^0.5-VLOOKUP(Operations!$D62,ImpDepLookup,4,FALSE)*(Operations!$G62*(Operations!$G62*Operations!$H62/Operations!$I62)^0.5))^2)) -> 89220 | O62: =IF(Operations!$C62="",0,(((Operations!$G62+1)*Operations!$H62/Operations!$I62/1000)^VLOOKUP(Operations!$C62,ImpRepairFac[],4,FALSE)-(Operations!$G62*Operations!$H62/Operations!$I62/1000)^VLOOKUP(Operations!$C62,ImpRepairFac[],4,FALSE))*Operations!$N62*VLOOKUP(Operations!$C62,ImpRepairFac[],3,FALSE)/Operations!$H62) -> 1.107863453 | P62: =IF(Operations!$N62=0,0,Operations!$N62*(VLOOKUP(Operations!$D62,ImpDepLookup,2,FALSE)-VLOOKUP(Operations!$D62,ImpDepLookup,3,FALSE)*Operations!$G62^0.5-VLOOKUP(Operations!$D62,ImpDepLookup,4,FALSE)*(Operations!$G62*Operations!$H62/Operations!$I62)^0.5)^2) -> 43070.25134 | Q62: =IF(Operations!$N62=0,0,Operations!$N62*(VLOOKUP(Operations!$D62,ImpDepLookup,2,FALSE)-VLOOKUP(Operations!$D62,ImpDepLookup,3,FALSE)*(Operations!$G62+1)^0.5-VLOOKUP(Operations!$D62,ImpDepLookup,4,FALSE)*(Operations!$G62*Operations!$H62/Operations!$I62)^0.5)^2) -> 40183.27121 | R62: =IF(Operations!$N62=0,0,IF(Operations!$I62*Operations!$H62=0,0,(Operations!$P62-Operations!$Q62)/(Operations!$H62))) -> 1.15479205 | S62: =IF(Operations!$H62=0,0,Operations!$P62*'General Variables'!$B$9/Operations!$H62) -> 0.3445620107 | T62: =IF(Operations!$H62=0,0,Operations!$P62*'General Variables'!$B$10/Operations!$H62) -> 0.5168430161 | U62: =SUM(Table3[[#This Row],[Depreciation per Unit]:[Opportunity Cost per Unit]]) -> 2.016197076
A63: Spray Fall Burndown Herbicide | B63: acre | C63: Sprayer - Boom-type | D63: Manure spreaders and all other miscellaneous equipment | E63: 89220 | G63: 5 | H63: 2000 | I63: 33 | J63: 1.25 | K63: Medium Tractor | L63: 2.64 | N63: =IF(Operations!$E63>1,Operations!$E63,IF(Operations!$D63=0,0,Operations!$F63/(VLOOKUP(Operations!$D63,ImpDepLookup,2,FALSE)-VLOOKUP(Operations!$D63,ImpDepLookup,3,FALSE)*Operations!$G63^0.5-VLOOKUP(Operations!$D63,ImpDepLookup,4,FALSE)*(Operations!$G63*(Operations!$G63*Operations!$H63/Operations!$I63)^0.5))^2)) -> 89220 | O63: =IF(Operations!$C63="",0,(((Operations!$G63+1)*Operations!$H63/Operations!$I63/1000)^VLOOKUP(Operations!$C63,ImpRepairFac[],4,FALSE)-(Operations!$G63*Operations!$H63/Operations!$I63/1000)^VLOOKUP(Operations!$C63,ImpRepairFac[],4,FALSE))*Operations!$N63*VLOOKUP(Operations!$C63,ImpRepairFac[],3,FALSE)/Operations!$H63) -> 1.036127575 | P63: =IF(Operations!$N63=0,0,Operations!$N63*(VLOOKUP(Operations!$D63,ImpDepLookup,2,FALSE)-VLOOKUP(Operations!$D63,ImpDepLookup,3,FALSE)*Operations!$G63^0.5-VLOOKUP(Operations!$D63,ImpDepLookup,4,FALSE)*(Operations!$G63*Operations!$H63/Operations!$I63)^0.5)^2) -> 43070.25134 | Q63: =IF(Operations!$N63=0,0,Operations!$N63*(VLOOKUP(Operations!$D63,ImpDepLookup,2,FALSE)-VLOOKUP(Operations!$D63,ImpDepLookup,3,FALSE)*(Operations!$G63+1)^0.5-VLOOKUP(Operations!$D63,ImpDepLookup,4,FALSE)*(Operations!$G63*Operations!$H63/Operations!$I63)^0.5)^2) -> 40183.27121 | R63: =IF(Operations!$N63=0,0,IF(Operations!$I63*Operations!$H63=0,0,(Operations!$P63-Operations!$Q63)/(Operations!$H63))) -> 1.443490062 | S63: =IF(Operations!$H63=0,0,Operations!$P63*'General Variables'!$B$9/Operations!$H63) -> 0.4307025134 | T63: =IF(Operations!$H63=0,0,Operations!$P63*'General Variables'!$B$10/Operations!$H63) -> 0.6460537701 | U63: =SUM(Table3[[#This Row],[Depreciation per Unit]:[Opportunity Cost per Unit]]) -> 2.520246346
A64: Spread Fertilizer | B64: acre | D64: Manure spreaders and all other miscellaneous equipment | E64: 70000 | G64: 5 | H64: 1500 | I64: 12.7 | J64: 1 | K64: Medium Tractor | L64: 3.861702128 | N64: =IF(Operations!$E64>1,Operations!$E64,IF(Operations!$D64=0,0,Operations!$F64/(VLOOKUP(Operations!$D64,ImpDepLookup,2,FALSE)-VLOOKUP(Operations!$D64,ImpDepLookup,3,FALSE)*Operations!$G64^0.5-VLOOKUP(Operations!$D64,ImpDepLookup,4,FALSE)*(Operations!$G64*(Operations!$G64*Operations!$H64/Operations!$I64)^0.5))^2)) -> 70000 | O64: =IF(Operations!$C64="",0,(((Operations!$G64+1)*Operations!$H64/Operations!$I64/1000)^VLOOKUP(Operations!$C64,ImpRepairFac[],4,FALSE)-(Operations!$G64*Operations!$H64/Operations!$I64/1000)^VLOOKUP(Operations!$C64,ImpRepairFac[],4,FALSE))*Operations!$N64*VLOOKUP(Operations!$C64,ImpRepairFac[],3,FALSE)/Operations!$H64) -> 0 | P64: =IF(Operations!$N64=0,0,Operations!$N64*(VLOOKUP(Operations!$D64,ImpDepLookup,2,FALSE)-VLOOKUP(Operations!$D64,ImpDepLookup,3,FALSE)*Operations!$G64^0.5-VLOOKUP(Operations!$D64,ImpDepLookup,4,FALSE)*(Operations!$G64*Operations!$H64/Operations!$I64)^0.5)^2) -> 33791.94792 | Q64: =IF(Operations!$N64=0,0,Operations!$N64*(VLOOKUP(Operations!$D64,ImpDepLookup,2,FALSE)-VLOOKUP(Operations!$D64,ImpDepLookup,3,FALSE)*(Operations!$G64+1)^0.5-VLOOKUP(Operations!$D64,ImpDepLookup,4,FALSE)*(Operations!$G64*Operations!$H64/Operations!$I64)^0.5)^2) -> 31526.88842 | R64: =IF(Operations!$N64=0,0,IF(Operations!$I64*Operations!$H64=0,0,(Operations!$P64-Operations!$Q64)/(Operations!$H64))) -> 1.510039668 | S64: =IF(Operations!$H64=0,0,Operations!$P64*'General Variables'!$B$9/Operations!$H64) -> 0.4505593056 | T64: =IF(Operations!$H64=0,0,Operations!$P64*'General Variables'!$B$10/Operations!$H64) -> 0.6758389585 | U64: =SUM(Table3[[#This Row],[Depreciation per Unit]:[Opportunity Cost per Unit]]) -> 2.636437932
A65: Spread Manure | B65: Custom | N65: =IF(Operations!$E65>1,Operations!$E65,IF(Operations!$D65=0,0,Operations!$F65/(VLOOKUP(Operations!$D65,ImpDepLookup,2,FALSE)-VLOOKUP(Operations!$D65,ImpDepLookup,3,FALSE)*Operations!$G65^0.5-VLOOKUP(Operations!$D65,ImpDepLookup,4,FALSE)*(Operations!$G65*(Operations!$G65*Operations!$H65/Operations!$I65)^0.5))^2)) -> 0 | O65: =IF(Operations!$C65="",0,(((Operations!$G65+1)*Operations!$H65/Operations!$I65/1000)^VLOOKUP(Operations!$C65,ImpRepairFac[],4,FALSE)-(Operations!$G65*Operations!$H65/Operations!$I65/1000)^VLOOKUP(Operations!$C65,ImpRepairFac[],4,FALSE))*Operations!$N65*VLOOKUP(Operations!$C65,ImpRepairFac[],3,FALSE)/Operations!$H65) -> 0 | P65: =IF(Operations!$N65=0,0,Operations!$N65*(VLOOKUP(Operations!$D65,ImpDepLookup,2,FALSE)-VLOOKUP(Operations!$D65,ImpDepLookup,3,FALSE)*Operations!$G65^0.5-VLOOKUP(Operations!$D65,ImpDepLookup,4,FALSE)*(Operations!$G65*Operations!$H65/Operations!$I65)^0.5)^2) -> 0 | Q65: =IF(Operations!$N65=0,0,Operations!$N65*(VLOOKUP(Operations!$D65,ImpDepLookup,2,FALSE)-VLOOKUP(Operations!$D65,ImpDepLookup,3,FALSE)*(Operations!$G65+1)^0.5-VLOOKUP(Operations!$D65,ImpDepLookup,4,FALSE)*(Operations!$G65*Operations!$H65/Operations!$I65)^0.5)^2) -> 0 | R65: =IF(Operations!$N65=0,0,IF(Operations!$I65*Operations!$H65=0,0,(Operations!$P65-Operations!$Q65)/(Operations!$H65))) -> 0 | S65: =IF(Operations!$H65=0,0,Operations!$P65*'General Variables'!$B$9/Operations!$H65) -> 0 | T65: =IF(Operations!$H65=0,0,Operations!$P65*'General Variables'!$B$10/Operations!$H65) -> 0 | U65: =SUM(Table3[[#This Row],[Depreciation per Unit]:[Opportunity Cost per Unit]]) -> 0
A66: Subsoil / One-pass Tillage | B66: acre | C66: Chisel plow (Coulter) | D66: Disks and all other tillage equipment | E66: 114772 | G66: 5 | H66: 1000 | I66: 9 | J66: 1 | K66: Large Tractor | L66: 8.25 | N66: =IF(Operations!$E66>1,Operations!$E66,IF(Operations!$D66=0,0,Operations!$F66/(VLOOKUP(Operations!$D66,ImpDepLookup,2,FALSE)-VLOOKUP(Operations!$D66,ImpDepLookup,3,FALSE)*Operations!$G66^0.5-VLOOKUP(Operations!$D66,ImpDepLookup,4,FALSE)*(Operations!$G66*(Operations!$G66*Operations!$H66/Operations!$I66)^0.5))^2)) -> 114772 | O66: =IF(Operations!$C66="",0,(((Operations!$G66+1)*Operations!$H66/Operations!$I66/1000)^VLOOKUP(Operations!$C66,ImpRepairFac[],4,FALSE)-(Operations!$G66*Operations!$H66/Operations!$I66/1000)^VLOOKUP(Operations!$C66,ImpRepairFac[],4,FALSE))*Operations!$N66*VLOOKUP(Operations!$C66,ImpRepairFac[],3,FALSE)/Operations!$H66) -> 4.103776871 | P66: =IF(Operations!$N66=0,0,Operations!$N66*(VLOOKUP(Operations!$D66,ImpDepLookup,2,FALSE)-VLOOKUP(Operations!$D66,ImpDepLookup,3,FALSE)*Operations!$G66^0.5-VLOOKUP(Operations!$D66,ImpDepLookup,4,FALSE)*(Operations!$G66*Operations!$H66/Operations!$I66)^0.5)^2) -> 47752.83657 | Q66: =IF(Operations!$N66=0,0,Operations!$N66*(VLOOKUP(Operations!$D66,ImpDepLookup,2,FALSE)-VLOOKUP(Operations!$D66,ImpDepLookup,3,FALSE)*(Operations!$G66+1)^0.5-VLOOKUP(Operations!$D66,ImpDepLookup,4,FALSE)*(Operations!$G66*Operations!$H66/Operations!$I66)^0.5)^2) -> 44340.09867 | R66: =IF(Operations!$N66=0,0,IF(Operations!$I66*Operations!$H66=0,0,(Operations!$P66-Operations!$Q66)/(Operations!$H66))) -> 3.412737894 | S66: =IF(Operations!$H66=0,0,Operations!$P66*'General Variables'!$B$9/Operations!$H66) -> 0.9550567313 | T66: =IF(Operations!$H66=0,0,Operations!$P66*'General Variables'!$B$10/Operations!$H66) -> 1.432585097 | U66: =SUM(Table3[[#This Row],[Depreciation per Unit]:[Opportunity Cost per Unit]]) -> 5.800379723
A67: Swath/Condition Hay | B67: acre | C67: Mower-conditioner | D67: Swathers and all other harvest equipment | E67: 54000 | G67: 5 | H67: 1000 | I67: 10 | J67: 1 | K67: Windrower | L67: 5 | N67: =IF(Operations!$E67>1,Operations!$E67,IF(Operations!$D67=0,0,Operations!$F67/(VLOOKUP(Operations!$D67,ImpDepLookup,2,FALSE)-VLOOKUP(Operations!$D67,ImpDepLookup,3,FALSE)*Operations!$G67^0.5-VLOOKUP(Operations!$D67,ImpDepLookup,4,FALSE)*(Operations!$G67*(Operations!$G67*Operations!$H67/Operations!$I67)^0.5))^2)) -> 54000 | O67: =IF(Operations!$C67="",0,(((Operations!$G67+1)*Operations!$H67/Operations!$I67/1000)^VLOOKUP(Operations!$C67,ImpRepairFac[],4,FALSE)-(Operations!$G67*Operations!$H67/Operations!$I67/1000)^VLOOKUP(Operations!$C67,ImpRepairFac[],4,FALSE))*Operations!$N67*VLOOKUP(Operations!$C67,ImpRepairFac[],3,FALSE)/Operations!$H67) -> 1.086075631 | P67: 20000 | Q67: 14911 | R67: =IF(Operations!$N67=0,0,IF(Operations!$I67*Operations!$H67=0,0,(Operations!$P67-Operations!$Q67)/(Operations!$H67))) -> 5.089 | S67: =IF(Operations!$H67=0,0,Operations!$P67*'General Variables'!$B$9/Operations!$H67) -> 0.4 | T67: =IF(Operations!$H67=0,0,Operations!$P67*'General Variables'!$B$10/Operations!$H67) -> 0.6 | U67: =SUM(Table3[[#This Row],[Depreciation per Unit]:[Opportunity Cost per Unit]]) -> 6.089
A68: Sweep Plow | B68: acre | C68: Mulcher-packer | D68: Disks and all other tillage equipment | E68: 57500 | G68: 5 | H68: 1000 | I68: 12.5 | J68: 1.1 | K68: Large Tractor | L68: 8.622580645 | N68: =IF(Operations!$E68>1,Operations!$E68,IF(Operations!$D68=0,0,Operations!$F68/(VLOOKUP(Operations!$D68,ImpDepLookup,2,FALSE)-VLOOKUP(Operations!$D68,ImpDepLookup,3,FALSE)*Operations!$G68^0.5-VLOOKUP(Operations!$D68,ImpDepLookup,4,FALSE)*(Operations!$G68*(Operations!$G68*Operations!$H68/Operations!$I68)^0.5))^2)) -> 57500 | O68: =IF(Operations!$C68="",0,(((Operations!$G68+1)*Operations!$H68/Operations!$I68/1000)^VLOOKUP(Operations!$C68,ImpRepairFac[],4,FALSE)-(Operations!$G68*Operations!$H68/Operations!$I68/1000)^VLOOKUP(Operations!$C68,ImpRepairFac[],4,FALSE))*Operations!$N68*VLOOKUP(Operations!$C68,ImpRepairFac[],3,FALSE)/Operations!$H68) -> 0.747706386 | P68: =IF(Operations!$N68=0,0,Operations!$N68*(VLOOKUP(Operations!$D68,ImpDepLookup,2,FALSE)-VLOOKUP(Operations!$D68,ImpDepLookup,3,FALSE)*Operations!$G68^0.5-VLOOKUP(Operations!$D68,ImpDepLookup,4,FALSE)*(Operations!$G68*Operations!$H68/Operations!$I68)^0.5)^2) -> 23923.84992 | Q68: =IF(Operations!$N68=0,0,Operations!$N68*(VLOOKUP(Operations!$D68,ImpDepLookup,2,FALSE)-VLOOKUP(Operations!$D68,ImpDepLookup,3,FALSE)*(Operations!$G68+1)^0.5-VLOOKUP(Operations!$D68,ImpDepLookup,4,FALSE)*(Operations!$G68*Operations!$H68/Operations!$I68)^0.5)^2) -> 22214.09119 | R68: =IF(Operations!$N68=0,0,IF(Operations!$I68*Operations!$H68=0,0,(Operations!$P68-Operations!$Q68)/(Operations!$H68))) -> 1.70975873 | S68: =IF(Operations!$H68=0,0,Operations!$P68*'General Variables'!$B$9/Operations!$H68) -> 0.4784769983 | T68: =IF(Operations!$H68=0,0,Operations!$P68*'General Variables'!$B$10/Operations!$H68) -> 0.7177154975 | U68: =SUM(Table3[[#This Row],[Depreciation per Unit]:[Opportunity Cost per Unit]]) -> 2.905951226
A69: Till Plant Beets | B69: acre | C69: Planter - Row crop | D69: Planters | E69: 103194 | G69: 5 | H69: 1000 | I69: 6 | J69: 1.1 | K69: Large Tractor | L69: 8.25 | N69: =IF(Operations!$E69>1,Operations!$E69,IF(Operations!$D69=0,0,Operations!$F69/(VLOOKUP(Operations!$D69,ImpDepLookup,2,FALSE)-VLOOKUP(Operations!$D69,ImpDepLookup,3,FALSE)*Operations!$G69^0.5-VLOOKUP(Operations!$D69,ImpDepLookup,4,FALSE)*(Operations!$G69*(Operations!$G69*Operations!$H69/Operations!$I69)^0.5))^2)) -> 103194 | O69: =IF(Operations!$C69="",0,(((Operations!$G69+1)*Operations!$H69/Operations!$I69/1000)^VLOOKUP(Operations!$C69,ImpRepairFac[],4,FALSE)-(Operations!$G69*Operations!$H69/Operations!$I69/1000)^VLOOKUP(Operations!$C69,ImpRepairFac[],4,FALSE))*Operations!$N69*VLOOKUP(Operations!$C69,ImpRepairFac[],3,FALSE)/Operations!$H69) -> 10.50439142 | P69: =IF(Operations!$N69=0,0,Operations!$N69*(VLOOKUP(Operations!$D69,ImpDepLookup,2,FALSE)-VLOOKUP(Operations!$D69,ImpDepLookup,3,FALSE)*Operations!$G69^0.5-VLOOKUP(Operations!$D69,ImpDepLookup,4,FALSE)*(Operations!$G69*Operations!$H69/Operations!$I69)^0.5)^2) -> 51813.2026 | Q69: =IF(Operations!$N69=0,0,Operations!$N69*(VLOOKUP(Operations!$D69,ImpDepLookup,2,FALSE)-VLOOKUP(Operations!$D69,ImpDepLookup,3,FALSE)*(Operations!$G69+1)^0.5-VLOOKUP(Operations!$D69,ImpDepLookup,4,FALSE)*(Operations!$G69*Operations!$H69/Operations!$I69)^0.5)^2) -> 49407.29421 | R69: =IF(Operations!$N69=0,0,IF(Operations!$I69*Operations!$H69=0,0,(Operations!$P69-Operations!$Q69)/(Operations!$H69))) -> 2.405908394 | S69: =IF(Operations!$H69=0,0,Operations!$P69*'General Variables'!$B$9/Operations!$H69) -> 1.036264052 | T69: =IF(Operations!$H69=0,0,Operations!$P69*'General Variables'!$B$10/Operations!$H69) -> 1.554396078 | U69: =SUM(Table3[[#This Row],[Depreciation per Unit]:[Opportunity Cost per Unit]]) -> 4.996568524
A70: Top Beets | B70: acre | C70: Beet topper | D70: Swathers and all other harvest equipment | E70: 127495 | G70: 5 | H70: 1000 | I70: 5.789473684 | J70: 1 | K70: Medium Tractor | L70: 3.5 | N70: =IF(Operations!$E70>1,Operations!$E70,IF(Operations!$D70=0,0,Operations!$F70/(VLOOKUP(Operations!$D70,ImpDepLookup,2,FALSE)-VLOOKUP(Operations!$D70,ImpDepLookup,3,FALSE)*Operations!$G70^0.5-VLOOKUP(Operations!$D70,ImpDepLookup,4,FALSE)*(Operations!$G70*(Operations!$G70*Operations!$H70/Operations!$I70)^0.5))^2)) -> 127495 | O70: =IF(Operations!$C70="",0,(((Operations!$G70+1)*Operations!$H70/Operations!$I70/1000)^VLOOKUP(Operations!$C70,ImpRepairFac[],4,FALSE)-(Operations!$G70*Operations!$H70/Operations!$I70/1000)^VLOOKUP(Operations!$C70,ImpRepairFac[],4,FALSE))*Operations!$N70*VLOOKUP(Operations!$C70,ImpRepairFac[],3,FALSE)/Operations!$H70) -> 8.454457365 | P70: =IF(Operations!$N70=0,0,Operations!$N70*(VLOOKUP(Operations!$D70,ImpDepLookup,2,FALSE)-VLOOKUP(Operations!$D70,ImpDepLookup,3,FALSE)*Operations!$G70^0.5-VLOOKUP(Operations!$D70,ImpDepLookup,4,FALSE)*(Operations!$G70*Operations!$H70/Operations!$I70)^0.5)^2) -> 44008.3648 | Q70: =IF(Operations!$N70=0,0,Operations!$N70*(VLOOKUP(Operations!$D70,ImpDepLookup,2,FALSE)-VLOOKUP(Operations!$D70,ImpDepLookup,3,FALSE)*(Operations!$G70+1)^0.5-VLOOKUP(Operations!$D70,ImpDepLookup,4,FALSE)*(Operations!$G70*Operations!$H70/Operations!$I70)^0.5)^2) -> 41146.91493 | R70: =IF(Operations!$N70=0,0,IF(Operations!$I70*Operations!$H70=0,0,(Operations!$P70-Operations!$Q70)/(Operations!$H70))) -> 2.861449864 | S70: =IF(Operations!$H70=0,0,Operations!$P70*'General Variables'!$B$9/Operations!$H70) -> 0.8801672959 | T70: =IF(Operations!$H70=0,0,Operations!$P70*'General Variables'!$B$10/Operations!$H70) -> 1.320250944 | U70: =SUM(Table3[[#This Row],[Depreciation per Unit]:[Opportunity Cost per Unit]]) -> 5.061868104
A71: Truck | B71: Custom | G71: 5 | K71: Large Tractor | N71: =IF(Operations!$E71>1,Operations!$E71,IF(Operations!$D71=0,0,Operations!$F71/(VLOOKUP(Operations!$D71,ImpDepLookup,2,FALSE)-VLOOKUP(Operations!$D71,ImpDepLookup,3,FALSE)*Operations!$G71^0.5-VLOOKUP(Operations!$D71,ImpDepLookup,4,FALSE)*(Operations!$G71*(Operations!$G71*Operations!$H71/Operations!$I71)^0.5))^2)) -> 0 | O71: =IF(Operations!$C71="",0,(((Operations!$G71+1)*Operations!$H71/Operations!$I71/1000)^VLOOKUP(Operations!$C71,ImpRepairFac[],4,FALSE)-(Operations!$G71*Operations!$H71/Operations!$I71/1000)^VLOOKUP(Operations!$C71,ImpRepairFac[],4,FALSE))*Operations!$N71*VLOOKUP(Operations!$C71,ImpRepairFac[],3,FALSE)/Operations!$H71) -> 0 | P71: =IF(Operations!$N71=0,0,Operations!$N71*(VLOOKUP(Operations!$D71,ImpDepLookup,2,FALSE)-VLOOKUP(Operations!$D71,ImpDepLookup,3,FALSE)*Operations!$G71^0.5-VLOOKUP(Operations!$D71,ImpDepLookup,4,FALSE)*(Operations!$G71*Operations!$H71/Operations!$I71)^0.5)^2) -> 0 | Q71: =IF(Operations!$N71=0,0,Operations!$N71*(VLOOKUP(Operations!$D71,ImpDepLookup,2,FALSE)-VLOOKUP(Operations!$D71,ImpDepLookup,3,FALSE)*(Operations!$G71+1)^0.5-VLOOKUP(Operations!$D71,ImpDepLookup,4,FALSE)*(Operations!$G71*Operations!$H71/Operations!$I71)^0.5)^2) -> 0 | R71: =IF(Operations!$N71=0,0,IF(Operations!$I71*Operations!$H71=0,0,(Operations!$P71-Operations!$Q71)/(Operations!$H71))) -> 0 | S71: =IF(Operations!$H71=0,0,Operations!$P71*'General Variables'!$B$9/Operations!$H71) -> 0 | T71: =IF(Operations!$H71=0,0,Operations!$P71*'General Variables'!$B$10/Operations!$H71) -> 0 | U71: =SUM(Table3[[#This Row],[Depreciation per Unit]:[Opportunity Cost per Unit]]) -> 0
A72: Turn Windrows | B72: acre | C72: Rake - Side delivery | D72: Swathers and all other harvest equipment | E72: 15726 | G72: 5 | H72: 1000 | I72: 12 | J72: 1 | K72: Windrower | L72: 2.097196262 | N72: =IF(Operations!$E72>1,Operations!$E72,IF(Operations!$D72=0,0,Operations!$F72/(VLOOKUP(Operations!$D72,ImpDepLookup,2,FALSE)-VLOOKUP(Operations!$D72,ImpDepLookup,3,FALSE)*Operations!$G72^0.5-VLOOKUP(Operations!$D72,ImpDepLookup,4,FALSE)*(Operations!$G72*(Operations!$G72*Operations!$H72/Operations!$I72)^0.5))^2)) -> 15726 | O72: =IF(Operations!$C72="",0,(((Operations!$G72+1)*Operations!$H72/Operations!$I72/1000)^VLOOKUP(Operations!$C72,ImpRepairFac[],4,FALSE)-(Operations!$G72*Operations!$H72/Operations!$I72/1000)^VLOOKUP(Operations!$C72,ImpRepairFac[],4,FALSE))*Operations!$N72*VLOOKUP(Operations!$C72,ImpRepairFac[],3,FALSE)/Operations!$H72) -> 0.2282142295 | P72: =IF(Operations!$N72=0,0,Operations!$N72*(VLOOKUP(Operations!$D72,ImpDepLookup,2,FALSE)-VLOOKUP(Operations!$D72,ImpDepLookup,3,FALSE)*Operations!$G72^0.5-VLOOKUP(Operations!$D72,ImpDepLookup,4,FALSE)*(Operations!$G72*Operations!$H72/Operations!$I72)^0.5)^2) -> 5428.256361 | Q72: =IF(Operations!$N72=0,0,Operations!$N72*(VLOOKUP(Operations!$D72,ImpDepLookup,2,FALSE)-VLOOKUP(Operations!$D72,ImpDepLookup,3,FALSE)*(Operations!$G72+1)^0.5-VLOOKUP(Operations!$D72,ImpDepLookup,4,FALSE)*(Operations!$G72*Operations!$H72/Operations!$I72)^0.5)^2) -> 5075.307928 | R72: =IF(Operations!$N72=0,0,IF(Operations!$I72*Operations!$H72=0,0,(Operations!$P72-Operations!$Q72)/(Operations!$H72))) -> 0.3529484338 | S72: =IF(Operations!$H72=0,0,Operations!$P72*'General Variables'!$B$9/Operations!$H72) -> 0.1085651272 | T72: =IF(Operations!$H72=0,0,Operations!$P72*'General Variables'!$B$10/Operations!$H72) -> 0.1628476908 | U72: =SUM(Table3[[#This Row],[Depreciation per Unit]:[Opportunity Cost per Unit]]) -> 0.6243612518
A73: Windrow Grain | B73: acre | C73: Mower-conditioner | D73: Swathers and all other harvest equipment | E73: 15726 | G73: 5 | H73: 1500 | I73: 10 | J73: 1 | K73: Windrower | L73: 5 | N73: =IF(Operations!$E73>1,Operations!$E73,IF(Operations!$D73=0,0,Operations!$F73/(VLOOKUP(Operations!$D73,ImpDepLookup,2,FALSE)-VLOOKUP(Operations!$D73,ImpDepLookup,3,FALSE)*Operations!$G73^0.5-VLOOKUP(Operations!$D73,ImpDepLookup,4,FALSE)*(Operations!$G73*(Operations!$G73*Operations!$H73/Operations!$I73)^0.5))^2)) -> 15726 | O73: =IF(Operations!$C73="",0,(((Operations!$G73+1)*Operations!$H73/Operations!$I73/1000)^VLOOKUP(Operations!$C73,ImpRepairFac[],4,FALSE)-(Operations!$G73*Operations!$H73/Operations!$I73/1000)^VLOOKUP(Operations!$C73,ImpRepairFac[],4,FALSE))*Operations!$N73*VLOOKUP(Operations!$C73,ImpRepairFac[],3,FALSE)/Operations!$H73) -> 0.4034031973 | P73: =IF(Operations!$N73=0,0,Operations!$N73*(VLOOKUP(Operations!$D73,ImpDepLookup,2,FALSE)-VLOOKUP(Operations!$D73,ImpDepLookup,3,FALSE)*Operations!$G73^0.5-VLOOKUP(Operations!$D73,ImpDepLookup,4,FALSE)*(Operations!$G73*Operations!$H73/Operations!$I73)^0.5)^2) -> 5428.256361 | Q73: =IF(Operations!$N73=0,0,Operations!$N73*(VLOOKUP(Operations!$D73,ImpDepLookup,2,FALSE)-VLOOKUP(Operations!$D73,ImpDepLookup,3,FALSE)*(Operations!$G73+1)^0.5-VLOOKUP(Operations!$D73,ImpDepLookup,4,FALSE)*(Operations!$G73*Operations!$H73/Operations!$I73)^0.5)^2) -> 5075.307928 | R73: =IF(Operations!$N73=0,0,IF(Operations!$I73*Operations!$H73=0,0,(Operations!$P73-Operations!$Q73)/(Operations!$H73))) -> 0.2352989558 | S73: =IF(Operations!$H73=0,0,Operations!$P73*'General Variables'!$B$9/Operations!$H73) -> 0.07237675148 | T73: =IF(Operations!$H73=0,0,Operations!$P73*'General Variables'!$B$10/Operations!$H73) -> 0.1085651272 | U73: =SUM(Table3[[#This Row],[Depreciation per Unit]:[Opportunity Cost per Unit]]) -> 0.4162408345
N74: =IF(Operations!$E74>1,Operations!$E74,IF(Operations!$D74=0,0,Operations!$F74/(VLOOKUP(Operations!$D74,ImpDepLookup,2,FALSE)-VLOOKUP(Operations!$D74,ImpDepLookup,3,FALSE)*Operations!$G74^0.5-VLOOKUP(Operations!$D74,ImpDepLookup,4,FALSE)*(Operations!$G74*(Operations!$G74*Operations!$H74/Operations!$I74)^0.5))^2)) -> 0 | O74: =IF(Operations!$C74="",0,(((Operations!$G74+1)*Operations!$H74/Operations!$I74/1000)^VLOOKUP(Operations!$C74,ImpRepairFac[],4,FALSE)-(Operations!$G74*Operations!$H74/Operations!$I74/1000)^VLOOKUP(Operations!$C74,ImpRepairFac[],4,FALSE))*Operations!$N74*VLOOKUP(Operations!$C74,ImpRepairFac[],3,FALSE)/Operations!$H74) -> 0 | P74: =IF(Operations!$N74=0,0,Operations!$N74*(VLOOKUP(Operations!$D74,ImpDepLookup,2,FALSE)-VLOOKUP(Operations!$D74,ImpDepLookup,3,FALSE)*Operations!$G74^0.5-VLOOKUP(Operations!$D74,ImpDepLookup,4,FALSE)*(Operations!$G74*Operations!$H74/Operations!$I74)^0.5)^2) -> 0 | Q74: =IF(Operations!$N74=0,0,Operations!$N74*(VLOOKUP(Operations!$D74,ImpDepLookup,2,FALSE)-VLOOKUP(Operations!$D74,ImpDepLookup,3,FALSE)*(Operations!$G74+1)^0.5-VLOOKUP(Operations!$D74,ImpDepLookup,4,FALSE)*(Operations!$G74*Operations!$H74/Operations!$I74)^0.5)^2) -> 0 | R74: =IF(Operations!$N74=0,0,IF(Operations!$I74*Operations!$H74=0,0,(Operations!$P74-Operations!$Q74)/(Operations!$H74))) -> 0 | S74: =IF(Operations!$H74=0,0,Operations!$P74*'General Variables'!$B$9/Operations!$H74) -> 0 | T74: =IF(Operations!$H74=0,0,Operations!$P74*'General Variables'!$B$10/Operations!$H74) -> 0 | U74: =SUM(Table3[[#This Row],[Depreciation per Unit]:[Opportunity Cost per Unit]]) -> 0
N75: =IF(Operations!$E75>1,Operations!$E75,IF(Operations!$D75=0,0,Operations!$F75/(VLOOKUP(Operations!$D75,ImpDepLookup,2,FALSE)-VLOOKUP(Operations!$D75,ImpDepLookup,3,FALSE)*Operations!$G75^0.5-VLOOKUP(Operations!$D75,ImpDepLookup,4,FALSE)*(Operations!$G75*(Operations!$G75*Operations!$H75/Operations!$I75)^0.5))^2)) -> 0 | O75: =IF(Operations!$C75="",0,(((Operations!$G75+1)*Operations!$H75/Operations!$I75/1000)^VLOOKUP(Operations!$C75,ImpRepairFac[],4,FALSE)-(Operations!$G75*Operations!$H75/Operations!$I75/1000)^VLOOKUP(Operations!$C75,ImpRepairFac[],4,FALSE))*Operations!$N75*VLOOKUP(Operations!$C75,ImpRepairFac[],3,FALSE)/Operations!$H75) -> 0 | P75: =IF(Operations!$N75=0,0,Operations!$N75*(VLOOKUP(Operations!$D75,ImpDepLookup,2,FALSE)-VLOOKUP(Operations!$D75,ImpDepLookup,3,FALSE)*Operations!$G75^0.5-VLOOKUP(Operations!$D75,ImpDepLookup,4,FALSE)*(Operations!$G75*Operations!$H75/Operations!$I75)^0.5)^2) -> 0 | Q75: =IF(Operations!$N75=0,0,Operations!$N75*(VLOOKUP(Operations!$D75,ImpDepLookup,2,FALSE)-VLOOKUP(Operations!$D75,ImpDepLookup,3,FALSE)*(Operations!$G75+1)^0.5-VLOOKUP(Operations!$D75,ImpDepLookup,4,FALSE)*(Operations!$G75*Operations!$H75/Operations!$I75)^0.5)^2) -> 0 | R75: =IF(Operations!$N75=0,0,IF(Operations!$I75*Operations!$H75=0,0,(Operations!$P75-Operations!$Q75)/(Operations!$H75))) -> 0 | S75: =IF(Operations!$H75=0,0,Operations!$P75*'General Variables'!$B$9/Operations!$H75) -> 0 | T75: =IF(Operations!$H75=0,0,Operations!$P75*'General Variables'!$B$10/Operations!$H75) -> 0 | U75: =SUM(Table3[[#This Row],[Depreciation per Unit]:[Opportunity Cost per Unit]]) -> 0
N76: =IF(Operations!$E76>1,Operations!$E76,IF(Operations!$D76=0,0,Operations!$F76/(VLOOKUP(Operations!$D76,ImpDepLookup,2,FALSE)-VLOOKUP(Operations!$D76,ImpDepLookup,3,FALSE)*Operations!$G76^0.5-VLOOKUP(Operations!$D76,ImpDepLookup,4,FALSE)*(Operations!$G76*(Operations!$G76*Operations!$H76/Operations!$I76)^0.5))^2)) -> 0 | O76: =IF(Operations!$C76="",0,(((Operations!$G76+1)*Operations!$H76/Operations!$I76/1000)^VLOOKUP(Operations!$C76,ImpRepairFac[],4,FALSE)-(Operations!$G76*Operations!$H76/Operations!$I76/1000)^VLOOKUP(Operations!$C76,ImpRepairFac[],4,FALSE))*Operations!$N76*VLOOKUP(Operations!$C76,ImpRepairFac[],3,FALSE)/Operations!$H76) -> 0 | P76: =IF(Operations!$N76=0,0,Operations!$N76*(VLOOKUP(Operations!$D76,ImpDepLookup,2,FALSE)-VLOOKUP(Operations!$D76,ImpDepLookup,3,FALSE)*Operations!$G76^0.5-VLOOKUP(Operations!$D76,ImpDepLookup,4,FALSE)*(Operations!$G76*Operations!$H76/Operations!$I76)^0.5)^2) -> 0 | Q76: =IF(Operations!$N76=0,0,Operations!$N76*(VLOOKUP(Operations!$D76,ImpDepLookup,2,FALSE)-VLOOKUP(Operations!$D76,ImpDepLookup,3,FALSE)*(Operations!$G76+1)^0.5-VLOOKUP(Operations!$D76,ImpDepLookup,4,FALSE)*(Operations!$G76*Operations!$H76/Operations!$I76)^0.5)^2) -> 0 | R76: =IF(Operations!$N76=0,0,IF(Operations!$I76*Operations!$H76=0,0,(Operations!$P76-Operations!$Q76)/(Operations!$H76))) -> 0 | S76: =IF(Operations!$H76=0,0,Operations!$P76*'General Variables'!$B$9/Operations!$H76) -> 0 | T76: =IF(Operations!$H76=0,0,Operations!$P76*'General Variables'!$B$10/Operations!$H76) -> 0 | U76: =SUM(Table3[[#This Row],[Depreciation per Unit]:[Opportunity Cost per Unit]]) -> 0
N77: =IF(Operations!$E77>1,Operations!$E77,IF(Operations!$D77=0,0,Operations!$F77/(VLOOKUP(Operations!$D77,ImpDepLookup,2,FALSE)-VLOOKUP(Operations!$D77,ImpDepLookup,3,FALSE)*Operations!$G77^0.5-VLOOKUP(Operations!$D77,ImpDepLookup,4,FALSE)*(Operations!$G77*(Operations!$G77*Operations!$H77/Operations!$I77)^0.5))^2)) -> 0 | O77: =IF(Operations!$C77="",0,(((Operations!$G77+1)*Operations!$H77/Operations!$I77/1000)^VLOOKUP(Operations!$C77,ImpRepairFac[],4,FALSE)-(Operations!$G77*Operations!$H77/Operations!$I77/1000)^VLOOKUP(Operations!$C77,ImpRepairFac[],4,FALSE))*Operations!$N77*VLOOKUP(Operations!$C77,ImpRepairFac[],3,FALSE)/Operations!$H77) -> 0 | P77: =IF(Operations!$N77=0,0,Operations!$N77*(VLOOKUP(Operations!$D77,ImpDepLookup,2,FALSE)-VLOOKUP(Operations!$D77,ImpDepLookup,3,FALSE)*Operations!$G77^0.5-VLOOKUP(Operations!$D77,ImpDepLookup,4,FALSE)*(Operations!$G77*Operations!$H77/Operations!$I77)^0.5)^2) -> 0 | Q77: =IF(Operations!$N77=0,0,Operations!$N77*(VLOOKUP(Operations!$D77,ImpDepLookup,2,FALSE)-VLOOKUP(Operations!$D77,ImpDepLookup,3,FALSE)*(Operations!$G77+1)^0.5-VLOOKUP(Operations!$D77,ImpDepLookup,4,FALSE)*(Operations!$G77*Operations!$H77/Operations!$I77)^0.5)^2) -> 0 | R77: =IF(Operations!$N77=0,0,IF(Operations!$I77*Operations!$H77=0,0,(Operations!$P77-Operations!$Q77)/(Operations!$H77))) -> 0 | S77: =IF(Operations!$H77=0,0,Operations!$P77*'General Variables'!$B$9/Operations!$H77) -> 0 | T77: =IF(Operations!$H77=0,0,Operations!$P77*'General Variables'!$B$10/Operations!$H77) -> 0 | U77: =SUM(Table3[[#This Row],[Depreciation per Unit]:[Opportunity Cost per Unit]]) -> 0
N78: =IF(Operations!$E78>1,Operations!$E78,IF(Operations!$D78=0,0,Operations!$F78/(VLOOKUP(Operations!$D78,ImpDepLookup,2,FALSE)-VLOOKUP(Operations!$D78,ImpDepLookup,3,FALSE)*Operations!$G78^0.5-VLOOKUP(Operations!$D78,ImpDepLookup,4,FALSE)*(Operations!$G78*(Operations!$G78*Operations!$H78/Operations!$I78)^0.5))^2)) -> 0 | O78: =IF(Operations!$C78="",0,(((Operations!$G78+1)*Operations!$H78/Operations!$I78/1000)^VLOOKUP(Operations!$C78,ImpRepairFac[],4,FALSE)-(Operations!$G78*Operations!$H78/Operations!$I78/1000)^VLOOKUP(Operations!$C78,ImpRepairFac[],4,FALSE))*Operations!$N78*VLOOKUP(Operations!$C78,ImpRepairFac[],3,FALSE)/Operations!$H78) -> 0 | P78: =IF(Operations!$N78=0,0,Operations!$N78*(VLOOKUP(Operations!$D78,ImpDepLookup,2,FALSE)-VLOOKUP(Operations!$D78,ImpDepLookup,3,FALSE)*Operations!$G78^0.5-VLOOKUP(Operations!$D78,ImpDepLookup,4,FALSE)*(Operations!$G78*Operations!$H78/Operations!$I78)^0.5)^2) -> 0 | Q78: =IF(Operations!$N78=0,0,Operations!$N78*(VLOOKUP(Operations!$D78,ImpDepLookup,2,FALSE)-VLOOKUP(Operations!$D78,ImpDepLookup,3,FALSE)*(Operations!$G78+1)^0.5-VLOOKUP(Operations!$D78,ImpDepLookup,4,FALSE)*(Operations!$G78*Operations!$H78/Operations!$I78)^0.5)^2) -> 0 | R78: =IF(Operations!$N78=0,0,IF(Operations!$I78*Operations!$H78=0,0,(Operations!$P78-Operations!$Q78)/(Operations!$H78))) -> 0 | S78: =IF(Operations!$H78=0,0,Operations!$P78*'General Variables'!$B$9/Operations!$H78) -> 0 | T78: =IF(Operations!$H78=0,0,Operations!$P78*'General Variables'!$B$10/Operations!$H78) -> 0 | U78: =SUM(Table3[[#This Row],[Depreciation per Unit]:[Opportunity Cost per Unit]]) -> 0
N79: =IF(Operations!$E79>1,Operations!$E79,IF(Operations!$D79=0,0,Operations!$F79/(VLOOKUP(Operations!$D79,ImpDepLookup,2,FALSE)-VLOOKUP(Operations!$D79,ImpDepLookup,3,FALSE)*Operations!$G79^0.5-VLOOKUP(Operations!$D79,ImpDepLookup,4,FALSE)*(Operations!$G79*(Operations!$G79*Operations!$H79/Operations!$I79)^0.5))^2)) -> 0 | O79: =IF(Operations!$C79="",0,(((Operations!$G79+1)*Operations!$H79/Operations!$I79/1000)^VLOOKUP(Operations!$C79,ImpRepairFac[],4,FALSE)-(Operations!$G79*Operations!$H79/Operations!$I79/1000)^VLOOKUP(Operations!$C79,ImpRepairFac[],4,FALSE))*Operations!$N79*VLOOKUP(Operations!$C79,ImpRepairFac[],3,FALSE)/Operations!$H79) -> 0 | P79: =IF(Operations!$N79=0,0,Operations!$N79*(VLOOKUP(Operations!$D79,ImpDepLookup,2,FALSE)-VLOOKUP(Operations!$D79,ImpDepLookup,3,FALSE)*Operations!$G79^0.5-VLOOKUP(Operations!$D79,ImpDepLookup,4,FALSE)*(Operations!$G79*Operations!$H79/Operations!$I79)^0.5)^2) -> 0 | Q79: =IF(Operations!$N79=0,0,Operations!$N79*(VLOOKUP(Operations!$D79,ImpDepLookup,2,FALSE)-VLOOKUP(Operations!$D79,ImpDepLookup,3,FALSE)*(Operations!$G79+1)^0.5-VLOOKUP(Operations!$D79,ImpDepLookup,4,FALSE)*(Operations!$G79*Operations!$H79/Operations!$I79)^0.5)^2) -> 0 | R79: =IF(Operations!$N79=0,0,IF(Operations!$I79*Operations!$H79=0,0,(Operations!$P79-Operations!$Q79)/(Operations!$H79))) -> 0 | S79: =IF(Operations!$H79=0,0,Operations!$P79*'General Variables'!$B$9/Operations!$H79) -> 0 | T79: =IF(Operations!$H79=0,0,Operations!$P79*'General Variables'!$B$10/Operations!$H79) -> 0 | U79: =SUM(Table3[[#This Row],[Depreciation per Unit]:[Opportunity Cost per Unit]]) -> 0

Sheet Power Units
A1: Name | B1: Repair Category | C1: Depreciation Category | D1: List Price | E1: Beg Yr Value | F1: Age | G1: Tach Hours | H1: Est. Hours per Year | I1: Calculated List Price | J1: Repairs per Hour | K1: Calculated Beg Yr. Value | L1: Calculated End Yr. Value | M1: Depreciation per Hour | N1: TIH per Hour | O1: Opportunity Cost per Hour | P1: Ownership Cost per Hour | Q1: Column1 | R1: Machine | S1: Catogory | T1: RF1 | U1: RF2 | V1: Estimated Life | X1: Equipment type | Y1: Machine | Z1: C1 | AA1: C2 | AB1: C3
A2: Large Tractor | B2: 4 wheel drive & crawler | C2: Farm tractors (>150hp) | D2: 534184 | F2: 5 | G2: 850 | H2: 250 | I2: =IF(PowerUnits[[#This Row],[List Price]]>1,PowerUnits[[#This Row],[List Price]],IF(C2="",0,PowerUnits[[#This Row],[Beg Yr Value]]/(VLOOKUP(PowerUnits[[#This Row],[Depreciation Category]],PwrDepreciation,2,FALSE)-VLOOKUP(PowerUnits[[#This Row],[Depreciation Category]],PwrDepreciation,3,FALSE)*PowerUnits[[#This Row],[Age]]^0.5-VLOOKUP(PowerUnits[[#This Row],[Depreciation Category]],PwrDepreciation,4,FALSE)*PowerUnits[[#This Row],[Tach Hours]]^0.5)^2)) -> 534184 | J2: =IF(PowerUnits[[#This Row],[Est. Hours per Year]]=0,0,IF(PowerUnits[[#This Row],[Repair Category]]=0,0,(VLOOKUP(PowerUnits[[#This Row],[Repair Category]],PwrRepairs[],3,FALSE)*PowerUnits[[#This Row],[Calculated List Price]]*((PowerUnits[[#This Row],[Tach Hours]]+PowerUnits[[#This Row],[Est. Hours per Year]])/1000)^VLOOKUP(PowerUnits[[#This Row],[Repair Category]],PwrRepairs[],4,FALSE)-VLOOKUP(PowerUnits[[#This Row],[Repair Category]],PwrRepairs[],3,FALSE)*PowerUnits[[#This Row],[Calculated List Price]]*(PowerUnits[[#This Row],[Tach Hours]]/1000)^VLOOKUP(PowerUnits[[#This Row],[Repair Category]],PwrRepairs[],4,FALSE))/PowerUnits[[#This Row],[Est. Hours per Year]])) -> 3.1249764 | K2: =IF(PowerUnits[[#This Row],[Depreciation Category]]=0,0,PowerUnits[[#This Row],[Calculated List Price]]*(VLOOKUP(PowerUnits[[#This Row],[Depreciation Category]],PwrDepreciation,2,FALSE)-VLOOKUP(PowerUnits[[#This Row],[Depreciation Category]],PwrDepreciation,3,FALSE)*PowerUnits[[#This Row],[Age]]^0.5-VLOOKUP(PowerUnits[[#This Row],[Depreciation Category]],PwrDepreciation,4,FALSE)*PowerUnits[[#This Row],[Tach Hours]]^0.5)^2) -> 228838.2307 | L2: =IF(PowerUnits[[#This Row],[Depreciation Category]]=0,0,PowerUnits[[#This Row],[Calculated List Price]]*(VLOOKUP(PowerUnits[[#This Row],[Depreciation Category]],PwrDepreciation,2,FALSE)-VLOOKUP(PowerUnits[[#This Row],[Depreciation Category]],PwrDepreciation,3,FALSE)*(PowerUnits[[#This Row],[Age]]+1)^0.5-VLOOKUP(PowerUnits[[#This Row],[Depreciation Category]],PwrDepreciation,4,FALSE)*(PowerUnits[[#This Row],[Tach Hours]]+PowerUnits[[#This Row],[Est. Hours per Year]])^0.5)^2) -> 206331.6939 | M2: =IF(PowerUnits[[#This Row],[Est. Hours per Year]]=0,0,(PowerUnits[[#This Row],[Calculated Beg Yr. Value]]-PowerUnits[[#This Row],[Calculated End Yr. Value]])/PowerUnits[[#This Row],[Est. Hours per Year]]) -> 90.02614685 | N2: =IF(PowerUnits[[#This Row],[Est. Hours per Year]]=0,0,PowerUnits[[#This Row],[Calculated Beg Yr. Value]]*'General Variables'!$B$9/PowerUnits[[#This Row],[Est. Hours per Year]]) -> 18.30705845 | O2: =IF(PowerUnits[[#This Row],[Est. Hours per Year]]=0,0,PowerUnits[[#This Row],[Calculated Beg Yr. Value]]*'General Variables'!$B$10/PowerUnits[[#This Row],[Est. Hours per Year]]) -> 27.46058768 | P2: =SUM(PowerUnits[[#This Row],[Depreciation per Hour]:[Opportunity Cost per Hour]]) -> 135.793793 | Q2: 280 Case Magnum 280CVT AFS C | R2: 2 wheel drive & stationary tractor | S2: TRACTORS | T2: 0.007 | U2: 2.0 | V2: 12000 | X2: Farm tractors | Y2: Farm tractors (<80hp) | Z2: 0.981 | AA2: 0.093 | AB2: 0.0058
A3: Medium Tractor | B3: 4 wheel drive & crawler | C3: Farm tractors (80-150hp) | D3: 179500 | F3: 5 | G3: 500 | H3: 200 | I3: =IF(PowerUnits[[#This Row],[List Price]]>1,PowerUnits[[#This Row],[List Price]],IF(C3="",0,PowerUnits[[#This Row],[Beg Yr Value]]/(VLOOKUP(PowerUnits[[#This Row],[Depreciation Category]],PwrDepreciation,2,FALSE)-VLOOKUP(PowerUnits[[#This Row],[Depreciation Category]],PwrDepreciation,3,FALSE)*PowerUnits[[#This Row],[Age]]^0.5-VLOOKUP(PowerUnits[[#This Row],[Depreciation Category]],PwrDepreciation,4,FALSE)*PowerUnits[[#This Row],[Tach Hours]]^0.5)^2)) -> 179500 | J3: =IF(PowerUnits[[#This Row],[Est. Hours per Year]]=0,0,IF(PowerUnits[[#This Row],[Repair Category]]=0,0,(VLOOKUP(PowerUnits[[#This Row],[Repair Category]],PwrRepairs[],3,FALSE)*PowerUnits[[#This Row],[Calculated List Price]]*((PowerUnits[[#This Row],[Tach Hours]]+PowerUnits[[#This Row],[Est. Hours per Year]])/1000)^VLOOKUP(PowerUnits[[#This Row],[Repair Category]],PwrRepairs[],4,FALSE)-VLOOKUP(PowerUnits[[#This Row],[Repair Category]],PwrRepairs[],3,FALSE)*PowerUnits[[#This Row],[Calculated List Price]]*(PowerUnits[[#This Row],[Tach Hours]]/1000)^VLOOKUP(PowerUnits[[#This Row],[Repair Category]],PwrRepairs[],4,FALSE))/PowerUnits[[#This Row],[Est. Hours per Year]])) -> 0.6462 | K3: =IF(PowerUnits[[#This Row],[Depreciation Category]]=0,0,PowerUnits[[#This Row],[Calculated List Price]]*(VLOOKUP(PowerUnits[[#This Row],[Depreciation Category]],PwrDepreciation,2,FALSE)-VLOOKUP(PowerUnits[[#This Row],[Depreciation Category]],PwrDepreciation,3,FALSE)*PowerUnits[[#This Row],[Age]]^0.5-VLOOKUP(PowerUnits[[#This Row],[Depreciation Category]],PwrDepreciation,4,FALSE)*PowerUnits[[#This Row],[Tach Hours]]^0.5)^2) -> 88081.86638 | L3: =IF(PowerUnits[[#This Row],[Depreciation Category]]=0,0,PowerUnits[[#This Row],[Calculated List Price]]*(VLOOKUP(PowerUnits[[#This Row],[Depreciation Category]],PwrDepreciation,2,FALSE)-VLOOKUP(PowerUnits[[#This Row],[Depreciation Category]],PwrDepreciation,3,FALSE)*(PowerUnits[[#This Row],[Age]]+1)^0.5-VLOOKUP(PowerUnits[[#This Row],[Depreciation Category]],PwrDepreciation,4,FALSE)*(PowerUnits[[#This Row],[Tach Hours]]+PowerUnits[[#This Row],[Est. Hours per Year]])^0.5)^2) -> 81999.28941 | M3: =IF(PowerUnits[[#This Row],[Est. Hours per Year]]=0,0,(PowerUnits[[#This Row],[Calculated Beg Yr. Value]]-PowerUnits[[#This Row],[Calculated End Yr. Value]])/PowerUnits[[#This Row],[Est. Hours per Year]]) -> 30.41288484 | N3: =IF(PowerUnits[[#This Row],[Est. Hours per Year]]=0,0,PowerUnits[[#This Row],[Calculated Beg Yr. Value]]*'General Variables'!$B$9/PowerUnits[[#This Row],[Est. Hours per Year]]) -> 8.808186638 | O3: =IF(PowerUnits[[#This Row],[Est. Hours per Year]]=0,0,PowerUnits[[#This Row],[Calculated Beg Yr. Value]]*'General Variables'!$B$10/PowerUnits[[#This Row],[Est. Hours per Year]]) -> 13.21227996 | P3: =SUM(PowerUnits[[#This Row],[Depreciation per Hour]:[Opportunity Cost per Hour]]) -> 52.43335144 | Q3: Case IH 130 HP Farmhall 4WD | R3: 4 wheel drive & crawler | S3: TRACTORS | T3: 0.003 | U3: 2.0 | V3: 16000 | X3: Farm tractors | Y3: Farm tractors (80-150hp) | Z3: 0.942 | AA3: 0.100 | AB3: 0.0008
A4: Combine | B4: Combine(SP) | C4: Combines | D4: 620953 | F4: 5 | G4: 750 | H4: 215 | I4: =IF(PowerUnits[[#This Row],[List Price]]>1,PowerUnits[[#This Row],[List Price]],IF(C4="",0,PowerUnits[[#This Row],[Beg Yr Value]]/(VLOOKUP(PowerUnits[[#This Row],[Depreciation Category]],PwrDepreciation,2,FALSE)-VLOOKUP(PowerUnits[[#This Row],[Depreciation Category]],PwrDepreciation,3,FALSE)*PowerUnits[[#This Row],[Age]]^0.5-VLOOKUP(PowerUnits[[#This Row],[Depreciation Category]],PwrDepreciation,4,FALSE)*PowerUnits[[#This Row],[Tach Hours]]^0.5)^2)) -> 620953 | J4: =IF(PowerUnits[[#This Row],[Est. Hours per Year]]=0,0,IF(PowerUnits[[#This Row],[Repair Category]]=0,0,(VLOOKUP(PowerUnits[[#This Row],[Repair Category]],PwrRepairs[],3,FALSE)*PowerUnits[[#This Row],[Calculated List Price]]*((PowerUnits[[#This Row],[Tach Hours]]+PowerUnits[[#This Row],[Est. Hours per Year]])/1000)^VLOOKUP(PowerUnits[[#This Row],[Repair Category]],PwrRepairs[],4,FALSE)-VLOOKUP(PowerUnits[[#This Row],[Repair Category]],PwrRepairs[],3,FALSE)*PowerUnits[[#This Row],[Calculated List Price]]*(PowerUnits[[#This Row],[Tach Hours]]/1000)^VLOOKUP(PowerUnits[[#This Row],[Repair Category]],PwrRepairs[],4,FALSE))/PowerUnits[[#This Row],[Est. Hours per Year]])) -> 44.05760063 | K4: 270000 | L4: 240000 | M4: =IF(PowerUnits[[#This Row],[Est. Hours per Year]]=0,0,(PowerUnits[[#This Row],[Calculated Beg Yr. Value]]-PowerUnits[[#This Row],[Calculated End Yr. Value]])/PowerUnits[[#This Row],[Est. Hours per Year]]) -> 139.5348837 | N4: =IF(PowerUnits[[#This Row],[Est. Hours per Year]]=0,0,PowerUnits[[#This Row],[Calculated Beg Yr. Value]]*'General Variables'!$B$9/PowerUnits[[#This Row],[Est. Hours per Year]]) -> 25.11627907 | O4: =IF(PowerUnits[[#This Row],[Est. Hours per Year]]=0,0,PowerUnits[[#This Row],[Calculated Beg Yr. Value]]*'General Variables'!$B$10/PowerUnits[[#This Row],[Est. Hours per Year]]) -> 37.6744186 | P4: =SUM(PowerUnits[[#This Row],[Depreciation per Hour]:[Opportunity Cost per Hour]]) -> 202.3255814 | Q4: Case Axial Flow | R4: Combine(SP) | S4: HARVESTING | T4: 0.04 | U4: 2.1 | V4: 3000 | X4: Farm tractors | Y4: Farm tractors (>150hp) | Z4: 0.976 | AA4: 0.119 | AB4: 0.0019
A5: Diesel Pump | B5: 2 wheel drive & stationary tractor | C5: Farm tractors (80-150hp) | D5: 18000 | F5: 5 | G5: 2400 | H5: 800 | I5: =IF(PowerUnits[[#This Row],[List Price]]>1,PowerUnits[[#This Row],[List Price]],IF(C5="",0,PowerUnits[[#This Row],[Beg Yr Value]]/(VLOOKUP(PowerUnits[[#This Row],[Depreciation Category]],PwrDepreciation,2,FALSE)-VLOOKUP(PowerUnits[[#This Row],[Depreciation Category]],PwrDepreciation,3,FALSE)*PowerUnits[[#This Row],[Age]]^0.5-VLOOKUP(PowerUnits[[#This Row],[Depreciation Category]],PwrDepreciation,4,FALSE)*PowerUnits[[#This Row],[Tach Hours]]^0.5)^2)) -> 18000 | J5: =IF(PowerUnits[[#This Row],[Est. Hours per Year]]=0,0,IF(PowerUnits[[#This Row],[Repair Category]]=0,0,(VLOOKUP(PowerUnits[[#This Row],[Repair Category]],PwrRepairs[],3,FALSE)*PowerUnits[[#This Row],[Calculated List Price]]*((PowerUnits[[#This Row],[Tach Hours]]+PowerUnits[[#This Row],[Est. Hours per Year]])/1000)^VLOOKUP(PowerUnits[[#This Row],[Repair Category]],PwrRepairs[],4,FALSE)-VLOOKUP(PowerUnits[[#This Row],[Repair Category]],PwrRepairs[],3,FALSE)*PowerUnits[[#This Row],[Calculated List Price]]*(PowerUnits[[#This Row],[Tach Hours]]/1000)^VLOOKUP(PowerUnits[[#This Row],[Repair Category]],PwrRepairs[],4,FALSE))/PowerUnits[[#This Row],[Est. Hours per Year]])) -> 0.7056 | K5: =IF(PowerUnits[[#This Row],[Depreciation Category]]=0,0,PowerUnits[[#This Row],[Calculated List Price]]*(VLOOKUP(PowerUnits[[#This Row],[Depreciation Category]],PwrDepreciation,2,FALSE)-VLOOKUP(PowerUnits[[#This Row],[Depreciation Category]],PwrDepreciation,3,FALSE)*PowerUnits[[#This Row],[Age]]^0.5-VLOOKUP(PowerUnits[[#This Row],[Depreciation Category]],PwrDepreciation,4,FALSE)*PowerUnits[[#This Row],[Tach Hours]]^0.5)^2) -> 8303.660929 | L5: =IF(PowerUnits[[#This Row],[Depreciation Category]]=0,0,PowerUnits[[#This Row],[Calculated List Price]]*(VLOOKUP(PowerUnits[[#This Row],[Depreciation Category]],PwrDepreciation,2,FALSE)-VLOOKUP(PowerUnits[[#This Row],[Depreciation Category]],PwrDepreciation,3,FALSE)*(PowerUnits[[#This Row],[Age]]+1)^0.5-VLOOKUP(PowerUnits[[#This Row],[Depreciation Category]],PwrDepreciation,4,FALSE)*(PowerUnits[[#This Row],[Tach Hours]]+PowerUnits[[#This Row],[Est. Hours per Year]])^0.5)^2) -> 7647.08896 | M5: =IF(PowerUnits[[#This Row],[Est. Hours per Year]]=0,0,(PowerUnits[[#This Row],[Calculated Beg Yr. Value]]-PowerUnits[[#This Row],[Calculated End Yr. Value]])/PowerUnits[[#This Row],[Est. Hours per Year]]) -> 0.8207149618 | N5: =IF(PowerUnits[[#This Row],[Est. Hours per Year]]=0,0,PowerUnits[[#This Row],[Calculated Beg Yr. Value]]*'General Variables'!$B$9/PowerUnits[[#This Row],[Est. Hours per Year]]) -> 0.2075915232 | O5: =IF(PowerUnits[[#This Row],[Est. Hours per Year]]=0,0,PowerUnits[[#This Row],[Calculated Beg Yr. Value]]*'General Variables'!$B$10/PowerUnits[[#This Row],[Est. Hours per Year]]) -> 0.3113872848 | P5: =SUM(PowerUnits[[#This Row],[Depreciation per Hour]:[Opportunity Cost per Hour]]) -> 1.33969377 | R5: Cotton picker(SP) | S5: HARVESTING | T5: 0.11 | U5: 1.8 | V5: 3000 | X5: Harvest equipment | Y5: Combines | Z5: 1.132 | AA5: 0.165 | AB5: 0.0079
A6: Electric Pump | B6: Electric Motor | C6: Farm tractors (<80hp) | D6: 16000 | F6: 5 | G6: 2400 | H6: 800 | I6: =IF(PowerUnits[[#This Row],[List Price]]>1,PowerUnits[[#This Row],[List Price]],IF(C6="",0,PowerUnits[[#This Row],[Beg Yr Value]]/(VLOOKUP(PowerUnits[[#This Row],[Depreciation Category]],PwrDepreciation,2,FALSE)-VLOOKUP(PowerUnits[[#This Row],[Depreciation Category]],PwrDepreciation,3,FALSE)*PowerUnits[[#This Row],[Age]]^0.5-VLOOKUP(PowerUnits[[#This Row],[Depreciation Category]],PwrDepreciation,4,FALSE)*PowerUnits[[#This Row],[Tach Hours]]^0.5)^2)) -> 16000 | J6: =IF(PowerUnits[[#This Row],[Est. Hours per Year]]=0,0,IF(PowerUnits[[#This Row],[Repair Category]]=0,0,(VLOOKUP(PowerUnits[[#This Row],[Repair Category]],PwrRepairs[],3,FALSE)*PowerUnits[[#This Row],[Calculated List Price]]*((PowerUnits[[#This Row],[Tach Hours]]+PowerUnits[[#This Row],[Est. Hours per Year]])/1000)^VLOOKUP(PowerUnits[[#This Row],[Repair Category]],PwrRepairs[],4,FALSE)-VLOOKUP(PowerUnits[[#This Row],[Repair Category]],PwrRepairs[],3,FALSE)*PowerUnits[[#This Row],[Calculated List Price]]*(PowerUnits[[#This Row],[Tach Hours]]/1000)^VLOOKUP(PowerUnits[[#This Row],[Repair Category]],PwrRepairs[],4,FALSE))/PowerUnits[[#This Row],[Est. Hours per Year]])) -> 0.802508004 | K6: =IF(PowerUnits[[#This Row],[Depreciation Category]]=0,0,PowerUnits[[#This Row],[Calculated List Price]]*(VLOOKUP(PowerUnits[[#This Row],[Depreciation Category]],PwrDepreciation,2,FALSE)-VLOOKUP(PowerUnits[[#This Row],[Depreciation Category]],PwrDepreciation,3,FALSE)*PowerUnits[[#This Row],[Age]]^0.5-VLOOKUP(PowerUnits[[#This Row],[Depreciation Category]],PwrDepreciation,4,FALSE)*PowerUnits[[#This Row],[Tach Hours]]^0.5)^2) -> 3824.447518 | L6: =IF(PowerUnits[[#This Row],[Depreciation Category]]=0,0,PowerUnits[[#This Row],[Calculated List Price]]*(VLOOKUP(PowerUnits[[#This Row],[Depreciation Category]],PwrDepreciation,2,FALSE)-VLOOKUP(PowerUnits[[#This Row],[Depreciation Category]],PwrDepreciation,3,FALSE)*(PowerUnits[[#This Row],[Age]]+1)^0.5-VLOOKUP(PowerUnits[[#This Row],[Depreciation Category]],PwrDepreciation,4,FALSE)*(PowerUnits[[#This Row],[Tach Hours]]+PowerUnits[[#This Row],[Est. Hours per Year]])^0.5)^2) -> 2891.358901 | M6: =IF(PowerUnits[[#This Row],[Est. Hours per Year]]=0,0,(PowerUnits[[#This Row],[Calculated Beg Yr. Value]]-PowerUnits[[#This Row],[Calculated End Yr. Value]])/PowerUnits[[#This Row],[Est. Hours per Year]]) -> 1.166360771 | N6: =IF(PowerUnits[[#This Row],[Est. Hours per Year]]=0,0,PowerUnits[[#This Row],[Calculated Beg Yr. Value]]*'General Variables'!$B$9/PowerUnits[[#This Row],[Est. Hours per Year]]) -> 0.09561118795 | O6: =IF(PowerUnits[[#This Row],[Est. Hours per Year]]=0,0,PowerUnits[[#This Row],[Calculated Beg Yr. Value]]*'General Variables'!$B$10/PowerUnits[[#This Row],[Est. Hours per Year]]) -> 0.1434167819 | P6: =SUM(PowerUnits[[#This Row],[Depreciation per Hour]:[Opportunity Cost per Hour]]) -> 1.405388741 | R6: Forage harvester(SP) | S6: HARVESTING | T6: 0.03 | U6: 2.0 | V6: 4000 | X6: Harvest equipment | Y6: Swathers and all other harvest equipment | Z6: 0.791 | AA6: 0.091
A7: Diesel Pump for Pipe | B7: 2 wheel drive & stationary tractor | C7: Farm tractors (<80hp) | D7: 18000 | F7: 5 | G7: 2400 | H7: 800 | I7: =IF(PowerUnits[[#This Row],[List Price]]>1,PowerUnits[[#This Row],[List Price]],IF(C7="",0,PowerUnits[[#This Row],[Beg Yr Value]]/(VLOOKUP(PowerUnits[[#This Row],[Depreciation Category]],PwrDepreciation,2,FALSE)-VLOOKUP(PowerUnits[[#This Row],[Depreciation Category]],PwrDepreciation,3,FALSE)*PowerUnits[[#This Row],[Age]]^0.5-VLOOKUP(PowerUnits[[#This Row],[Depreciation Category]],PwrDepreciation,4,FALSE)*PowerUnits[[#This Row],[Tach Hours]]^0.5)^2)) -> 18000 | J7: =IF(PowerUnits[[#This Row],[Est. Hours per Year]]=0,0,IF(PowerUnits[[#This Row],[Repair Category]]=0,0,(VLOOKUP(PowerUnits[[#This Row],[Repair Category]],PwrRepairs[],3,FALSE)*PowerUnits[[#This Row],[Calculated List Price]]*((PowerUnits[[#This Row],[Tach Hours]]+PowerUnits[[#This Row],[Est. Hours per Year]])/1000)^VLOOKUP(PowerUnits[[#This Row],[Repair Category]],PwrRepairs[],4,FALSE)-VLOOKUP(PowerUnits[[#This Row],[Repair Category]],PwrRepairs[],3,FALSE)*PowerUnits[[#This Row],[Calculated List Price]]*(PowerUnits[[#This Row],[Tach Hours]]/1000)^VLOOKUP(PowerUnits[[#This Row],[Repair Category]],PwrRepairs[],4,FALSE))/PowerUnits[[#This Row],[Est. Hours per Year]])) -> 0.7056 | K7: =IF(PowerUnits[[#This Row],[Depreciation Category]]=0,0,PowerUnits[[#This Row],[Calculated List Price]]*(VLOOKUP(PowerUnits[[#This Row],[Depreciation Category]],PwrDepreciation,2,FALSE)-VLOOKUP(PowerUnits[[#This Row],[Depreciation Category]],PwrDepreciation,3,FALSE)*PowerUnits[[#This Row],[Age]]^0.5-VLOOKUP(PowerUnits[[#This Row],[Depreciation Category]],PwrDepreciation,4,FALSE)*PowerUnits[[#This Row],[Tach Hours]]^0.5)^2) -> 4302.503458 | L7: =IF(PowerUnits[[#This Row],[Depreciation Category]]=0,0,PowerUnits[[#This Row],[Calculated List Price]]*(VLOOKUP(PowerUnits[[#This Row],[Depreciation Category]],PwrDepreciation,2,FALSE)-VLOOKUP(PowerUnits[[#This Row],[Depreciation Category]],PwrDepreciation,3,FALSE)*(PowerUnits[[#This Row],[Age]]+1)^0.5-VLOOKUP(PowerUnits[[#This Row],[Depreciation Category]],PwrDepreciation,4,FALSE)*(PowerUnits[[#This Row],[Tach Hours]]+PowerUnits[[#This Row],[Est. Hours per Year]])^0.5)^2) -> 3252.778764 | M7: =IF(PowerUnits[[#This Row],[Est. Hours per Year]]=0,0,(PowerUnits[[#This Row],[Calculated Beg Yr. Value]]-PowerUnits[[#This Row],[Calculated End Yr. Value]])/PowerUnits[[#This Row],[Est. Hours per Year]]) -> 1.312155868 | N7: =IF(PowerUnits[[#This Row],[Est. Hours per Year]]=0,0,PowerUnits[[#This Row],[Calculated Beg Yr. Value]]*'General Variables'!$B$9/PowerUnits[[#This Row],[Est. Hours per Year]]) -> 0.1075625864 | O7: =IF(PowerUnits[[#This Row],[Est. Hours per Year]]=0,0,PowerUnits[[#This Row],[Calculated Beg Yr. Value]]*'General Variables'!$B$10/PowerUnits[[#This Row],[Est. Hours per Year]]) -> 0.1613438797 | P7: =SUM(PowerUnits[[#This Row],[Depreciation per Hour]:[Opportunity Cost per Hour]]) -> 1.581062334 | R7: Windrower(SP) | S7: HARVESTING | T7: 0.06 | U7: 2.0 | V7: 3000 | X7: Miscellaneousequipment | Y7: Skid-steerloaders and all other vechicles | Z7: 0.786 | AA7: 0.063 | AB7: 0.0033
A8: Windrower | B8: Forage harvester(SP) | C8: Swathers and all other harvest equipment | D8: 188545 | F8: 5 | G8: 800 | H8: 200 | I8: 178285 | J8: =IF(PowerUnits[[#This Row],[Est. Hours per Year]]=0,0,IF(PowerUnits[[#This Row],[Repair Category]]=0,0,(VLOOKUP(PowerUnits[[#This Row],[Repair Category]],PwrRepairs[],3,FALSE)*PowerUnits[[#This Row],[Calculated List Price]]*((PowerUnits[[#This Row],[Tach Hours]]+PowerUnits[[#This Row],[Est. Hours per Year]])/1000)^VLOOKUP(PowerUnits[[#This Row],[Repair Category]],PwrRepairs[],4,FALSE)-VLOOKUP(PowerUnits[[#This Row],[Repair Category]],PwrRepairs[],3,FALSE)*PowerUnits[[#This Row],[Calculated List Price]]*(PowerUnits[[#This Row],[Tach Hours]]/1000)^VLOOKUP(PowerUnits[[#This Row],[Repair Category]],PwrRepairs[],4,FALSE))/PowerUnits[[#This Row],[Est. Hours per Year]])) -> 9.62739 | K8: =IF(PowerUnits[[#This Row],[Depreciation Category]]=0,0,PowerUnits[[#This Row],[Calculated List Price]]*(VLOOKUP(PowerUnits[[#This Row],[Depreciation Category]],PwrDepreciation,2,FALSE)-VLOOKUP(PowerUnits[[#This Row],[Depreciation Category]],PwrDepreciation,3,FALSE)*PowerUnits[[#This Row],[Age]]^0.5-VLOOKUP(PowerUnits[[#This Row],[Depreciation Category]],PwrDepreciation,4,FALSE)*PowerUnits[[#This Row],[Tach Hours]]^0.5)^2) -> 61539.91386 | L8: =IF(PowerUnits[[#This Row],[Depreciation Category]]=0,0,PowerUnits[[#This Row],[Calculated List Price]]*(VLOOKUP(PowerUnits[[#This Row],[Depreciation Category]],PwrDepreciation,2,FALSE)-VLOOKUP(PowerUnits[[#This Row],[Depreciation Category]],PwrDepreciation,3,FALSE)*(PowerUnits[[#This Row],[Age]]+1)^0.5-VLOOKUP(PowerUnits[[#This Row],[Depreciation Category]],PwrDepreciation,4,FALSE)*(PowerUnits[[#This Row],[Tach Hours]]+PowerUnits[[#This Row],[Est. Hours per Year]])^0.5)^2) -> 57538.55233 | M8: =IF(PowerUnits[[#This Row],[Est. Hours per Year]]=0,0,(PowerUnits[[#This Row],[Calculated Beg Yr. Value]]-PowerUnits[[#This Row],[Calculated End Yr. Value]])/PowerUnits[[#This Row],[Est. Hours per Year]]) -> 20.00680768 | N8: =IF(PowerUnits[[#This Row],[Est. Hours per Year]]=0,0,PowerUnits[[#This Row],[Calculated Beg Yr. Value]]*'General Variables'!$B$9/PowerUnits[[#This Row],[Est. Hours per Year]]) -> 6.153991386 | O8: =IF(PowerUnits[[#This Row],[Est. Hours per Year]]=0,0,PowerUnits[[#This Row],[Calculated Beg Yr. Value]]*'General Variables'!$B$10/PowerUnits[[#This Row],[Est. Hours per Year]]) -> 9.230987079 | P8: =SUM(PowerUnits[[#This Row],[Depreciation per Hour]:[Opportunity Cost per Hour]]) -> 35.39178614 | R8: Electric Motor | S8: See Table 5-5* | T8: 0.02 | U8: 1.5
A9: Self-propelled sprayer | B9: Combine(SP) | C9: Combines | D9: 515000 | F9: 5 | G9: 700 | H9: 200 | I9: =IF(PowerUnits[[#This Row],[List Price]]>1,PowerUnits[[#This Row],[List Price]],IF(C9="",0,PowerUnits[[#This Row],[Beg Yr Value]]/(VLOOKUP(PowerUnits[[#This Row],[Depreciation Category]],PwrDepreciation,2,FALSE)-VLOOKUP(PowerUnits[[#This Row],[Depreciation Category]],PwrDepreciation,3,FALSE)*PowerUnits[[#This Row],[Age]]^0.5-VLOOKUP(PowerUnits[[#This Row],[Depreciation Category]],PwrDepreciation,4,FALSE)*PowerUnits[[#This Row],[Tach Hours]]^0.5)^2)) -> 515000 | J9: =IF(PowerUnits[[#This Row],[Est. Hours per Year]]=0,0,IF(PowerUnits[[#This Row],[Repair Category]]=0,0,(VLOOKUP(PowerUnits[[#This Row],[Repair Category]],PwrRepairs[],3,FALSE)*PowerUnits[[#This Row],[Calculated List Price]]*((PowerUnits[[#This Row],[Tach Hours]]+PowerUnits[[#This Row],[Est. Hours per Year]])/1000)^VLOOKUP(PowerUnits[[#This Row],[Repair Category]],PwrRepairs[],4,FALSE)-VLOOKUP(PowerUnits[[#This Row],[Repair Category]],PwrRepairs[],3,FALSE)*PowerUnits[[#This Row],[Calculated List Price]]*(PowerUnits[[#This Row],[Tach Hours]]/1000)^VLOOKUP(PowerUnits[[#This Row],[Repair Category]],PwrRepairs[],4,FALSE))/PowerUnits[[#This Row],[Est. Hours per Year]])) -> 33.85400524 | K9: =IF(PowerUnits[[#This Row],[Depreciation Category]]=0,0,PowerUnits[[#This Row],[Calculated List Price]]*(VLOOKUP(PowerUnits[[#This Row],[Depreciation Category]],PwrDepreciation,2,FALSE)-VLOOKUP(PowerUnits[[#This Row],[Depreciation Category]],PwrDepreciation,3,FALSE)*PowerUnits[[#This Row],[Age]]^0.5-VLOOKUP(PowerUnits[[#This Row],[Depreciation Category]],PwrDepreciation,4,FALSE)*PowerUnits[[#This Row],[Tach Hours]]^0.5)^2) -> 158081.3871 | L9: =IF(PowerUnits[[#This Row],[Depreciation Category]]=0,0,PowerUnits[[#This Row],[Calculated List Price]]*(VLOOKUP(PowerUnits[[#This Row],[Depreciation Category]],PwrDepreciation,2,FALSE)-VLOOKUP(PowerUnits[[#This Row],[Depreciation Category]],PwrDepreciation,3,FALSE)*(PowerUnits[[#This Row],[Age]]+1)^0.5-VLOOKUP(PowerUnits[[#This Row],[Depreciation Category]],PwrDepreciation,4,FALSE)*(PowerUnits[[#This Row],[Tach Hours]]+PowerUnits[[#This Row],[Est. Hours per Year]])^0.5)^2) -> 124072.8753 | M9: =IF(PowerUnits[[#This Row],[Est. Hours per Year]]=0,0,(PowerUnits[[#This Row],[Calculated Beg Yr. Value]]-PowerUnits[[#This Row],[Calculated End Yr. Value]])/PowerUnits[[#This Row],[Est. Hours per Year]]) -> 170.0425592 | N9: =IF(PowerUnits[[#This Row],[Est. Hours per Year]]=0,0,PowerUnits[[#This Row],[Calculated Beg Yr. Value]]*'General Variables'!$B$9/PowerUnits[[#This Row],[Est. Hours per Year]]) -> 15.80813871 | O9: =IF(PowerUnits[[#This Row],[Est. Hours per Year]]=0,0,PowerUnits[[#This Row],[Calculated Beg Yr. Value]]*'General Variables'!$B$10/PowerUnits[[#This Row],[Est. Hours per Year]]) -> 23.71220807 | P9: =SUM(PowerUnits[[#This Row],[Depreciation per Hour]:[Opportunity Cost per Hour]]) -> 209.562906
A10: Medium Tractor | B10: 2 wheel drive & stationary tractor | C10: Farm tractors (80-150hp) | D10: 118140 | F10: 5 | G10: 500 | H10: 200 | I10: 120000 | J10: =IF(PowerUnits[[#This Row],[Est. Hours per Year]]=0,0,IF(PowerUnits[[#This Row],[Repair Category]]=0,0,(VLOOKUP(PowerUnits[[#This Row],[Repair Category]],PwrRepairs[],3,FALSE)*PowerUnits[[#This Row],[Calculated List Price]]*((PowerUnits[[#This Row],[Tach Hours]]+PowerUnits[[#This Row],[Est. Hours per Year]])/1000)^VLOOKUP(PowerUnits[[#This Row],[Repair Category]],PwrRepairs[],4,FALSE)-VLOOKUP(PowerUnits[[#This Row],[Repair Category]],PwrRepairs[],3,FALSE)*PowerUnits[[#This Row],[Calculated List Price]]*(PowerUnits[[#This Row],[Tach Hours]]/1000)^VLOOKUP(PowerUnits[[#This Row],[Repair Category]],PwrRepairs[],4,FALSE))/PowerUnits[[#This Row],[Est. Hours per Year]])) -> 1.008 | K10: =IF(PowerUnits[[#This Row],[Depreciation Category]]=0,0,PowerUnits[[#This Row],[Calculated List Price]]*(VLOOKUP(PowerUnits[[#This Row],[Depreciation Category]],PwrDepreciation,2,FALSE)-VLOOKUP(PowerUnits[[#This Row],[Depreciation Category]],PwrDepreciation,3,FALSE)*PowerUnits[[#This Row],[Age]]^0.5-VLOOKUP(PowerUnits[[#This Row],[Depreciation Category]],PwrDepreciation,4,FALSE)*PowerUnits[[#This Row],[Tach Hours]]^0.5)^2) -> 58884.81318 | L10: =IF(PowerUnits[[#This Row],[Depreciation Category]]=0,0,PowerUnits[[#This Row],[Calculated List Price]]*(VLOOKUP(PowerUnits[[#This Row],[Depreciation Category]],PwrDepreciation,2,FALSE)-VLOOKUP(PowerUnits[[#This Row],[Depreciation Category]],PwrDepreciation,3,FALSE)*(PowerUnits[[#This Row],[Age]]+1)^0.5-VLOOKUP(PowerUnits[[#This Row],[Depreciation Category]],PwrDepreciation,4,FALSE)*(PowerUnits[[#This Row],[Tach Hours]]+PowerUnits[[#This Row],[Est. Hours per Year]])^0.5)^2) -> 54818.46646 | M10: =IF(PowerUnits[[#This Row],[Est. Hours per Year]]=0,0,(PowerUnits[[#This Row],[Calculated Beg Yr. Value]]-PowerUnits[[#This Row],[Calculated End Yr. Value]])/PowerUnits[[#This Row],[Est. Hours per Year]]) -> 20.3317336 | N10: =IF(PowerUnits[[#This Row],[Est. Hours per Year]]=0,0,PowerUnits[[#This Row],[Calculated Beg Yr. Value]]*'General Variables'!$B$9/PowerUnits[[#This Row],[Est. Hours per Year]]) -> 5.888481318 | O10: =IF(PowerUnits[[#This Row],[Est. Hours per Year]]=0,0,PowerUnits[[#This Row],[Calculated Beg Yr. Value]]*'General Variables'!$B$10/PowerUnits[[#This Row],[Est. Hours per Year]]) -> 8.832721977 | P10: =SUM(PowerUnits[[#This Row],[Depreciation per Hour]:[Opportunity Cost per Hour]]) -> 35.05293689 | Q10: 2 WD Case

Sheet Crop Insurance
A1: Table 6:
A2: Federal Crop Insurance Premium Estimates for 2024 are based on 75% RP, enterprise units on Dryland and
A3: 70% RP, enterprise units on Irrigated Crops. (RP is Revenue Protection.)
A4: Budget | B4: Dryland or Irrigated | C4: Area | D4: Yield | E4: Per Acre Premium | F4: Your Cost
A5: 1-Alfalfa | B5: =INDIRECT(CONCATENATE("'",$A5,"'!")&"K2") -> Dryland | C5: =IF(INDIRECT(CONCATENATE("'",$A5,"'!")&"C2")=0,"State",INDIRECT(CONCATENATE("'",$A5,"'!")&"C2")) -> State | D5: =IF(INDIRECT(CONCATENATE("'",$A5,"'!")&"H3")=0,"N/A",INDIRECT(CONCATENATE("'",$A5,"'!")&"H3")) -> N/A | E5: N/A
A6: 2-Alfalfa | B6: =INDIRECT(CONCATENATE("'",A6,"'!")&"K2") -> Dryland | C6: State | D6: N/A | E6: N/A
A7: 3-Alfalfa | B7: Dryland | C7: State | D7: N/A | E7: N/A
A8: 4-Alfalfa | B8: Dryland | C8: State | D8: 2.8 ton | E8: N/A
A9: 5-Alfalfa | B9: Dryland | C9: State | D9: 2.8 ton | E9: N/A
A10: 6-Alfalfa | B10: Pivot Irrigated Diesel | C10: State | D10: 3.8 ton | E10: N/A
A11: 7-Alfalfa | B11: Pivot Irrigated Diesel | C11: State | D11: 4 ton | E11: N/A
A12: 8-Alfalfa | B12: Gravity Irrigated, fed by canal | C12: Panhandle | D12: 2.5 ton | E12: N/A
A13: 9-Alfalfa | B13: Dryland | C13: State | D13: 4.4 ton | E13: N/A
A14: 10-Alfalfa | B14: Pivot Irrigated Electric | C14: State | D14: 6.7 ton | E14: N/A
A15: 11-Alfalfa | B15: Pivot Irrigated Electric | C15: State | D15: 6.8 ton | E15: N/A
A16: 12-Alfalfa | B16: Pivot Irrigated Electric | C16: Panhandle | D16: 6.6 ton | E16: N/A
A17: 13-Alfalfa | B17: Gravity Irrigated, fed by canal | C17: State | D17: 6.6 ton | E17: N/A
A18: 14-Alfalfa | B18: Gravity Irrigated, fed by canal | C18: State | D18: 6.8 ton | E18: N/A
A19: 15-Corn | B19: Dryland | C19: State | D19: 100 bushel | E19: 40
A20: 16-Corn | B20: Dryland | C20: State | D20: 110 bushel | E20: 40
A21: 17-Corn | B21: Dryland | C21: Eastern Nebraska | D21: 160 bushel | E21: 10
A22: 18-Corn | B22: Dryland | C22: Eastern Nebraska | D22: 170 bushel | E22: 10
A23: 19-Corn | B23: Dryland | C23: State | D23: 135 bushel | E23: 44
A24: 20-Corn | B24: Dryland | C24: Eastern Nebraska | D24: 180 bushel | E24: 10
A25: 21-Corn | B25: Dryland | C25: State | D25: 140 bushel | E25: 44
A26: 22-Corn | B26: Dryland | C26: Eastern Nebraska | D26: 185 bushel | E26: 10
A27: 23-Corn | B27: Dryland | C27: State | D27: 145 bushel | E27: 46
A28: 24-Corn | B28: Dryland | C28: Eastern Nebraska | D28: 195 bushel | E28: 11
A29: 25-Corn | B29: Dryland | C29: Southwest | D29: 130 bushel | E29: 40
A30: 26-Corn | B30: Gravity Irrigated Diesel, fed by a well | C30: State | D30: 245 bushel | E30: 14
A31: 27-Corn | B31: Gravity Irrigated Diesel, fed by a well | C31: State | D31: 255 bushel | E31: 14
A32: 28-Corn | B32: Gravity Irrigated Diesel, fed by a well | C32: State | D32: 250 bushel | E32: 14
A33: 29-Corn | B33: Gravity Irrigated, fed by canal | C33: Panhandle | D33: 175 bushel | E33: 23
A34: 30-Corn | B34: Pivot Irrigated Electric | C34: State | D34: 245 bushel | E34: 14
A35: 31-Corn | B35: Pivot Irrigated Electric | C35: State | D35: 250 bushel | E35: 14
A36: 32-Corn | B36: Pivot Irrigated Electric | C36: State | D36: 260 bushel | E36: 14
A37: 33-Corn | B37: Pivot Irrigated Electric | C37: State | D37: 275 bushel | E37: 16
A38: 34-Corn | B38: Pivot Irrigated Electric | C38: =IF(INDIRECT(CONCATENATE("'",$A38,"'!")&"C2")=0,"State",INDIRECT(CONCATENATE("'",$A38,"'!")&"C2")) -> State | D38: =IF(INDIRECT(CONCATENATE("'",$A38,"'!")&"H3")=0,"N/A",INDIRECT(CONCATENATE("'",$A38,"'!")&"H3")) -> 275 bushel | E38: 16
A39: 35-Corn | B39: Pivot Irrigated Electric | C39: State | D39: 275 bushel | E39: 16
A40: 36-Corn | B40: Pivot Irrigated Diesel | C40: State | D40: 235 bushel | E40: 14
A41: 37-Corn | B41: Pivot Irrigated Diesel | C41: State | D41: 245 bushel | E41: 14
A42: 38-Corn | B42: Pivot Irrigated Electric | C42: Panhandle | D42: 175 bushel | E42: 23
A43: 39-Corn | B43: Pivot Irrigated Electric | C43: Panhandle | D43: 185 bushel | E43: 24
A44: 40-Corn | B44: Pivot Irrigated Electric | C44: State | D44: 240 bushel | E44: 14
A45: 41-Corn | B45: Pivot Irrigated Diesel | C45: State | D45: 28 ton | E45: 14
A46: 42-Dry Beans | B46: Pivot Irrigated Electric | C46: Panhandle | D46: 27 cwt | E46: 36
A47: 43-Dry Beans | B47: Gravity Irrigated, fed by canal | C47: Panhandle | D47: 27 cwt | E47: 36
A48: 44-Dry Beans | B48: Pivot Irrigated Electric | C48: Panhandle | D48: 27 cwt | E48: 36
A49: 45-Dry Beans | B49: Pivot Irrigated Electric | C49: Panhandle | D49: 27 cwt | E49: 36
A50: 46-Grain Sorghum | B50: Dryland | C50: Southwest | D50: 85 bushel | E50: 37
A51: 47-Grain Sorghum | B51: Dryland | C51: State | D51: 135 bushel | E51: 32
A52: 48-Grain Sorghum | B52: Dryland | C52: Southwest | D52: 120 bushel | E52: 37
A53: 49-Grain Sorghum | B53: Limited Irrigation | C53: State | D53: 170 bushel | E53: 20
A54: 50-Grass | B54: =INDIRECT(CONCATENATE("'",A54,"'!")&"K2") -> Pivot Irrigated Diesel | C54: State | D54: N/A | E54: N/A
A55: 51-Grass Hay | B55: Dryland | C55: State | D55: 3.3 ton | E55: N/A
A56: 52-Millet-Proso | B56: =INDIRECT(CONCATENATE("'",A56,"'!")&"K2") -> Dryland | C56: Panhandle | D56: 22 cwt | E56: 11
A57: 53-Millet-Proso | B57: Dryland | C57: Panhandle | D57: 22 cwt | E57: 11
A58: 54-Oats | B58: Dryland | C58: State | D58: 85 bushel | E58: 16
A59: 55-Pasture | B59: Pivot Irrigated Diesel | C59: State | D59: 11 AUM | E59: N/A
A60: 56-Peas | B60: Dryland | C60: Panhandle | D60: 35 bushel | E60: 17
A61: 57-Sorghum-Sudan | B61: Dryland | C61: State | D61: 5 ton | E61: N/A
A62: 58-Soybeans | B62: Dryland | C62: State | D62: 45 bushel | E62: 38
A63: 59-Soybeans | B63: Dryland | C63: State | D63: 50 bushel | E63: 38
A64: 60-Soybeans | B64: Dryland | C64: State | D64: 45 bushel | E64: 38
A65: 61-Soybeans | B65: Pivot Irrigated Diesel | C65: State | D65: 67 bushel | E65: 11
A66: 62-Soybeans | B66: Gravity Irrigated Diesel, fed by a well | C66: State | D66: 70 bushel | E66: 11
A67: 63-Soybeans | B67: Pivot Irrigated Diesel | C67: State | D67: 75 bushel | E67: 11
A68: 64-Soybeans | B68: Pivot Irrigated Diesel | C68: State | D68: 64 bushel | E68: 11
A69: 65-Soybeans | B69: Pivot Irrigated Diesel | C69: State | D69: 78 bushel | E69: 11
A70: 66-Soybeans | B70: Pivot Irrigated Diesel | C70: =IF(INDIRECT(CONCATENATE("'",$A70,"'!")&"C2")=0,"State",INDIRECT(CONCATENATE("'",$A70,"'!")&"C2")) -> State | D70: =IF(INDIRECT(CONCATENATE("'",$A70,"'!")&"H3")=0,"N/A",INDIRECT(CONCATENATE("'",$A70,"'!")&"H3")) -> 78 bushel | E70: 11
A71: 67-Soybeans | B71: Pivot Irrigated Diesel | C71: State | D71: 78 bushel | E71: 11
A72: 68-Sugarbeet | B72: Gravity Irrigated, fed by canal | C72: Panhandle | D72: 30 ton | E72: 54
A73: 69-Sugarbeet | B73: Gravity Irrigated, fed by canal | C73: Panhandle | D73: 30 ton | E73: 54
A74: 70-Sugarbeet | B74: Pivot Irrigated Diesel | C74: Panhandle | D74: 30 ton | E74: 54
A75: 71-Sugarbeet | B75: Pivot Irrigated Diesel | C75: Panhandle | D75: 30 ton | E75: 54
A76: 72-Sunflower | B76: Dryland | C76: Panhandle | D76: 13 cwt | E76: 22
A77: 73-Sunflower | B77: Dryland | C77: Panhandle | D77: 16 cwt | E77: 22
A78: 74-Sunflower | B78: Pivot Irrigated Electric | C78: Panhandle | D78: 30 cwt | E78: 16
A79: 75-Wheat-Spring | B79: =INDIRECT(CONCATENATE("'",A79,"'!")&"K2") -> Dryland | C79: Southwest | D79: 40 bushel | E79: 11 | F79: *
A80: 76-Wheat-Winter | B80: Dryland | C80: Southwest | D80: 55 bushel | E80: 23
A81: 77-Wheat-Winter | B81: Dryland | C81: Panhandle | D81: 70 bushel | E81: 25
A82: 78-Wheat-Winter | B82: Dryland | C82: Panhandle | D82: 65 bushel | E82: 24
A83: 79-Wheat-Winter | B83: Dryland | C83: Panhandle | D83: 60 bushel | E83: 23
A84: 80-Wheat-Winter | B84: Dryland | C84: Southwest | D84: 80 bushel | E84: 32
A85: 81-Wheat-Winter | B85: Pivot Irrigated Diesel | C85: Panhandle | D85: 105 bushel | E85: 37
A86: 82-Wheat-Winter | B86: Pivot Irrigated Electric | C86: Panhandle | D86: 90 bushel | E86: 35
A87: 83-Cover Crop | B87: Dryland | C87: State | D87: N/A | E87: N/A
A88: 84-Cover Crop Grazing | B88: Dryland | C88: State | D88: N/A | E88: N/A
A90: Source: Crop insurance rates for various crops were provided by Nebraska Farm Business Inc.
A91: Due to price volatility, these rates may change when rates are updated in March, 2024.
A92: Winter wheat premiums are actuals (established fall, 2023). Premiums will vary statewide by location,
A93: yield, and coverage level. The estimates in this chart do not include hail insurance premium costs.
A95: * Spring Wheat #75 budget - Crop insurance is only available in Box Butte, Dawes, Sheridan counties for summer fallow
A96: spring wheat and available under written agreement.

Sheet 2-Alfalfa
B2: Region | F2: Detail | G2: Roundup Ready® | J2: Water Source | K2: Dryland
B3: Tillage System | C3: No Till | G3: Yield | J3: acre/inches
B4: Cropping System | C4: Fall Establishment | G4: =IFERROR(VALUE(LEFT($H$3,FIND(" ",$H$3))),"") ->  | H4: =IFERROR(RIGHT(H3,LEN(H3)-LEN(G4)-1),"") ->  | J4: Follows Legume?
B5: Crop Insurance | C5: =MID(CELL("filename",C5),FIND("]",CELL("filename",C5))+1,255) -> 2-Alfalfa | E5: =VLOOKUP($C$5,CropInsurance,5,FALSE) ->  | F5: =VLOOKUP($C$5,CropInsurance,6,FALSE) -> 
A6: =REPLACE(CELL("filename",$A$1),1,FIND("]",CELL("filename",$A$1)),"") & IF($G$2="","", ", " & $G$2 ) & IF($C$2="","",", "&$C$2&"") & IF($C$3="","",", "&$C$3) & IF($C$4="","",", "&$C$4) & IF($H$3="","",", "&$H$3 & " Yield") & IF(K2="","",", " &K2) -> 2-Alfalfa, Roundup Ready®, No Till, Fall Establishment, Dryland
B7: ='General Variables'!$B$3 & " Budget " & REPLACE(CELL("filename",$A$1),1,FIND("]",CELL("filename",$A$1)),"") & IF($G$2="","", ", " & $G$2 ) & IF($C$2="","",", "&$C$2) & IF($C$3="","",", "&$C$3) & IF($C$4="","",", "&$C$4) & IF($H$3="","",", "&$H$3 & " Yield") -> 2024 Budget 2-Alfalfa, Roundup Ready®, No Till, Fall Establishment
B8: =IF(K2="","",K2)&IF(LEFT(K2,5)="Pivot",", 800 GPM 35 PSI","") & IF(K3="","",", "& K3&" "&J3) -> Dryland
B10: Field Operations | C10: Times or Qty | E10: ="Labor @ $" &TEXT('General Variables'!B4,"#.00")& " /Hr" -> Labor @ $25.00 /Hr | F10: ="Fuel @ $" & TEXT('General Variables'!B5,"#.00") & " and Lube" -> Fuel @ $3.45 and Lube | G10: Repairs | I10: Ownership | K10: Total | L10: Your Estimate
D11: Unit | G11: Power | H11: Imp. | I11: Power | J11: Imp.
A12: 1 | B12: Spray Herbicide | C12: 1 | E12: =IF(B12=0,"",IF(C12>9999,"",ROUND('General Variables'!$B$4*VLOOKUP(B12,Operations!$A$2:$U$79,10,FALSE)/VLOOKUP(B12,Operations!$A$2:$U$79,9,FALSE)*C12,2))) -> 0.95 | F12: =IF(B12=0,0,IF(C12>9999,"",ROUND(IF(VLOOKUP(B12,Operations!$A$2:$U$79,12,FALSE)=0,VLOOKUP(B12,Operations!$A$2:$U$79,13,FALSE)*'General Variables'!$B$8,VLOOKUP(B12,Operations!$A$2:$U$79,12,FALSE)*'General Variables'!$B$7)/VLOOKUP(B12,Operations!$A$2:$U$79,9,FALSE)*C12,2))) -> 0.32 | G12: =IF(B12=0,0,IF(C12>9999,"",ROUND(VLOOKUP(VLOOKUP(B12,Operations!$A$2:$U$79,11,FALSE),PowerUnits[],10,FALSE)/VLOOKUP(B12,Operations!$A$2:$U$79,9,FALSE)*C12,2))) -> 0.02 | H12: =IF(B12=0,"",IF(C12>9999,"",ROUND(VLOOKUP($B12,Operations!$A$2:$U$79,15,FALSE)*C12,2))) -> 1.11 | I12: =IF(B12=0,0,IF(C12>9999,"",ROUND(VLOOKUP(VLOOKUP(B12,Operations!$A$2:$U$79,11,FALSE),PowerUnits[],16,FALSE)/VLOOKUP(B12,Operations!$A$2:$U$79,9,FALSE)*C12,2))) -> 1.59 | J12: =IF(B12=0,"",IF(C12>9999,"",ROUND(VLOOKUP($B12,Operations!$A$2:$U$79,21,FALSE)*$C12,2))) -> 2.02 | K12: =IF(C12>9999,"",SUM(E12:J12)) -> 6.01
A13: 2 | B13: Drill w/ Fertilizer | C13: 1 | E13: =IF(B13=0,"",IF(C13>9999,"",ROUND('General Variables'!$B$4*VLOOKUP(B13,Operations!$A$2:$U$79,10,FALSE)/VLOOKUP(B13,Operations!$A$2:$U$79,9,FALSE)*C13,2))) -> 2.73 | F13: =IF(B13=0,0,IF(C13>9999,"",ROUND(IF(VLOOKUP(B13,Operations!$A$2:$U$79,12,FALSE)=0,VLOOKUP(B13,Operations!$A$2:$U$79,13,FALSE)*'General Variables'!$B$8,VLOOKUP(B13,Operations!$A$2:$U$79,12,FALSE)*'General Variables'!$B$7)/VLOOKUP(B13,Operations!$A$2:$U$79,9,FALSE)*C13,2))) -> 1.8 | G13: =IF(B13=0,0,IF(C13>9999,"",ROUND(VLOOKUP(VLOOKUP(B13,Operations!$A$2:$U$79,11,FALSE),PowerUnits[],10,FALSE)/VLOOKUP(B13,Operations!$A$2:$U$79,9,FALSE)*C13,2))) -> 0.06 | H13: =IF(B13=0,"",IF(C13>9999,"",ROUND(VLOOKUP($B13,Operations!$A$2:$U$79,15,FALSE)*C13,2))) -> 5 | I13: =IF(B13=0,0,IF(C13>9999,"",ROUND(VLOOKUP(VLOOKUP(B13,Operations!$A$2:$U$79,11,FALSE),PowerUnits[],16,FALSE)/VLOOKUP(B13,Operations!$A$2:$U$79,9,FALSE)*C13,2))) -> 4.77 | J13: =IF(B13=0,"",IF(C13>9999,"",ROUND(VLOOKUP($B13,Operations!$A$2:$U$79,21,FALSE)*$C13,2))) -> 5.24 | K13: =IF(C13>9999,"",SUM(E13:J13)) -> 19.6
A14: 3 | B14: Spray Herbicide | C14: 1 | E14: =IF(B14=0,"",IF(C14>9999,"",ROUND('General Variables'!$B$4*VLOOKUP(B14,Operations!$A$2:$U$79,10,FALSE)/VLOOKUP(B14,Operations!$A$2:$U$79,9,FALSE)*C14,2))) -> 0.95 | F14: =IF(B14=0,0,IF(C14>9999,"",ROUND(IF(VLOOKUP(B14,Operations!$A$2:$U$79,12,FALSE)=0,VLOOKUP(B14,Operations!$A$2:$U$79,13,FALSE)*'General Variables'!$B$8,VLOOKUP(B14,Operations!$A$2:$U$79,12,FALSE)*'General Variables'!$B$7)/VLOOKUP(B14,Operations!$A$2:$U$79,9,FALSE)*C14,2))) -> 0.32 | G14: =IF(B14=0,0,IF(C14>9999,"",ROUND(VLOOKUP(VLOOKUP(B14,Operations!$A$2:$U$79,11,FALSE),PowerUnits[],10,FALSE)/VLOOKUP(B14,Operations!$A$2:$U$79,9,FALSE)*C14,2))) -> 0.02 | H14: =IF(B14=0,"",IF(C14>9999,"",ROUND(VLOOKUP($B14,Operations!$A$2:$U$79,15,FALSE)*C14,2))) -> 1.11 | I14: =IF(B14=0,0,IF(C14>9999,"",ROUND(VLOOKUP(VLOOKUP(B14,Operations!$A$2:$U$79,11,FALSE),PowerUnits[],16,FALSE)/VLOOKUP(B14,Operations!$A$2:$U$79,9,FALSE)*C14,2))) -> 1.59 | J14: =IF(B14=0,"",IF(C14>9999,"",ROUND(VLOOKUP($B14,Operations!$A$2:$U$79,21,FALSE)*$C14,2))) -> 2.02 | K14: 6.01
A15: 4 | B15: Spray Insecticide | C15: 0.2 | E15: =IF(B15=0,"",IF(C15>9999,"",ROUND('General Variables'!$B$4*VLOOKUP(B15,Operations!$A$2:$U$79,10,FALSE)/VLOOKUP(B15,Operations!$A$2:$U$79,9,FALSE)*C15,2))) -> 0.19 | F15: =IF(B15=0,0,IF(C15>9999,"",ROUND(IF(VLOOKUP(B15,Operations!$A$2:$U$79,12,FALSE)=0,VLOOKUP(B15,Operations!$A$2:$U$79,13,FALSE)*'General Variables'!$B$8,VLOOKUP(B15,Operations!$A$2:$U$79,12,FALSE)*'General Variables'!$B$7)/VLOOKUP(B15,Operations!$A$2:$U$79,9,FALSE)*C15,2))) -> 0.06 | G15: =IF(B15=0,0,IF(C15>9999,"",ROUND(VLOOKUP(VLOOKUP(B15,Operations!$A$2:$U$79,11,FALSE),PowerUnits[],10,FALSE)/VLOOKUP(B15,Operations!$A$2:$U$79,9,FALSE)*C15,2))) -> 0 | H15: =IF(B15=0,"",IF(C15>9999,"",ROUND(VLOOKUP($B15,Operations!$A$2:$U$79,15,FALSE)*C15,2))) -> 0.22 | I15: =IF(B15=0,0,IF(C15>9999,"",ROUND(VLOOKUP(VLOOKUP(B15,Operations!$A$2:$U$79,11,FALSE),PowerUnits[],16,FALSE)/VLOOKUP(B15,Operations!$A$2:$U$79,9,FALSE)*C15,2))) -> 0.32 | J15: =IF(B15=0,"",IF(C15>9999,"",ROUND(VLOOKUP($B15,Operations!$A$2:$U$79,21,FALSE)*$C15,2))) -> 0.4 | K15: 1.19
A16: 5 | E16: =IF(B16=0,"",IF(C16>9999,"",ROUND('General Variables'!$B$4*VLOOKUP(B16,Operations!$A$2:$U$79,10,FALSE)/VLOOKUP(B16,Operations!$A$2:$U$79,9,FALSE)*C16,2))) ->  | F16: =IF(B16=0,0,IF(C16>9999,"",ROUND(IF(VLOOKUP(B16,Operations!$A$2:$U$79,12,FALSE)=0,VLOOKUP(B16,Operations!$A$2:$U$79,13,FALSE)*'General Variables'!$B$8,VLOOKUP(B16,Operations!$A$2:$U$79,12,FALSE)*'General Variables'!$B$7)/VLOOKUP(B16,Operations!$A$2:$U$79,9,FALSE)*C16,2))) -> 0 | G16: =IF(B16=0,0,IF(C16>9999,"",ROUND(VLOOKUP(VLOOKUP(B16,Operations!$A$2:$U$79,11,FALSE),PowerUnits[],10,FALSE)/VLOOKUP(B16,Operations!$A$2:$U$79,9,FALSE)*C16,2))) -> 0 | H16: =IF(B16=0,"",IF(C16>9999,"",ROUND(VLOOKUP($B16,Operations!$A$2:$U$79,15,FALSE)*C16,2))) ->  | I16: =IF(B16=0,0,IF(C16>9999,"",ROUND(VLOOKUP(VLOOKUP(B16,Operations!$A$2:$U$79,11,FALSE),PowerUnits[],16,FALSE)/VLOOKUP(B16,Operations!$A$2:$U$79,9,FALSE)*C16,2))) -> 0 | J16: =IF(B16=0,"",IF(C16>9999,"",ROUND(VLOOKUP($B16,Operations!$A$2:$U$79,21,FALSE)*$C16,2))) ->  | K16: 0
A17: 6 | E17: =IF(B17=0,"",IF(C17>9999,"",ROUND('General Variables'!$B$4*VLOOKUP(B17,Operations!$A$2:$U$79,10,FALSE)/VLOOKUP(B17,Operations!$A$2:$U$79,9,FALSE)*C17,2))) ->  | F17: =IF(B17=0,0,IF(C17>9999,"",ROUND(IF(VLOOKUP(B17,Operations!$A$2:$U$79,12,FALSE)=0,VLOOKUP(B17,Operations!$A$2:$U$79,13,FALSE)*'General Variables'!$B$8,VLOOKUP(B17,Operations!$A$2:$U$79,12,FALSE)*'General Variables'!$B$7)/VLOOKUP(B17,Operations!$A$2:$U$79,9,FALSE)*C17,2))) -> 0 | G17: =IF(B17=0,0,IF(C17>9999,"",ROUND(VLOOKUP(VLOOKUP(B17,Operations!$A$2:$U$79,11,FALSE),PowerUnits[],10,FALSE)/VLOOKUP(B17,Operations!$A$2:$U$79,9,FALSE)*C17,2))) -> 0 | H17: =IF(B17=0,"",IF(C17>9999,"",ROUND(VLOOKUP($B17,Operations!$A$2:$U$79,15,FALSE)*C17,2))) ->  | I17: =IF(B17=0,0,IF(C17>9999,"",ROUND(VLOOKUP(VLOOKUP(B17,Operations!$A$2:$U$79,11,FALSE),PowerUnits[],16,FALSE)/VLOOKUP(B17,Operations!$A$2:$U$79,9,FALSE)*C17,2))) -> 0 | J17: =IF(B17=0,"",IF(C17>9999,"",ROUND(VLOOKUP($B17,Operations!$A$2:$U$79,21,FALSE)*$C17,2))) ->  | K17: 0
A18: 7 | E18: =IF(B18=0,"",IF(C18>9999,"",ROUND('General Variables'!$B$4*VLOOKUP(B18,Operations!$A$2:$U$79,10,FALSE)/VLOOKUP(B18,Operations!$A$2:$U$79,9,FALSE)*C18,2))) ->  | F18: =IF(B18=0,0,IF(C18>9999,"",ROUND(IF(VLOOKUP(B18,Operations!$A$2:$U$79,12,FALSE)=0,VLOOKUP(B18,Operations!$A$2:$U$79,13,FALSE)*'General Variables'!$B$8,VLOOKUP(B18,Operations!$A$2:$U$79,12,FALSE)*'General Variables'!$B$7)/VLOOKUP(B18,Operations!$A$2:$U$79,9,FALSE)*C18,2))) -> 0 | G18: =IF(B18=0,0,IF(C18>9999,"",ROUND(VLOOKUP(VLOOKUP(B18,Operations!$A$2:$U$79,11,FALSE),PowerUnits[],10,FALSE)/VLOOKUP(B18,Operations!$A$2:$U$79,9,FALSE)*C18,2))) -> 0 | H18: =IF(B18=0,"",IF(C18>9999,"",ROUND(VLOOKUP($B18,Operations!$A$2:$U$79,15,FALSE)*C18,2))) ->  | I18: =IF(B18=0,0,IF(C18>9999,"",ROUND(VLOOKUP(VLOOKUP(B18,Operations!$A$2:$U$79,11,FALSE),PowerUnits[],16,FALSE)/VLOOKUP(B18,Operations!$A$2:$U$79,9,FALSE)*C18,2))) -> 0 | J18: =IF(B18=0,"",IF(C18>9999,"",ROUND(VLOOKUP($B18,Operations!$A$2:$U$79,21,FALSE)*$C18,2))) ->  | K18: 0
A19: 8 | E19: =IF(B19=0,"",IF(C19>9999,"",ROUND('General Variables'!$B$4*VLOOKUP(B19,Operations!$A$2:$U$79,10,FALSE)/VLOOKUP(B19,Operations!$A$2:$U$79,9,FALSE)*C19,2))) ->  | F19: =IF(B19=0,0,IF(C19>9999,"",ROUND(IF(VLOOKUP(B19,Operations!$A$2:$U$79,12,FALSE)=0,VLOOKUP(B19,Operations!$A$2:$U$79,13,FALSE)*'General Variables'!$B$8,VLOOKUP(B19,Operations!$A$2:$U$79,12,FALSE)*'General Variables'!$B$7)/VLOOKUP(B19,Operations!$A$2:$U$79,9,FALSE)*C19,2))) -> 0 | G19: =IF(B19=0,0,IF(C19>9999,"",ROUND(VLOOKUP(VLOOKUP(B19,Operations!$A$2:$U$79,11,FALSE),PowerUnits[],10,FALSE)/VLOOKUP(B19,Operations!$A$2:$U$79,9,FALSE)*C19,2))) -> 0 | H19: =IF(B19=0,"",IF(C19>9999,"",ROUND(VLOOKUP($B19,Operations!$A$2:$U$79,15,FALSE)*C19,2))) ->  | I19: =IF(B19=0,0,IF(C19>9999,"",ROUND(VLOOKUP(VLOOKUP(B19,Operations!$A$2:$U$79,11,FALSE),PowerUnits[],16,FALSE)/VLOOKUP(B19,Operations!$A$2:$U$79,9,FALSE)*C19,2))) -> 0 | J19: =IF(B19=0,"",IF(C19>9999,"",ROUND(VLOOKUP($B19,Operations!$A$2:$U$79,21,FALSE)*$C19,2))) ->  | K19: 0
A20: 9 | E20: =IF(B20=0,"",IF(C20>9999,"",ROUND('General Variables'!$B$4*VLOOKUP(B20,Operations!$A$2:$U$79,10,FALSE)/VLOOKUP(B20,Operations!$A$2:$U$79,9,FALSE)*C20,2))) ->  | F20: =IF(B20=0,0,IF(C20>9999,"",ROUND(IF(VLOOKUP(B20,Operations!$A$2:$U$79,12,FALSE)=0,VLOOKUP(B20,Operations!$A$2:$U$79,13,FALSE)*'General Variables'!$B$8,VLOOKUP(B20,Operations!$A$2:$U$79,12,FALSE)*'General Variables'!$B$7)/VLOOKUP(B20,Operations!$A$2:$U$79,9,FALSE)*C20,2))) -> 0 | G20: =IF(B20=0,0,IF(C20>9999,"",ROUND(VLOOKUP(VLOOKUP(B20,Operations!$A$2:$U$79,11,FALSE),PowerUnits[],10,FALSE)/VLOOKUP(B20,Operations!$A$2:$U$79,9,FALSE)*C20,2))) -> 0 | H20: =IF(B20=0,"",IF(C20>9999,"",ROUND(VLOOKUP($B20,Operations!$A$2:$U$79,15,FALSE)*C20,2))) ->  | I20: =IF(B20=0,0,IF(C20>9999,"",ROUND(VLOOKUP(VLOOKUP(B20,Operations!$A$2:$U$79,11,FALSE),PowerUnits[],16,FALSE)/VLOOKUP(B20,Operations!$A$2:$U$79,9,FALSE)*C20,2))) -> 0 | J20: =IF(B20=0,"",IF(C20>9999,"",ROUND(VLOOKUP($B20,Operations!$A$2:$U$79,21,FALSE)*$C20,2))) ->  | K20: 0
A21: 10 | E21: =IF(B21=0,"",IF(C21>9999,"",ROUND('General Variables'!$B$4*VLOOKUP(B21,Operations!$A$2:$U$79,10,FALSE)/VLOOKUP(B21,Operations!$A$2:$U$79,9,FALSE)*C21,2))) ->  | F21: =IF(B21=0,0,IF(C21>9999,"",ROUND(IF(VLOOKUP(B21,Operations!$A$2:$U$79,12,FALSE)=0,VLOOKUP(B21,Operations!$A$2:$U$79,13,FALSE)*'General Variables'!$B$8,VLOOKUP(B21,Operations!$A$2:$U$79,12,FALSE)*'General Variables'!$B$7)/VLOOKUP(B21,Operations!$A$2:$U$79,9,FALSE)*C21,2))) -> 0 | G21: =IF(B21=0,0,IF(C21>9999,"",ROUND(VLOOKUP(VLOOKUP(B21,Operations!$A$2:$U$79,11,FALSE),PowerUnits[],10,FALSE)/VLOOKUP(B21,Operations!$A$2:$U$79,9,FALSE)*C21,2))) -> 0 | H21: =IF(B21=0,"",IF(C21>9999,"",ROUND(VLOOKUP($B21,Operations!$A$2:$U$79,15,FALSE)*C21,2))) ->  | I21: =IF(B21=0,0,IF(C21>9999,"",ROUND(VLOOKUP(VLOOKUP(B21,Operations!$A$2:$U$79,11,FALSE),PowerUnits[],16,FALSE)/VLOOKUP(B21,Operations!$A$2:$U$79,9,FALSE)*C21,2))) -> 0 | J21: =IF(B21=0,"",IF(C21>9999,"",ROUND(VLOOKUP($B21,Operations!$A$2:$U$79,21,FALSE)*$C21,2))) ->  | K21: 0
A22: 11 | E22: =IF(B22=0,"",IF(C22>9999,"",ROUND('General Variables'!$B$4*VLOOKUP(B22,Operations!$A$2:$U$79,10,FALSE)/VLOOKUP(B22,Operations!$A$2:$U$79,9,FALSE)*C22,2))) ->  | F22: =IF(B22=0,0,IF(C22>9999,"",ROUND(IF(VLOOKUP(B22,Operations!$A$2:$U$79,12,FALSE)=0,VLOOKUP(B22,Operations!$A$2:$U$79,13,FALSE)*'General Variables'!$B$8,VLOOKUP(B22,Operations!$A$2:$U$79,12,FALSE)*'General Variables'!$B$7)/VLOOKUP(B22,Operations!$A$2:$U$79,9,FALSE)*C22,2))) -> 0 | G22: =IF(B22=0,0,IF(C22>9999,"",ROUND(VLOOKUP(VLOOKUP(B22,Operations!$A$2:$U$79,11,FALSE),PowerUnits[],10,FALSE)/VLOOKUP(B22,Operations!$A$2:$U$79,9,FALSE)*C22,2))) -> 0 | H22: =IF(B22=0,"",IF(C22>9999,"",ROUND(VLOOKUP($B22,Operations!$A$2:$U$79,15,FALSE)*C22,2))) ->  | I22: =IF(B22=0,0,IF(C22>9999,"",ROUND(VLOOKUP(VLOOKUP(B22,Operations!$A$2:$U$79,11,FALSE),PowerUnits[],16,FALSE)/VLOOKUP(B22,Operations!$A$2:$U$79,9,FALSE)*C22,2))) -> 0 | J22: =IF(B22=0,"",IF(C22>9999,"",ROUND(VLOOKUP($B22,Operations!$A$2:$U$79,21,FALSE)*$C22,2))) ->  | K22: 0
A23: 12 | E23: =IF(B23=0,"",IF(C23>9999,"",ROUND('General Variables'!$B$4*VLOOKUP(B23,Operations!$A$2:$U$79,10,FALSE)/VLOOKUP(B23,Operations!$A$2:$U$79,9,FALSE)*C23,2))) ->  | F23: =IF(B23=0,0,IF(C23>9999,"",ROUND(IF(VLOOKUP(B23,Operations!$A$2:$U$79,12,FALSE)=0,VLOOKUP(B23,Operations!$A$2:$U$79,13,FALSE)*'General Variables'!$B$8,VLOOKUP(B23,Operations!$A$2:$U$79,12,FALSE)*'General Variables'!$B$7)/VLOOKUP(B23,Operations!$A$2:$U$79,9,FALSE)*C23,2))) -> 0 | G23: =IF(B23=0,0,IF(C23>9999,"",ROUND(VLOOKUP(VLOOKUP(B23,Operations!$A$2:$U$79,11,FALSE),PowerUnits[],10,FALSE)/VLOOKUP(B23,Operations!$A$2:$U$79,9,FALSE)*C23,2))) -> 0 | H23: =IF(B23=0,"",IF(C23>9999,"",ROUND(VLOOKUP($B23,Operations!$A$2:$U$79,15,FALSE)*C23,2))) ->  | I23: =IF(B23=0,0,IF(C23>9999,"",ROUND(VLOOKUP(VLOOKUP(B23,Operations!$A$2:$U$79,11,FALSE),PowerUnits[],16,FALSE)/VLOOKUP(B23,Operations!$A$2:$U$79,9,FALSE)*C23,2))) -> 0 | J23: =IF(B23=0,"",IF(C23>9999,"",ROUND(VLOOKUP($B23,Operations!$A$2:$U$79,21,FALSE)*$C23,2))) ->  | K23: 0
A24: 13 | E24: =IF(B24=0,"",IF(C24>9999,"",ROUND('General Variables'!$B$4*VLOOKUP(B24,Operations!$A$2:$U$79,10,FALSE)/VLOOKUP(B24,Operations!$A$2:$U$79,9,FALSE)*C24,2))) ->  | F24: =IF(B24=0,0,IF(C24>9999,"",ROUND(IF(VLOOKUP(B24,Operations!$A$2:$U$79,12,FALSE)=0,VLOOKUP(B24,Operations!$A$2:$U$79,13,FALSE)*'General Variables'!$B$8,VLOOKUP(B24,Operations!$A$2:$U$79,12,FALSE)*'General Variables'!$B$7)/VLOOKUP(B24,Operations!$A$2:$U$79,9,FALSE)*C24,2))) -> 0 | G24: =IF(B24=0,0,IF(C24>9999,"",ROUND(VLOOKUP(VLOOKUP(B24,Operations!$A$2:$U$79,11,FALSE),PowerUnits[],10,FALSE)/VLOOKUP(B24,Operations!$A$2:$U$79,9,FALSE)*C24,2))) -> 0 | H24: =IF(B24=0,"",IF(C24>9999,"",ROUND(VLOOKUP($B24,Operations!$A$2:$U$79,15,FALSE)*C24,2))) ->  | I24: =IF(B24=0,0,IF(C24>9999,"",ROUND(VLOOKUP(VLOOKUP(B24,Operations!$A$2:$U$79,11,FALSE),PowerUnits[],16,FALSE)/VLOOKUP(B24,Operations!$A$2:$U$79,9,FALSE)*C24,2))) -> 0 | J24: =IF(B24=0,"",IF(C24>9999,"",ROUND(VLOOKUP($B24,Operations!$A$2:$U$79,21,FALSE)*$C24,2))) ->  | K24: 0
A25: 14 | E25: =IF(B25=0,"",IF(C25>9999,"",ROUND('General Variables'!$B$4*VLOOKUP(B25,Operations!$A$2:$U$79,10,FALSE)/VLOOKUP(B25,Operations!$A$2:$U$79,9,FALSE)*C25,2))) ->  | F25: =IF(B25=0,0,IF(C25>9999,"",ROUND(IF(VLOOKUP(B25,Operations!$A$2:$U$79,12,FALSE)=0,VLOOKUP(B25,Operations!$A$2:$U$79,13,FALSE)*'General Variables'!$B$8,VLOOKUP(B25,Operations!$A$2:$U$79,12,FALSE)*'General Variables'!$B$7)/VLOOKUP(B25,Operations!$A$2:$U$79,9,FALSE)*C25,2))) -> 0 | G25: =IF(B25=0,0,IF(C25>9999,"",ROUND(VLOOKUP(VLOOKUP(B25,Operations!$A$2:$U$79,11,FALSE),PowerUnits[],10,FALSE)/VLOOKUP(B25,Operations!$A$2:$U$79,9,FALSE)*C25,2))) -> 0 | H25: =IF(B25=0,"",IF(C25>9999,"",ROUND(VLOOKUP($B25,Operations!$A$2:$U$79,15,FALSE)*C25,2))) ->  | I25: =IF(B25=0,0,IF(C25>9999,"",ROUND(VLOOKUP(VLOOKUP(B25,Operations!$A$2:$U$79,11,FALSE),PowerUnits[],16,FALSE)/VLOOKUP(B25,Operations!$A$2:$U$79,9,FALSE)*C25,2))) -> 0 | J25: =IF(B25=0,"",IF(C25>9999,"",ROUND(VLOOKUP($B25,Operations!$A$2:$U$79,21,FALSE)*$C25,2))) ->  | K25: 0
A26: 15 | E26: =IF(B26=0,"",IF(C26>9999,"",ROUND('General Variables'!$B$4*VLOOKUP(B26,Operations!$A$2:$U$79,10,FALSE)/VLOOKUP(B26,Operations!$A$2:$U$79,9,FALSE)*C26,2))) ->  | F26: =IF(B26=0,0,IF(C26>9999,"",ROUND(IF(VLOOKUP(B26,Operations!$A$2:$U$79,12,FALSE)=0,VLOOKUP(B26,Operations!$A$2:$U$79,13,FALSE)*'General Variables'!$B$8,VLOOKUP(B26,Operations!$A$2:$U$79,12,FALSE)*'General Variables'!$B$7)/VLOOKUP(B26,Operations!$A$2:$U$79,9,FALSE)*C26,2))) -> 0 | G26: =IF(B26=0,0,IF(C26>9999,"",ROUND(VLOOKUP(VLOOKUP(B26,Operations!$A$2:$U$79,11,FALSE),PowerUnits[],10,FALSE)/VLOOKUP(B26,Operations!$A$2:$U$79,9,FALSE)*C26,2))) -> 0 | H26: =IF(B26=0,"",IF(C26>9999,"",ROUND(VLOOKUP($B26,Operations!$A$2:$U$79,15,FALSE)*C26,2))) ->  | I26: =IF(B26=0,0,IF(C26>9999,"",ROUND(VLOOKUP(VLOOKUP(B26,Operations!$A$2:$U$79,11,FALSE),PowerUnits[],16,FALSE)/VLOOKUP(B26,Operations!$A$2:$U$79,9,FALSE)*C26,2))) -> 0 | J26: =IF(B26=0,"",IF(C26>9999,"",ROUND(VLOOKUP($B26,Operations!$A$2:$U$79,21,FALSE)*$C26,2))) ->  | K26: 0
A27: 16 | E27: =IF(B27=0,"",IF(C27>9999,"",ROUND('General Variables'!$B$4*VLOOKUP(B27,Operations!$A$2:$U$79,10,FALSE)/VLOOKUP(B27,Operations!$A$2:$U$79,9,FALSE)*C27,2))) ->  | F27: =IF(B27=0,0,IF(C27>9999,"",ROUND(IF(VLOOKUP(B27,Operations!$A$2:$U$79,12,FALSE)=0,VLOOKUP(B27,Operations!$A$2:$U$79,13,FALSE)*'General Variables'!$B$8,VLOOKUP(B27,Operations!$A$2:$U$79,12,FALSE)*'General Variables'!$B$7)/VLOOKUP(B27,Operations!$A$2:$U$79,9,FALSE)*C27,2))) -> 0 | G27: =IF(B27=0,0,IF(C27>9999,"",ROUND(VLOOKUP(VLOOKUP(B27,Operations!$A$2:$U$79,11,FALSE),PowerUnits[],10,FALSE)/VLOOKUP(B27,Operations!$A$2:$U$79,9,FALSE)*C27,2))) -> 0 | H27: =IF(B27=0,"",IF(C27>9999,"",ROUND(VLOOKUP($B27,Operations!$A$2:$U$79,15,FALSE)*C27,2))) ->  | I27: =IF(B27=0,0,IF(C27>9999,"",ROUND(VLOOKUP(VLOOKUP(B27,Operations!$A$2:$U$79,11,FALSE),PowerUnits[],16,FALSE)/VLOOKUP(B27,Operations!$A$2:$U$79,9,FALSE)*C27,2))) -> 0 | J27: =IF(B27=0,"",IF(C27>9999,"",ROUND(VLOOKUP($B27,Operations!$A$2:$U$79,21,FALSE)*$C27,2))) ->  | K27: 0
A28: 17 | E28: =IF(B28=0,"",IF(C28>9999,"",ROUND('General Variables'!$B$4*VLOOKUP(B28,Operations!$A$2:$U$79,10,FALSE)/VLOOKUP(B28,Operations!$A$2:$U$79,9,FALSE)*C28,2))) ->  | F28: =IF(B28=0,0,IF(C28>9999,"",ROUND(IF(VLOOKUP(B28,Operations!$A$2:$U$79,12,FALSE)=0,VLOOKUP(B28,Operations!$A$2:$U$79,13,FALSE)*'General Variables'!$B$8,VLOOKUP(B28,Operations!$A$2:$U$79,12,FALSE)*'General Variables'!$B$7)/VLOOKUP(B28,Operations!$A$2:$U$79,9,FALSE)*C28,2))) -> 0 | G28: =IF(B28=0,0,IF(C28>9999,"",ROUND(VLOOKUP(VLOOKUP(B28,Operations!$A$2:$U$79,11,FALSE),PowerUnits[],10,FALSE)/VLOOKUP(B28,Operations!$A$2:$U$79,9,FALSE)*C28,2))) -> 0 | H28: =IF(B28=0,"",IF(C28>9999,"",ROUND(VLOOKUP($B28,Operations!$A$2:$U$79,15,FALSE)*C28,2))) ->  | I28: =IF(B28=0,0,IF(C28>9999,"",ROUND(VLOOKUP(VLOOKUP(B28,Operations!$A$2:$U$79,11,FALSE),PowerUnits[],16,FALSE)/VLOOKUP(B28,Operations!$A$2:$U$79,9,FALSE)*C28,2))) -> 0 | J28: =IF(B28=0,"",IF(C28>9999,"",ROUND(VLOOKUP($B28,Operations!$A$2:$U$79,21,FALSE)*$C28,2))) ->  | K28: 0
A29: 18 | E29: =IF(B29=0,"",IF(C29>9999,"",ROUND('General Variables'!$B$4*VLOOKUP(B29,Operations!$A$2:$U$79,10,FALSE)/VLOOKUP(B29,Operations!$A$2:$U$79,9,FALSE)*C29,2))) ->  | F29: =IF(B29=0,0,IF(C29>9999,"",ROUND(IF(VLOOKUP(B29,Operations!$A$2:$U$79,12,FALSE)=0,VLOOKUP(B29,Operations!$A$2:$U$79,13,FALSE)*'General Variables'!$B$8,VLOOKUP(B29,Operations!$A$2:$U$79,12,FALSE)*'General Variables'!$B$7)/VLOOKUP(B29,Operations!$A$2:$U$79,9,FALSE)*C29,2))) -> 0 | G29: =IF(B29=0,0,IF(C29>9999,"",ROUND(VLOOKUP(VLOOKUP(B29,Operations!$A$2:$U$79,11,FALSE),PowerUnits[],10,FALSE)/VLOOKUP(B29,Operations!$A$2:$U$79,9,FALSE)*C29,2))) -> 0 | H29: =IF(B29=0,"",IF(C29>9999,"",ROUND(VLOOKUP($B29,Operations!$A$2:$U$79,15,FALSE)*C29,2))) ->  | I29: =IF(B29=0,0,IF(C29>9999,"",ROUND(VLOOKUP(VLOOKUP(B29,Operations!$A$2:$U$79,11,FALSE),PowerUnits[],16,FALSE)/VLOOKUP(B29,Operations!$A$2:$U$79,9,FALSE)*C29,2))) -> 0 | J29: =IF(B29=0,"",IF(C29>9999,"",ROUND(VLOOKUP($B29,Operations!$A$2:$U$79,21,FALSE)*$C29,2))) ->  | K29: 0
A30: 19 | E30: =IF(B30=0,"",IF(C30>9999,"",ROUND('General Variables'!$B$4*VLOOKUP(B30,Operations!$A$2:$U$79,10,FALSE)/VLOOKUP(B30,Operations!$A$2:$U$79,9,FALSE)*C30,2))) ->  | F30: =IF(B30=0,0,IF(C30>9999,"",ROUND(IF(VLOOKUP(B30,Operations!$A$2:$U$79,12,FALSE)=0,VLOOKUP(B30,Operations!$A$2:$U$79,13,FALSE)*'General Variables'!$B$8,VLOOKUP(B30,Operations!$A$2:$U$79,12,FALSE)*'General Variables'!$B$7)/VLOOKUP(B30,Operations!$A$2:$U$79,9,FALSE)*C30,2))) -> 0 | G30: =IF(B30=0,0,IF(C30>9999,"",ROUND(VLOOKUP(VLOOKUP(B30,Operations!$A$2:$U$79,11,FALSE),PowerUnits[],10,FALSE)/VLOOKUP(B30,Operations!$A$2:$U$79,9,FALSE)*C30,2))) -> 0 | H30: =IF(B30=0,"",IF(C30>9999,"",ROUND(VLOOKUP($B30,Operations!$A$2:$U$79,15,FALSE)*C30,2))) ->  | I30: =IF(B30=0,0,IF(C30>9999,"",ROUND(VLOOKUP(VLOOKUP(B30,Operations!$A$2:$U$79,11,FALSE),PowerUnits[],16,FALSE)/VLOOKUP(B30,Operations!$A$2:$U$79,9,FALSE)*C30,2))) -> 0 | J30: =IF(B30=0,"",IF(C30>9999,"",ROUND(VLOOKUP($B30,Operations!$A$2:$U$79,21,FALSE)*$C30,2))) ->  | K30: 0
A31: 20 | E31: =IF(B31=0,"",IF(C31>9999,"",ROUND('General Variables'!$B$4*VLOOKUP(B31,Operations!$A$2:$U$79,10,FALSE)/VLOOKUP(B31,Operations!$A$2:$U$79,9,FALSE)*C31,2))) ->  | F31: =IF(B31=0,0,IF(C31>9999,"",ROUND(IF(VLOOKUP(B31,Operations!$A$2:$U$79,12,FALSE)=0,VLOOKUP(B31,Operations!$A$2:$U$79,13,FALSE)*'General Variables'!$B$8,VLOOKUP(B31,Operations!$A$2:$U$79,12,FALSE)*'General Variables'!$B$7)/VLOOKUP(B31,Operations!$A$2:$U$79,9,FALSE)*C31,2))) -> 0 | G31: =IF(B31=0,0,IF(C31>9999,"",ROUND(VLOOKUP(VLOOKUP(B31,Operations!$A$2:$U$79,11,FALSE),PowerUnits[],10,FALSE)/VLOOKUP(B31,Operations!$A$2:$U$79,9,FALSE)*C31,2))) -> 0 | H31: =IF(B31=0,"",IF(C31>9999,"",ROUND(VLOOKUP($B31,Operations!$A$2:$U$79,15,FALSE)*C31,2))) ->  | I31: =IF(B31=0,0,IF(C31>9999,"",ROUND(VLOOKUP(VLOOKUP(B31,Operations!$A$2:$U$79,11,FALSE),PowerUnits[],16,FALSE)/VLOOKUP(B31,Operations!$A$2:$U$79,9,FALSE)*C31,2))) -> 0 | J31: =IF(B31=0,"",IF(C31>9999,"",ROUND(VLOOKUP($B31,Operations!$A$2:$U$79,21,FALSE)*$C31,2))) ->  | K31: 0
C33: Total for Field Operations | E33: =SUM(E12:E31) -> 4.82 | F33: =SUM(F12:F31) -> 2.5 | G33: 0.1 | H33: 7.44 | I33: 8.27 | J33: 9.68 | K33: 32.81
F35: Operation Index | G35: Percent Acres Applied | H35: Application | J35: Applied Price | L35: Your Estimate
B36: Materials & Services | H36: Rate | I36: Unit | K36: Total
B37: Gramoxone SL 3.0 | C37: =IF(B37=0,"",VLOOKUP($B37,Table2[],2,FALSE)) -> Herbicide | F37: 1 | G37: 1 | H37: 2 | I37: =IF($B37=0,"",VLOOKUP($B37,Table2[],5,FALSE)) -> pint | J37: =IF($B37=0,"",VLOOKUP($B37,Table2[],7,FALSE)) -> 5.375 | K37: =IF(B37=0,0,ROUND(G37*H37*J37,2)) -> 10.75
B38: 11-52-0 | C38: =IF(B38=0,"",VLOOKUP($B38,Table2[],2,FALSE)) -> Fertilizer | F38: 2 | G38: 1 | H38: 100 | I38: =IF($B38=0,"",VLOOKUP($B38,Table2[],5,FALSE)) -> pound | J38: =IF($B38=0,"",VLOOKUP($B38,Table2[],7,FALSE)) -> 0.4 | K38: =IF(B38=0,0,ROUND(G38*H38*J38,2)) -> 40
B39: Alfalfa RR w/Inoculant | C39: =IF(B39=0,"",VLOOKUP($B39,Table2[],2,FALSE)) -> Seed | F39: 2 | G39: 1 | H39: 12 | I39: =IF($B39=0,"",VLOOKUP($B39,Table2[],5,FALSE)) -> pound | J39: =IF($B39=0,"",VLOOKUP($B39,Table2[],7,FALSE)) -> 9.25 | K39: 111
B40: Brox 2EC | C40: Herbicide | F40: 3 | G40: 1 | H40: 1 | I40: pint | J40: =IF($B40=0,"",VLOOKUP($B40,Table2[],7,FALSE)) -> 6.625 | K40: =IF(B40=0,0,ROUND(G40*H40*J40,2)) -> 6.63
B41: Roundup PowerMax 3 | C41: =IF(B41=0,"",VLOOKUP($B41,Table2[],2,FALSE)) -> Herbicide | F41: 3 | G41: 1 | H41: 32 | I41: =IF($B41=0,"",VLOOKUP($B41,Table2[],5,FALSE)) -> ounce | J41: =IF($B41=0,"",VLOOKUP($B41,Table2[],7,FALSE)) -> 0.1953125 | K41: 6.25
B42: 21-0-0-24S | C42: =IF(B42=0,"",VLOOKUP($B42,Table2[],2,FALSE)) -> Additive | F42: 3 | G42: 1 | H42: 1.7 | I42: =IF($B42=0,"",VLOOKUP($B42,Table2[],5,FALSE)) -> pound | J42: =IF($B42=0,"",VLOOKUP($B42,Table2[],7,FALSE)) -> 0.4 | K42: 0.68
B43: Mustang Maxx | C43: =IF(B43=0,"",VLOOKUP($B43,Table2[],2,FALSE)) -> Insecticide | F43: 4 | G43: 0.2 | H43: 3 | I43: =IF($B43=0,"",VLOOKUP($B43,Table2[],5,FALSE)) -> ounce | J43: =IF($B43=0,"",VLOOKUP($B43,Table2[],7,FALSE)) -> 1.875 | K43: 1.13
C44: =IF(B44=0,"",VLOOKUP($B44,Table2[],2,FALSE)) ->  | I44: =IF($B44=0,"",VLOOKUP($B44,Table2[],5,FALSE)) ->  | J44: =IF($B44=0,"",VLOOKUP($B44,Table2[],7,FALSE)) ->  | K44: 0
C45: =IF(B45=0,"",VLOOKUP($B45,Table2[],2,FALSE)) ->  | I45: =IF($B45=0,"",VLOOKUP($B45,Table2[],5,FALSE)) ->  | J45: =IF($B45=0,"",VLOOKUP($B45,Table2[],7,FALSE)) ->  | K45: 0
C46: =IF(B46=0,"",VLOOKUP($B46,Table2[],2,FALSE)) ->  | I46: =IF($B46=0,"",VLOOKUP($B46,Table2[],5,FALSE)) ->  | J46: =IF($B46=0,"",VLOOKUP($B46,Table2[],7,FALSE)) ->  | K46: 0
C47: =IF(B47=0,"",VLOOKUP($B47,Table2[],2,FALSE)) ->  | I47: =IF($B47=0,"",VLOOKUP($B47,Table2[],5,FALSE)) ->  | J47: =IF($B47=0,"",VLOOKUP($B47,Table2[],7,FALSE)) ->  | K47: 0
C48: =IF(B48=0,"",VLOOKUP($B48,Table2[],2,FALSE)) ->  | I48: =IF($B48=0,"",VLOOKUP($B48,Table2[],5,FALSE)) ->  | J48: =IF($B48=0,"",VLOOKUP($B48,Table2[],7,FALSE)) ->  | K48: 0
C49: =IF(B49=0,"",VLOOKUP($B49,Table2[],2,FALSE)) ->  | I49: =IF($B49=0,"",VLOOKUP($B49,Table2[],5,FALSE)) ->  | J49: =IF($B49=0,"",VLOOKUP($B49,Table2[],7,FALSE)) ->  | K49: 0
C50: =IF(B50=0,"",VLOOKUP($B50,Table2[],2,FALSE)) ->  | I50: =IF($B50=0,"",VLOOKUP($B50,Table2[],5,FALSE)) ->  | J50: =IF($B50=0,"",VLOOKUP($B50,Table2[],7,FALSE)) ->  | K50: 0
C51: =IF(B51=0,"",VLOOKUP($B51,Table2[],2,FALSE)) ->  | I51: =IF($B51=0,"",VLOOKUP($B51,Table2[],5,FALSE)) ->  | J51: =IF($B51=0,"",VLOOKUP($B51,Table2[],7,FALSE)) ->  | K51: 0
C52: =IF(B52=0,"",VLOOKUP($B52,Table2[],2,FALSE)) ->  | I52: =IF($B52=0,"",VLOOKUP($B52,Table2[],5,FALSE)) ->  | J52: =IF($B52=0,"",VLOOKUP($B52,Table2[],7,FALSE)) ->  | K52: 0
C53: =IF(B53=0,"",VLOOKUP($B53,Table2[],2,FALSE)) ->  | G53: 0.1 | I53: =IF($B53=0,"",VLOOKUP($B53,Table2[],5,FALSE)) ->  | J53: =IF($B53=0,"",VLOOKUP($B53,Table2[],7,FALSE)) ->  | K53: 0
C54: =IF(B54=0,"",VLOOKUP($B54,Table2[],2,FALSE)) ->  | G54: 0.2 | I54: =IF($B54=0,"",VLOOKUP($B54,Table2[],5,FALSE)) ->  | J54: =IF($B54=0,"",VLOOKUP($B54,Table2[],7,FALSE)) ->  | K54: 0
C55: =IF(B55=0,"",VLOOKUP($B55,Table2[],2,FALSE)) ->  | G55: 0.3 | I55: =IF($B55=0,"",VLOOKUP($B55,Table2[],5,FALSE)) ->  | J55: =IF($B55=0,"",VLOOKUP($B55,Table2[],7,FALSE)) ->  | K55: 0
C56: =IF(B56=0,"",VLOOKUP($B56,Table2[],2,FALSE)) ->  | I56: =IF($B56=0,"",VLOOKUP($B56,Table2[],5,FALSE)) ->  | J56: =IF($B56=0,"",VLOOKUP($B56,Table2[],7,FALSE)) ->  | K56: 0
C57: =IF(B57=0,"",VLOOKUP($B57,Table2[],2,FALSE)) ->  | I57: =IF($B57=0,"",VLOOKUP($B57,Table2[],5,FALSE)) ->  | J57: =IF($B57=0,"",VLOOKUP($B57,Table2[],7,FALSE)) ->  | K57: =IF(B57=0,0,ROUND(G57*H57*J57,2)) -> 0
C58: =IF(B58=0,"",VLOOKUP($B58,Table2[],2,FALSE)) ->  | I58: =IF($B58=0,"",VLOOKUP($B58,Table2[],5,FALSE)) ->  | J58: =IF($B58=0,"",VLOOKUP($B58,Table2[],7,FALSE)) ->  | K58: =IF(B58=0,0,ROUND(G58*H58*J58,2)) -> 0
C59: =IF(B59=0,"",VLOOKUP($B59,Table2[],2,FALSE)) ->  | I59: =IF($B59=0,"",VLOOKUP($B59,Table2[],5,FALSE)) ->  | J59: =IF($B59=0,"",VLOOKUP($B59,Table2[],7,FALSE)) ->  | K59: =IF(B59=0,0,ROUND(G59*H59*J59,2)) -> 0
C60: =IF(B60=0,"",VLOOKUP($B60,Table2[],2,FALSE)) ->  | I60: =IF($B60=0,"",VLOOKUP($B60,Table2[],5,FALSE)) ->  | J60: =IF($B60=0,"",VLOOKUP($B60,Table2[],7,FALSE)) ->  | K60: =IF(B60=0,0,ROUND(G60*H60*J60,2)) -> 0
C61: =IF(B61=0,"",VLOOKUP($B61,Table2[],2,FALSE)) ->  | I61: =IF($B61=0,"",VLOOKUP($B61,Table2[],5,FALSE)) ->  | J61: =IF($B61=0,"",VLOOKUP($B61,Table2[],7,FALSE)) ->  | K61: =IF(B61=0,0,ROUND(G61*H61*J61,2)) -> 0
C62: Crop Insurance | J62: =IF(F5=0,E5,F5) ->  | K62: 0
C64: Total Materials & Services | K64: =SUM(K37:K62) -> 176.44
B66: Total listed costs for Field Operations and Materials and Services | K66: =K33+K64 -> 209.25
D67: Interest on Operations Capital | E67: =ROUND(SUM($E$33:$H$33)+$K$64,2) -> 191.3 | F67: cash expense @ | H67: ='General Variables'!$B$11 -> 0.07 | I67: =CONCATENATE("for ",TEXT('General Variables'!$B$12,"0.0")," mo.") -> for 6.0 mo. | K67: =E67*H67*'General Variables'!$B$12/12 -> 6.6955
B68: Total Operating and Use Related Ownership Costs | K68: =SUM(K66:K67) -> 215.9455
B70: Overhead (accounting, liability insurance, vehicle cost, office expense, soil tests) | K70: 0
B71: Real Estate Opportunity | C71: Fall Establishment | F71: =IF(C71=0,0,VLOOKUP(C71,RETable,2,FALSE)) -> 0 | G71: per acre @ | I71: ='General Variables'!$B$10 -> 0.03 | K71: =ROUND(F71*I71,2) -> 0
B72: Real Estate Taxes | F72: =IF(C71=0,0,VLOOKUP(C71,RETable,2,FALSE)) -> 0 | G72: per acre @ | I72: ='General Variables'!$B$13 -> 0.0125 | K72: =ROUND(F72*I72,2) -> 0
B73: Total Cost per Acre Including Overhead | K73: =SUM(K68:K72) -> 215.9455
D75: Use the UNL Ag Budget Calculator program to customize crop budgets at: | K75: agbudget.unl.edu
B76: =IF(G4="","","Cost of production per "&H4) ->  | K76: =IF(G4="","",K73/G4) -> 
K113: Yes
K114: No
B242: =IF(Operations!A96="","",Operations!A96) ->  | C242: =IF(Materials!B139="","",Materials!B139) -> Alfalfa w/Inoculant
B243: =IF(Operations!A97="","",Operations!A97) ->  | C243: =IF(Materials!B140="","",Materials!B140) -> Corn
B244: =IF(Operations!A98="","",Operations!A98) ->  | C244: =IF(Materials!B141="","",Materials!B141) -> Corn Bt, ECB, & RIB
B245: =IF(Operations!A99="","",Operations!A99) ->  | C245: =IF(Materials!B142="","",Materials!B142) -> Corn Bt, ECB, RR2, LL, & RIB
B246: =IF(Operations!A100="","",Operations!A100) ->  | C246: =IF(Materials!B143="","",Materials!B143) -> Corn Bt, ECB, RW, & RIB

Sheet 3-Alfalfa
B2: Region | F2: Detail | G2: Roundup Ready® | J2: Water Source | K2: Dryland
B3: Tillage System | C3: Conventional Tillage | G3: Yield | J3: acre/inches
B4: Cropping System | C4: Fall Establishment | G4: =IFERROR(VALUE(LEFT($H$3,FIND(" ",$H$3))),"") ->  | H4: =IFERROR(RIGHT(H3,LEN(H3)-LEN(G4)-1),"") ->  | J4: Follows Legume?
B5: Crop Insurance | C5: =MID(CELL("filename",C5),FIND("]",CELL("filename",C5))+1,255) -> 3-Alfalfa | E5: =VLOOKUP($C$5,CropInsurance,5,FALSE) ->  | F5: =VLOOKUP($C$5,CropInsurance,6,FALSE) -> 
A6: =REPLACE(CELL("filename",$A$1),1,FIND("]",CELL("filename",$A$1)),"") & IF($G$2="","", ", " & $G$2 ) & IF($C$2="","",", "&$C$2&"") & IF($C$3="","",", "&$C$3) & IF($C$4="","",", "&$C$4) & IF($H$3="","",", "&$H$3 & " Yield") & IF(K2="","",", " &K2) -> 3-Alfalfa, Roundup Ready®, Conventional Tillage, Fall Establishment, Dryland
B7: ='General Variables'!$B$3 & " Budget " & REPLACE(CELL("filename",$A$1),1,FIND("]",CELL("filename",$A$1)),"") & IF($G$2="","", ", " & $G$2 ) & IF($C$2="","",", "&$C$2) & IF($C$3="","",", "&$C$3) & IF($C$4="","",", "&$C$4) & IF($H$3="","",", "&$H$3 & " Yield") -> 2024 Budget 3-Alfalfa, Roundup Ready®, Conventional Tillage, Fall Establishment
B8: =IF(K2="","",K2)&IF(LEFT(K2,5)="Pivot",", 800 GPM 35 PSI","") & IF(K3="","",", "& K3&" "&J3) -> Dryland
B10: Field Operations | C10: Times or Qty | E10: ="Labor @ $" &TEXT('General Variables'!B4,"#.00")& " /Hr" -> Labor @ $25.00 /Hr | F10: ="Fuel @ $" & TEXT('General Variables'!B5,"#.00") & " and Lube" -> Fuel @ $3.45 and Lube | G10: Repairs | I10: Ownership | K10: Total | L10: Your Estimate
D11: Unit | G11: Power | H11: Imp. | I11: Power | J11: Imp.
A12: 1 | B12: Spread Fertilizer | C12: 1 | E12: =IF(B12=0,"",IF(C12>9999,"",ROUND('General Variables'!$B$4*VLOOKUP(B12,Operations!$A$2:$U$79,10,FALSE)/VLOOKUP(B12,Operations!$A$2:$U$79,9,FALSE)*C12,2))) -> 1.97 | F12: =IF(B12=0,0,IF(C12>9999,"",ROUND(IF(VLOOKUP(B12,Operations!$A$2:$U$79,12,FALSE)=0,VLOOKUP(B12,Operations!$A$2:$U$79,13,FALSE)*'General Variables'!$B$8,VLOOKUP(B12,Operations!$A$2:$U$79,12,FALSE)*'General Variables'!$B$7)/VLOOKUP(B12,Operations!$A$2:$U$79,9,FALSE)*C12,2))) -> 1.21 | G12: =IF(B12=0,0,IF(C12>9999,"",ROUND(VLOOKUP(VLOOKUP(B12,Operations!$A$2:$U$79,11,FALSE),PowerUnits[],10,FALSE)/VLOOKUP(B12,Operations!$A$2:$U$79,9,FALSE)*C12,2))) -> 0.05 | H12: =IF(B12=0,"",IF(C12>9999,"",ROUND(VLOOKUP($B12,Operations!$A$2:$U$79,15,FALSE)*C12,2))) -> 0 | I12: =IF(B12=0,0,IF(C12>9999,"",ROUND(VLOOKUP(VLOOKUP(B12,Operations!$A$2:$U$79,11,FALSE),PowerUnits[],16,FALSE)/VLOOKUP(B12,Operations!$A$2:$U$79,9,FALSE)*C12,2))) -> 4.13 | J12: =IF(B12=0,"",IF(C12>9999,"",ROUND(VLOOKUP($B12,Operations!$A$2:$U$79,21,FALSE)*$C12,2))) -> 2.64 | K12: =IF(C12>9999,"",SUM(E12:J12)) -> 10
A13: 2 | B13: Disk | C13: 1 | E13: =IF(B13=0,"",IF(C13>9999,"",ROUND('General Variables'!$B$4*VLOOKUP(B13,Operations!$A$2:$U$79,10,FALSE)/VLOOKUP(B13,Operations!$A$2:$U$79,9,FALSE)*C13,2))) -> 2.52 | F13: =IF(B13=0,0,IF(C13>9999,"",ROUND(IF(VLOOKUP(B13,Operations!$A$2:$U$79,12,FALSE)=0,VLOOKUP(B13,Operations!$A$2:$U$79,13,FALSE)*'General Variables'!$B$8,VLOOKUP(B13,Operations!$A$2:$U$79,12,FALSE)*'General Variables'!$B$7)/VLOOKUP(B13,Operations!$A$2:$U$79,9,FALSE)*C13,2))) -> 3.02 | G13: =IF(B13=0,0,IF(C13>9999,"",ROUND(VLOOKUP(VLOOKUP(B13,Operations!$A$2:$U$79,11,FALSE),PowerUnits[],10,FALSE)/VLOOKUP(B13,Operations!$A$2:$U$79,9,FALSE)*C13,2))) -> 0.29 | H13: =IF(B13=0,"",IF(C13>9999,"",ROUND(VLOOKUP($B13,Operations!$A$2:$U$79,15,FALSE)*C13,2))) -> 1.27 | I13: =IF(B13=0,0,IF(C13>9999,"",ROUND(VLOOKUP(VLOOKUP(B13,Operations!$A$2:$U$79,11,FALSE),PowerUnits[],16,FALSE)/VLOOKUP(B13,Operations!$A$2:$U$79,9,FALSE)*C13,2))) -> 12.45 | J13: =IF(B13=0,"",IF(C13>9999,"",ROUND(VLOOKUP($B13,Operations!$A$2:$U$79,21,FALSE)*$C13,2))) -> 3.69 | K13: =IF(C13>9999,"",SUM(E13:J13)) -> 23.24
A14: 3 | B14: Harrow | C14: 1 | E14: =IF(B14=0,"",IF(C14>9999,"",ROUND('General Variables'!$B$4*VLOOKUP(B14,Operations!$A$2:$U$79,10,FALSE)/VLOOKUP(B14,Operations!$A$2:$U$79,9,FALSE)*C14,2))) -> 1.15 | F14: =IF(B14=0,0,IF(C14>9999,"",ROUND(IF(VLOOKUP(B14,Operations!$A$2:$U$79,12,FALSE)=0,VLOOKUP(B14,Operations!$A$2:$U$79,13,FALSE)*'General Variables'!$B$8,VLOOKUP(B14,Operations!$A$2:$U$79,12,FALSE)*'General Variables'!$B$7)/VLOOKUP(B14,Operations!$A$2:$U$79,9,FALSE)*C14,2))) -> 0.34 | G14: =IF(B14=0,0,IF(C14>9999,"",ROUND(VLOOKUP(VLOOKUP(B14,Operations!$A$2:$U$79,11,FALSE),PowerUnits[],10,FALSE)/VLOOKUP(B14,Operations!$A$2:$U$79,9,FALSE)*C14,2))) -> 0.03 | H14: =IF(B14=0,"",IF(C14>9999,"",ROUND(VLOOKUP($B14,Operations!$A$2:$U$79,15,FALSE)*C14,2))) -> 0.64 | I14: =IF(B14=0,0,IF(C14>9999,"",ROUND(VLOOKUP(VLOOKUP(B14,Operations!$A$2:$U$79,11,FALSE),PowerUnits[],16,FALSE)/VLOOKUP(B14,Operations!$A$2:$U$79,9,FALSE)*C14,2))) -> 2.18 | J14: =IF(B14=0,"",IF(C14>9999,"",ROUND(VLOOKUP($B14,Operations!$A$2:$U$79,21,FALSE)*$C14,2))) -> 3.69 | K14: 8.03
A15: 4 | B15: Harrow | C15: 1 | E15: =IF(B15=0,"",IF(C15>9999,"",ROUND('General Variables'!$B$4*VLOOKUP(B15,Operations!$A$2:$U$79,10,FALSE)/VLOOKUP(B15,Operations!$A$2:$U$79,9,FALSE)*C15,2))) -> 1.15 | F15: =IF(B15=0,0,IF(C15>9999,"",ROUND(IF(VLOOKUP(B15,Operations!$A$2:$U$79,12,FALSE)=0,VLOOKUP(B15,Operations!$A$2:$U$79,13,FALSE)*'General Variables'!$B$8,VLOOKUP(B15,Operations!$A$2:$U$79,12,FALSE)*'General Variables'!$B$7)/VLOOKUP(B15,Operations!$A$2:$U$79,9,FALSE)*C15,2))) -> 0.34 | G15: =IF(B15=0,0,IF(C15>9999,"",ROUND(VLOOKUP(VLOOKUP(B15,Operations!$A$2:$U$79,11,FALSE),PowerUnits[],10,FALSE)/VLOOKUP(B15,Operations!$A$2:$U$79,9,FALSE)*C15,2))) -> 0.03 | H15: =IF(B15=0,"",IF(C15>9999,"",ROUND(VLOOKUP($B15,Operations!$A$2:$U$79,15,FALSE)*C15,2))) -> 0.64 | I15: =IF(B15=0,0,IF(C15>9999,"",ROUND(VLOOKUP(VLOOKUP(B15,Operations!$A$2:$U$79,11,FALSE),PowerUnits[],16,FALSE)/VLOOKUP(B15,Operations!$A$2:$U$79,9,FALSE)*C15,2))) -> 2.18 | J15: =IF(B15=0,"",IF(C15>9999,"",ROUND(VLOOKUP($B15,Operations!$A$2:$U$79,21,FALSE)*$C15,2))) -> 3.69 | K15: 8.03
A16: 5 | B16: Drill | C16: 1 | E16: =IF(B16=0,"",IF(C16>9999,"",ROUND('General Variables'!$B$4*VLOOKUP(B16,Operations!$A$2:$U$79,10,FALSE)/VLOOKUP(B16,Operations!$A$2:$U$79,9,FALSE)*C16,2))) -> 2.2 | F16: =IF(B16=0,0,IF(C16>9999,"",ROUND(IF(VLOOKUP(B16,Operations!$A$2:$U$79,12,FALSE)=0,VLOOKUP(B16,Operations!$A$2:$U$79,13,FALSE)*'General Variables'!$B$8,VLOOKUP(B16,Operations!$A$2:$U$79,12,FALSE)*'General Variables'!$B$7)/VLOOKUP(B16,Operations!$A$2:$U$79,9,FALSE)*C16,2))) -> 1.58 | G16: =IF(B16=0,0,IF(C16>9999,"",ROUND(VLOOKUP(VLOOKUP(B16,Operations!$A$2:$U$79,11,FALSE),PowerUnits[],10,FALSE)/VLOOKUP(B16,Operations!$A$2:$U$79,9,FALSE)*C16,2))) -> 0.05 | H16: =IF(B16=0,"",IF(C16>9999,"",ROUND(VLOOKUP($B16,Operations!$A$2:$U$79,15,FALSE)*C16,2))) -> 7.18 | I16: =IF(B16=0,0,IF(C16>9999,"",ROUND(VLOOKUP(VLOOKUP(B16,Operations!$A$2:$U$79,11,FALSE),PowerUnits[],16,FALSE)/VLOOKUP(B16,Operations!$A$2:$U$79,9,FALSE)*C16,2))) -> 4.19 | J16: =IF(B16=0,"",IF(C16>9999,"",ROUND(VLOOKUP($B16,Operations!$A$2:$U$79,21,FALSE)*$C16,2))) -> 2.45 | K16: 17.65
A17: 6 | B17: Roll | C17: 1 | E17: =IF(B17=0,"",IF(C17>9999,"",ROUND('General Variables'!$B$4*VLOOKUP(B17,Operations!$A$2:$U$79,10,FALSE)/VLOOKUP(B17,Operations!$A$2:$U$79,9,FALSE)*C17,2))) -> 2.08 | F17: =IF(B17=0,0,IF(C17>9999,"",ROUND(IF(VLOOKUP(B17,Operations!$A$2:$U$79,12,FALSE)=0,VLOOKUP(B17,Operations!$A$2:$U$79,13,FALSE)*'General Variables'!$B$8,VLOOKUP(B17,Operations!$A$2:$U$79,12,FALSE)*'General Variables'!$B$7)/VLOOKUP(B17,Operations!$A$2:$U$79,9,FALSE)*C17,2))) -> 1.8 | G17: =IF(B17=0,0,IF(C17>9999,"",ROUND(VLOOKUP(VLOOKUP(B17,Operations!$A$2:$U$79,11,FALSE),PowerUnits[],10,FALSE)/VLOOKUP(B17,Operations!$A$2:$U$79,9,FALSE)*C17,2))) -> 0.05 | H17: =IF(B17=0,"",IF(C17>9999,"",ROUND(VLOOKUP($B17,Operations!$A$2:$U$79,15,FALSE)*C17,2))) -> 0.37 | I17: =IF(B17=0,0,IF(C17>9999,"",ROUND(VLOOKUP(VLOOKUP(B17,Operations!$A$2:$U$79,11,FALSE),PowerUnits[],16,FALSE)/VLOOKUP(B17,Operations!$A$2:$U$79,9,FALSE)*C17,2))) -> 4.37 | J17: =IF(B17=0,"",IF(C17>9999,"",ROUND(VLOOKUP($B17,Operations!$A$2:$U$79,21,FALSE)*$C17,2))) -> 3.34 | K17: 12.01
A18: 7 | B18: Spray Herbicide | C18: 1 | E18: =IF(B18=0,"",IF(C18>9999,"",ROUND('General Variables'!$B$4*VLOOKUP(B18,Operations!$A$2:$U$79,10,FALSE)/VLOOKUP(B18,Operations!$A$2:$U$79,9,FALSE)*C18,2))) -> 0.95 | F18: =IF(B18=0,0,IF(C18>9999,"",ROUND(IF(VLOOKUP(B18,Operations!$A$2:$U$79,12,FALSE)=0,VLOOKUP(B18,Operations!$A$2:$U$79,13,FALSE)*'General Variables'!$B$8,VLOOKUP(B18,Operations!$A$2:$U$79,12,FALSE)*'General Variables'!$B$7)/VLOOKUP(B18,Operations!$A$2:$U$79,9,FALSE)*C18,2))) -> 0.32 | G18: =IF(B18=0,0,IF(C18>9999,"",ROUND(VLOOKUP(VLOOKUP(B18,Operations!$A$2:$U$79,11,FALSE),PowerUnits[],10,FALSE)/VLOOKUP(B18,Operations!$A$2:$U$79,9,FALSE)*C18,2))) -> 0.02 | H18: =IF(B18=0,"",IF(C18>9999,"",ROUND(VLOOKUP($B18,Operations!$A$2:$U$79,15,FALSE)*C18,2))) -> 1.11 | I18: =IF(B18=0,0,IF(C18>9999,"",ROUND(VLOOKUP(VLOOKUP(B18,Operations!$A$2:$U$79,11,FALSE),PowerUnits[],16,FALSE)/VLOOKUP(B18,Operations!$A$2:$U$79,9,FALSE)*C18,2))) -> 1.59 | J18: =IF(B18=0,"",IF(C18>9999,"",ROUND(VLOOKUP($B18,Operations!$A$2:$U$79,21,FALSE)*$C18,2))) -> 2.02 | K18: 6.01
A19: 8 | B19: Spray Insecticide | C19: 0.2 | E19: =IF(B19=0,"",IF(C19>9999,"",ROUND('General Variables'!$B$4*VLOOKUP(B19,Operations!$A$2:$U$79,10,FALSE)/VLOOKUP(B19,Operations!$A$2:$U$79,9,FALSE)*C19,2))) -> 0.19 | F19: =IF(B19=0,0,IF(C19>9999,"",ROUND(IF(VLOOKUP(B19,Operations!$A$2:$U$79,12,FALSE)=0,VLOOKUP(B19,Operations!$A$2:$U$79,13,FALSE)*'General Variables'!$B$8,VLOOKUP(B19,Operations!$A$2:$U$79,12,FALSE)*'General Variables'!$B$7)/VLOOKUP(B19,Operations!$A$2:$U$79,9,FALSE)*C19,2))) -> 0.06 | G19: =IF(B19=0,0,IF(C19>9999,"",ROUND(VLOOKUP(VLOOKUP(B19,Operations!$A$2:$U$79,11,FALSE),PowerUnits[],10,FALSE)/VLOOKUP(B19,Operations!$A$2:$U$79,9,FALSE)*C19,2))) -> 0 | H19: =IF(B19=0,"",IF(C19>9999,"",ROUND(VLOOKUP($B19,Operations!$A$2:$U$79,15,FALSE)*C19,2))) -> 0.22 | I19: =IF(B19=0,0,IF(C19>9999,"",ROUND(VLOOKUP(VLOOKUP(B19,Operations!$A$2:$U$79,11,FALSE),PowerUnits[],16,FALSE)/VLOOKUP(B19,Operations!$A$2:$U$79,9,FALSE)*C19,2))) -> 0.32 | J19: =IF(B19=0,"",IF(C19>9999,"",ROUND(VLOOKUP($B19,Operations!$A$2:$U$79,21,FALSE)*$C19,2))) -> 0.4 | K19: 1.19
A20: 9 | E20: =IF(B20=0,"",IF(C20>9999,"",ROUND('General Variables'!$B$4*VLOOKUP(B20,Operations!$A$2:$U$79,10,FALSE)/VLOOKUP(B20,Operations!$A$2:$U$79,9,FALSE)*C20,2))) ->  | F20: =IF(B20=0,0,IF(C20>9999,"",ROUND(IF(VLOOKUP(B20,Operations!$A$2:$U$79,12,FALSE)=0,VLOOKUP(B20,Operations!$A$2:$U$79,13,FALSE)*'General Variables'!$B$8,VLOOKUP(B20,Operations!$A$2:$U$79,12,FALSE)*'General Variables'!$B$7)/VLOOKUP(B20,Operations!$A$2:$U$79,9,FALSE)*C20,2))) -> 0 | G20: =IF(B20=0,0,IF(C20>9999,"",ROUND(VLOOKUP(VLOOKUP(B20,Operations!$A$2:$U$79,11,FALSE),PowerUnits[],10,FALSE)/VLOOKUP(B20,Operations!$A$2:$U$79,9,FALSE)*C20,2))) -> 0 | H20: =IF(B20=0,"",IF(C20>9999,"",ROUND(VLOOKUP($B20,Operations!$A$2:$U$79,15,FALSE)*C20,2))) ->  | I20: =IF(B20=0,0,IF(C20>9999,"",ROUND(VLOOKUP(VLOOKUP(B20,Operations!$A$2:$U$79,11,FALSE),PowerUnits[],16,FALSE)/VLOOKUP(B20,Operations!$A$2:$U$79,9,FALSE)*C20,2))) -> 0 | J20: =IF(B20=0,"",IF(C20>9999,"",ROUND(VLOOKUP($B20,Operations!$A$2:$U$79,21,FALSE)*$C20,2))) ->  | K20: 0
A21: 10 | E21: =IF(B21=0,"",IF(C21>9999,"",ROUND('General Variables'!$B$4*VLOOKUP(B21,Operations!$A$2:$U$79,10,FALSE)/VLOOKUP(B21,Operations!$A$2:$U$79,9,FALSE)*C21,2))) ->  | F21: =IF(B21=0,0,IF(C21>9999,"",ROUND(IF(VLOOKUP(B21,Operations!$A$2:$U$79,12,FALSE)=0,VLOOKUP(B21,Operations!$A$2:$U$79,13,FALSE)*'General Variables'!$B$8,VLOOKUP(B21,Operations!$A$2:$U$79,12,FALSE)*'General Variables'!$B$7)/VLOOKUP(B21,Operations!$A$2:$U$79,9,FALSE)*C21,2))) -> 0 | G21: =IF(B21=0,0,IF(C21>9999,"",ROUND(VLOOKUP(VLOOKUP(B21,Operations!$A$2:$U$79,11,FALSE),PowerUnits[],10,FALSE)/VLOOKUP(B21,Operations!$A$2:$U$79,9,FALSE)*C21,2))) -> 0 | H21: =IF(B21=0,"",IF(C21>9999,"",ROUND(VLOOKUP($B21,Operations!$A$2:$U$79,15,FALSE)*C21,2))) ->  | I21: =IF(B21=0,0,IF(C21>9999,"",ROUND(VLOOKUP(VLOOKUP(B21,Operations!$A$2:$U$79,11,FALSE),PowerUnits[],16,FALSE)/VLOOKUP(B21,Operations!$A$2:$U$79,9,FALSE)*C21,2))) -> 0 | J21: =IF(B21=0,"",IF(C21>9999,"",ROUND(VLOOKUP($B21,Operations!$A$2:$U$79,21,FALSE)*$C21,2))) ->  | K21: 0
A22: 11 | E22: =IF(B22=0,"",IF(C22>9999,"",ROUND('General Variables'!$B$4*VLOOKUP(B22,Operations!$A$2:$U$79,10,FALSE)/VLOOKUP(B22,Operations!$A$2:$U$79,9,FALSE)*C22,2))) ->  | F22: =IF(B22=0,0,IF(C22>9999,"",ROUND(IF(VLOOKUP(B22,Operations!$A$2:$U$79,12,FALSE)=0,VLOOKUP(B22,Operations!$A$2:$U$79,13,FALSE)*'General Variables'!$B$8,VLOOKUP(B22,Operations!$A$2:$U$79,12,FALSE)*'General Variables'!$B$7)/VLOOKUP(B22,Operations!$A$2:$U$79,9,FALSE)*C22,2))) -> 0 | G22: =IF(B22=0,0,IF(C22>9999,"",ROUND(VLOOKUP(VLOOKUP(B22,Operations!$A$2:$U$79,11,FALSE),PowerUnits[],10,FALSE)/VLOOKUP(B22,Operations!$A$2:$U$79,9,FALSE)*C22,2))) -> 0 | H22: =IF(B22=0,"",IF(C22>9999,"",ROUND(VLOOKUP($B22,Operations!$A$2:$U$79,15,FALSE)*C22,2))) ->  | I22: =IF(B22=0,0,IF(C22>9999,"",ROUND(VLOOKUP(VLOOKUP(B22,Operations!$A$2:$U$79,11,FALSE),PowerUnits[],16,FALSE)/VLOOKUP(B22,Operations!$A$2:$U$79,9,FALSE)*C22,2))) -> 0 | J22: =IF(B22=0,"",IF(C22>9999,"",ROUND(VLOOKUP($B22,Operations!$A$2:$U$79,21,FALSE)*$C22,2))) ->  | K22: 0
A23: 12 | E23: =IF(B23=0,"",IF(C23>9999,"",ROUND('General Variables'!$B$4*VLOOKUP(B23,Operations!$A$2:$U$79,10,FALSE)/VLOOKUP(B23,Operations!$A$2:$U$79,9,FALSE)*C23,2))) ->  | F23: =IF(B23=0,0,IF(C23>9999,"",ROUND(IF(VLOOKUP(B23,Operations!$A$2:$U$79,12,FALSE)=0,VLOOKUP(B23,Operations!$A$2:$U$79,13,FALSE)*'General Variables'!$B$8,VLOOKUP(B23,Operations!$A$2:$U$79,12,FALSE)*'General Variables'!$B$7)/VLOOKUP(B23,Operations!$A$2:$U$79,9,FALSE)*C23,2))) -> 0 | G23: =IF(B23=0,0,IF(C23>9999,"",ROUND(VLOOKUP(VLOOKUP(B23,Operations!$A$2:$U$79,11,FALSE),PowerUnits[],10,FALSE)/VLOOKUP(B23,Operations!$A$2:$U$79,9,FALSE)*C23,2))) -> 0 | H23: =IF(B23=0,"",IF(C23>9999,"",ROUND(VLOOKUP($B23,Operations!$A$2:$U$79,15,FALSE)*C23,2))) ->  | I23: =IF(B23=0,0,IF(C23>9999,"",ROUND(VLOOKUP(VLOOKUP(B23,Operations!$A$2:$U$79,11,FALSE),PowerUnits[],16,FALSE)/VLOOKUP(B23,Operations!$A$2:$U$79,9,FALSE)*C23,2))) -> 0 | J23: =IF(B23=0,"",IF(C23>9999,"",ROUND(VLOOKUP($B23,Operations!$A$2:$U$79,21,FALSE)*$C23,2))) ->  | K23: 0
A24: 13 | E24: =IF(B24=0,"",IF(C24>9999,"",ROUND('General Variables'!$B$4*VLOOKUP(B24,Operations!$A$2:$U$79,10,FALSE)/VLOOKUP(B24,Operations!$A$2:$U$79,9,FALSE)*C24,2))) ->  | F24: =IF(B24=0,0,IF(C24>9999,"",ROUND(IF(VLOOKUP(B24,Operations!$A$2:$U$79,12,FALSE)=0,VLOOKUP(B24,Operations!$A$2:$U$79,13,FALSE)*'General Variables'!$B$8,VLOOKUP(B24,Operations!$A$2:$U$79,12,FALSE)*'General Variables'!$B$7)/VLOOKUP(B24,Operations!$A$2:$U$79,9,FALSE)*C24,2))) -> 0 | G24: =IF(B24=0,0,IF(C24>9999,"",ROUND(VLOOKUP(VLOOKUP(B24,Operations!$A$2:$U$79,11,FALSE),PowerUnits[],10,FALSE)/VLOOKUP(B24,Operations!$A$2:$U$79,9,FALSE)*C24,2))) -> 0 | H24: =IF(B24=0,"",IF(C24>9999,"",ROUND(VLOOKUP($B24,Operations!$A$2:$U$79,15,FALSE)*C24,2))) ->  | I24: =IF(B24=0,0,IF(C24>9999,"",ROUND(VLOOKUP(VLOOKUP(B24,Operations!$A$2:$U$79,11,FALSE),PowerUnits[],16,FALSE)/VLOOKUP(B24,Operations!$A$2:$U$79,9,FALSE)*C24,2))) -> 0 | J24: =IF(B24=0,"",IF(C24>9999,"",ROUND(VLOOKUP($B24,Operations!$A$2:$U$79,21,FALSE)*$C24,2))) ->  | K24: 0
A25: 14 | E25: =IF(B25=0,"",IF(C25>9999,"",ROUND('General Variables'!$B$4*VLOOKUP(B25,Operations!$A$2:$U$79,10,FALSE)/VLOOKUP(B25,Operations!$A$2:$U$79,9,FALSE)*C25,2))) ->  | F25: =IF(B25=0,0,IF(C25>9999,"",ROUND(IF(VLOOKUP(B25,Operations!$A$2:$U$79,12,FALSE)=0,VLOOKUP(B25,Operations!$A$2:$U$79,13,FALSE)*'General Variables'!$B$8,VLOOKUP(B25,Operations!$A$2:$U$79,12,FALSE)*'General Variables'!$B$7)/VLOOKUP(B25,Operations!$A$2:$U$79,9,FALSE)*C25,2))) -> 0 | G25: =IF(B25=0,0,IF(C25>9999,"",ROUND(VLOOKUP(VLOOKUP(B25,Operations!$A$2:$U$79,11,FALSE),PowerUnits[],10,FALSE)/VLOOKUP(B25,Operations!$A$2:$U$79,9,FALSE)*C25,2))) -> 0 | H25: =IF(B25=0,"",IF(C25>9999,"",ROUND(VLOOKUP($B25,Operations!$A$2:$U$79,15,FALSE)*C25,2))) ->  | I25: =IF(B25=0,0,IF(C25>9999,"",ROUND(VLOOKUP(VLOOKUP(B25,Operations!$A$2:$U$79,11,FALSE),PowerUnits[],16,FALSE)/VLOOKUP(B25,Operations!$A$2:$U$79,9,FALSE)*C25,2))) -> 0 | J25: =IF(B25=0,"",IF(C25>9999,"",ROUND(VLOOKUP($B25,Operations!$A$2:$U$79,21,FALSE)*$C25,2))) ->  | K25: 0
A26: 15 | E26: =IF(B26=0,"",IF(C26>9999,"",ROUND('General Variables'!$B$4*VLOOKUP(B26,Operations!$A$2:$U$79,10,FALSE)/VLOOKUP(B26,Operations!$A$2:$U$79,9,FALSE)*C26,2))) ->  | F26: =IF(B26=0,0,IF(C26>9999,"",ROUND(IF(VLOOKUP(B26,Operations!$A$2:$U$79,12,FALSE)=0,VLOOKUP(B26,Operations!$A$2:$U$79,13,FALSE)*'General Variables'!$B$8,VLOOKUP(B26,Operations!$A$2:$U$79,12,FALSE)*'General Variables'!$B$7)/VLOOKUP(B26,Operations!$A$2:$U$79,9,FALSE)*C26,2))) -> 0 | G26: =IF(B26=0,0,IF(C26>9999,"",ROUND(VLOOKUP(VLOOKUP(B26,Operations!$A$2:$U$79,11,FALSE),PowerUnits[],10,FALSE)/VLOOKUP(B26,Operations!$A$2:$U$79,9,FALSE)*C26,2))) -> 0 | H26: =IF(B26=0,"",IF(C26>9999,"",ROUND(VLOOKUP($B26,Operations!$A$2:$U$79,15,FALSE)*C26,2))) ->  | I26: =IF(B26=0,0,IF(C26>9999,"",ROUND(VLOOKUP(VLOOKUP(B26,Operations!$A$2:$U$79,11,FALSE),PowerUnits[],16,FALSE)/VLOOKUP(B26,Operations!$A$2:$U$79,9,FALSE)*C26,2))) -> 0 | J26: =IF(B26=0,"",IF(C26>9999,"",ROUND(VLOOKUP($B26,Operations!$A$2:$U$79,21,FALSE)*$C26,2))) ->  | K26: 0
A27: 16 | E27: =IF(B27=0,"",IF(C27>9999,"",ROUND('General Variables'!$B$4*VLOOKUP(B27,Operations!$A$2:$U$79,10,FALSE)/VLOOKUP(B27,Operations!$A$2:$U$79,9,FALSE)*C27,2))) ->  | F27: =IF(B27=0,0,IF(C27>9999,"",ROUND(IF(VLOOKUP(B27,Operations!$A$2:$U$79,12,FALSE)=0,VLOOKUP(B27,Operations!$A$2:$U$79,13,FALSE)*'General Variables'!$B$8,VLOOKUP(B27,Operations!$A$2:$U$79,12,FALSE)*'General Variables'!$B$7)/VLOOKUP(B27,Operations!$A$2:$U$79,9,FALSE)*C27,2))) -> 0 | G27: =IF(B27=0,0,IF(C27>9999,"",ROUND(VLOOKUP(VLOOKUP(B27,Operations!$A$2:$U$79,11,FALSE),PowerUnits[],10,FALSE)/VLOOKUP(B27,Operations!$A$2:$U$79,9,FALSE)*C27,2))) -> 0 | H27: =IF(B27=0,"",IF(C27>9999,"",ROUND(VLOOKUP($B27,Operations!$A$2:$U$79,15,FALSE)*C27,2))) ->  | I27: =IF(B27=0,0,IF(C27>9999,"",ROUND(VLOOKUP(VLOOKUP(B27,Operations!$A$2:$U$79,11,FALSE),PowerUnits[],16,FALSE)/VLOOKUP(B27,Operations!$A$2:$U$79,9,FALSE)*C27,2))) -> 0 | J27: =IF(B27=0,"",IF(C27>9999,"",ROUND(VLOOKUP($B27,Operations!$A$2:$U$79,21,FALSE)*$C27,2))) ->  | K27: 0
A28: 17 | E28: =IF(B28=0,"",IF(C28>9999,"",ROUND('General Variables'!$B$4*VLOOKUP(B28,Operations!$A$2:$U$79,10,FALSE)/VLOOKUP(B28,Operations!$A$2:$U$79,9,FALSE)*C28,2))) ->  | F28: =IF(B28=0,0,IF(C28>9999,"",ROUND(IF(VLOOKUP(B28,Operations!$A$2:$U$79,12,FALSE)=0,VLOOKUP(B28,Operations!$A$2:$U$79,13,FALSE)*'General Variables'!$B$8,VLOOKUP(B28,Operations!$A$2:$U$79,12,FALSE)*'General Variables'!$B$7)/VLOOKUP(B28,Operations!$A$2:$U$79,9,FALSE)*C28,2))) -> 0 | G28: =IF(B28=0,0,IF(C28>9999,"",ROUND(VLOOKUP(VLOOKUP(B28,Operations!$A$2:$U$79,11,FALSE),PowerUnits[],10,FALSE)/VLOOKUP(B28,Operations!$A$2:$U$79,9,FALSE)*C28,2))) -> 0 | H28: =IF(B28=0,"",IF(C28>9999,"",ROUND(VLOOKUP($B28,Operations!$A$2:$U$79,15,FALSE)*C28,2))) ->  | I28: =IF(B28=0,0,IF(C28>9999,"",ROUND(VLOOKUP(VLOOKUP(B28,Operations!$A$2:$U$79,11,FALSE),PowerUnits[],16,FALSE)/VLOOKUP(B28,Operations!$A$2:$U$79,9,FALSE)*C28,2))) -> 0 | J28: =IF(B28=0,"",IF(C28>9999,"",ROUND(VLOOKUP($B28,Operations!$A$2:$U$79,21,FALSE)*$C28,2))) ->  | K28: 0
A29: 18 | E29: =IF(B29=0,"",IF(C29>9999,"",ROUND('General Variables'!$B$4*VLOOKUP(B29,Operations!$A$2:$U$79,10,FALSE)/VLOOKUP(B29,Operations!$A$2:$U$79,9,FALSE)*C29,2))) ->  | F29: =IF(B29=0,0,IF(C29>9999,"",ROUND(IF(VLOOKUP(B29,Operations!$A$2:$U$79,12,FALSE)=0,VLOOKUP(B29,Operations!$A$2:$U$79,13,FALSE)*'General Variables'!$B$8,VLOOKUP(B29,Operations!$A$2:$U$79,12,FALSE)*'General Variables'!$B$7)/VLOOKUP(B29,Operations!$A$2:$U$79,9,FALSE)*C29,2))) -> 0 | G29: =IF(B29=0,0,IF(C29>9999,"",ROUND(VLOOKUP(VLOOKUP(B29,Operations!$A$2:$U$79,11,FALSE),PowerUnits[],10,FALSE)/VLOOKUP(B29,Operations!$A$2:$U$79,9,FALSE)*C29,2))) -> 0 | H29: =IF(B29=0,"",IF(C29>9999,"",ROUND(VLOOKUP($B29,Operations!$A$2:$U$79,15,FALSE)*C29,2))) ->  | I29: =IF(B29=0,0,IF(C29>9999,"",ROUND(VLOOKUP(VLOOKUP(B29,Operations!$A$2:$U$79,11,FALSE),PowerUnits[],16,FALSE)/VLOOKUP(B29,Operations!$A$2:$U$79,9,FALSE)*C29,2))) -> 0 | J29: =IF(B29=0,"",IF(C29>9999,"",ROUND(VLOOKUP($B29,Operations!$A$2:$U$79,21,FALSE)*$C29,2))) ->  | K29: 0
A30: 19 | E30: =IF(B30=0,"",IF(C30>9999,"",ROUND('General Variables'!$B$4*VLOOKUP(B30,Operations!$A$2:$U$79,10,FALSE)/VLOOKUP(B30,Operations!$A$2:$U$79,9,FALSE)*C30,2))) ->  | F30: =IF(B30=0,0,IF(C30>9999,"",ROUND(IF(VLOOKUP(B30,Operations!$A$2:$U$79,12,FALSE)=0,VLOOKUP(B30,Operations!$A$2:$U$79,13,FALSE)*'General Variables'!$B$8,VLOOKUP(B30,Operations!$A$2:$U$79,12,FALSE)*'General Variables'!$B$7)/VLOOKUP(B30,Operations!$A$2:$U$79,9,FALSE)*C30,2))) -> 0 | G30: =IF(B30=0,0,IF(C30>9999,"",ROUND(VLOOKUP(VLOOKUP(B30,Operations!$A$2:$U$79,11,FALSE),PowerUnits[],10,FALSE)/VLOOKUP(B30,Operations!$A$2:$U$79,9,FALSE)*C30,2))) -> 0 | H30: =IF(B30=0,"",IF(C30>9999,"",ROUND(VLOOKUP($B30,Operations!$A$2:$U$79,15,FALSE)*C30,2))) ->  | I30: =IF(B30=0,0,IF(C30>9999,"",ROUND(VLOOKUP(VLOOKUP(B30,Operations!$A$2:$U$79,11,FALSE),PowerUnits[],16,FALSE)/VLOOKUP(B30,Operations!$A$2:$U$79,9,FALSE)*C30,2))) -> 0 | J30: =IF(B30=0,"",IF(C30>9999,"",ROUND(VLOOKUP($B30,Operations!$A$2:$U$79,21,FALSE)*$C30,2))) ->  | K30: 0
A31: 20 | E31: =IF(B31=0,"",IF(C31>9999,"",ROUND('General Variables'!$B$4*VLOOKUP(B31,Operations!$A$2:$U$79,10,FALSE)/VLOOKUP(B31,Operations!$A$2:$U$79,9,FALSE)*C31,2))) ->  | F31: =IF(B31=0,0,IF(C31>9999,"",ROUND(IF(VLOOKUP(B31,Operations!$A$2:$U$79,12,FALSE)=0,VLOOKUP(B31,Operations!$A$2:$U$79,13,FALSE)*'General Variables'!$B$8,VLOOKUP(B31,Operations!$A$2:$U$79,12,FALSE)*'General Variables'!$B$7)/VLOOKUP(B31,Operations!$A$2:$U$79,9,FALSE)*C31,2))) -> 0 | G31: =IF(B31=0,0,IF(C31>9999,"",ROUND(VLOOKUP(VLOOKUP(B31,Operations!$A$2:$U$79,11,FALSE),PowerUnits[],10,FALSE)/VLOOKUP(B31,Operations!$A$2:$U$79,9,FALSE)*C31,2))) -> 0 | H31: =IF(B31=0,"",IF(C31>9999,"",ROUND(VLOOKUP($B31,Operations!$A$2:$U$79,15,FALSE)*C31,2))) ->  | I31: =IF(B31=0,0,IF(C31>9999,"",ROUND(VLOOKUP(VLOOKUP(B31,Operations!$A$2:$U$79,11,FALSE),PowerUnits[],16,FALSE)/VLOOKUP(B31,Operations!$A$2:$U$79,9,FALSE)*C31,2))) -> 0 | J31: =IF(B31=0,"",IF(C31>9999,"",ROUND(VLOOKUP($B31,Operations!$A$2:$U$79,21,FALSE)*$C31,2))) ->  | K31: 0
C33: Total for Field Operations | E33: =SUM(E12:E31) -> 12.21 | F33: =SUM(F12:F31) -> 8.67 | G33: 0.52 | H33: 11.43 | I33: 31.41 | J33: 21.92 | K33: 86.16
F35: Operation Index | G35: Percent Acres Applied | H35: Application | J35: Applied Price | L35: Your Estimate
B36: Materials & Services | H36: Rate | I36: Unit | K36: Total
B37: 11-52-0 | C37: =IF(B37=0,"",VLOOKUP($B37,Table2[],2,FALSE)) -> Fertilizer | F37: 1 | G37: 1 | H37: 100 | I37: =IF($B37=0,"",VLOOKUP($B37,Table2[],5,FALSE)) -> pound | J37: =IF($B37=0,"",VLOOKUP($B37,Table2[],7,FALSE)) -> 0.4 | K37: =IF(B37=0,0,ROUND(G37*H37*J37,2)) -> 40
B38: Alfalfa RR w/Inoculant | C38: =IF(B38=0,"",VLOOKUP($B38,Table2[],2,FALSE)) -> Seed | F38: 5 | G38: 1 | H38: 12 | I38: =IF($B38=0,"",VLOOKUP($B38,Table2[],5,FALSE)) -> pound | J38: =IF($B38=0,"",VLOOKUP($B38,Table2[],7,FALSE)) -> 9.25 | K38: =IF(B38=0,0,ROUND(G38*H38*J38,2)) -> 111
B39: Roundup PowerMax 3 | C39: =IF(B39=0,"",VLOOKUP($B39,Table2[],2,FALSE)) -> Herbicide | F39: 7 | G39: 1 | H39: 32 | I39: =IF($B39=0,"",VLOOKUP($B39,Table2[],5,FALSE)) -> ounce | J39: =IF($B39=0,"",VLOOKUP($B39,Table2[],7,FALSE)) -> 0.1953125 | K39: 6.25
B40: Brox 2EC | C40: Herbicide | F40: 7 | G40: 1 | H40: 1 | I40: pint | J40: =IF($B40=0,"",VLOOKUP($B40,Table2[],7,FALSE)) -> 6.625 | K40: =IF(B40=0,0,ROUND(G40*H40*J40,2)) -> 6.63
B41: 21-0-0-24S | C41: =IF(B41=0,"",VLOOKUP($B41,Table2[],2,FALSE)) -> Additive | F41: 7 | G41: 1 | H41: 1.7 | I41: =IF($B41=0,"",VLOOKUP($B41,Table2[],5,FALSE)) -> pound | J41: =IF($B41=0,"",VLOOKUP($B41,Table2[],7,FALSE)) -> 0.4 | K41: 0.68
B42: Mustang Maxx | C42: =IF(B42=0,"",VLOOKUP($B42,Table2[],2,FALSE)) -> Insecticide | F42: 8 | G42: 0.2 | H42: 3 | I42: =IF($B42=0,"",VLOOKUP($B42,Table2[],5,FALSE)) -> ounce | J42: =IF($B42=0,"",VLOOKUP($B42,Table2[],7,FALSE)) -> 1.875 | K42: 1.13
C43: =IF(B43=0,"",VLOOKUP($B43,Table2[],2,FALSE)) ->  | I43: =IF($B43=0,"",VLOOKUP($B43,Table2[],5,FALSE)) ->  | J43: =IF($B43=0,"",VLOOKUP($B43,Table2[],7,FALSE)) ->  | K43: 0
C44: =IF(B44=0,"",VLOOKUP($B44,Table2[],2,FALSE)) ->  | I44: =IF($B44=0,"",VLOOKUP($B44,Table2[],5,FALSE)) ->  | J44: =IF($B44=0,"",VLOOKUP($B44,Table2[],7,FALSE)) ->  | K44: 0
C45: =IF(B45=0,"",VLOOKUP($B45,Table2[],2,FALSE)) ->  | I45: =IF($B45=0,"",VLOOKUP($B45,Table2[],5,FALSE)) ->  | J45: =IF($B45=0,"",VLOOKUP($B45,Table2[],7,FALSE)) ->  | K45: 0
C46: =IF(B46=0,"",VLOOKUP($B46,Table2[],2,FALSE)) ->  | I46: =IF($B46=0,"",VLOOKUP($B46,Table2[],5,FALSE)) ->  | J46: =IF($B46=0,"",VLOOKUP($B46,Table2[],7,FALSE)) ->  | K46: 0
C47: =IF(B47=0,"",VLOOKUP($B47,Table2[],2,FALSE)) ->  | I47: =IF($B47=0,"",VLOOKUP($B47,Table2[],5,FALSE)) ->  | J47: =IF($B47=0,"",VLOOKUP($B47,Table2[],7,FALSE)) ->  | K47: 0
C48: =IF(B48=0,"",VLOOKUP($B48,Table2[],2,FALSE)) ->  | I48: =IF($B48=0,"",VLOOKUP($B48,Table2[],5,FALSE)) ->  | J48: =IF($B48=0,"",VLOOKUP($B48,Table2[],7,FALSE)) ->  | K48: 0
C49: =IF(B49=0,"",VLOOKUP($B49,Table2[],2,FALSE)) ->  | I49: =IF($B49=0,"",VLOOKUP($B49,Table2[],5,FALSE)) ->  | J49: =IF($B49=0,"",VLOOKUP($B49,Table2[],7,FALSE)) ->  | K49: 0
C50: =IF(B50=0,"",VLOOKUP($B50,Table2[],2,FALSE)) ->  | I50: =IF($B50=0,"",VLOOKUP($B50,Table2[],5,FALSE)) ->  | J50: =IF($B50=0,"",VLOOKUP($B50,Table2[],7,FALSE)) ->  | K50: 0
C51: =IF(B51=0,"",VLOOKUP($B51,Table2[],2,FALSE)) ->  | I51: =IF($B51=0,"",VLOOKUP($B51,Table2[],5,FALSE)) ->  | J51: =IF($B51=0,"",VLOOKUP($B51,Table2[],7,FALSE)) ->  | K51: 0
C52: =IF(B52=0,"",VLOOKUP($B52,Table2[],2,FALSE)) ->  | I52: =IF($B52=0,"",VLOOKUP($B52,Table2[],5,FALSE)) ->  | J52: =IF($B52=0,"",VLOOKUP($B52,Table2[],7,FALSE)) ->  | K52: 0
C53: =IF(B53=0,"",VLOOKUP($B53,Table2[],2,FALSE)) ->  | G53: 0.1 | I53: =IF($B53=0,"",VLOOKUP($B53,Table2[],5,FALSE)) ->  | J53: =IF($B53=0,"",VLOOKUP($B53,Table2[],7,FALSE)) ->  | K53: 0
C54: =IF(B54=0,"",VLOOKUP($B54,Table2[],2,FALSE)) ->  | G54: 0.2 | I54: =IF($B54=0,"",VLOOKUP($B54,Table2[],5,FALSE)) ->  | J54: =IF($B54=0,"",VLOOKUP($B54,Table2[],7,FALSE)) ->  | K54: 0
C55: =IF(B55=0,"",VLOOKUP($B55,Table2[],2,FALSE)) ->  | G55: 0.3 | I55: =IF($B55=0,"",VLOOKUP($B55,Table2[],5,FALSE)) ->  | J55: =IF($B55=0,"",VLOOKUP($B55,Table2[],7,FALSE)) ->  | K55: 0
C56: =IF(B56=0,"",VLOOKUP($B56,Table2[],2,FALSE)) ->  | I56: =IF($B56=0,"",VLOOKUP($B56,Table2[],5,FALSE)) ->  | J56: =IF($B56=0,"",VLOOKUP($B56,Table2[],7,FALSE)) ->  | K56: 0
C57: =IF(B57=0,"",VLOOKUP($B57,Table2[],2,FALSE)) ->  | I57: =IF($B57=0,"",VLOOKUP($B57,Table2[],5,FALSE)) ->  | J57: =IF($B57=0,"",VLOOKUP($B57,Table2[],7,FALSE)) ->  | K57: =IF(B57=0,0,ROUND(G57*H57*J57,2)) -> 0
C58: =IF(B58=0,"",VLOOKUP($B58,Table2[],2,FALSE)) ->  | I58: =IF($B58=0,"",VLOOKUP($B58,Table2[],5,FALSE)) ->  | J58: =IF($B58=0,"",VLOOKUP($B58,Table2[],7,FALSE)) ->  | K58: =IF(B58=0,0,ROUND(G58*H58*J58,2)) -> 0
C59: =IF(B59=0,"",VLOOKUP($B59,Table2[],2,FALSE)) ->  | I59: =IF($B59=0,"",VLOOKUP($B59,Table2[],5,FALSE)) ->  | J59: =IF($B59=0,"",VLOOKUP($B59,Table2[],7,FALSE)) ->  | K59: =IF(B59=0,0,ROUND(G59*H59*J59,2)) -> 0
C60: =IF(B60=0,"",VLOOKUP($B60,Table2[],2,FALSE)) ->  | I60: =IF($B60=0,"",VLOOKUP($B60,Table2[],5,FALSE)) ->  | J60: =IF($B60=0,"",VLOOKUP($B60,Table2[],7,FALSE)) ->  | K60: =IF(B60=0,0,ROUND(G60*H60*J60,2)) -> 0
C61: =IF(B61=0,"",VLOOKUP($B61,Table2[],2,FALSE)) ->  | I61: =IF($B61=0,"",VLOOKUP($B61,Table2[],5,FALSE)) ->  | J61: =IF($B61=0,"",VLOOKUP($B61,Table2[],7,FALSE)) ->  | K61: =IF(B61=0,0,ROUND(G61*H61*J61,2)) -> 0
C62: Crop Insurance | J62: =IF(F5=0,E5,F5) ->  | K62: 0
C64: Total Materials & Services | K64: =SUM(K37:K62) -> 165.69
B66: Total listed costs for Field Operations and Materials and Services | K66: =K33+K64 -> 251.85
D67: Interest on Operations Capital | E67: =ROUND(SUM($E$33:$H$33)+$K$64,2) -> 198.52 | F67: cash expense @ | H67: ='General Variables'!$B$11 -> 0.07 | I67: =CONCATENATE("for ",TEXT('General Variables'!$B$12,"0.0")," mo.") -> for 6.0 mo. | K67: =E67*H67*'General Variables'!$B$12/12 -> 6.9482
B68: Total Operating and Use Related Ownership Costs | K68: =SUM(K66:K67) -> 258.7982
B70: Overhead (accounting, liability insurance, vehicle cost, office expense, soil tests) | K70: 0
B71: Real Estate Opportunity | C71: Fall Establishment | F71: =IF(C71=0,0,VLOOKUP(C71,RETable,2,FALSE)) -> 0 | G71: per acre @ | I71: ='General Variables'!$B$10 -> 0.03 | K71: =ROUND(F71*I71,2) -> 0
B72: Real Estate Taxes | F72: =IF(C71=0,0,VLOOKUP(C71,RETable,2,FALSE)) -> 0 | G72: per acre @ | I72: ='General Variables'!$B$13 -> 0.0125 | K72: =ROUND(F72*I72,2) -> 0
B73: Total Cost per Acre Including Overhead | K73: =SUM(K68:K72) -> 258.7982
D75: Use the UNL Ag Budget Calculator program to customize crop budgets at: | K75: agbudget.unl.edu
B76: =IF(G4="","","Cost of production per "&H4) ->  | K76: =IF(G4="","",K73/G4) -> 
K113: Yes
K114: No
B242: =IF(Operations!A96="","",Operations!A96) ->  | C242: =IF(Materials!B139="","",Materials!B139) -> Alfalfa w/Inoculant
B243: =IF(Operations!A97="","",Operations!A97) ->  | C243: =IF(Materials!B140="","",Materials!B140) -> Corn
B244: =IF(Operations!A98="","",Operations!A98) ->  | C244: =IF(Materials!B141="","",Materials!B141) -> Corn Bt, ECB, & RIB
B245: =IF(Operations!A99="","",Operations!A99) ->  | C245: =IF(Materials!B142="","",Materials!B142) -> Corn Bt, ECB, RR2, LL, & RIB
B246: =IF(Operations!A100="","",Operations!A100) ->  | C246: =IF(Materials!B143="","",Materials!B143) -> Corn Bt, ECB, RW, & RIB

Sheet 4-Alfalfa
B2: Region | F2: Detail | G2: Small Square Bales | J2: Water Source | K2: Dryland
B3: Tillage System | C3: Conventional Tillage | G3: Yield | H3: 2.8 ton | J3: acre/inches
B4: Cropping System | C4: Establish Spring Seed with Herbicides | G4: =IFERROR(VALUE(LEFT($H$3,FIND(" ",$H$3))),"") -> 2.8 | H4: =IFERROR(RIGHT(H3,LEN(H3)-LEN(G4)-1),"") -> ton | J4: Follows Legume?
B5: Crop Insurance | C5: =MID(CELL("filename",C5),FIND("]",CELL("filename",C5))+1,255) -> 4-Alfalfa | E5: =VLOOKUP($C$5,CropInsurance,5,FALSE) ->  | F5: =VLOOKUP($C$5,CropInsurance,6,FALSE) -> 
A6: =REPLACE(CELL("filename",$A$1),1,FIND("]",CELL("filename",$A$1)),"") & IF($G$2="","", ", " & $G$2 ) & IF($C$2="","",", "&$C$2&"") & IF($C$3="","",", "&$C$3) & IF($C$4="","",", "&$C$4) & IF($H$3="","",", "&$H$3 & " Yield") & IF(K2="","",", " &K2) -> 4-Alfalfa, Small Square Bales, Conventional Tillage, Establish Spring Seed with Herbicides, 2.8 ton Yield, Dryland
B7: ='General Variables'!$B$3 & " Budget " & REPLACE(CELL("filename",$A$1),1,FIND("]",CELL("filename",$A$1)),"") & IF($G$2="","", ", " & $G$2 ) & IF($C$2="","",", "&$C$2) & IF($C$3="","",", "&$C$3) & IF($C$4="","",", "&$C$4) & IF($H$3="","",", "&$H$3 & " Yield") -> 2024 Budget 4-Alfalfa, Small Square Bales, Conventional Tillage, Establish Spring Seed with Herbicides, 2.8 ton Yield
B8: =IF(K2="","",K2)&IF(LEFT(K2,5)="Pivot",", 800 GPM 35 PSI","") & IF(K3="","",", "& K3&" "&J3) -> Dryland
B10: Field Operations | C10: Times or Qty | E10: ="Labor @ $" &TEXT('General Variables'!B4,"#.00")& " /Hr" -> Labor @ $25.00 /Hr | F10: ="Fuel @ $" & TEXT('General Variables'!B5,"#.00") & " and Lube" -> Fuel @ $3.45 and Lube | G10: Repairs | I10: Ownership^ | K10: Total | L10: Your Estimate
D11: Unit | G11: Power | H11: Imp. | I11: Power | J11: Imp.
A12: 1 | B12: Spread Fertilizer | C12: 1 | E12: =IF(B12=0,"",IF(C12>9999,"",ROUND('General Variables'!$B$4*VLOOKUP(B12,Operations!$A$2:$U$79,10,FALSE)/VLOOKUP(B12,Operations!$A$2:$U$79,9,FALSE)*C12,2))) -> 1.97 | F12: =IF(B12=0,0,IF(C12>9999,"",ROUND(IF(VLOOKUP(B12,Operations!$A$2:$U$79,12,FALSE)=0,VLOOKUP(B12,Operations!$A$2:$U$79,13,FALSE)*'General Variables'!$B$8,VLOOKUP(B12,Operations!$A$2:$U$79,12,FALSE)*'General Variables'!$B$7)/VLOOKUP(B12,Operations!$A$2:$U$79,9,FALSE)*C12,2))) -> 1.21 | G12: =IF(B12=0,0,IF(C12>9999,"",ROUND(VLOOKUP(VLOOKUP(B12,Operations!$A$2:$U$79,11,FALSE),PowerUnits[],10,FALSE)/VLOOKUP(B12,Operations!$A$2:$U$79,9,FALSE)*C12,2))) -> 0.05 | H12: =IF(B12=0,"",IF(C12>9999,"",ROUND(VLOOKUP($B12,Operations!$A$2:$U$79,15,FALSE)*C12,2))) -> 0 | I12: =IF(B12=0,0,IF(C12>9999,"",ROUND(VLOOKUP(VLOOKUP(B12,Operations!$A$2:$U$79,11,FALSE),PowerUnits[],16,FALSE)/VLOOKUP(B12,Operations!$A$2:$U$79,9,FALSE)*C12,2))) -> 4.13 | J12: =IF(B12=0,"",IF(C12>9999,"",ROUND(VLOOKUP($B12,Operations!$A$2:$U$79,21,FALSE)*$C12,2))) -> 2.64 | K12: =IF(C12>9999,"",ROUND(SUM(E12:J12),2)) -> 10
A13: 2 | B13: Disk | C13: 1 | E13: =IF(B13=0,"",IF(C13>9999,"",ROUND('General Variables'!$B$4*VLOOKUP(B13,Operations!$A$2:$U$79,10,FALSE)/VLOOKUP(B13,Operations!$A$2:$U$79,9,FALSE)*C13,2))) -> 2.52 | F13: =IF(B13=0,0,IF(C13>9999,"",ROUND(IF(VLOOKUP(B13,Operations!$A$2:$U$79,12,FALSE)=0,VLOOKUP(B13,Operations!$A$2:$U$79,13,FALSE)*'General Variables'!$B$8,VLOOKUP(B13,Operations!$A$2:$U$79,12,FALSE)*'General Variables'!$B$7)/VLOOKUP(B13,Operations!$A$2:$U$79,9,FALSE)*C13,2))) -> 3.02 | G13: =IF(B13=0,0,IF(C13>9999,"",ROUND(VLOOKUP(VLOOKUP(B13,Operations!$A$2:$U$79,11,FALSE),PowerUnits[],10,FALSE)/VLOOKUP(B13,Operations!$A$2:$U$79,9,FALSE)*C13,2))) -> 0.29 | H13: =IF(B13=0,"",IF(C13>9999,"",ROUND(VLOOKUP($B13,Operations!$A$2:$U$79,15,FALSE)*C13,2))) -> 1.27 | I13: =IF(B13=0,0,IF(C13>9999,"",ROUND(VLOOKUP(VLOOKUP(B13,Operations!$A$2:$U$79,11,FALSE),PowerUnits[],16,FALSE)/VLOOKUP(B13,Operations!$A$2:$U$79,9,FALSE)*C13,2))) -> 12.45 | J13: =IF(B13=0,"",IF(C13>9999,"",ROUND(VLOOKUP($B13,Operations!$A$2:$U$79,21,FALSE)*$C13,2))) -> 3.69 | K13: =IF(C13>9999,"",ROUND(SUM(E13:J13),2)) -> 23.24
A14: 3 | B14: Field Cultivation | C14: 1 | E14: =IF(B14=0,"",IF(C14>9999,"",ROUND('General Variables'!$B$4*VLOOKUP(B14,Operations!$A$2:$U$79,10,FALSE)/VLOOKUP(B14,Operations!$A$2:$U$79,9,FALSE)*C14,2))) -> 1.83 | F14: =IF(B14=0,0,IF(C14>9999,"",ROUND(IF(VLOOKUP(B14,Operations!$A$2:$U$79,12,FALSE)=0,VLOOKUP(B14,Operations!$A$2:$U$79,13,FALSE)*'General Variables'!$B$8,VLOOKUP(B14,Operations!$A$2:$U$79,12,FALSE)*'General Variables'!$B$7)/VLOOKUP(B14,Operations!$A$2:$U$79,9,FALSE)*C14,2))) -> 2.17 | G14: =IF(B14=0,0,IF(C14>9999,"",ROUND(VLOOKUP(VLOOKUP(B14,Operations!$A$2:$U$79,11,FALSE),PowerUnits[],10,FALSE)/VLOOKUP(B14,Operations!$A$2:$U$79,9,FALSE)*C14,2))) -> 0.21 | H14: =IF(B14=0,"",IF(C14>9999,"",ROUND(VLOOKUP($B14,Operations!$A$2:$U$79,15,FALSE)*C14,2))) -> 2.45 | I14: =IF(B14=0,0,IF(C14>9999,"",ROUND(VLOOKUP(VLOOKUP(B14,Operations!$A$2:$U$79,11,FALSE),PowerUnits[],16,FALSE)/VLOOKUP(B14,Operations!$A$2:$U$79,9,FALSE)*C14,2))) -> 9.05 | J14: =IF(B14=0,"",IF(C14>9999,"",ROUND(VLOOKUP($B14,Operations!$A$2:$U$79,21,FALSE)*$C14,2))) -> 2.78 | K14: 18.49
A15: 4 | B15: Seeder/Packer | C15: 1 | E15: =IF(B15=0,"",IF(C15>9999,"",ROUND('General Variables'!$B$4*VLOOKUP(B15,Operations!$A$2:$U$79,10,FALSE)/VLOOKUP(B15,Operations!$A$2:$U$79,9,FALSE)*C15,2))) -> 3.75 | F15: =IF(B15=0,0,IF(C15>9999,"",ROUND(IF(VLOOKUP(B15,Operations!$A$2:$U$79,12,FALSE)=0,VLOOKUP(B15,Operations!$A$2:$U$79,13,FALSE)*'General Variables'!$B$8,VLOOKUP(B15,Operations!$A$2:$U$79,12,FALSE)*'General Variables'!$B$7)/VLOOKUP(B15,Operations!$A$2:$U$79,9,FALSE)*C15,2))) -> 2.13 | G15: =IF(B15=0,0,IF(C15>9999,"",ROUND(VLOOKUP(VLOOKUP(B15,Operations!$A$2:$U$79,11,FALSE),PowerUnits[],10,FALSE)/VLOOKUP(B15,Operations!$A$2:$U$79,9,FALSE)*C15,2))) -> 0.08 | H15: =IF(B15=0,"",IF(C15>9999,"",ROUND(VLOOKUP($B15,Operations!$A$2:$U$79,15,FALSE)*C15,2))) -> 4.17 | I15: =IF(B15=0,0,IF(C15>9999,"",ROUND(VLOOKUP(VLOOKUP(B15,Operations!$A$2:$U$79,11,FALSE),PowerUnits[],16,FALSE)/VLOOKUP(B15,Operations!$A$2:$U$79,9,FALSE)*C15,2))) -> 6.55 | J15: =IF(B15=0,"",IF(C15>9999,"",ROUND(VLOOKUP($B15,Operations!$A$2:$U$79,21,FALSE)*$C15,2))) -> 3.63 | K15: 20.31
